{"text_format":"1","workbook":"xlsx","n_sheets":25,"sheets":["Version Info","Issues","Cover Sheet","formats","AN - Air","AN - Other","PN - Air","PN - Other","TS - Air","TS - Other","NIS","SP EXP","SP IMP","GUM-C2","CCI-C1","CCI-C2","NCTS-P5","(CTC) NCTS-P5","NCTS-P6","AES-C1","AES-C2","ICS2-R3","PoUS-P1","PoUS-P2","ICS2(1)"],"not_rendered":{"charts":0,"images":0,"macros":1,"external_links":4,"defined_names":29,"comments":1,"pivot_tables":0},"unopened":[],"bounds":{"document_bytes":16777216,"sheet_cells":100000,"rows_first":2000,"rows_last":500,"rows_between":2000,"halvings":0,"cell_chars":16384,"cell_head_chars":4096},"cells_cut":0,"cells_raw":0,"read":"whole","date_system":"1900"}

{"sheet":"Version Info","index":0,"n_rows":90,"n_cols":5,"rows_kept":90,"cut":false,"hidden":true,"merged":[]}
["This sheet will be hidden"]
["Record #","Version","Date","Subject","Change Description"]
[1,1,"2016-11-25",null,"Initial version for publication"]
[2,1.1000000000000001,"2016-12-14","DK","Updated note to all project tabs"]
[3,1.1100000000000001,"2017-01-31","BG","Introduction of PM contacts based on BGs version 2.00 for all projects"]
[4,2,"2017-03-24","PL","Provisional planning for AES(2), TES-AES(1), IMP, NA, PN, TES(PoUS)\nUpdated note for SP_EXP, SP_IMP"]
[5,2,"2017-03-29","SI","Updated dates for SP_EXP, SP_IMP, AES(2), IMP, GUM, NA, PN, TS, TES-PoUS, TES-NCTS"]
[6,2,"2017-04-04","LV","Updated dates for IMP, SP_IMP, TS, PN, NA"]
[7,2,"2017-04-05","EE","Updated dates for SP_EXP, SP_IMP, AES(2), IMP"]
[8,2,"2017-04-07","DK","Initial dates for operations"]
[9,2,"2017-04-07","SE","Updated note on SP_IMP"]
[10,2,"2017-04-20","other","Following countries indicate no change BG, CY, CZ, FI, FR, HU, IE, LT, NL, PT"]
[11,3,"2017-10-18","DK","PM change for GUM"]
[12,3,"2017-10-18","FI","Indicative dates for IMP, SP_IMP, NA, PN, TS"]
[13,3,"2017-10-18","LV","Dates updated for IMP, SP_IMP, TS"]
[14,3,"2017-10-18","LT","Dates updated for SP_EXP, SP_IMP, AES, IMP, GUM, NA, PN, TS, TES-NCTS"]
[15,3,"2017-10-18","IE","Dated updated for SP_EXP, AES(2)"]
[16,3,"2017-10-18","SI","Dates updated for SP_EXP, AES(2), GUM, NA, PN, TS, TES-PoUS, TS-NCTS, TES-AES(1)"]
[17,3,"2017-10-18","GR","Updated 'Version' and 'Issue Date'\nChanged quarter indicators to dates (Q1 = 01/01, Q2 = 01/04, etc.)\nUpdated SP_IMP\nUpdated PMs"]
[18,3,"2017-10-18","PL","Version 3.00 (instead of 0.3) and Issue Date 04/10/2017: AES(2), IMP, TES-AES(1), NA, PN, TES-PoUS, SP_EXP, SP_IMP\nUpdated note: IMP, SP_EXP, SP_IMP  //  Updated PM: TES-PoUS\nUpdated dates: NA, SP_EXP, SP_IMP  //  Updated status: SP_EXP, SP_IMP"]
[19,3,"2017-10-18","SE","Updated 'Version' and 'Issue Date'\nUpdated dates/status: SP_EXP, AES(2), IMP, GUM, PN, TS\nUpdated comments: SP_IMP, AES(2), NA, PN, TS"]
[20,3,"2017-10-18","other","Addition of the \"Issues\"-tab"]
[21,3,"2017-10-30","SI","Operations dates updated for NA, PN & TS"]
[22,3,"2017-10-30","BG","Dates updated for SP_EXP, SP_IMP, AES(2), IMP, GUM, NA, PN, TS"]
[23,3,"2017-10-30","CY","Technical Specs dates updated for NA, PN & TS"]
[24,3,"2017-11-09","ES","All dates for IMP have been deleted, note has been added."]
[25,3,"2017-11-09","ES","Dates updated for GUM, NA, PN, TS"]
[26,3,"2017-11-09","ES","All dates deleted for TES-PoUS, TES-NCTS, TES-AES(1)"]
[27,3,"2017-11-09","ES","Changed Version Number to 2.00 and Issue Date to 08/11/2017"]
[28,3.1,"2018-02-09","BE","Changes are related to the \"Comparison National Plan & Scoping AES\": Dates updates for AES. Changed quarter indicators to dates (end of quarter if single date, beginning of quarter till the end of quarter if window)"]
[29,3.1,"2018-02-09","CY","Changes are related to the \"Comparison National Plan & Scoping AES\": Dates updated for AES(2)."]
[30,3.1,"2018-02-09","CZ","Changes are related to the \"Comparison National Plan & Scoping AES\": Dates updated for AES(2)."]
[31,3.1,"2018-02-09","DE","Changes are related to the \"Comparison National Plan & Scoping AES\": Dates updated for AES(2), TES-AES(1) & TES-NCTS."]
[32,3.1,"2018-02-09","DK","Changes are related to the \"Comparison National Plan & Scoping AES\": Dates updated for AES(2)."]
[33,3.1,"2018-02-09","EE","Changes are related to the \"Comparison National Plan & Scoping AES\": Dates updated for AES(2)."]
[34,3.1,"2018-02-09","ES","Changes are related to the \"Comparison National Plan & Scoping AES\": Dates updates for AES(2), TES-AES(1) [agreed to align to the planning of AES(2)] & TES-NCTS. Changed quarter indicators to dates (end of quarter if single date, beginning of quarter till the end of quarter if window)"]
[35,3.1,"2018-02-09","GR","Changes are related to the \"Comparison National Plan & Scoping AES\": Dates updated for AES(2)."]
[36,3.1,"2018-02-09","HR","Changes are related to the \"Comparison National Plan & Scoping AES\". Updates for both AES(2) and TES-NCTS: Dates updated -> changed quarter indicators to dates (end of quarter if single date, beginning of quarter till the end of quarter if window). Updated 'Version', 'Issue Date' and Project Manager Details."]
[37,3.1,"2018-02-09","HU","Changes are related to the \"Comparison National Plan & Scoping AES\": Dates updated for AES(2), TES-AES(1) & TES-NCTS."]
[38,3.1,"2018-02-09","LV","Changes are related to the \"Comparison National Plan & Scoping AES\": Dates updated for AES(2)."]
[39,3.1,"2018-02-09","MT","Changes are related to the \"Comparison National Plan & Scoping AES\": Dates updated for AES(2)."]
[40,3.1,"2018-02-09","NL","Changes are related to the \"Comparison National Plan & Scoping AES\": Dates updated for AES(2)."]
[41,3.1,"2018-02-09","SI","Changes are related to the \"Comparison National Plan & Scoping AES\": Dates updated for AES(2)."]
[42,3.1,"2018-02-09","FI","Changes are related to the \"Comparison National Plan & Scoping AES\":\nDates updated for IMP, SP_IMP, NA, PN, TS, TES-NCTS, TES-AES(1), TES-PoUS"]
[43,4,"2018-04-17","FI","Updated 'Deployment' dates/status: IMP, SP_IMP, NA, PN, TS, TES-NCTS, TES-PoUS \nChanged quarter indicators to dates (end of quarter if single date, beginning of quarter till the end of quarter if window)"]
[44,4,"2018-04-17","SI","Updated dates/status: SP_EXP, SP_IMP, IMP, GUM, NA, PN, TS, TES-NCTS, TES-AES(1)\nUpdated 'Version' and 'Issue Date'"]
[45,4,"2018-04-17","IE","Updated dates/status/Project Mgr, eMail, Phone: TES-NCTS\nUpdated dates/status: TES-AES(1)\nUpdated 'Version' and 'Issue Date'"]
[46,5,"2018-09-07","NL","Dates and/or status updated for SP_EXP, SP_IMP, AES2, IMP, GUM, NA, PN, TS, but only for Deployment and Operations"]
[47,5,"2018-09-07","CY","Dates and/or status updated for SP_EXP, SP_IMP, AES2, IMP, GUM, NA, PN, TS"]
[48,5,"2018-09-07","DK","Dates and/or status updated for AES2 (for the rest dates remained as in April 2018)."]
[49,5,"2018-09-07","ES","Dates and/or status updated for SP_EXP, SP_IMP, AES(2), NA, PN, TS, TES-PoUS, TES-NCTS, TES-AES(1)"]
[50,5,"2018-09-07","FI","Dates and/or status updated for SP_EXP, AES(2), IMP, NA, PN, TS, TES-PoUS, TES-NCTS, TES-AES(1)\nAdded note for SP_EXP, AES(2)"]
[51,5,"2018-09-07","FR","Dates and/or status updated for SP_EXP, SP_IMP, AES(2), IMP\nDeleted status indication for AES(2)"]
[52,5,"2018-09-07","AT","Dates and/or status updated for SP_EXP, AES2, IMP, GUM, NA, PN, TS\nAdded note for SP_EXP, AES(2) and GUM"]
[53,5,"2018-09-07","HU","Dates and/or status updated for SP_EXP, SP_IMP, AES2, IMP, GUM, NA, PN, TS"]
[54,5,"2018-09-07","SI","Dates and/or status updated for SP_EXP, SP_IMP, AES2, IMP, GUM, NA, PN, TS, TES-PoUS, TES-NCTS, TES-AES(1)"]
[55,5,"2018-09-07","GR","Dates and/or status updated for SP_EXP, SP_IMP, AES2, IMP, GUM, NA, PN, TS, TES-PoUS, TES-NCTS, TES-AES(1)"]
[56,5,"2018-09-07","SE","Dates and/or status updated for SP_EXP, AES2, IMP, GUM, PN, TS"]
[57,5,"2018-09-07","LT","Dates and/or status updated for SP_EXP, SP_IMP, AES2, IMP, GUM, NA, PN, TS, TES-PoUS, TES-NCTS, TES-AES(1)"]
[58,5,"2018-09-07","EE","Dates and/or status updated for SP_EXP, SP_IMP, AES2, IMP, GUM, NA, PN, TS, TES-NCTS, TES-AES(1)"]
[59,5,"2018-09-10","CZ","Dates and/or status updated for SP_EXP, SP_IMP, AES2, IMP, GUM, NA, PN, TS, TES-NCTS, TES-AES(1)"]
[60,5,"2018-09-18","LV","Dates and/or status updated for SP_EXP, SP_IMP, AES2, IMP, GUM, NA, PN, TS, TES-PoUS, TES-NCTS, TES-AES(1)"]
[61,5,"2018-09-19","IE","Dates and/or status updated for SP_EXP, SP_IMP, AES2, IMP, GUM, NA, PN, TS, TES-NCTS, TES-AES(1)"]
[62,5,"2018-09-19","HU","Dates and/or status updated for SP_EXP, SP_IMP, AES2, IMP, GUM, NA, PN, TS"]
[63,5,"2018-09-20","IT","Dates and/or status, Project Managers updated for SP_EXP, SP_IMP, AES2, IMP, GUM, NA, PN, TS"]
[64,6,"2018-09-27","DK","Dates and/or status, Project Managers updated for SP_EXP, SP_IMP, AES2, IMP, GUM, NA, PN, TS"]
[65,6,"2018-09-27","HR","Dates and/or status, Project Managers updated for SP_EXP, SP_IMP, AES2, IMP, GUM, NA, PN, TS, TES-NCTS, TES-AES(1), TES-PoUS"]
[66,7,"2018-10-11","MT","Dates and/or status updated for SP_EXP, SP_IMP, AES2, IMP, GUM, NA, PN, TS, TES-NCTS, TES-AES(1), TES-PoUS"]
[67,8,"2019-05-23","Spring 2019","Bi-annual update for Spring 2019 (AT, CY, DE, DK, EE, ES, FI, FR, GR, HU, HR, IE, LT, LV, NL, PT, RO, SE, SI reporting)"]
[68,9,"2019-09-12","September 2019 intermediate update","Updated version based on the information received from MSs. Updated dates for:\nAT as per mail on the 8/8 v5.00.    \nCZ as per mail on the 1/8. \nHR as per mail on the 9/7/19 version 4.00. \nIE as per mail on 1/8. \nLU as per 20190606bis version. \nMT as per mail on 4/7. \nPL as per mail on 3/6 revised version. \nSK as per mail on 8/7/19 version 1.00. "]
[69,10,"2019-10-01","Oct-19, post-survey","Updated version based on the information received from MSs. Updated dates for:\nBE as per mail on 12/9\nDK as per mail on 18/9\nES as per mail on 18/9\nFR updated NPM as per mail on 17/9\nGR NP as per mail on 17/9\nIE as per mail on 13/9\nMT as per survey replies on 12/9\nPL AES1+2 as per mail on 19/9\nSE as per mail on 18/9 with NP\nSK as per mail on 17/9\nBG as per mail on the 20/09\nEE as per mail on the 23/09\nLV as per phonecall on the 23/09\nCY as per mail on 17/09"]
[70,10.1,"2019-10-09","Oct-19, SfA2 ","BG as per mail on 3/10\nRO as per mail on 4/10\nSI as per mail on 1/10"]
[71,11,"2020-01-29","2020-01-01","AT as per mail on 31/1/20\nBG as per mail on 24/1/20\nCZ as per mail on 28/1/20\nDK as per mail on 31/1/20\nES as per mail on 30/1/20\nFI as per mail on 27/1/20\nFR as per mail on 27/1/20\nIE as per mail on 24/1/20\nLT as per mail on 31/01/20\nPL as per mail on 31/1/20\nPT as per mail on 30/01/20 \nRO as per mail on 29/1/20 -->RO only updated 4 projects, assumed the rest remained the same\nSE as per mail on 30/01/20\nSI as per mail on 15/1/20\nSK as per mail on 31/1/20\nUK has been removed\nHR as per mail on 11/02/20"]
[72,12.1,"2020-05-29","Jan-20 Update - Final","BE as per mail on 02/04/2020\nCY as per mail on 16/03/2020\nCZ as per UCC Annual Report Survey Response for CCI P2\nDE as per mail on 23/03/2020\nEE as per mail on 16/03/2020\nFI as per mail on 18/05/2020 (CCI P2)\nGR as per mail on 15/03/2020\nLV as per mail on 05/03/2020\nMT, HU, IT and NL - confirmed, no changes, updated date\nRO as per mail on 13/05/2020\nNCTS and AES planning from unit B3 - Email from 29/05/2020 Q2 2020 Report"]
[73,13,null,"2020-06-01","AT as per mail on 30/06/2020\nBG as per mail on 29/06/2020, no change to dates, only one phone number updated\nCZ as per mail on 22/06/2020\nEE as per mail on 30/06/2020\nFR as per mail on 06/07/2020\nHU as per mail on 29/06/2020\nIE as per mail on 23/06/2020\nLT as per mail on 30/06/2020\nNL as per mail on 30/06/2020\nPL as per mail on 08/07/2020\nSE as per mail on 30/06/2020\nSI as per mail on 11/06/2020\n"]
[74,13.1,"2020-07-16","June Update","ES per mail on 16/07/2020\n"]
[75,14,"2020-09-17","Sept Update (DK)","DK per mail on 14/09/2020\n"]
[76,15,"2021-02-08","2021-01-01","AT as per mail on 29/01/2021\nCZ as per mail on 01/02/2021\nDK as per mail on 27/01/2021\nEE as per mail on 29/01/2021\nES as per mail on 29/01/2021\nFI as per mail on 07/12/2020\nFR as per mail on 29/01/2021\nHU as per mail on 29/01/2021\nIE as per mail on 08/02/2021\nLT as per mail on 29/01/2021\nLV as per mail on 15/12/2020\nRO as per mail on 29/01/2021\nSE as per mail on 09/02/2021\nSI as per mail on 18/01/2021\n"]
[77,16,"2021-07-07","2021-06-01","CZ as per mail on 30/06/2021\nDK as per mail on 01/07/2021\nEE as per mails on 03/06/2021 and 06/07/2021\nES as per mail on 21/05/2021\nFI as per mail on 29/06/2021\nFR as per mail on 30/06/2021\nIE as per mail on 28/06/2021\nLT as per mail on 30/06/2021\nLV as per mail on 19/05/2021\nPL as per mail on 05/07/2021\nPT as per mail on 29/06/2021\nSE as per mail on 28/06/2021\nSI as per mail on 30/06/2021"]
[78,16.100000000000001,"2021-07-14","2021-06-01","NL as per mail on 02/07/2021"]
[79,16.2,"2021-07-14","2021-06-01","Updated NL's version date to 02/07/2021 for all projects "]
[80,17,"2021-09-14","2021-09-01","HU as per mail on 08/09/2021"]
[81,"17.10","2021-10-29","2021-10-01","LV and PL as per mail on 06/10/21 and 07/10/2021"]
[82,"17.20","2021-11-09","2021-11-01","Corrected some local links on the MS cells, following comments raised on the SfR"]
[83,17.3,"2021-11-19","2021-11-01","Integrated Planning for SE"]
[84,18,"2022-02-18","2022-01-01","Consolidate National Planning responses for January 2022"]
[85,19,"2022-02-24","2022-01-01","SfA for Jan-22 Consolidation (updated GR data) + Updated country list and version information formulas"]
[86,20,"2022-02-28","2022-01-01","SfA Only for BE, DK, HR and RO consolidation of updates"]
[87,25,"2023-01-03","2023-03-23","SfA Only for DK consolidation of updates"]
[88,25.01,"2023-02-03","2023-03-23","SfA Only for ES consolidation of updates"]

{"sheet":"Issues","index":1,"n_rows":52,"n_cols":7,"rows_kept":52,"cut":false,"hidden":true,"merged":[]}
["Comment Date","Project2","Country","Phase","Issue","Proposal / Assumption","Status"]
[null,"NA","SI","Operations","Date of Operations is before Technical Specs, must be updated","01/03/2022 (aligned to date of deployment)","Updated conform MS respons on 30/10/2017"]
[null,"PN","SI","Operations","Date of Operations is before Technical Specs, must be updated","01/03/2022 (aligned to date of deployment)","Updated conform MS respons on 30/10/2017"]
[null,"TS","SI","Operations","Date of Operations is before Technical Specs, must be updated","01/03/2022 (aligned to date of deployment)","Updated conform MS respons on 30/10/2017"]
[null,"SP_IMP","GR","CT","End date was not provided.","Date of deployment has been taken as the end date for CT."]
[null,"SP_EXP","ES","TS","Date is in the past, can this be set to Stable/final?","Confirmation needed from MS"]
[null,"AES(2)","ES","TS","Date is in the past, can this be set to Stable/final?","Confirmation needed from MS","Updated conform MS respons on \"Comparison National Plan & Scoping AES\""]
[null,"AES(2)","HR","TS","Date is in the past, can this be set to Stable/final?","Confirmation needed from MS","Updated conform MS respons on \"Comparison National Plan & Scoping AES\""]
[null,"IMP","SK","CT, Depl, Migr, Op","Dates are in the past, can these be set to Stable/final?","Confirmation needed from MS"]
[null,"GUM","ES","Migr, Op","Dates are in the past, can these be set to Stable/final?","Confirmation needed from MS","Updated conform MS respons on 09/11/2017"]
[null,"NA","CY","TS","Date is in the past, can this be set to Stable/final?","Confirmation needed from MS","Updated conform MS respons on 30/10/2017"]
[null,"PN","CY","TS","Date is in the past, can this be set to Stable/final?","Confirmation needed from MS","Updated conform MS respons on 30/10/2017"]
[null,"TS","CY","TS","Date is in the past, can this be set to Stable/final?","Confirmation needed from MS","Updated conform MS respons on 30/10/2017"]
[null,"TES-PoUs","ES","TS","Date is in the past, can this be set to Stable/final?","Confirmation needed from MS","Updated conform MS respons on 09/11/2017"]
[null,"TES-NCTS","ES","TS","Date is in the past, can this be set to Stable/final?","Confirmation needed from MS","Updated conform MS respons on 09/11/2017"]
[null,"TES-AES(1)","ES","TS","Date is in the past, can this be set to Stable/final?","Confirmation needed from MS","Updated conform MS respons on 09/11/2017"]
["2018-04-17","SP_EXP","CY","TS","Date is in the past, can this be set to Stable/final?","Confirmation needed from MS"]
["2018-04-17","SP_EXP","ES","TS","Date is in the past, can this be set to Stable/final?","Confirmation needed from MS"]
["2018-04-17","SP_IMP","BG","TS","Date is in the past, can this be set to Stable/final?","Confirmation needed from MS"]
["2018-04-17","SP_IMP","ES","TS","Date is in the past, can this be set to Stable/final?","Confirmation needed from MS"]
["2018-04-17","SP_IMP","LV","TS","Date is in the past, can this be set to Stable/final?","Confirmation needed from MS"]
["2018-04-17","AES(2)","FR","TS","Date is in the past, can this be set to Stable/final?","Confirmation needed from MS"]
["2018-04-17","IMP","BG","TS","Date is in the past, can this be set to Stable/final?","Confirmation needed from MS"]
["2018-04-17","IMP","LV","TS","Date is in the past, can this be set to Stable/final?","Confirmation needed from MS"]
["2018-04-17","IMP","MT","TS","Date is in the past, can this be set to Stable/final?","Confirmation needed from MS"]
["2018-04-17","GUM","BG","TS","Date is in the past, can this be set to Stable/final?","Confirmation needed from MS"]
["2018-04-17","GUM","CZ","TS","Date is in the past, can this be set to Stable/final?","Confirmation needed from MS"]
["2018-04-17","NA","BG","TS","Date is in the past, can this be set to Stable/final?","Confirmation needed from MS"]
["2018-04-17","NA","IT","TS","Date is in the past, can this be set to Stable/final?","Confirmation needed from MS"]
["2018-04-17","PN","BG","TS","Date is in the past, can this be set to Stable/final?","Confirmation needed from MS"]
["2018-04-17","PN","IT","TS","Date is in the past, can this be set to Stable/final?","Confirmation needed from MS"]
["2018-04-17","TS","BG","TS","Date is in the past, can this be set to Stable/final?","Confirmation needed from MS"]
["2018-04-17","TS","IT","TS","Date is in the past, can this be set to Stable/final?","Confirmation needed from MS"]
["2018-04-17","TES-PoUS","GR","TS","Date is in the past, can this be set to Stable/final?","Confirmation needed from MS"]
["2018-04-17","TES-PoUS","LT","TS","Date is in the past, can this be set to Stable/final?","Confirmation needed from MS"]
["2019-08-29","All projects","SK","Migr, Op","No dates were provided in last version from 08/07/2019, deleted the existing dates in the consolidationas per the working instructions\n\nFor the National Import Systems Upgrade - SK marked stable/final for TS/CT but no dates","Confirmation needed from MS"]
["2019-08-29","NCTS2","HR","Deploy & Ops","Gave quarter of 2025 and also date from 2023","Assumed it was 2025"]
["2019-08-29","PoUS","HR","CT","Date of CT (Q2 2025) is later than the deployment (01/06/2025)"]
["2019-09-02","PoUS","MT","Deploy & Ops","date of operations is before date of deployment 3months "]
["2019-09-02","cci1","PL","TS & CT","conformance testing starts before TS"]
["2021-07-07","SP2","FI","Deploy & Ops","Date of operations is before deployment","Confirmation needed from MS"]
["2021-07-07","GUM2","PL","CT end and Ops","Date of CT and Ops is 30/09/2025 based on latest planning however confirmed by mail for the report that it should be updated to 02/06/2025 (did this in the NP and in the report however I left as-is for the NP).","Confirmation needed from MS"]
["2021-07-07","PoUS2","SI","Deploy and Ops","Date of operations is before deployment.","Confirmation needed from MS"]
["2021-10-29","GUM","PL","CT and deploy","Deployment is before CT"]
["2022-02-18","PoUS2",null,"Operations","Operations is before deployment","Assumed it was 2025 in fact"]
["2022-02-18","NCTS2","MT","Operations","Operations are before deployment (06/02/2024)","Assumed it was same as Deployment - 02/06/2025"]
["2022-02-28","PoUS2","HR","-","PoUS2 mistyped as NCTS2 in MS reply file, after PoUS1","Assumed it was PoUS based on cell position and dates"]
["2022-03-01","SP IMP, IMP","HR","Tech Specs","date provided is end 2021","Assumed it was Q4 2021 so the data input was 31/12/2021"]
["2022-02-28","ICS2-R2","DK","CT","CT End date is mismatched with the start date - 14.02.03","Assumed based on other relevant dates that it should have been 14.02.23"]
["2022-04-19","SP IMP","LV","Operations","Operations date is prior to deployment - 04/06/2017","Assumed it was in fact 04/06/2018"]
["2022-04-19","ICS2-R3","LV","Operations","Operations is prior to deployment","Assumed it was 2024 in fact"]
["2022-07-28","ICS2-R3","LU","Operations","Operations is prior to deployment- 30/06/2023","Assumed it was 2024 in fact"]

{"sheet":"Cover Sheet","index":2,"n_rows":9,"n_cols":6,"rows_kept":9,"cut":false,"hidden":false,"merged":[[0,0,0,2],[0,3,0,4],[0,5,0,6],[1,0,1,2],[1,3,1,4],[1,5,1,6],[13,0,13,6],[2,0,3,6],[4,0,4,6],[5,0,5,6],[6,0,7,6],[8,0,9,6],[10,0,11,6]]}
["Owner",null,null,"Issued",null,"Version"]
["DG TAXUD",null,null,"2024-05-24",null,26.3]
["Taxation and Customs Union DG"]
[]
[]
["SUBJECT:"]
[]
[]
["National Plans on the Implementation of the UCC Work Programme"]

{"sheet":"formats","index":3,"n_rows":29,"n_cols":7,"rows_kept":29,"cut":false,"hidden":true,"merged":[]}
["This sheet will be hidden"]
["Project Name","Project Type",null,"Country Code","Country",null,"Status"]
["UCC Notification of Arrival","National System",null,"AT","Österreich",null,"Stable/Final"]
["UCC Presentation Notification","National System",null,"BE","Belgique/België",null,"Indicative"]
["UCC Temporary Storage","National System",null,"BG","България"]
["UCC National Import Systems upgrade","National System",null,"CY","Κύπρος"]
["UCC Special Procedures (Component 1) \"National SP EXP\"","National System",null,"CZ","Česká republika"]
["UCC Special Procedures (Component 2) \"National SP IMP\"","National System",null,"DE","Deutschland"]
["UCC Guarantee Management (Component 2) \"National GUM\"","National System",null,"DK","Danmark"]
["UCC Centralised Clearance for Import (Phase 1)","TES System",null,"EE","Eesti"]
["UCC Centralised Clearance for Import (Phase 2)","TES System",null,"GR","Ελλάδα"]
["UCC NCTS upgrade (Phase 5)","TES System",null,"ES","España"]
["UCC NCTS upgrade (Phase 6)","TES System",null,"FI","Suomi/Finland"]
["UCC AES (Component 1) \"Trans-European AES\"","TES System",null,"FR","France"]
["UCC AES (Component 2) \"National Export Systems upgrade\"","National System",null,"HR","Hrvatska"]
["UCC Import Control System 2 – Release 3","TES System",null,"HU","Magyarország"]
["UCC Proof of Union Status (PoUS) - Phase 1","TES System",null,"IE","Éire/Ireland"]
["UCC Proof of Union Status (PoUS) - Phase 2","TES System",null,"IT","Italia"]
[null,null,null,"LT","Lietuva"]
[null,null,null,"LU","Luxembourg"]
[null,null,null,"LV","Latvija"]
[null,null,null,"MT","Malta"]
[null,null,null,"NL","Nederland"]
[null,null,null,"PL","Polska"]
[null,null,null,"PT","Portugal"]
[null,null,null,"RO","România "]
[null,null,null,"SE","Sverige"]
[null,null,null,"SI","Slovenija"]
[null,null,null,"SK","Slovensko"]

{"sheet":"AN - Air","index":4,"n_rows":32,"n_cols":27,"rows_kept":32,"cut":false,"hidden":false,"merged":[[2,24,2,26],[3,2,3,4],[3,5,3,8],[3,9,3,11],[3,12,3,15],[3,16,3,18],[2,2,2,4],[2,5,2,8],[2,9,2,11],[2,12,2,15],[2,16,2,18],[2,22,2,23]]}
[]
[]
[null,null,"Technical Specifications",null,null,"Conformance Testing",null,null,null,"Deployment",null,null,"Migration",null,null,null,"Operations",null,null,"Web","Notes","Derogations","Version information and issue date",null,"Project Manager Details"]
[null,null,"The date of publication of the technical specifications for the external communication on the electronic system",null,null,"The period of conformance testing with economic operators",null,null,null,"The date of deployment of the electronic system",null,null,"Where applicable, the period during which the economic operators are allowed to carry out migration",null,null,null,"Start of Operations for all economic operators (end of transition period)",null,null,"Web address of specifications for EO's",null,"If a derogation under Art 6(4) UCC was granted, please indicate the activities carried out and the state of development in order to reach the derogation deadline."]
[null,"UCC Notification of Arrival (NA) - Aircraft","Date","Status","Progress","Start Date","End Date","Status","Progress","Date","Status","Progress","Start Date","End Date","Status","Progress","Date","Status","Progress","Web address","Note/Comment","Note/Comment","Version Number","Issue Date","Project Mgr Name","e-Mail","Phone"]
[null,{"$f":"formats!D3&\"-\"&formats!E3","v":"AT-Österreich"},"2021-11-01","Stable/Final","Completed","N/A","N/A","Stable/Final","Not started","N/A","Stable/Final","Not started","N/A","N/A","Stable/Final","Not started","2023-07-01","Stable/Final","Completed","https://www.bmf.gv.at/themen/zoll/uzk-it-anwendungen/ics2-import-control-system.html",null,null,13,"2024-03-18","Manfred Winterleitner ","manfred.winterleitner@bmf.gv.at","0043-1-51433-504157"]
[null,{"$f":"formats!D4&\"-\"&formats!E4","v":"BE-Belgique/België"},null,null,null,"2023-03-01","2023-06-30","Stable/Final",null,"2023-06-30","Stable/Final",null,null,null,null,null,"2023-03-01",null,null,"https://financien.belgium.be/nl/douane_accijnzen/ondernemingen/applicaties-da/technische-documentatie-0",null,null,"4.00","2024-02-20","Ann Ghijselen\nYann Philippe (Service manager)","ann.ghijselen@minfin.fed.be\nyann.philippe@minfin.fed.be"]
[null,{"$f":"formats!D5&\"-\"&formats!E5","v":"BG-България"},"2022-03-28","Stable/Final","Completed","2022-12-01","2022-12-15","Stable/Final","Completed","2023-03-01","Stable/Final","Completed",null,null,null,null,"2023-03-01","Stable/Final","Completed","https://ep.customs.bg/eportal/",null,"The Commission implementing decision granting a derogation is applying from 1.3.2023 in respect of goods entering the customs territorry of the Union by air and from 1.3.2024 in respect of goods entering the customs territorry of the Union by maritime transport or inland waterways.","10.01","2024-03-01","Gabriela Georgieva","masp_bg@customs.bg","00359 2 9859 4036"]
[null,{"$f":"formats!D6&\"-\"&formats!E6","v":"CY-Κύπρος"},"2023-05-22","Stable/Final","Completed","2023-10-01","2024-09-30","Stable/Final","In progress","2024-10-30","Stable/Final","Not started","N/A","N/A",null,"Not started","2024-10-30","Stable/Final","Not started","https://www.mof.gov.cy/mof/ce/theseas/theseas.nsf/techinfo_en/techinfo_en?OpenDocument",null,"Derogation was granted.",7,"2024-04-26","Yiannos Panteli","ypanteli@customs.mof.gov.cy",35722601663]
[null,{"$f":"formats!D7&\"-\"&formats!E7","v":"CZ-Česká republika"},"2023-09-01","Stable/Final","Completed","2023-11-01","2023-12-01","Stable/Final","Completed","2023-12-05","Stable/Final","Completed",null,null,null,null,"2023-12-05","Stable/Final","Completed","Dokumentace pro výrobce SW | Celní správa ČR (celnisprava.cz)",null,null,"1.5","2024-05-16","Lenka Kubíková","NPP.MASP@cs.mfcr.cz","420/261332631"]
[null,{"$f":"formats!D8&\"-\"&formats!E8","v":"DE-Deutschland"},null,null,null,null,null,null,null,null,null,null,null,null,null,null,null,null,null,null,"This \"message\" will be covered by the transeuropean system ICS2.  All Milestones affecting economic operators need to be considered in line with the ICS2 planning for Release 2 and Release 3 provided by EU-COM, especially in relation to the STI. ",null,"7.00","2024-03-20","Michael Schröter","DIIB12.gzd@zoll.bund.de","0049(0)228/303-21096"]
[null,{"$f":"formats!D9&\"-\"&formats!E9","v":"DK-Danmark"},"2021-09-01","Stable/Final","Completed","2023-06-15","2023-11-01","Stable/Final","Completed","2023-11-06","Stable/Final","Completed","2023-03-01","2023-10-31","Stable/Final","Completed","2023-10-31","Stable/Final","Completed","www.toldst.dk ","Tentative plan, as per derogation. Will be gradually updated.","Derogation was granted. The Danish implementation of Arrival Notification (AN) followed the implementation of ICS2 release 2 (the national implementation is usable for air and prepared for maritime).",1,"2024-04-15","Tine Mercebach","EUTK-kontrolsystemer@toldst.DK","+45 7237 0754"]
[null,{"$f":"formats!D10&\"-\"&formats!E10","v":"EE-Eesti"},"N/A","Stable/Final","Not started","N/A","N/A","Stable/Final","Not started","2023-10-01","Stable/Final","Completed","2023-10-01","2023-10-01","Stable/Final","Completed","2023-10-01","Stable/Final","Completed","https://www.emta.ee/ariklient/toll-kaubavahetus/tolliinfosusteemid/tolliinfosusteemide-kasutajatele#nes-uldinfo","Development according to ICS2 project plan.","A derogation request was accordingly submitted by EE on 06.07.2022.",17,"2024-03-25","Leili Kristovald","AN-PN-TS-NPM-EE@emta.ee",3726761041]
[null,{"$f":"formats!D11&\"-\"&formats!E11","v":"GR-Ελλάδα"},"2023-09-30","Stable/Final","Completed","2023-09-30","2024-12-31","Stable/Final","Completed","2023-12-31","Stable/Final","Completed","2023-12-31","2023-12-31","Stable/Final","Completed","2023-12-31","Stable/Final","Completed","https://www.aade.gr/customs","THE FUNCTIONALITY OR COMMON REPOSITORY IS USED","derogation request",6.1,"2024-03-08","Mr Katagis","ICS_NPM@AADE.GR","0030210 6987434"]
[null,{"$f":"formats!D12&\"-\"&formats!E12","v":"ES-España"},"2022-03-01","Stable/Final","Completed","2022-09-01","2023-10-02","Stable/Final","Completed","2023-03-01","Stable/Final","Completed","2023-03-01","2023-10-01","Stable/Final","Completed","2023-10-02","Stable/Final","Completed",null,null,null,3.2,"2024-03-08","María González Pérez","maria.gonzalez@correo.aeat.es",34917289548]
[null,{"$f":"formats!D13&\"-\"&formats!E13","v":"FI-Suomi/Finland"},"2022-06-30","Stable/Final","Completed","N/A","N/A","Stable/Final","Not started","2023-03-31","Stable/Final","Completed","2023-03-31","2023-09-30","Stable/Final","Completed","2023-03-31","Stable/Final","Completed","https://finnishcustoms-suomentulli.github.io/MIGs/Entry2.5/en/index.html",null,null,"13.00","2024-03-22","Leila Lappalainen","leila.lappalainen@tulli.fi"]
[null,{"$f":"formats!D14&\"-\"&formats!E14","v":"FR-France"},"N/A","Indicative","Not started","N/A","N/A","Indicative","Not started","2023-06-30","Stable/Final","Completed","2023-06-30","2024-06-01","Stable/Final","In progress","2024-06-03","Indicative","Not started","https://www.douane.gouv.fr/services-aide/edi","Proposed via ICS release 2\nProgress can be consulted via the following link  :https://www.douane.gouv.fr/fiche/progress-report","Planning under review",1.2,"2024-02-07","Office COMINT 1 DGDDI","dg-comint1-rec@douane.finances.gouv.fr"]
[null,{"$f":"formats!D15&\"-\"&formats!E15","v":"HR-Hrvatska"},"2022-04-01","Stable/Final","Completed","2023-03-01","2023-07-01","Stable/Final","Completed","2023-07-01","Stable/Final","Completed","2023-07-01","2023-10-02","Stable/Final","Completed","2023-10-02","Stable/Final","Completed","https://carina.gov.hr ","AN is aligned with ICS2 releases R2 and R3 for relevant modes of transport (for ICS2 R2  is the system is in use from 01.07.2023. AN as part of ICS2 R2) EO will use STI to submit ANs. EOs will use DW for ICS2 R2 and R3 the period of inclusion in submitting AN via STI depends on it. As a rule, when EO starts in ICS2 R2 or R3, he is obliged to submit AN via STI. For maritime transport, the system will be in accordance with the new derogation document regarding ICS2 R3 step 1.  Nationly In this sense, the ITSP has not yet been selected for the development of that part (maritime transport).At the moment, the tender for the executor of the development of the IT part.. has not yet been announced - the risk of untimely involvement.","Derogation for AN ",9.1999999999999993,"2024-03-19","Albert Đurđević","albert.durdevic@carina.hr ",38516211536]
[null,{"$f":"formats!D16&\"-\"&formats!E16","v":"HU-Magyarország"},"2023-07-03","Stable/Final","Completed","2023-12-16","2024-02-18","Indicative","In progress","2024-03-01","Indicative","In progress",null,null,null,null,"2024-03-01","Indicative","Not started","Dokumentumok (gov.hu)",null,"The developments are in progress.",11,"2024-01-31","Jenes Barbara","uvk_mp_masp@nav.gov.hu",3614569584]
[null,{"$f":"formats!D17&\"-\"&formats!E17","v":"IE-Éire/Ireland"},"2022-01-28","Stable/Final","Completed","2023-04-01","2023-06-01","Stable/Final","Completed","2023-07-01","Stable/Final","Completed","N/A","N/A","Stable/Final","Not started","2023-07-01","Stable/Final","Completed","www.revenue.ie",null,null,15.2,"2024-03-21","Paul Paxman","UCCITDev@revenue.ie"]
[null,{"$f":"formats!D18&\"-\"&formats!E18","v":"IT-Italia"},"2022-06-01","Stable/Final",null,"2022-09-05","2022-12-12","Stable/Final",null,"2022-12-13","Stable/Final",null,null,null,null,null,null,null,null,"https://www.adm.gov.it/portale/an-pn-ts",null,null,1.01,"2024-03-13","Giuseppe Urraci","Giuseppe.Urraci@adm.gov.it","+39 06 5024 3084"]
[null,{"$f":"formats!D19&\"-\"&formats!E19","v":"LT-Lietuva"},"01/06/2020","Stable/Final","Completed","15/10/2022","01/03/2023","Stable/Final","Completed","01/03/2023","Stable/Final","Completed","30/11/2022","01/10/2023","Stable/Final","Completed","01/10/2023","Stable/Final","Completed","https://lrmuitine.lt/web/guest/1000","Lithuania will use central ICS2 R2 functionalinty for AN and not creating national system.  All communication should be additionally copied to tautvydas.banelis@lrmuitine.lt , giedre.jusaityte@lrmuitine.lt, robertas.kaukenas@lrmuitine.lt ",null,13.1,"2024-03-08","Vitalis Vareikis","UCC_NA_N-LT@lrmuitine.lt",37052666144]
[null,{"$f":"formats!D20&\"-\"&formats!E20","v":"LU-Luxembourg"},"2021-12-14","Stable/Final",null,"2022-10-01","2023-07-01",null,null,"2023-03-01","Stable/Final",null,null,null,null,null,"2023-03-01","Stable/Final",null,"https://douanes.public.lu/fr/services-ligne/edouanes/LUCCS/EOG.html",null,"NA-LU mamaged to go live if the arrival notification on 1st march 2023",1,"2023-03-15","Robert Scheueren","it.npm@do.etat.lu","+352 621 306 782"]
[null,{"$f":"formats!D21&\"-\"&formats!E21","v":"LV-Latvija"},"N/A","Stable/Final","Not started","N/A","N/A","Stable/Final","Completed","2017-09-24","Stable/Final","Completed","N/A","N/A","Stable/Final","Not started","2017-09-25","Stable/Final","Completed","https://www.vid.gov.lv/lv/k%C4%81-lietot-emdas  ","Notification of arrival is now a part of ICS2.",null,3,"2024-03-08","Sabine Dubulte","ecustoms@vid.gov.lv ",37167120807]
[null,{"$f":"formats!D22&\"-\"&formats!E22","v":"MT-Malta"},"2024-02-01","Indicative","In progress","2024-03-31","2024-05-15","Indicative","Not started","2024-06-01","Indicative","Not started",null,null,null,null,"2024-06-01","Indicative","Not started","www.customs.gov.mt",null,"Please note that Malta has requested an extension to an existing derogation (on 22nd November 2023) thus all dates are tentative. Matters are being discussed with suppliers and Malta has requested updated timelines.","3.02","2024-03-20","Stephanie Ruggier","stephanie.ruggier@gov.mt",35623783086]
[null,{"$f":"formats!D23&\"-\"&formats!E23","v":"NL-Nederland"},"2021-12-31","Stable/Final","Completed","2023-03-01","2023-06-30","Stable/Final","Completed","2023-06-30","Stable/Final","Completed","2023-06-30","2023-10-01","Stable/Final","Completed","2023-10-01","Stable/Final","Completed","https://www.nhdouane.nl/",null,null,"3.00","2024-04-05","National Helpdesk Dutch Customs","NHD.apeldoorn@douane.nl","(+31)(0)88 156 6655"]
[null,{"$f":"formats!D24&\"-\"&formats!E24","v":"PL-Polska"},"2023-01-01","Stable/Final","Completed","2023-06-01","2023-09-30","Stable/Final","Completed","2023-07-01","Stable/Final","Completed",null,null,null,null,"2023-09-30","Stable/Final","Completed",null,null,"Poland was granted a derogation decision.AN functionalities are being developed within ICS2 system and according to its schedule.","3.20","2024-03-11","Wojciech Sobczyk","wojciech.sobczyk@mf.gov.pl",48539019460]
[null,{"$f":"formats!D25&\"-\"&formats!E25","v":"PT-Portugal"},"2022-07-31","Stable/Final","Completed","2022-12-01","2024-09-30","Indicative","In progress","2024-10-28","Indicative","Not started",null,null,null,null,"2024-10-29","Indicative","Not started","https://info-aduaneiro.portaldasfinancas.gov.pt/pt/informacao_aduaneira/Pages/default.aspx","Derrogation request to second semester 2024","Projects 1,2 and 3 are developed in same system;\nTest environment available to EOs;\nOngoing the activities with airports Authorities;\nDevelopment and testing is ongoing.",7.2,"2024-04-05","Ana Freitas Couto","Ana.Freitas.Couto@at.gov.pt",351218813866]
[null,{"$f":"formats!D26&\"-\"&formats!E26","v":"RO-România "},"2022-04-13","Stable/Final","Completed","2024-05-01","2024-05-31","indicative","Not started","2024-05-01","indicative","In progress","N/A ","N/A ",null,"Not started","2024-05-01","indicative","In progress","https://www.customs.ro/e-customs/ICS2/reglementari",null,null,"3.00","2024-03-25","Constantin Trîmbez","constantin.trimbez@customs.ro",40213155858]
[null,{"$f":"formats!D27&\"-\"&formats!E27","v":"SE-Sverige"},"N/A",null,"Not started","N/A","N/A",null,"Not started","2023-03-01","Stable/Final","Completed","2023-03-01","2023-03-01","Stable/Final","Completed","2024-03-01","Stable/Final","Completed",null,"We are going to use the central functionalities developed by the COM within the ICS2 project and the date of deployment and operational date follow the expected timelines from the different releases in this project. ",null,21,"2024-03-08","Agneta Andersson","underrattelseavd.npm.ics2@tullverket.se"]
[null,{"$f":"formats!D28&\"-\"&formats!E28","v":"SI-Slovenija"},"N/A",null,"Not started","N/A","N/A",null,"Not started","N/A",null,"Not started","N/A","N/A",null,"Not started","2023-03-01","Stable/Final","Completed","e-Carina | FINANČNA UPRAVA REPUBLIKE SLOVENIJE (gov.si)","Use in ICS2 Arrival process for air cargo and STI foreseen to be in use for maritime in 2024 and other means of transport in 2025. No national solution is nedeed.",null,16.02,"2024-03-20","Mr. Stojan Boštjančič","sd.fu@gov.si","00386 1/478 38 72"]
[null,{"$f":"formats!D29&\"-\"&formats!E29","v":"SK-Slovensko"},"2022-10-01","Stable/Final","Completed","2022-12-01","2023-02-14","Stable/Final","Completed","2023-03-01","Stable/Final","Completed",null,null,null,null,"2023-03-01","Stable/Final","Completed",null,"We use central solution via STI/HTI in ICS2-CR",null,1,"2024-03-08","Marián Baláž","marian.balaz@financnasprava.sk","00421 2 48273216"]

{"sheet":"AN - Other","index":5,"n_rows":32,"n_cols":27,"rows_kept":32,"cut":false,"hidden":false,"merged":[[2,24,2,26],[3,2,3,4],[3,5,3,8],[3,9,3,11],[3,12,3,15],[3,16,3,18],[2,2,2,4],[2,5,2,8],[2,9,2,11],[2,12,2,15],[2,16,2,18],[2,22,2,23]]}
[]
[]
[null,null,"Technical Specifications",null,null,"Conformance Testing",null,null,null,"Deployment",null,null,"Migration",null,null,null,"Operations",null,null,"Web","Notes","Derogations","Version information and issue date",null,"Project Manager Details"]
[null,null,"The date of publication of the technical specifications for the external communication on the electronic system",null,null,"The period of conformance testing with economic operators",null,null,null,"The date of deployment of the electronic system",null,null,"Where applicable, the period during which the economic operators are allowed to carry out migration",null,null,null,"Start of Operations for all economic operators (end of transition period)",null,null,"Web address of specifications for EO's",null,"If a derogation under Art 6(4) UCC was granted, please indicate the activities carried out and the state of development in order to reach the derogation deadline."]
[null,"UCC Notification of Arrival (AN) - Other modes of transport","Date","Status","Progress","Start Date","End Date","Status","Progress","Date","Status","Progress","Start Date","End Date","Status","Progress","Date","Status","Progress","Web address","Note/Comment","Note/Comment","Version Number","Issue Date","Project Mgr Name","e-Mail","Phone"]
[null,{"$f":"formats!D3&\"-\"&formats!E3","v":"AT-Österreich"},"N/A","Stable/Final","Not started","N/A","N/A","Stable/Final","Not started","N/A","Stable/Final","Not started","N/A","N/A","Stable/Final","Not started","N/A","Stable/Final","Not started","https://www.bmf.gv.at/themen/zoll/uzk-it-anwendungen/ics2-import-control-system.html","Not applicabale because only air traffic in AT",null,{"$f":"'AN - Air'!W6","v":13},{"$f":"'AN - Air'!X6","v":"2024-03-18"},"Manfred Winterleitner ","manfred.winterleitner@bmf.gv.at","0043-1-51433-504157"]
[null,{"$f":"formats!D4&\"-\"&formats!E4","v":"BE-Belgique/België"},null,null,null,null,null,null,null,null,null,null,null,null,null,null,null,null,null,null,null,null,{"$f":"'AN - Air'!W7","v":"4.00"},{"$f":"'AN - Air'!X7","v":"2024-02-20"},"Ann Ghijselen\nYann Philippe (Service manager)","ann.ghijselen@minfin.fed.be\nyann.philippe@minfin.fed.be"]
[null,{"$f":"formats!D5&\"-\"&formats!E5","v":"BG-България"},null,null,null,null,null,null,null,"2024-06-03","Stable/Final","Not started",null,null,null,null,"2024-06-03","Stable/Final","Not started",null,null,null,{"$f":"'AN - Air'!W8","v":"10.01"},{"$f":"'AN - Air'!X8","v":"2024-03-01"},"Gabriela Georgieva","masp_bg@customs.bg","00359 2 9859 4036"]
[null,{"$f":"formats!D6&\"-\"&formats!E6","v":"CY-Κύπρος"},"2023-05-22","Stable/Final","Completed","2023-10-01","2024-09-30","Stable/Final","In progress","2024-10-30","Stable/Final","Not started","N/A","N/A",null,"Not started","2024-10-30","Stable/Final","Not started","https://www.mof.gov.cy/mof/ce/theseas/theseas.nsf/techinfo_en/techinfo_en?OpenDocument",null,"Derogation was granted.",{"$f":"'AN - Air'!W9","v":7},{"$f":"'AN - Air'!X9","v":"2024-04-26"},"Yiannos Panteli","ypanteli@customs.mof.gov.cy",35722601663]
[null,{"$f":"formats!D7&\"-\"&formats!E7","v":"CZ-Česká republika"},"N/A","Stable/Final","Not started","N/A","N/A","Stable/Final","Not started","2023-12-05","Stable/Final","Completed",null,null,null,null,"2023-12-05","Stable/Final","Completed",null,null,null,{"$f":"'AN - Air'!W10","v":"1.5"},{"$f":"'AN - Air'!X10","v":"2024-05-16"},"Lenka Kubíková","NPP.MASP@cs.mfcr.cz","420/261332631"]
[null,{"$f":"formats!D8&\"-\"&formats!E8","v":"DE-Deutschland"},null,null,null,null,null,null,null,null,null,null,null,null,null,null,null,null,null,null,"Please see Note / Comment for \"Air transport\".",null,{"$f":"'AN - Air'!W11","v":"7.00"},{"$f":"'AN - Air'!X11","v":"2024-03-20"},"Michael Schröter","DIIB12.gzd@zoll.bund.de","0049(0)228/303-21096"]
[null,{"$f":"formats!D9&\"-\"&formats!E9","v":"DK-Danmark"},"2021-09-01","Stable/Final","Completed","2023-12-11","2024-12-04","Indicative","In progress","2024-05-25","Indicative","In progress","2024-06-03","2024-12-04","Indicative","Not started","2024-12-04",null,"Not started",null,null,null,{"$f":"'AN - Air'!W12","v":1},{"$f":"'AN - Air'!X12","v":"2024-04-15"},"Tine Mercebach","EUTK-kontrolsystemer@toldst.DK","+45 7237 0754"]
[null,{"$f":"formats!D10&\"-\"&formats!E10","v":"EE-Eesti"},"N/A","Stable/Final","Not started","N/A","N/A","Stable/Final","Not started","2024-06-03","Stable/Final","In progress","2024-06-03","2024-12-04","Indicative","In progress","2024-12-04","Indicative","In progress",null,null,"A derogation request was accordingly submitted by EE on 06.07.2022.",{"$f":"'AN - Air'!W13","v":17},{"$f":"'AN - Air'!X13","v":"2024-03-25"},"Leili Kristovald","AN-PN-TS-NPM-EE@emta.ee",3726761041]
[null,{"$f":"formats!D11&\"-\"&formats!E11","v":"GR-Ελλάδα"},"2023-09-30","Stable/Final","Completed","2023-09-30","2023-12-31","Stable/Final","Completed","2024-06-30","Stable/Final","Not started","2024-06-30","2025-03-31","Stable/Final","In progress","2024-06-30","Stable/Final","Not started",null,null,null,{"$f":"'AN - Air'!W14","v":6.1},{"$f":"'AN - Air'!X14","v":"2024-03-08"},"Mr Katagis","ICS_NPM@AADE.GR","0030210 6987434"]
[null,{"$f":"formats!D12&\"-\"&formats!E12","v":"ES-España"},"2022-03-01","Stable/Final","Completed","2023-10-01","2024-12-04","Stable/Final","In progress","2024-06-03","Stable/Final","Not started","2024-06-03","2024-12-04","Stable/Final","Not started","2024-12-04","Stable/Final","Not started",null,"NA for Martime aligned with ICS2 R3",null,{"$f":"'AN - Air'!W15","v":3.2},{"$f":"'AN - Air'!X15","v":"2024-03-08"},"María González Pérez","maria.gonzalez@correo.aeat.es",34917289548]
[null,{"$f":"formats!D13&\"-\"&formats!E13","v":"FI-Suomi/Finland"},"2022-06-30","Stable/Final","Completed","N/A","N/A","Stable/Final","Not started","2024-06-30","Stable/Final","In progress","2024-06-30","2024-06-30","Stable/Final","Not started","2024-06-30","Stable/Final","Not started","https://finnishcustoms-suomentulli.github.io/MIGs/Entry2.5/en/index.html","Q2/2024 Maritime, Road+Railway according to WP",null,{"$f":"'AN - Air'!W16","v":"13.00"},{"$f":"'AN - Air'!X16","v":"2024-03-22"},"Leila Lappalainen","leila.lappalainen@tulli.fi"]
[null,{"$f":"formats!D14&\"-\"&formats!E14","v":"FR-France"},"TBD","Indicative","Not started","TBD","TBD","Indicative","Not started","TBD","Indicative","Not started","TBD","TBD","Indicative","Not started","TBD","Indicative","Not started",null,null,null,{"$f":"'AN - Air'!W17","v":1.2},{"$f":"'AN - Air'!X17","v":"2024-02-07"},"Office COMINT 1 DGDDI","dg-comint1-rec@douane.finances.gouv.fr"]
[null,{"$f":"formats!D15&\"-\"&formats!E15","v":"HR-Hrvatska"},null,null,null,"2023-06-03","2024-12-04","Indicative","Not started","2024-06-03","Indicative","In progress","2023-06-03","2024-12-04","Indicative","In progress","2024-06-03","Indicative","Not started",null,null,null,{"$f":"'AN - Air'!W18","v":9.1999999999999993},{"$f":"'AN - Air'!X18","v":"2024-03-19"},"Albert Đurđević","albert.durdevic@carina.hr ",38516211536]
[null,{"$f":"formats!D16&\"-\"&formats!E16","v":"HU-Magyarország"},"2023-07-03","Stable/Final","Completed","2023-12-16","2024-02-18","Indicative","In progress","2024-03-01","Indicative","In progress",null,null,null,null,"2024-03-01","Indicative","Not started",null,null,null,{"$f":"'AN - Air'!W19","v":11},{"$f":"'AN - Air'!X19","v":"2024-01-31"},"Jenes Barbara","uvk_mp_masp@nav.gov.hu",3614569584]
[null,{"$f":"formats!D17&\"-\"&formats!E17","v":"IE-Éire/Ireland"},"2022-01-28","Stable/Final","Completed","2023-12-01","2025-07-31","Stable/Final","In progress","2024-06-03","Stable/Final","In progress","2024-06-03","2025-07-31","Stable/Final","In progress","2024-06-03","Stable/Final","In progress","https://www.revenue.ie/en/home.aspx","In accordance with Article 133 of UCC, where the informationon arrival is available to the customs authorities they may waive this notification. In IE we are provided with this information from our port and airport authorities and will not, therefore, require the operators to submit notifications of arrival to the STI until the implementation of ICS2 R3",null,{"$f":"'AN - Air'!W20","v":15.2},{"$f":"'AN - Air'!X20","v":"2024-03-21"},"Paul Paxman","UCCITDev@revenue.ie"]
[null,{"$f":"formats!D18&\"-\"&formats!E18","v":"IT-Italia"},"2024-03-27","Indicative",null,"2024-05-03","2024-05-31","Indicative",null,"2024-06-03","Indicative",null,null,null,null,null,null,null,null,null,null,null,{"$f":"'AN - Air'!W21","v":1.01},{"$f":"'AN - Air'!X21","v":"2024-03-13"},"Giuseppe Urraci","Giuseppe.Urraci@adm.gov.it","+39 06 5024 3084"]
[null,{"$f":"formats!D19&\"-\"&formats!E19","v":"LT-Lietuva"},"01/06/2020","Stable/Final","Completed","15/10/2022","01/06/2024","Stable/Final","In progress","03/06/2024","Stable/Final","In progress","2023-03-01","01/09/2025","Stable/Final","In progress","01/09/2025","Stable/Final","In progress","https://lrmuitine.lt/web/guest/1000","Lithuania will use central ICS2 R2 functionalinty for AN and not creating national system. Economic operators ask to postpone the beginning of operation in accordance with ICS2 R2 deplyment window. For traders using the ICS2-R3 deployment window, the migration is expected from 03/06/2024. All communication should be additionally copied to tautvydas.banelis@lrmuitine.lt , giedre.jusaityte@lrmuitine.lt, robertas.kaukenas@lrmuitine.lt ",null,{"$f":"'AN - Air'!W22","v":13.1},{"$f":"'AN - Air'!X22","v":"2024-03-08"},"Vitalis Vareikis","UCC_NA_N-LT@lrmuitine.lt",37052666144]
[null,{"$f":"formats!D20&\"-\"&formats!E20","v":"LU-Luxembourg"},null,null,null,null,null,null,null,null,null,null,null,null,null,null,null,null,null,"https://douanes.public.lu/fr/services-ligne/edouanes/LUCCS/EOG.html",null,"NA-LU mamaged to go live if the arrival notification on 1st march 2023",{"$f":"'AN - Air'!W23","v":1},{"$f":"'AN - Air'!X23","v":"2023-03-15"},"Robert Scheueren","it.npm@do.etat.lu","+352 621 306 782"]
[null,{"$f":"formats!D21&\"-\"&formats!E21","v":"LV-Latvija"},"2022-01-10","Stable/Final","Completed","N/A","N/A","Stable/Final","Not started","2023-03-01","Stable/Final","Completed","N/A","N/A","Stable/Final","Not started","2025-09-01","Stable/Final","In progress",null,"Information related to arrival is available to customs via International freight logistic and port information system administred by the Ministry of Transport. The process will be adjusted along with the end of transition for ICS2 R3 (systems is already operational in customs) for trade and implementation of Maritime SW",null,{"$f":"'AN - Air'!W24","v":3},{"$f":"'AN - Air'!X24","v":"2024-03-08"},"Sabine Dubulte","ecustoms@vid.gov.lv ",37167120807]
[null,{"$f":"formats!D22&\"-\"&formats!E22","v":"MT-Malta"},"2024-06-01","Indicative","In progress","2024-09-01","2024-11-30","Indicative","Not started","2024-12-31","Indicative","Not started",null,null,null,null,"2024-12-31","Indicative","Not started",null,null,"Please note that Malta has requested an extension to an existing derogation (on 22nd November 2023) thus all dates are tentative. Matters are being discussed with suppliers and Malta has requested updated timelines.",{"$f":"'AN - Air'!W25","v":"3.02"},{"$f":"'AN - Air'!X25","v":"2024-03-20"},"Stephanie Ruggier","stephanie.ruggier@gov.mt",35623783086]
[null,{"$f":"formats!D23&\"-\"&formats!E23","v":"NL-Nederland"},"2023-09-01","Stable/Final","Completed","2024-01-01","2024-05-24","Indicative","Not started","2024-05-27","Indicative","Not started","2024-06-03","2025-09-01","Indicative","Not started","2025-09-01","Indicative","Not started","https://www.nhdouane.nl/","NL is considering to combine the migration for traders for AN maritime with ICS2 R3, following a request from Trade",null,{"$f":"'AN - Air'!W26","v":"3.00"},{"$f":"'AN - Air'!X26","v":"2024-04-05"},"National Helpdesk Dutch Customs","NHD.apeldoorn@douane.nl","(+31)(0)88 156 6655"]
[null,{"$f":"formats!D24&\"-\"&formats!E24","v":"PL-Polska"},"2023-01-01","Stable/Final","Completed","2024-04-01","2024-12-04","Indicative","Not started","2024-06-03","Stable/Final","Not started",null,null,null,null,"2024-12-04","Stable/Final","Not started",null,null,null,{"$f":"'AN - Air'!W27","v":"3.20"},{"$f":"'AN - Air'!X27","v":"2024-03-11"},"Wojciech Sobczyk","wojciech.sobczyk@mf.gov.pl",48539019460]
[null,{"$f":"formats!D25&\"-\"&formats!E25","v":"PT-Portugal"},"2022-07-31","Stable/Final","Completed","2022-12-01","2024-09-30","Indicative","In progress","2024-10-28","Indicative","Not started",null,null,null,null,"2024-10-29","Indicative","Not started",null,"Derrogation request to second semester 2024","Projects 1,2 and 3 are developed in same system;\nTest environment available to EOs;\nOngoing the activities with ports Authorities;\nEOs started testing;\nDevelopment and testing is ongoing.",{"$f":"'AN - Air'!W28","v":7.2},{"$f":"'AN - Air'!X28","v":"2024-04-05"},"Ana Freitas Couto","Ana.Freitas.Couto@at.gov.pt",351218813866]
[null,{"$f":"formats!D26&\"-\"&formats!E26","v":"RO-România "},"2023-07-12","Indicative","In progress","2024-12-16","2025-09-01","Indicative","Not started","2024-12-16","Indicative","Not started","N/A ","N/A ",null,"Not started","2024-12-16","Indicative","Not started",null,null,null,{"$f":"'AN - Air'!W29","v":"3.00"},{"$f":"'AN - Air'!X29","v":"2024-03-25"},"Constantin Trîmbez","constantin.trimbez@customs.ro",40213155858]
[null,{"$f":"formats!D27&\"-\"&formats!E27","v":"SE-Sverige"},"N/A",null,"Not started","N/A","N/A",null,"Not started","2024-06-03","Stable/Final","Not started","2024-06-03","2024-06-03","Stable/Final","Not started","2024-06-03","Stable/Final","Not started",null,"We are going to use the central functionalities developed by the COM within the ICS2 project and the date of deployment and operational date follow the expected timelines from the different releases in this project. ",null,{"$f":"'AN - Air'!W30","v":21},{"$f":"'AN - Air'!X30","v":"2024-03-08"},"Agneta Andersson","underrattelseavd.npm.ics2@tullverket.se"]
[null,{"$f":"formats!D28&\"-\"&formats!E28","v":"SI-Slovenija"},"N/A",null,"Not started","N/A","N/A",null,"Not started","N/A",null,"Not started","N/A","N/A ",null,"Not started","2024-06-02","Stable/Final","Completed","e-Carina | FINANČNA UPRAVA REPUBLIKE SLOVENIJE (gov.si)","Use in ICS2 Arrival process for air cargo and STI foreseen to be in use for maritime in 2024 and other means of transport in 2025. No national solution is nedeed.",null,{"$f":"'AN - Air'!W31","v":16.02},{"$f":"'AN - Air'!X31","v":"2024-03-20"},"Mr. Stojan Boštjančič","sd.fu@gov.si","00386 1/478 38 72"]
[null,{"$f":"formats!D29&\"-\"&formats!E29","v":"SK-Slovensko"},"N/A",null,"Not started","N/A","N/A",null,"Not started","N/A",null,"Not started",null,null,null,null,"N/A",null,"Not started",null,null,null,{"$f":"'AN - Air'!W32","v":1},{"$f":"'AN - Air'!X32","v":"2024-03-08"},"Marián Baláž","marian.balaz@financnasprava.sk","00421 2 48273216"]

{"sheet":"PN - Air","index":6,"n_rows":32,"n_cols":27,"rows_kept":32,"cut":false,"hidden":false,"merged":[[2,24,2,26],[3,2,3,4],[3,5,3,8],[3,9,3,11],[3,12,3,15],[3,16,3,18],[2,2,2,4],[2,5,2,8],[2,9,2,11],[2,12,2,15],[2,16,2,18],[2,22,2,23]]}
[]
[]
[null,null,"Technical Specifications",null,null,"Conformance Testing",null,null,null,"Deployment",null,null,"Migration",null,null,null,"Operations",null,null,"Web","Notes","Derogations","Version information and issue date",null,"Project Manager Details"]
[null,null,"The date of publication of the technical specifications for the external communication on the electronic system",null,null,"The period of conformance testing with economic operators",null,null,null,"The date of deployment of the electronic system",null,null,"Where applicable, the period during which the economic operators are allowed to carry out migration",null,null,null,"Start of Operations for all economic operators (end of transition period)",null,null,"Web address of specifications for EO's",null,"If a derogation under Art 6(4) UCC was granted, please indicate the activities carried out and the state of development in order to reach the derogation deadline."]
[null,"UCC Presentation Notification (PN) - Aircraft","Date","Status","Progress","Start Date","End Date","Status","Progress","Date","Status","Progress","Start Date","End Date","Status","Progress","Date","Status","Progress","Web address","Note/Comment","Note/Comment","Version Number","Issue Date","Project Mgr Name","e-Mail","Phone"]
[null,{"$f":"formats!D3&\"-\"&formats!E3","v":"AT-Österreich"},"2021-11-01","Stable/Final","Completed","2023-06-01","2023-09-30","Stable/Final","Completed","2023-06-21","Stable/Final","Completed","2023-06-01","2023-09-30","Stable/Final","Completed","2023-07-01","Stable/Final","Completed","https://www.bmf.gv.at/themen/zoll/uzk-it-anwendungen/ics2-import-control-system.html",null,null,{"$f":"'AN - Air'!W6","v":13},{"$f":"'AN - Air'!X6","v":"2024-03-18"},"Manfred Winterleitner ","manfred.winterleitner@bmf.gv.at","0043-1-51433-504157"]
[null,{"$f":"formats!D4&\"-\"&formats!E4","v":"BE-Belgique/België"},"2021-10-12","Stable/Final",null,"2023-03-01","2023-06-30","Stable/Final",null,"2023-07-05","Stable/Final","In progress","2023-07-05","2023-12-31","Indicative","In progress","2024-01-01","Indicative","In progress","https://financien.belgium.be/nl/douane_accijnzen/ondernemingen/applicaties-da/technische-documentatie-0",null,null,{"$f":"'AN - Air'!W7","v":"4.00"},{"$f":"'AN - Air'!X7","v":"2024-02-20"},"Ann Ghijselen\nYann Philippe (Service manager)","ann.ghijselen@minfin.fed.be\nyann.philippe@minfin.fed.be"]
[null,{"$f":"formats!D5&\"-\"&formats!E5","v":"BG-България"},"2023-08-04","Stable/Final","Completed","2023-09-04","2023-10-16","Stable/Final","Completed","2023-11-10","Stable/Final","Completed",null,null,null,null,"2024-01-15","Stable/Final","Completed","https://ep.customs.bg/eportal/","In rеlation with the update of NIS, which was aligned with the requirements of the new Annex B.",null,{"$f":"'AN - Air'!W8","v":"10.01"},{"$f":"'AN - Air'!X8","v":"2024-03-01"},"Gabriela Georgieva","masp_bg@customs.bg","00359 2 9859 4036"]
[null,{"$f":"formats!D6&\"-\"&formats!E6","v":"CY-Κύπρος"},"2023-05-22","Stable/Final","Completed","2023-10-01","2024-09-30","Stable/Final","In progress","2024-10-30","Stable/Final","Not started","N/A","N/A",null,"Not started","2024-10-30","Stable/Final","Not started","https://www.mof.gov.cy/mof/ce/theseas/theseas.nsf/techinfo_en/techinfo_en?OpenDocument",null,"Derogation was granted.",{"$f":"'AN - Air'!W9","v":7},{"$f":"'AN - Air'!X9","v":"2024-04-26"},"Yiannos Panteli","ypanteli@customs.mof.gov.cy",35722601663]
[null,{"$f":"formats!D7&\"-\"&formats!E7","v":"CZ-Česká republika"},"2023-09-01","Stable/Final","Completed","2023-11-01","2023-12-01","Stable/Final","Completed","2023-12-05","Stable/Final","Completed",null,null,null,null,"2023-12-05","Stable/Final","Completed","Dokumentace pro výrobce SW | Celní správa ČR (celnisprava.cz)",null,null,{"$f":"'AN - Air'!W10","v":"1.5"},{"$f":"'AN - Air'!X10","v":"2024-05-16"},"Lenka Kubíková","NPP.MASP@cs.mfcr.cz","420/261332631"]
[null,{"$f":"formats!D8&\"-\"&formats!E8","v":"DE-Deutschland"},"2020-10-09","Stable/Final","Completed","2021-05-01","2022-10-14","Stable/Final","Completed","2021-03-06","Stable/Final","Completed","2021-05-01","2022-10-14","Stable/Final","Completed","2022-10-31","Stable/Final","Completed","www.zoll.de","This \"message\" is updated as part of \"National Entry System\" of the national IT-System ATLAS (Release 9.1). The scope covers all modes of transport.",null,{"$f":"'AN - Air'!W11","v":"7.00"},{"$f":"'AN - Air'!X11","v":"2024-03-20"},"Astrid Brieke","DIIB12.gzd@zoll.bund.de","0049(0)228/303-21097"]
[null,{"$f":"formats!D9&\"-\"&formats!E9","v":"DK-Danmark"},"2021-09-01","Stable/Final","Completed","2023-06-15","2023-11-01","Stable/Final","Completed","2023-11-06","Stable/Final","Completed","2023-03-01","2024-05-01","Indicative","In progress","2024-05-01","Indicative","In progress","www.toldst.dk ","Tentative plan, as per derogation. Will be gradually updated.","Derogation was granted. The Danish implementation of Presentation Notification (PN) followed the Danish implementation of ICS2 release 2. \n\nIt is the aim to finalize migration and start full operations for air February 2024.\nIt is the aim to finalize migration for maritime 25th of May 2024.",{"$f":"'AN - Air'!W12","v":1},{"$f":"'AN - Air'!X12","v":"2024-04-15"},"Tine Mercebach","EUTK-kontrolsystemer@toldst.DK","+45 7237 0754"]
[null,{"$f":"formats!D10&\"-\"&formats!E10","v":"EE-Eesti"},"2020-12-31","Stable/Final","Completed","2020-12-01","2023-12-31","Stable/Final","Completed","2021-03-15","Stable/Final","Completed","2021-03-15","2023-12-31","Stable/Final","Completed","2021-03-15","Stable/Final","Completed","https://www.emta.ee/ariklient/toll-kaubavahetus/tolliinfosusteemid/tolliinfosusteemide-kasutajatele#nes-uldinfo",null,"A derogation request was accordingly submitted by EE on 06.07.2022.",{"$f":"'AN - Air'!W13","v":17},{"$f":"'AN - Air'!X13","v":"2024-03-25"},"Leili Kristovald","AN-PN-TS-NPM-EE@emta.ee",3726761041]
[null,{"$f":"formats!D11&\"-\"&formats!E11","v":"GR-Ελλάδα"},"2023-09-30","Stable/Final","Completed","2023-09-30","2024-12-31","Stable/Final","Completed","2023-12-31","Stable/Final","Completed","2023-12-31","2023-12-31","Stable/Final","Completed","2023-12-31","Stable/Final","Completed","https://www.aade.gr/customs","SOME INFORMATION OF G3 ARE NOT PRESENT","derogation request",{"$f":"'AN - Air'!W14","v":6.1},{"$f":"'AN - Air'!X14","v":"2024-03-08"},"Mr Katagis","ICS_NPM@AADE.GR","0030210 6987434"]
[null,{"$f":"formats!D12&\"-\"&formats!E12","v":"ES-España"},"2022-06-30","Stable/Final","Completed","2023-10-01","2025-12-31","Indicative","In progress","2024-01-01","Stable/Final","Completed","2024-01-01","2025-12-31","Indicative","In progress","2026-01-01","Indicative","Not started","https://sede.agenciatributaria.gob.es/Sede/aduanas/aduana-electronica/guias-tecnicas.html","We've increased the CT and deployment window to align it with the EMSWe deployment","Aligned with the granted derogation date.",{"$f":"'AN - Air'!W15","v":3.2},{"$f":"'AN - Air'!X15","v":"2024-03-08"},"María González Pérez","maria.gonzalez@correo.aeat.es",34917289548]
[null,{"$f":"formats!D13&\"-\"&formats!E13","v":"FI-Suomi/Finland"},"2020-03-31","Stable/Final","Completed","N/A","N/A","Stable/Final","Not started","2021-03-31","Stable/Final","Completed","2021-03-31","2021-03-31","Stable/Final","Completed","2021-03-31","Stable/Final","Completed","https://finnishcustoms-suomentulli.github.io/MIGs/Entry2.5/en/index.html",null,null,{"$f":"'AN - Air'!W16","v":"13.00"},{"$f":"'AN - Air'!X16","v":"2024-03-22"},"Leila Lappalainen","leila.lappalainen@tulli.fi"]
[null,{"$f":"formats!D14&\"-\"&formats!E14","v":"FR-France"},"2023-03-31","Stable/Final","Completed","N/A","N/A","Indicative","Not started","2024-03-06","Indicative","Not started","2024-03-06","2024-06-03","Indicative","Not started","2024-06-03","Indicative","Not started","https://www.douane.gouv.fr/services-aide/edi","Development in France of a notification of dischargement (like UCC Presentation Notification) – reassessment of business process on board – for 2019\nNA for TS and  CT as we use the European application\nProgress can be consulted via the following link  :https://www.douane.gouv.fr/fiche/progress-report","Planning under review",{"$f":"'AN - Air'!W17","v":1.2},{"$f":"'AN - Air'!X17","v":"2024-02-07"},"Office COMINT 1 DGDDI","dg-comint1-rec@douane.finances.gouv.fr"]
[null,{"$f":"formats!D15&\"-\"&formats!E15","v":"HR-Hrvatska"},"2022-04-01",null,null,"2022-12-01","2022-12-31",null,null,"2023-03-01",null,null,null,null,null,null,null,null,null,"https://carina.gov.hr ","This answer applies only within the presentation system that is being developed for the needs of ICS2. PN will be implemented as part of ICS2 for ICS2 R2 and R3(only for goods subject to ICS2) The implementation will be done in a step-by-step approach for the relevant modes of transport. The decision to develop PN as part of ICS2 inevitably leads to delays.  EOs will use DW for ICS2 R2 and R3 and will engage in electronic PN activities accordingly.Other systems such as TS or the import system have their own presentation messages. At the moment, the tender for the executor of the development of the IT part.. has not yet been announced - the risk of untimely involvement.","Derogation for PN ",{"$f":"'AN - Air'!W18","v":9.1999999999999993},{"$f":"'AN - Air'!X18","v":"2024-03-19"},"Božo Lukin","bozo.lukin@carina.hr",38516211417]
[null,{"$f":"formats!D16&\"-\"&formats!E16","v":"HU-Magyarország"},"2023-07-03","Stable/Final","Completed","2023-12-16","2024-02-18","Indicative","In progress","2024-03-01","Indicative","In progress",null,null,null,null,"2024-03-01","Indicative","Not started","Dokumentumok (gov.hu)",null,"The developments are in progress.",{"$f":"'AN - Air'!W19","v":11},{"$f":"'AN - Air'!X19","v":"2024-01-31"},"Jenes Barbara","uvk_mp_masp@nav.gov.hu",3614569584]
[null,{"$f":"formats!D17&\"-\"&formats!E17","v":"IE-Éire/Ireland"},"2019-10-04","Stable/Final","Completed","2020-04-30","2021-10-04","Stable/Final","Completed","2020-11-23","Stable/Final","Completed","2020-11-23","2021-10-04","Stable/Final","Completed","2021-10-05","Stable/Final","Completed","www.revenue.ie","Will be updated to Revised Annex B in Q1 2025",null,{"$f":"'AN - Air'!W20","v":15.2},{"$f":"'AN - Air'!X20","v":"2024-03-21"},"Paul Paxman","UCCITDev@revenue.ie"]
[null,{"$f":"formats!D18&\"-\"&formats!E18","v":"IT-Italia"},"2022-06-01","Stable/Final",null,"2022-09-05","2022-12-12","Stable/Final",null,"2022-12-13","Stable/Final",null,null,null,null,null,null,null,null,"https://www.adm.gov.it/portale/an-pn-ts",null,null,{"$f":"'AN - Air'!W21","v":1.01},{"$f":"'AN - Air'!X21","v":"2024-03-13"},"Giuseppe Urraci","Giuseppe.Urraci@adm.gov.it","+39 06 5024 3084"]
[null,{"$f":"formats!D19&\"-\"&formats!E19","v":"LT-Lietuva"},"01/07/2022","Stable/Final","Completed","15/10/2022","01/03/2023","Stable/Final","Completed","28/02/2023","Stable/Final","Completed","01/03/2023","01/10/2023","Stable/Final","Completed","01/10/2023","Stable/Final","Completed","https://lrmuitine.lt/web/guest/1000","All modes of transport is in production. All communication should be additionally copied to tautvydas.banelis@lrmuitine.lt , giedre.jusaityte@lrmuitine.lt, robertas.kaukenas@lrmuitine.lt",null,{"$f":"'AN - Air'!W22","v":13.1},{"$f":"'AN - Air'!X22","v":"2024-03-08"},"Vitalis Vareikis","UCC_PN_N-LT@lrmuitine.lt",37052666144]
[null,{"$f":"formats!D20&\"-\"&formats!E20","v":"LU-Luxembourg"},"2021-12-14","Stable/Final",null,"2022-10-01","2023-07-01",null,null,"2023-01-10","Stable/Final",null,null,null,null,null,"2023-01-10","Stable/Final",null,"https://douanes.public.lu/fr/services-ligne/edouanes/LUCCS.html",null,"NA-LU managed to go-live during the derogation time frame",{"$f":"'AN - Air'!W23","v":1},{"$f":"'AN - Air'!X23","v":"2023-03-15"},"Robert Scheueren","it.npm@do.etat.lu","+352 621 306 782"]
[null,{"$f":"formats!D21&\"-\"&formats!E21","v":"LV-Latvija"},"2017-06-05","Stable/Final","Completed","2017-08-01","2017-09-22","Stable/Final","Completed","2017-09-24","Stable/Final","Completed","N/A","N/A","Stable/Final","Not started","2017-09-25","Stable/Final","Completed","https://www.vid.gov.lv/lv/k%C4%81-lietot-emdas","Information related to presentation notification is a part of TS declaration. Since implementation of ICS R2 PN is also being submitted in ICS2 R2. ",null,{"$f":"'AN - Air'!W24","v":3},{"$f":"'AN - Air'!X24","v":"2024-03-08"},"Sabine Dubulte","ecustoms@vid.gov.lv ",37167120807]
[null,{"$f":"formats!D22&\"-\"&formats!E22","v":"MT-Malta"},"2024-02-01","Indicative","In progress","2024-03-31","2024-05-15","Indicative","Not started","2024-06-01","Indicative","Not started",null,null,null,null,"2024-06-01","Indicative","Not started","www.customs.gov.mt",null,"Please note that Malta has requested an extension to an existing derogation (on 22nd November 2023) thus all dates are tentative. Matters are being discussed with suppliers and Malta has requested updated timelines.",{"$f":"'AN - Air'!W25","v":"3.02"},{"$f":"'AN - Air'!X25","v":"2024-03-20"},"Stephanie Ruggier","stephanie.ruggier@gov.mt",35623783086]
[null,{"$f":"formats!D23&\"-\"&formats!E23","v":"NL-Nederland"},"2022-09-01","Stable/Final","Completed","2023-11-06","2024-02-29","Indicative","In progress","2023-12-01","Stable/Final","Completed","2023-12-01","2024-02-29","Indicative","In progress","2024-03-01","Indicative","Not started","https://www.nhdouane.nl/",null,null,{"$f":"'AN - Air'!W26","v":"3.00"},{"$f":"'AN - Air'!X26","v":"2024-04-05"},"National Helpdesk Dutch Customs","NHD.apeldoorn@douane.nl","(+31)(0)88 156 6655"]
[null,{"$f":"formats!D24&\"-\"&formats!E24","v":"PL-Polska"},"2022-07-29","Stable/Final","Completed","2023-09-30","2024-07-01","Stable/Final","In progress","2024-07-01","Stable/Final","Not started",null,null,null,null,"2024-12-31","Indicative","Not started",null,null,"Poland was granted a derogation decision.PN functionalities are being developed within national import system and according to its schedule.",{"$f":"'AN - Air'!W27","v":"3.20"},{"$f":"'AN - Air'!X27","v":"2024-03-11"},"Wojciech Sobczyk","wojciech.sobczyk@mf.gov.pl",48539019460]
[null,{"$f":"formats!D25&\"-\"&formats!E25","v":"PT-Portugal"},"2022-07-31","Stable/Final","Completed","2023-03-01","2024-09-30","Indicative","In progress","2024-10-28","Indicative","Not started",null,null,null,null,"2024-10-29","Indicative","Not started","https://info-aduaneiro.portaldasfinancas.gov.pt/pt/informacao_aduaneira/Pages/default.aspx","Derrogation request to second semester 2024"," Projects 1,2 and 3 are developed in same system;\nTest environment available to EOs;\nDevelopment and testing is ongoing.",{"$f":"'AN - Air'!W28","v":7.2},{"$f":"'AN - Air'!X28","v":"2024-04-05"},"Ana Freitas Couto","Ana.Freitas.Couto@at.gov.pt",351218813866]
[null,{"$f":"formats!D26&\"-\"&formats!E26","v":"RO-România "},"2024-03-31","Indicative","In progress","2024-03-31","2024-06-30","Indicative","Not started","2024-06-30","Indicative","In progress","N/A","N/A",null,"Not started","2024-06-30","Indicative","Not started","www.customs.ro","We are reporting a delay in deployment of PN because the development of this system is part of a large project in which several systems and applications that interact with each other are being developed/updated and some of them could not be completed by the deadline of 31/12/2023 ","the updated deadlines took into account the derogation decisions",{"$f":"'AN - Air'!W29","v":"3.00"},{"$f":"'AN - Air'!X29","v":"2024-03-25"},"Constantin Trîmbez","constantin.trimbez@customs.ro",40213155858]
[null,{"$f":"formats!D27&\"-\"&formats!E27","v":"SE-Sverige"},"2022-12-01","Stable/Final","Completed","2023-09-27","2023-12-31","Stable/Final","Completed","2023-09-27","Stable/Final","Completed","2023-09-27","2023-12-31","Stable/Final","Completed","2023-12-31","Stable/Final","Completed","https://www.tullverket.se/eng/business/scheduleforintroductionoftheunioncustomscode.4.422c8052175b1d827692251.html",null,"All economic operators use the system from the 1 January 2024. ",{"$f":"'AN - Air'!W30","v":21},{"$f":"'AN - Air'!X30","v":"2024-03-08"},"Emil Andersson","projekt.ava.dtl@tullverket.se"]
[null,{"$f":"formats!D28&\"-\"&formats!E28","v":"SI-Slovenija"},"2022-10-01","Stable/Final","Completed","2022-11-01","2023-02-01","Stable/Final","Completed","2023-03-01","Stable/Final","Completed","2023-03-01","2023-11-30","Stable/Final","Completed","2023-12-01","Stable/Final","Completed","e-Carina | FINANČNA UPRAVA REPUBLIKE SLOVENIJE (gov.si)",null,null,{"$f":"'AN - Air'!W31","v":16.02},{"$f":"'AN - Air'!X31","v":"2024-03-20"},"Mr. Stojan Boštjančič","sd.fu@gov.si","00386 1/478 38 72"]
[null,{"$f":"formats!D29&\"-\"&formats!E29","v":"SK-Slovensko"},"2023-02-01","Stable/Final","Completed","2023-02-01","2023-08-31","Stable/Final","Completed","2023-10-01","Stable/Final","Completed",null,null,null,null,"2023-10-01","Stable/Final","Completed",null,"No standalone national presentation system. PN functionalities are implemented in all impacted systems.",null,{"$f":"'AN - Air'!W32","v":1},{"$f":"'AN - Air'!X32","v":"2024-03-08"},"Marián Baláž","marian.balaz@financnasprava.sk","00421 2 48273216"]

{"sheet":"PN - Other","index":7,"n_rows":32,"n_cols":27,"rows_kept":32,"cut":false,"hidden":false,"merged":[[2,24,2,26],[3,2,3,4],[3,5,3,8],[3,9,3,11],[3,12,3,15],[3,16,3,18],[2,2,2,4],[2,5,2,8],[2,9,2,11],[2,12,2,15],[2,16,2,18],[2,22,2,23]]}
[]
[]
[null,null,"Technical Specifications",null,null,"Conformance Testing",null,null,null,"Deployment",null,null,"Migration",null,null,null,"Operations",null,null,"Web","Notes","Derogations","Version information and issue date",null,"Project Manager Details"]
[null,null,"The date of publication of the technical specifications for the external communication on the electronic system",null,null,"The period of conformance testing with economic operators",null,null,null,"The date of deployment of the electronic system",null,null,"Where applicable, the period during which the economic operators are allowed to carry out migration",null,null,null,"Start of Operations for all economic operators (end of transition period)",null,null,"Web address of specifications for EO's",null,"If a derogation under Art 6(4) UCC was granted, please indicate the activities carried out and the state of development in order to reach the derogation deadline."]
[null,"UCC Presentation Notification (PN) - Other modes of transport","Date","Status","Progress","Start Date","End Date","Status","Progress","Date","Status","Progress","Start Date","End Date","Status","Progress","Date","Status","Progress","Web address","Note/Comment","Note/Comment","Version Number","Issue Date","Project Mgr Name","e-Mail","Phone"]
[null,{"$f":"formats!D3&\"-\"&formats!E3","v":"AT-Österreich"},"N/A","Stable/Final","Not started","N/A","N/A","Stable/Final","Not started","N/A","Stable/Final","Not started","N/A","N/A","Stable/Final","Not started","N/A","Stable/Final","Not started","https://www.bmf.gv.at/themen/zoll/uzk-it-anwendungen/ics2-import-control-system.html",null,null,{"$f":"'AN - Air'!W6","v":13},{"$f":"'AN - Air'!X6","v":"2024-03-18"},"Manfred Winterleitner ","manfred.winterleitner@bmf.gv.at","0043-1-51433-504157"]
[null,{"$f":"formats!D4&\"-\"&formats!E4","v":"BE-Belgique/België"},null,null,null,null,null,null,null,"2023-07-05","Stable/Final",null,"2023-07-05","2024-09-30","Indicative",null,"2024-10-01","Indicative",null,"https://financien.belgium.be/nl/douane_accijnzen/ondernemingen/applicaties-da/technische-documentatie-0",null,null,{"$f":"'AN - Air'!W7","v":"4.00"},{"$f":"'AN - Air'!X7","v":"2024-02-20"},"Ann Ghijselen\nYann Philippe (Service manager)","ann.ghijselen@minfin.fed.be\nyann.philippe@minfin.fed.be"]
[null,{"$f":"formats!D5&\"-\"&formats!E5","v":"BG-България"},"2023-08-04","Stable/Final","Completed","2023-09-04","2023-10-16","Stable/Final","Completed","2023-11-10","Stable/Final","Completed",null,null,null,null,"2024-01-15","Stable/Final","Completed",null,null,null,{"$f":"'AN - Air'!W8","v":"10.01"},{"$f":"'AN - Air'!X8","v":"2024-03-01"},"Gabriela Georgieva","masp_bg@customs.bg","00359 2 9859 4036"]
[null,{"$f":"formats!D6&\"-\"&formats!E6","v":"CY-Κύπρος"},"2023-05-22","Stable/Final","Completed","2023-10-01","2024-09-30","Stable/Final","In progress","2024-10-30","Stable/Final","Not started","N/A","N/A",null,"Not started","2024-10-30","Stable/Final","Not started","https://www.mof.gov.cy/mof/ce/theseas/theseas.nsf/techinfo_en/techinfo_en?OpenDocument",null,null,{"$f":"'AN - Air'!W9","v":7},{"$f":"'AN - Air'!X9","v":"2024-04-26"},"Yiannos Panteli","ypanteli@customs.mof.gov.cy",35722601663]
[null,{"$f":"formats!D7&\"-\"&formats!E7","v":"CZ-Česká republika"},"N/A","Stable/Final","Not started","N/A","N/A","Stable/Final","Not started","2023-12-05","Stable/Final","Completed",null,null,null,null,"2023-12-05","Stable/Final","Completed",null,null,null,{"$f":"'AN - Air'!W10","v":"1.5"},{"$f":"'AN - Air'!X10","v":"2024-05-16"},"Lenka Kubíková","NPP.MASP@cs.mfcr.cz","420/261332631"]
[null,{"$f":"formats!D8&\"-\"&formats!E8","v":"DE-Deutschland"},null,null,null,null,null,null,null,null,null,null,null,null,null,null,null,null,null,null,"Please see Note / Comment for \"Air transport\".",null,{"$f":"'AN - Air'!W11","v":"7.00"},{"$f":"'AN - Air'!X11","v":"2024-03-20"},"Astrid Brieke","DIIB12.gzd@zoll.bund.de","0049(0)228/303-21097"]
[null,{"$f":"formats!D9&\"-\"&formats!E9","v":"DK-Danmark"},"2024-03-01","Indicative","In progress","2024-04-15","2024-05-24","Indicative","Not started","2024-05-25","Indicative","Not started","2024-05-25","2024-05-25","Indicative","Not started","2024-05-25",null,null,null,null,null,{"$f":"'AN - Air'!W12","v":1},{"$f":"'AN - Air'!X12","v":"2024-04-15"},"Tine Mercebach","EUTK-kontrolsystemer@toldst.DK","+45 7237 0754"]
[null,{"$f":"formats!D10&\"-\"&formats!E10","v":"EE-Eesti"},"2020-12-31","Stable/Final","Completed","2023-11-01","2025-09-01","Stable/Final","In progress","2021-03-15","Stable/Final","Completed","2023-11-01","2025-09-01","Stable/Final","In progress","2025-09-01","Stable/Final","Not started",null,"We would like to draw your attention on the fact that  this project is closely linked to project ICS2 and the project deadlines should be amended accordingly. It means that end date of the deployment window of PN should be 01/09/2025.",null,{"$f":"'AN - Air'!W13","v":17},{"$f":"'AN - Air'!X13","v":"2024-03-25"},"Leili Kristovald","AN-PN-TS-NPM-EE@emta.ee",3726761041]
[null,{"$f":"formats!D11&\"-\"&formats!E11","v":"GR-Ελλάδα"},"2023-09-30","Stable/Final","Completed","2023-09-30","2023-12-31","Stable/Final","Completed","2024-06-30","Stable/Final","Not started","2024-06-30","2025-03-31","Stable/Final","In progress","2024-06-30","Stable/Final","Not started",null,null,null,{"$f":"'AN - Air'!W14","v":6.1},{"$f":"'AN - Air'!X14","v":"2024-03-08"},"Mr Katagis","ICS_NPM@AADE.GR","0030210 6987434"]
[null,{"$f":"formats!D12&\"-\"&formats!E12","v":"ES-España"},"2022-06-30","Stable/Final","Completed","2023-10-01","2025-12-31","Indicative","In progress","2024-03-01","Stable/Final","Completed","2024-03-01","2025-12-31","Indicative","In progress","2026-01-01","Indicative","Not started","https://sede.agenciatributaria.gob.es/Sede/aduanas/aduana-electronica/guias-tecnicas.html","We've increased the CT and deployment window to align it with the EMSWe deployment","Aligned with the granted derogation date. Although the EO are encouraged to continue filing in the national single maritime window until the EMSWe replaces it.",{"$f":"'AN - Air'!W15","v":3.2},{"$f":"'AN - Air'!X15","v":"2024-03-08"},"María González Pérez","maria.gonzalez@correo.aeat.es",34917289548]
[null,{"$f":"formats!D13&\"-\"&formats!E13","v":"FI-Suomi/Finland"},"2022-06-30","Stable/Final","Completed","N/A","N/A","Stable/Final","Not started","2024-06-30","Stable/Final","In progress","2024-06-30","2024-06-30","Stable/Final","Not started","2024-06-30","Stable/Final","Not started","https://finnishcustoms-suomentulli.github.io/MIGs/Entry2.5/en/index.html","Q2/2024 Maritime, Road+Railway according to WP",null,{"$f":"'AN - Air'!W16","v":"13.00"},{"$f":"'AN - Air'!X16","v":"2024-03-22"},"Leila Lappalainen","leila.lappalainen@tulli.fi"]
[null,{"$f":"formats!D14&\"-\"&formats!E14","v":"FR-France"},"2023-03-31","Stable/Final","Completed","N/A","N/A","Indicative","Not started","2024-06-03","Indicative","Not started","2024-06-03","2024-12-04","Indicative","In progress","2024-12-04","Indicative","Not started",null,null,null,{"$f":"'AN - Air'!W17","v":1.2},{"$f":"'AN - Air'!X17","v":"2024-02-07"},"Office COMINT 1 DGDDI","dg-comint1-rec@douane.finances.gouv.fr"]
[null,{"$f":"formats!D15&\"-\"&formats!E15","v":"HR-Hrvatska"},null,null,null,null,null,null,null,null,null,null,null,null,null,null,null,null,null,null,null,null,{"$f":"'AN - Air'!W18","v":9.1999999999999993},{"$f":"'AN - Air'!X18","v":"2024-03-19"},"Božo Lukin","bozo.lukin@carina.hr",38516211417]
[null,{"$f":"formats!D16&\"-\"&formats!E16","v":"HU-Magyarország"},"2023-07-03","Stable/Final","Completed","2023-12-16","2024-02-18","Indicative","In progress","2024-03-01","Indicative","In progress",null,null,null,null,"2024-03-01","Indicative","Not started",null,null,null,{"$f":"'AN - Air'!W19","v":11},{"$f":"'AN - Air'!X19","v":"2024-01-31"},"Jenes Barbara","uvk_mp_masp@nav.gov.hu",3614569584]
[null,{"$f":"formats!D17&\"-\"&formats!E17","v":"IE-Éire/Ireland"},"2019-10-04","Stable/Final","Completed","2020-04-30","2021-10-04","Stable/Final","Completed","2020-11-23","Stable/Final","Completed","2020-11-23","2021-10-04","Stable/Final","Completed","2021-10-05","Stable/Final","Completed",null,null,null,{"$f":"'AN - Air'!W20","v":15.2},{"$f":"'AN - Air'!X20","v":"2024-03-21"},"Paul Paxman","UCCITDev@revenue.ie"]
[null,{"$f":"formats!D18&\"-\"&formats!E18","v":"IT-Italia"},"2024-03-27","Indicative",null,"2024-05-03","2024-05-31","Indicative",null,"2024-06-03","Indicative",null,null,null,null,null,null,null,null,null,null,null,{"$f":"'AN - Air'!W21","v":1.01},{"$f":"'AN - Air'!X21","v":"2024-03-13"},"Giuseppe Urraci","Giuseppe.Urraci@adm.gov.it","+39 06 5024 3084"]
[null,{"$f":"formats!D19&\"-\"&formats!E19","v":"LT-Lietuva"},"01/07/2022","Stable/Final","Completed","15/10/2022","30/08/2025","Stable/Final","In progress","28/02/2023","Stable/Final","Completed","2023-03-01","01/09/2025","Stable/Final","In progress","01/09/2025","Stable/Final","In progress","https://lrmuitine.lt/web/guest/1000","For Other modes of transport the deployment windows will be granted for EO the same as fr ICS2 R3 economic operators. For traders using the ICS2-R3 deployment window, the migration is expected from 03/06/2024. All communication should be additionally copied to tautvydas.banelis@lrmuitine.lt , giedre.jusaityte@lrmuitine.lt, robertas.kaukenas@lrmuitine.lt",null,{"$f":"'AN - Air'!W22","v":13.1},{"$f":"'AN - Air'!X22","v":"2024-03-08"},"Vitalis Vareikis","UCC_PN_N-LT@lrmuitine.lt",37052666144]
[null,{"$f":"formats!D20&\"-\"&formats!E20","v":"LU-Luxembourg"},null,null,null,null,null,null,null,null,null,null,null,null,null,null,null,null,null,"https://douanes.public.lu/fr/services-ligne/edouanes/LUCCS.html",null,"NA-LU managed to go-live during the derogation time frame",{"$f":"'AN - Air'!W23","v":1},{"$f":"'AN - Air'!X23","v":"2023-03-15"},"Robert Scheueren","it.npm@do.etat.lu","+352 621 306 782"]
[null,{"$f":"formats!D21&\"-\"&formats!E21","v":"LV-Latvija"},"N/A","Stable/Final","Not started","N/A","N/A","Stable/Final","Not started","N/A","Stable/Final","Not started","N/A","N/A","Stable/Final","Not started","2025-09-01","Stable/Final","In progress","https://www.vid.gov.lv/lv/k%C4%81-lietot-emdas","Currently depending on the business case PN is as a part of TS or NIS or Port system administrered by the Ministry of Transport for goods coming by maritime transport (according to the Article 190 of IA of the UCC) where notification for unloading (incl. PN data set) is submitted. When trade will join ICS3 R3 - PN will be also a part of ICS2 ",null,{"$f":"'AN - Air'!W24","v":3},{"$f":"'AN - Air'!X24","v":"2024-03-08"},"Sabine Dubulte","ecustoms@vid.gov.lv ",37167120807]
[null,{"$f":"formats!D22&\"-\"&formats!E22","v":"MT-Malta"},"2024-06-01","Indicative","In progress","2024-09-01","2024-11-30","Indicative","Not started","2024-12-31","Indicative","Not started",null,null,null,null,"2024-12-31","Indicative","Not started",null,null,"Please note that Malta has requested an extension to an existing derogation (on 22nd November 2023) thus all dates are tentative. Matters are being discussed with suppliers and Malta has requested updated timelines.",{"$f":"'AN - Air'!W25","v":"3.02"},{"$f":"'AN - Air'!X25","v":"2024-03-20"},"Stephanie Ruggier","stephanie.ruggier@gov.mt",35623783086]
[null,{"$f":"formats!D23&\"-\"&formats!E23","v":"NL-Nederland"},"2023-09-01","Stable/Final","Completed","2024-01-01","2024-05-24","Indicative","Not started","2024-05-27","Indicative","Not started","2024-06-03","2025-09-01","Indicative","Not started","2025-09-01","Indicative","Not started","https://www.nhdouane.nl/","NL is considering to combine the migration for traders for PN maritime with ICS2 R3, following a request from Trade",null,{"$f":"'AN - Air'!W26","v":"3.00"},{"$f":"'AN - Air'!X26","v":"2024-04-05"},"National Helpdesk Dutch Customs","NHD.apeldoorn@douane.nl","(+31)(0)88 156 6655"]
[null,{"$f":"formats!D24&\"-\"&formats!E24","v":"PL-Polska"},"2022-07-29","Stable/Final","Completed","2023-09-30","2024-07-01","Stable/Final","In progress","2024-07-01","Stable/Final","Not started",null,null,null,null,"2024-12-31","Indicative","Not started",null,null,null,{"$f":"'AN - Air'!W27","v":"3.20"},{"$f":"'AN - Air'!X27","v":"2024-03-11"},"Wojciech Sobczyk","wojciech.sobczyk@mf.gov.pl",48539019460]
[null,{"$f":"formats!D25&\"-\"&formats!E25","v":"PT-Portugal"},"2022-07-31","Stable/Final","Completed","2023-03-01","2024-09-30","Indicative","In progress","2024-10-28","Indicative","Not started",null,null,null,null,"2024-10-29","Indicative","Not started",null,"Derrogation request to second semester 2024","Projects 1,2 and 3 are developed in same system;\nTest environment available to EOs;\nDevelopment and testing is ongoing.",{"$f":"'AN - Air'!W28","v":7.2},{"$f":"'AN - Air'!X28","v":"2024-04-05"},"Ana Freitas Couto","Ana.Freitas.Couto@at.gov.pt",351218813866]
[null,{"$f":"formats!D26&\"-\"&formats!E26","v":"RO-România "},null,null,null,null,null,null,null,null,null,null,null,null,null,null,null,null,null,null,null,null,{"$f":"'AN - Air'!W29","v":"3.00"},{"$f":"'AN - Air'!X29","v":"2024-03-25"},"Constantin Trîmbez","constantin.trimbez@customs.ro",40213155858]
[null,{"$f":"formats!D27&\"-\"&formats!E27","v":"SE-Sverige"},"2022-12-01","Stable/Final","Completed","2023-09-27","2025-08-15","Stable/Final","In progress","2024-03-01","Stable/Final","Completed","N/A","N/A",null,"Not started","2025-08-15","Indicative","Not started","https://www.tullverket.se/eng/business/scheduleforintroductionoftheunioncustomscode.4.422c8052175b1d827692251.html","For road transport, it will be possible to digitally present goods at customs offices from 1 March 2024. It will also be possible to submit a digital I2 message. However, during a transition period the practical procedure will consist of the driver submitting a manual presentation in the form of the single administrative document (SAD) on paper, which fulfils the data requirements for presentation notification of goods. At unattended border crossings, it will also be possible to submit both a digital presentation notification as of 1 March 2024 or a digital I2 message. During a transition period, Customs will accept the e-mail notification made one hour before the border crossing as a condition for route and time exemptions (operating authorisation). From January 2025, the customs declaration will be activated via a digital I2-message at the time of arrival. From January 2025, a digital presentation notification will also be required. Notification via e-mail will still be required as a condition for an operation authorisation. Temporary handling will be replaced by digitalised border crossing when this is introduced on the basis of the joint EU project (EU Smart Border) that the European Commission intends to include in the Multi-Annual Strategic Plan (MASP).\n\nFor maritime transport, the requirement only applies to goods unloaded in Sweden. The presentation notification should refer to the entry summary declaration. This will bring a change in procedures and new information requirements for actors submitting information. Regarding the current data filing system using the Maritime Single Window (MSW) in anticipation of the European Maritime Single Window (EMSW), it is clear that additional data will need to be submitted in the MSW from 3 June 2024.There is no need for migration since we have no electronic system for these type of traffic today."," Concerning maritime traffic we have as mentioned asked for derogation until the 15 August 2025.",{"$f":"'AN - Air'!W30","v":21},{"$f":"'AN - Air'!X30","v":"2024-03-08"},"Emil Andersson","projekt.ava.dtl@tullverket.se"]
[null,{"$f":"formats!D28&\"-\"&formats!E28","v":"SI-Slovenija"},"2022-10-01","Stable/Final","Completed","2022-01-01","2024-02-28","Stable/Final","Completed","2024-02-29","Stable/Final","Completed","2024-01-01","2024-02-29","Stable/Final","Completed","2024-03-01","Stable/Final","In progress","e-Carina | FINANČNA UPRAVA REPUBLIKE SLOVENIJE (gov.si)",null,null,{"$f":"'AN - Air'!W31","v":16.02},{"$f":"'AN - Air'!X31","v":"2024-03-20"},"Mr. Stojan Boštjančič","sd.fu@gov.si","00386 1/478 38 72"]
[null,{"$f":"formats!D29&\"-\"&formats!E29","v":"SK-Slovensko"},"2022-12-19","Stable/Final","Completed","2023-11-01","2025-06-01","Indicative","In progress","2025-06-02","Indicative","Not started",null,null,null,null,"2025-06-02","Indicative","Not started",null,null,null,{"$f":"'AN - Air'!W32","v":1},{"$f":"'AN - Air'!X32","v":"2024-03-08"},"Marián Baláž","marian.balaz@financnasprava.sk","00421 2 48273216"]

{"sheet":"TS - Air","index":8,"n_rows":32,"n_cols":27,"rows_kept":32,"cut":false,"hidden":false,"merged":[[2,24,2,26],[3,2,3,4],[3,5,3,8],[3,9,3,11],[3,12,3,15],[3,16,3,18],[2,2,2,4],[2,5,2,8],[2,9,2,11],[2,12,2,15],[2,16,2,18],[2,22,2,23]]}
[]
[]
[null,null,"Technical Specifications",null,null,"Conformance Testing",null,null,null,"Deployment",null,null,"Migration",null,null,null,"Operations",null,null,"Web","Notes","Derogations","Version information and issue date",null,"Project Manager Details"]
[null,null,"The date of publication of the technical specifications for the external communication on the electronic system",null,null,"The period of conformance testing with economic operators",null,null,null,"The date of deployment of the electronic system",null,null,"Where applicable, the period during which the economic operators are allowed to carry out migration",null,null,null,"Start of Operations for all economic operators (end of transition period)",null,null,"Web address of specifications for EO's",null,"If a derogation under Art 6(4) UCC was granted, please indicate the activities carried out and the state of development in order to reach the derogation deadline."]
[null,"UCC Temporary Storage (TS) - Aircraft","Date","Status","Progress","Start Date","End Date","Status","Progress","Date","Status","Progress","Start Date","End Date","Status","Progress","Date","Status","Progress","Web address","Note/Comment","Note/Comment","Version Number","Issue Date","Project Mgr Name","e-Mail","Phone"]
[null,{"$f":"formats!D3&\"-\"&formats!E3","v":"AT-Österreich"},"open","Indicative",null,"open","open","Indicative",null,"2025-06-02","Indicative",null,"N/A","N/A","Indicative","Not started","2025-06-02","Indicative",null,"Technische Informationen e-zoll (bmf.gv.at)","Tender completed, software provider available","Derogation decision is outstanding",{"$f":"'AN - Air'!W6","v":13},{"$f":"'AN - Air'!X6","v":"2024-03-18"},"Manfred Winterleitner ","manfred.winterleitner@bmf.gv.at","0043-1-51433-504157"]
[null,{"$f":"formats!D4&\"-\"&formats!E4","v":"BE-Belgique/België"},"2021-10-12","Stable/Final","In progress","2023-08-01","2024-02-28","Indicative","In progress","2023-11-29","Stable/Final","In progress","2023-03-01","2024-02-28","Indicative",null,"2024-03-01","Indicative",null,"https://financien.belgium.be/nl/douane_accijnzen/ondernemingen/applicaties-da/technische-documentatie-0","Will be aligned with the releases of ICS2, which means that the transportmodi that are part of ICS 2 Part 3 will only start on 1/3/2024.",null,{"$f":"'AN - Air'!W7","v":"4.00"},{"$f":"'AN - Air'!X7","v":"2024-02-20"},"Ann Ghijselen\nYann Philippe (Service manager)","ann.ghijselen@minfin.fed.be\nyann.philippe@minfin.fed.be"]
[null,{"$f":"formats!D5&\"-\"&formats!E5","v":"BG-България"},"2023-08-04","Stable/Final","Completed","2023-09-04","2023-10-16","Stable/Final","Completed","2023-11-10","Stable/Final","Completed",null,null,null,null,"2024-01-15","Stable/Final","Completed","https://ep.customs.bg/eportal/","In rеlation with the update of NIS, which was aligned with the requirements of the new Annex B.",null,{"$f":"'AN - Air'!W8","v":"10.01"},{"$f":"'AN - Air'!X8","v":"2024-03-01"},"Gabriela Georgieva","masp_bg@customs.bg","00359 2 9859 4036"]
[null,{"$f":"formats!D6&\"-\"&formats!E6","v":"CY-Κύπρος"},"2023-05-22","Stable/Final","Completed","2023-10-01","2024-09-30","Stable/Final","In progress","2024-10-30","Stable/Final","Not started","N/A","N/A",null,"Not started","2024-10-30","Stable/Final","Not started","https://www.mof.gov.cy/mof/ce/theseas/theseas.nsf/techinfo_en/techinfo_en?OpenDocument",null,"Derogation was granted.",{"$f":"'AN - Air'!W9","v":7},{"$f":"'AN - Air'!X9","v":"2024-04-26"},"Yiannos Panteli","ypanteli@customs.mof.gov.cy",35722601663]
[null,{"$f":"formats!D7&\"-\"&formats!E7","v":"CZ-Česká republika"},"2023-09-01","Stable/Final","Completed","2023-11-01","2023-12-31","Stable/Final","Completed","2023-12-05","Stable/Final","Completed",null,null,null,null,"2023-12-05","Stable/Final","Completed","Dokumentace pro výrobce SW | Celní správa ČR (celnisprava.cz)",null,null,{"$f":"'AN - Air'!W10","v":"1.5"},{"$f":"'AN - Air'!X10","v":"2024-05-16"},"Lenka Kubíková","NPP.MASP@cs.mfcr.cz","420/261332631"]
[null,{"$f":"formats!D8&\"-\"&formats!E8","v":"DE-Deutschland"},"2020-10-09","Stable/Final","Completed","2021-05-01","2022-10-14","Stable/Final","Completed","2021-03-06","Stable/Final","Completed","2021-05-01","2022-10-14","Stable/Final","Completed","2022-10-31","Stable/Final","Completed","www.zoll.de","This \"message\" is updated as part of \"National Entry System\" of the national IT-System ATLAS (Release 9.1). The scope covers all modes of transport.\nPlease note, that the datamodel is not in line with EU-CDM (FMS) and will be updated following the approach of CCI and the national import system being the basis for the new and modernized import application.",null,{"$f":"'AN - Air'!W11","v":"7.00"},{"$f":"'AN - Air'!X11","v":"2024-03-20"},"Astrid Brieke","DIIB12.gzd@zoll.bund.de","0049(0)228/303-21097"]
[null,{"$f":"formats!D9&\"-\"&formats!E9","v":"DK-Danmark"},"2023-11-01","Indicative",null,"2024-05-01","2024-10-15","Indicative",null,"2024-10-15","Indicative",null,"2024-10-15","2024-10-15","Indicative",null,"2024-10-15","Indicative",null,"www.toldst.dk ","Tentative plan, as per derogation. Will be gradually updated.","Derogation was granted. TS is postponed due to the fact that DK has focused on go live with Export (AES) and Transit (NCTS) and ICS2.   development is on schedule but DK expects to go live on 15th of October 2024 and thus do not expect to reach the derogation. We are currently reexamining our implementation plan in this regard and need to await a parliamentary process before we can inform the Commission formally about a new timeframe. The new implementation date for TS is expected to be 8th March 2025 and the onboarding of national economic operators is expected to be concluded in August 2025.",{"$f":"'AN - Air'!W12","v":1},{"$f":"'AN - Air'!X12","v":"2024-04-15"},"Tine Mercebach","EUTK-kontrolsystemer@toldst.DK","+45 7237 0754"]
[null,{"$f":"formats!D10&\"-\"&formats!E10","v":"EE-Eesti"},"2020-12-31","Stable/Final","Completed","2021-03-31","2023-12-31","Stable/Final","Completed","2021-07-01","Stable/Final","Completed","2021-07-01","2023-12-31","Stable/Final","Completed","2021-07-01","Stable/Final","Completed","https://www.emta.ee/ariklient/toll-kaubavahetus/tolliinfosusteemid/tolliinfosusteemide-kasutajatele#nes-uldinfo","Estonia has deployed Temporary Storage/Presentation Notification (TS/PN) systems.\n However, not all traders will be using TS/PN system from the 1st of January 2023. The system is open for the migration for the traders. We have previously repeatedly informed Commission that the deadlines for TS and ICS2 should be synchronized (mainly because of the datasets). In that case, traders dealing with air cargo would migrate at the latest accordingly to the national deployment date of ICS2 release 2 and other traders accordingly to the ICS2 release 3.","A derogation request was accordingly submitted by EE on 06.07.2022.",{"$f":"'AN - Air'!W13","v":17},{"$f":"'AN - Air'!X13","v":"2024-03-25"},"Leili Kristovald","AN-PN-TS-NPM-EE@emta.ee",3726761041]
[null,{"$f":"formats!D11&\"-\"&formats!E11","v":"GR-Ελλάδα"},"2024-12-31","Indicative","Not started"," "," ",null,null,"2025-06-30","Indicative","Not started","2025-06-30","2025-09-30","Indicative","Not started","2025-06-30","Indicative","Not started","https://www.aade.gr/customs",null,"derogation request",{"$f":"'AN - Air'!W14","v":6.1},{"$f":"'AN - Air'!X14","v":"2024-03-08"},"Mr Katagis","ICS_NPM@AADE.GR","0030210 6987434"]
[null,{"$f":"formats!D12&\"-\"&formats!E12","v":"ES-España"},"2022-06-30","Stable/Final","Completed","2023-10-01","2025-12-31","Indicative","In progress","2024-01-01","Stable/Final","Completed","2024-01-01","2025-12-31","Indicative","In progress","2026-01-01","Indicative","Not started","https://sede.agenciatributaria.gob.es/Sede/aduanas/aduana-electronica/guias-tecnicas.html","We've increased the CT and deployment window to align it with the EMSWe deployment","Aligned with the granted derogation date.  Some functionallity not yet available, like G5 for G4 filings.",{"$f":"'AN - Air'!W15","v":3.2},{"$f":"'AN - Air'!X15","v":"2024-03-08"},"María González Pérez","maria.gonzalez@correo.aeat.es ",34917289548]
[null,{"$f":"formats!D13&\"-\"&formats!E13","v":"FI-Suomi/Finland"},"2020-12-31","Stable/Final","Completed","N/A","N/A","Stable/Final","Not started","2022-12-31","Stable/Final","Completed","2022-12-31","2022-12-31","Stable/Final","Completed","2022-12-31","Stable/Final","Completed","https://finnishcustoms-suomentulli.github.io/MIGs/Entry2.5/en/index.html","Temporary storages goes to production in several phases parallel to ICS2. The dates given are based on national part.  ",null,{"$f":"'AN - Air'!W16","v":"13.00"},{"$f":"'AN - Air'!X16","v":"2024-03-22"},"Leila Lappalainen","leila.lappalainen@tulli.fi"]
[null,{"$f":"formats!D14&\"-\"&formats!E14","v":"FR-France"},"2023-03-31","Stable/Final","Completed","N/A","N/A","Indicative","Not started","2024-03-06","Indicative","Not started","2024-03-06","2024-06-03","Indicative","Not started","2024-06-03","Indicative","Not started","https://www.douane.gouv.fr/services-aide/edi","Progress can be consulted via the following link: https://www.douane.gouv.fr/fiche/progress-report","Planning under review",{"$f":"'AN - Air'!W17","v":1.2},{"$f":"'AN - Air'!X17","v":"2024-02-07"},"Office COMINT 1 DGDDI","dg-comint1-rec@douane.finances.gouv.fr"]
[null,{"$f":"formats!D15&\"-\"&formats!E15","v":"HR-Hrvatska"},"2022-03-31",null,null,"2022-11-01","2023-04-16","Stable/Final","Completed","2023-04-17","Stable/Final","Completed","N/A","N/A",null,"Not started","2023-04-17","Stable/Final","Completed","https://carina.gov.hr ","TS deployment and operation completed on 17.04.2023. The system is fully operational and in use by traders and customs from that date. ",null,{"$f":"'AN - Air'!W18","v":9.1999999999999993},{"$f":"'AN - Air'!X18","v":"2024-03-19"},"Božo Lukin","bozo.lukin@carina.hr",38516211417]
[null,{"$f":"formats!D16&\"-\"&formats!E16","v":"HU-Magyarország"},"2023-07-03","Stable/Final","Completed","2023-12-16","2024-02-18","Indicative","In progress","2024-03-01","Indicative","In progress",null,null,null,null,"2024-03-01","Indicative","Not started","Dokumentumok (gov.hu)",null,"The developments are in progress.",{"$f":"'AN - Air'!W19","v":11},{"$f":"'AN - Air'!X19","v":"2024-01-31"},"Jenes Barbara","uvk_mp_masp@nav.gov.hu",3614569584]
[null,{"$f":"formats!D17&\"-\"&formats!E17","v":"IE-Éire/Ireland"},"2019-10-04","Stable/Final","Completed","2020-04-30","2021-10-04","Stable/Final","Completed","2020-11-23","Stable/Final","Completed","2020-11-23","2021-10-04","Stable/Final","Completed","2021-10-05","Stable/Final","Completed","www.revenue.ie","Will be updated to Revised Annex B in Q1 2025",null,{"$f":"'AN - Air'!W20","v":15.2},{"$f":"'AN - Air'!X20","v":"2024-03-21"},"Paul Paxman","UCCITDev@revenue.ie"]
[null,{"$f":"formats!D18&\"-\"&formats!E18","v":"IT-Italia"},"2022-06-01","Stable/Final",null,"2022-09-05","2022-12-12","Stable/Final",null,"2022-12-13","Stable/Final",null,null,null,null,null,null,null,null,"https://www.adm.gov.it/portale/an-pn-ts",null,null,{"$f":"'AN - Air'!W21","v":1.01},{"$f":"'AN - Air'!X21","v":"2024-03-13"},"Giuseppe Urraci","Giuseppe.Urraci@adm.gov.it","+39 06 5024 3084"]
[null,{"$f":"formats!D19&\"-\"&formats!E19","v":"LT-Lietuva"},"04/05/2023","Stable/Final","Completed","04/06/2023","17/11/2023","Stable/Final","Completed","31/10/2023","Stable/Final","Completed","31/10/2023","31/10/2023","Stable/Final","Completed","19/11/2023","Stable/Final","Completed","https://lrmuitine.lt/web/guest/591 ","There will be a big bang for all economic operators. All communication should be additionally copied to tautvydas.banelis@lrmuitine.lt , giedre.jusaityte@lrmuitine.lt, robertas.kaukenas@lrmuitine.lt","Commission implementing decision 2023/236. Technical specification published. Conformance testing started 22 June 2023.",{"$f":"'AN - Air'!W22","v":13.1},{"$f":"'AN - Air'!X22","v":"2024-03-08"},"Audrius Budrys","UCC_TS_N-LT@lrmuitine.lt",37052327486]
[null,{"$f":"formats!D20&\"-\"&formats!E20","v":"LU-Luxembourg"},"2021-12-14","Stable/Final",null,"2022-10-01","2023-07-01",null,null,"2023-10-01","Stable/Final",null,null,null,null,null,"2023-10-01","Stable/Final",null,"https://douanes.public.lu/fr/services-ligne/edouanes/LUCCS.html",null,"NA-LU managed to go-live during the derogation time frame",{"$f":"'AN - Air'!W23","v":1},{"$f":"'AN - Air'!X23","v":"2023-03-15"},"Robert Scheueren","it.npm@do.etat.lu","+352 621 306 782"]
[null,{"$f":"formats!D21&\"-\"&formats!E21","v":"LV-Latvija"},"2017-06-05","Stable/Final","Completed","2017-08-01","2017-09-22","Stable/Final","Completed","2017-09-24","Stable/Final","Completed","N/A","N/A","Stable/Final","Not started","2017-09-25","Stable/Final","Completed","https://www.vid.gov.lv/lv/k%C4%81-lietot-emdas","As from 24.09.2017 National Temporary Storage System has been updated according to UCC data elements. Additional functionality for movements between TS places (if located in Latvia) has been added on 5.03.2018. The undated version of national TS system according to the latest changes of EUCDM is in production since 15.02.2022. ",null,{"$f":"'AN - Air'!W24","v":3},{"$f":"'AN - Air'!X24","v":"2024-03-08"},"Sabine Dubulte","ecustoms@vid.gov.lv ",37167120807]
[null,{"$f":"formats!D22&\"-\"&formats!E22","v":"MT-Malta"},"2024-02-01","Indicative","In progress","2024-03-31","2024-05-15","Indicative","Not started","2024-06-01","Indicative","Not started",null,null,null,null,"2024-06-01","Indicative","Not started","www.customs.gov.mt",null,"Please note that Malta has requested an extension to an existing derogation (on 22nd November 2023) thus all dates are tentative. Matters are being discussed with suppliers and Malta has requested updated timelines.",{"$f":"'AN - Air'!W25","v":"3.02"},{"$f":"'AN - Air'!X25","v":"2024-03-20"},"Stephanie Ruggier","stephanie.ruggier@gov.mt",35623783086]
[null,{"$f":"formats!D23&\"-\"&formats!E23","v":"NL-Nederland"},"2022-09-01","Stable/Final","Completed","2023-11-06","2024-02-29","Indicative","In progress","2023-12-01","Stable/Final","Completed","2023-12-01","2024-02-29","Indicative","In progress","2024-03-01","Indicative","Not started","https://www.nhdouane.nl/",null,null,{"$f":"'AN - Air'!W26","v":"3.00"},{"$f":"'AN - Air'!X26","v":"2024-04-05"},"National Helpdesk Dutch Customs","NHD.apeldoorn@douane.nl","(+31)(0)88 156 6655"]
[null,{"$f":"formats!D24&\"-\"&formats!E24","v":"PL-Polska"},"2022-07-29","Stable/Final","Completed","2023-09-30","2024-07-01","Stable/Final","In progress","2024-07-01","Stable/Final","Not started",null,null,null,null,"2024-12-31","Indicative","Not started",null,null,"Poland was granted a derogation decision.TS functionalities are being developed within national import system and according to its schedule.",{"$f":"'AN - Air'!W27","v":"3.20"},{"$f":"'AN - Air'!X27","v":"2024-03-11"},"Wojciech Sobczyk","wojciech.sobczyk@mf.gov.pl",48539019460]
[null,{"$f":"formats!D25&\"-\"&formats!E25","v":"PT-Portugal"},"2022-07-31","stable/final","Completed","2022-12-01","2024-09-30","Indicative","In progress","2024-10-28","Indicative","Not started",null,null,null,null,"2024-10-29","Indicative","Not started","https://info-aduaneiro.portaldasfinancas.gov.pt/pt/informacao_aduaneira/Pages/default.aspx","Derrogation request to second semester 2024","Project 1,2 and 3 are developed in same system;\nTest environment available to EOs;\nDevelopment and testing is ongoing.",{"$f":"'AN - Air'!W28","v":7.2},{"$f":"'AN - Air'!X28","v":"2024-04-05"},"Ana Freitas Couto","Ana.Freitas.Couto@at.gov.pt",351218813866]
[null,{"$f":"formats!D26&\"-\"&formats!E26","v":"RO-România "},"2024-03-31","Indicative","In progress","2024-03-31","2024-06-30","Indicative","Not started","2024-06-30","Indicative","In progress","N/A","N/A",null,"Not started","2024-06-30","Indicative","Not started","www.customs.ro","We are reporting a delay in deployment of TS because the development of this system is part of a large project in which several systems and applications that interact with each other are being developed/updated and some of them could not be completed by the deadline of 31/12/2023 ","the updated deadlines took into account the derogation decisions",{"$f":"'AN - Air'!W29","v":"3.00"},{"$f":"'AN - Air'!X29","v":"2024-03-25"},"Constantin Trîmbez","constantin.trimbez@customs.ro",40213155858]
[null,{"$f":"formats!D27&\"-\"&formats!E27","v":"SE-Sverige"},"2024-04-01","Stable/Final","In progress","2024-07-01","2024-12-31","Indicative","Not started","2024-10-01","Indicative","Not started","2024-10-01","2024-12-31","Indicative","Not started","2024-12-31","Indicative","Not started","https://www.tullverket.se/eng/business/scheduleforintroductionoftheunioncustomscode.4.422c8052175b1d827692251.html",null,"We have asked for derogation until 31 December 2024 and the aim is to reach this date.",{"$f":"'AN - Air'!W30","v":21},{"$f":"'AN - Air'!X30","v":"2024-03-08"},"Emil Andersson","projekt.ava.dtl@tullverket.se"]
[null,{"$f":"formats!D28&\"-\"&formats!E28","v":"SI-Slovenija"},"2023-04-28","Stable/Final","Completed","2023-09-01","2024-02-28","Stable/Final","Completed","2024-03-01","Stable/Final","Completed","2023-11-30","2024-02-28","Stable/Final","Completed","2024-03-01","Stable/Final","Completed","e-Carina | FINANČNA UPRAVA REPUBLIKE SLOVENIJE (gov.si)",null,null,{"$f":"'AN - Air'!W31","v":16.02},{"$f":"'AN - Air'!X31","v":"2024-03-20"},"Mr. Stojan Boštjančič","sd.fu@gov.si","00386 1/478 38 72"]
[null,{"$f":"formats!D29&\"-\"&formats!E29","v":"SK-Slovensko"},"2025-01-01","Indicative","Not started","2025-02-01","2025-05-31","Indicative","Not started","2025-06-02","Indicative","Not started",null,null,null,null,"2025-06-02","Indicative","Not started",null,null,"Deadline defined in COM Implementing Decision 2023/236 not reached. Second request for derogation sent on 22nd of November 2023.",{"$f":"'AN - Air'!W32","v":1},{"$f":"'AN - Air'!X32","v":"2024-03-08"},"Marián Baláž","marian.balaz@financnasprava.sk","00421 2 48273216"]

{"sheet":"TS - Other","index":9,"n_rows":32,"n_cols":27,"rows_kept":32,"cut":false,"hidden":false,"merged":[[2,24,2,26],[3,2,3,4],[3,5,3,8],[3,9,3,11],[3,12,3,15],[3,16,3,18],[2,2,2,4],[2,5,2,8],[2,9,2,11],[2,12,2,15],[2,16,2,18],[2,22,2,23]]}
[]
[]
[null,null,"Technical Specifications",null,null,"Conformance Testing",null,null,null,"Deployment",null,null,"Migration",null,null,null,"Operations",null,null,"Web","Notes","Derogations","Version information and issue date",null,"Project Manager Details"]
[null,null,"The date of publication of the technical specifications for the external communication on the electronic system",null,null,"The period of conformance testing with economic operators",null,null,null,"The date of deployment of the electronic system",null,null,"Where applicable, the period during which the economic operators are allowed to carry out migration",null,null,null,"Start of Operations for all economic operators (end of transition period)",null,null,"Web address of specifications for EO's",null,"If a derogation under Art 6(4) UCC was granted, please indicate the activities carried out and the state of development in order to reach the derogation deadline."]
[null,"UCC Temporary Storage (TS) - Other modes of transport","Date","Status","Progress","Start Date","End Date","Status","Progress","Date","Status","Progress","Start Date","End Date","Status","Progress","Date","Status","Progress","Web address","Note/Comment","Note/Comment","Version Number","Issue Date","Project Mgr Name","e-Mail","Phone"]
[null,{"$f":"formats!D3&\"-\"&formats!E3","v":"AT-Österreich"},"open","Indicative",null,"open","open","Indicative",null,"2025-06-02","Indicative",null,"N/A","N/A","Indicative","Not started","2025-06-02","Indicative",null,"Technische Informationen e-zoll (bmf.gv.at)","tender completed, software provider available","derogation decission is outstanding",{"$f":"'AN - Air'!W6","v":13},{"$f":"'AN - Air'!X6","v":"2024-03-18"},"Manfred Winterleitner ","manfred.winterleitner@bmf.gv.at","0043-1-51433-504157"]
[null,{"$f":"formats!D4&\"-\"&formats!E4","v":"BE-Belgique/België"},null,null,null,null,null,null,null,"2023-11-29",null,null,"2024-03-01","2024-09-30","Indicative",null,"2024-10-01","Indicative",null,"https://financien.belgium.be/nl/douane_accijnzen/ondernemingen/applicaties-da/technische-documentatie-0",null,null,{"$f":"'AN - Air'!W7","v":"4.00"},{"$f":"'AN - Air'!X7","v":"2024-02-20"},"Ann Ghijselen\nYann Philippe (Service manager)","ann.ghijselen@minfin.fed.be\nyann.philippe@minfin.fed.be"]
[null,{"$f":"formats!D5&\"-\"&formats!E5","v":"BG-България"},"2023-08-04","Stable/Final","Completed","2023-09-04","2023-10-16","Stable/Final","Completed","2023-11-10","Stable/Final","Completed",null,null,null,null,"2024-01-15","Stable/Final","Completed",null,null,null,{"$f":"'AN - Air'!W8","v":"10.01"},{"$f":"'AN - Air'!X8","v":"2024-03-01"},"Gabriela Georgieva","masp_bg@customs.bg","00359 2 9859 4036"]
[null,{"$f":"formats!D6&\"-\"&formats!E6","v":"CY-Κύπρος"},"2023-05-22","Stable/Final","Completed","2023-10-01","2024-09-30","Stable/Final","In progress","2024-10-30","Stable/Final","Not started","N/A","N/A",null,"Not started","2024-10-30","Stable/Final","Not started","https://www.mof.gov.cy/mof/ce/theseas/theseas.nsf/techinfo_en/techinfo_en?OpenDocument",null,"Derogation was granted.",{"$f":"'AN - Air'!W9","v":7},{"$f":"'AN - Air'!X9","v":"2024-04-26"},"Yiannos Panteli","ypanteli@customs.mof.gov.cy",35722601663]
[null,{"$f":"formats!D7&\"-\"&formats!E7","v":"CZ-Česká republika"},"N/A","Stable/Final","Not started","N/A","N/A","Stable/Final","Not started","2023-12-05","Stable/Final","Completed",null,null,null,null,"2023-12-05","Stable/Final ","Completed",null,null,null,{"$f":"'AN - Air'!W10","v":"1.5"},{"$f":"'AN - Air'!X10","v":"2024-05-16"},"Lenka Kubíková","NPP.MASP@cs.mfcr.cz","420/261332631"]
[null,{"$f":"formats!D8&\"-\"&formats!E8","v":"DE-Deutschland"},null,null,null,null,null,null,null,null,null,null,null,null,null,null,null,null,null,null,"Please see Note / Comment for \"Air transport\".",null,{"$f":"'AN - Air'!W11","v":"7.00"},{"$f":"'AN - Air'!X11","v":"2024-03-20"},"Astrid Brieke","DIIB12.gzd@zoll.bund.de","0049(0)228/303-21097"]
[null,{"$f":"formats!D9&\"-\"&formats!E9","v":"DK-Danmark"},"2023-11-01","Indicative",null,"2024-05-01","2024-10-15","Indicative",null,"2024-10-15","Indicative",null,"2024-10-15","2024-10-15","Indicative",null,"2024-10-15","Indicative",null,null,null,null,{"$f":"'AN - Air'!W12","v":1},{"$f":"'AN - Air'!X12","v":"2024-04-15"},"Tine Mercebach","EUTK-kontrolsystemer@toldst.DK","+45 7237 0754"]
[null,{"$f":"formats!D10&\"-\"&formats!E10","v":"EE-Eesti"},"2020-12-31","Stable/Final","Completed","2023-11-01","2025-09-01","Stable/Final","In progress","2023-10-01","Stable/Final","Completed","2023-10-01","2025-09-01","Stable/Final","In progress","2025-09-01","Stable/Final","Not started",null,null,"A derogation request was accordingly submitted by EE on 06.07.2022.",{"$f":"'AN - Air'!W13","v":17},{"$f":"'AN - Air'!X13","v":"2024-03-25"},"Leili Kristovald","AN-PN-TS-NPM-EE@emta.ee",3726761041]
[null,{"$f":"formats!D11&\"-\"&formats!E11","v":"GR-Ελλάδα"},"2024-12-31","Indicative","Not started",null,null,null,null,"2025-06-30","Indicative","Not started","2025-06-30","2025-09-30","Indicative","Not started","2025-06-30","Indicative","Not started",null,null,null,{"$f":"'AN - Air'!W14","v":6.1},{"$f":"'AN - Air'!X14","v":"2024-03-08"},"Mr Katagis","ICS_NPM@AADE.GR","0030210 6987434"]
[null,{"$f":"formats!D12&\"-\"&formats!E12","v":"ES-España"},"2022-06-30","Stable/Final","Completed","2023-10-01","2025-12-31","Indicative","In progress","2024-03-01","Stable/Final","Completed","2024-03-01","2025-12-31","Indicative","In progress","2026-01-01","Indicative","Not started","https://sede.agenciatributaria.gob.es/Sede/aduanas/aduana-electronica/guias-tecnicas.html","We've increased the CT and deployment window to align it with the EMSWe deployment","Aligned with the granted derogation date. Although the EO are encouraged to continue filing in the national single maritime window until the EMSWe replaces it.",{"$f":"'AN - Air'!W15","v":3.2},{"$f":"'AN - Air'!X15","v":"2024-03-08"},"María González Pérez","maria.gonzalez@correo.aeat.es ",34917289548]
[null,{"$f":"formats!D13&\"-\"&formats!E13","v":"FI-Suomi/Finland"},"2022-06-30","Stable/Final","Completed","N/A","N/A","Stable/Final","Not started","2024-06-30","Stable/Final","In progress","2024-06-30","2024-06-30","Stable/Final","Not started","2024-06-30","Stable/Final","Not started","https://finnishcustoms-suomentulli.github.io/MIGs/Entry2.5/en/index.html","Q2/2024 Maritime, Road+Railway according to WP",null,{"$f":"'AN - Air'!W16","v":"13.00"},{"$f":"'AN - Air'!X16","v":"2024-03-22"},"Leila Lappalainen","leila.lappalainen@tulli.fi"]
[null,{"$f":"formats!D14&\"-\"&formats!E14","v":"FR-France"},"2023-03-31","Stable/Final","Completed","N/A","N/A","Indicative","Not started","2024-06-03","Indicative","Not started","2024-06-03","2024-12-04","Indicative","In progress","2024-12-04","Indicative","Not started",null,null,null,{"$f":"'AN - Air'!W17","v":1.2},{"$f":"'AN - Air'!X17","v":"2024-02-07"},"Office COMINT 1 DGDDI","dg-comint1-rec@douane.finances.gouv.fr"]
[null,{"$f":"formats!D15&\"-\"&formats!E15","v":"HR-Hrvatska"},null,null,null,"2023-01-02","2023-04-16","Stable/Final","Completed","2023-04-17","Stable/Final","Completed","N/A","N/A",null,"Not started","2023-04-17","Stable/Final","Completed","https://carina.gov.hr ",null,null,{"$f":"'AN - Air'!W18","v":9.1999999999999993},{"$f":"'AN - Air'!X18","v":"2024-03-19"},"Božo Lukin","bozo.lukin@carina.hr",38516211417]
[null,{"$f":"formats!D16&\"-\"&formats!E16","v":"HU-Magyarország"},"2023-07-03","Stable/Final","Completed","2023-12-16","2024-02-18","Indicative","In progress","2024-03-01","Indicative","In progress",null,null,null,null,"2024-03-01","Indicative","Not started",null,null,null,{"$f":"'AN - Air'!W19","v":11},{"$f":"'AN - Air'!X19","v":"2024-01-31"},"Jenes Barbara","uvk_mp_masp@nav.gov.hu",3614569584]
[null,{"$f":"formats!D17&\"-\"&formats!E17","v":"IE-Éire/Ireland"},"2019-10-04","Stable/Final","Completed","2020-04-30","2021-10-04","Stable/Final","Completed","2020-11-23","Stable/Final","Completed","2020-11-23","2021-10-04","Stable/Final","Completed","2021-10-05","Stable/Final","Completed",null,null,null,{"$f":"'AN - Air'!W20","v":15.2},{"$f":"'AN - Air'!X20","v":"2024-03-21"},"Paul Paxman","UCCITDev@revenue.ie"]
[null,{"$f":"formats!D18&\"-\"&formats!E18","v":"IT-Italia"},"2024-03-27","Indicative",null,"2024-05-03","2024-05-31","Indicative",null,"2024-06-03","Indicative",null,null,null,null,null,null,null,null,null,null,null,{"$f":"'AN - Air'!W21","v":1.01},{"$f":"'AN - Air'!X21","v":"2024-03-13"},"Giuseppe Urraci","Giuseppe.Urraci@adm.gov.it","+39 06 5024 3084"]
[null,{"$f":"formats!D19&\"-\"&formats!E19","v":"LT-Lietuva"},"04/05/2023","Stable/Final","Completed","04/06/2023","17/11/2023","Stable/Final","Completed","31/10/2023","Stable/Final","Completed","31/10/2023","31/10/2023","Stable/Final","Completed","19/11/2023","Stable/Final","Completed",null,null,null,{"$f":"'AN - Air'!W22","v":13.1},{"$f":"'AN - Air'!X22","v":"2024-03-08"},"Audrius Budrys","UCC_TS_N-LT@lrmuitine.lt",37052327486]
[null,{"$f":"formats!D20&\"-\"&formats!E20","v":"LU-Luxembourg"},null,null,null,null,null,null,null,null,null,null,null,null,null,null,null,null,null,"https://douanes.public.lu/fr/services-ligne/edouanes/LUCCS.html",null,"NA-LU managed to go-live during the derogation time frame",{"$f":"'AN - Air'!W23","v":1},{"$f":"'AN - Air'!X23","v":"2023-03-15"},"Robert Scheueren","it.npm@do.etat.lu","+352 621 306 782"]
[null,{"$f":"formats!D21&\"-\"&formats!E21","v":"LV-Latvija"},"2017-06-05","Stable/Final","Completed","2017-08-01","2017-09-22","Stable/Final","Completed","2017-09-24","Stable/Final","Completed","N/A","N/A","Stable/Final","Not started","2017-09-25","Stable/Final","Completed","https://www.vid.gov.lv/lv/k%C4%81-lietot-emdas","As from 24.09.2017 National Temporary Storage System has been updated according to UCC data elements. Additional functionality for movements between TS places (if located in Latvia) has been added on 5.03.2018. The undated version of national TS system according to the latest changes of EUCDM is in production since 15.02.2022. ",null,{"$f":"'AN - Air'!W24","v":3},{"$f":"'AN - Air'!X24","v":"2024-03-08"},"Sabine Dubulte","ecustoms@vid.gov.lv ",37167120807]
[null,{"$f":"formats!D22&\"-\"&formats!E22","v":"MT-Malta"},"2024-06-01","Indicative","In progress","2024-09-01","2024-11-30","Indicative","In progress","2024-12-31","Indicative","Not started",null,null,null,null,"2024-12-31","Indicative","Not started",null,null,"Please note that Malta has requested an extension to an existing derogation (on 22nd November 2023) thus all dates are tentative. Matters are being discussed with suppliers and Malta has requested updated timelines.",{"$f":"'AN - Air'!W25","v":"3.02"},{"$f":"'AN - Air'!X25","v":"2024-03-20"},"Stephanie Ruggier","stephanie.ruggier@gov.mt",35623783086]
[null,{"$f":"formats!D23&\"-\"&formats!E23","v":"NL-Nederland"},"2023-09-01","Stable/Final","Completed","2024-01-01","2024-05-24","Indicative","Not started","2024-05-27","Indicative","Not started","2024-06-03","2025-09-01","Indicative","Not started","2025-09-01","Indicative","Not started",null,"NL is considering to combine the migration for traders for TS maritime with ICS2 R3, following a request from Trade",null,{"$f":"'AN - Air'!W26","v":"3.00"},{"$f":"'AN - Air'!X26","v":"2024-04-05"},"National Helpdesk Dutch Customs","NHD.apeldoorn@douane.nl","(+31)(0)88 156 6655"]
[null,{"$f":"formats!D24&\"-\"&formats!E24","v":"PL-Polska"},"2022-07-29","Stable/Final","Completed","2023-09-30","2024-07-01","Stable/Final","In progress","2024-07-01","Stable/Final","Not started",null,null,null,null,"2024-12-31","Indicative","Not started",null,null,null,{"$f":"'AN - Air'!W27","v":"3.20"},{"$f":"'AN - Air'!X27","v":"2024-03-11"},"Wojciech Sobczyk","wojciech.sobczyk@mf.gov.pl",48539019460]
[null,{"$f":"formats!D25&\"-\"&formats!E25","v":"PT-Portugal"},"2022-07-31","Stable/Final","Completed","2022-12-01","2024-09-30","Indicative","In progress","2024-10-28","Indicative","Not started",null,null,null,null,"2024-10-29","Indicative","Not started",null,"Derrogation request to second semester 2024","Project 1,2 and 3 are developed in same system;\nTest environment available to EOs;\nEOs started testing;\nOngoing the activities with ports Authorities;\nDevelopment and testing is ongoing.",{"$f":"'AN - Air'!W28","v":7.2},{"$f":"'AN - Air'!X28","v":"2024-04-05"},"Ana Freitas Couto","Ana.Freitas.Couto@at.gov.pt",351218813866]
[null,{"$f":"formats!D26&\"-\"&formats!E26","v":"RO-România "},null,null,null,null,null,null,null,null,null,null,null,null,null,null,null,null,null,null,null,null,{"$f":"'AN - Air'!W29","v":"3.00"},{"$f":"'AN - Air'!X29","v":"2024-03-25"},"Constantin Trîmbez","constantin.trimbez@customs.ro",40213155858]
[null,{"$f":"formats!D27&\"-\"&formats!E27","v":"SE-Sverige"},"N/A",null,"Not started","N/A","N/A",null,"Not started","2025-08-15","Indicative","Not started","2025-08-15","2025-08-15","Indicative","Not started","2025-08-15","Indicative","Not started","https://www.tullverket.se/eng/business/scheduleforintroductionoftheunioncustomscode.4.422c8052175b1d827692251.html","Customs declarations of goods delivered by road will be considered as temporary storage declarations. Transit declarations in NCTS will be considered as temporary storage declarations, which means that a separate temporary storage declaration will not be required for goods in transit nor in the road traffic.","Concerning the maritime traffic we have asked for a derogation until 15 August 2025 because of the dependencies to EMSW. Since we aim to use nEMSW as the external domain there is no need for technical specification nor conformance testing with Trade from our side",{"$f":"'AN - Air'!W30","v":21},{"$f":"'AN - Air'!X30","v":"2024-03-08"},"Emil Andersson","projekt.ava.dtl@tullverket.se"]
[null,{"$f":"formats!D28&\"-\"&formats!E28","v":"SI-Slovenija"},"2023-04-28","Stable/Final","Completed","2023-09-01","2024-02-28","Stable/Final","Completed","2024-03-01","Stable/Final","Completed","2023-11-30","2024-02-28","Stable/Final","Completed","2024-03-01","Stable/Final","Completed","e-Carina | FINANČNA UPRAVA REPUBLIKE SLOVENIJE (gov.si)",null,null,{"$f":"'AN - Air'!W31","v":16.02},{"$f":"'AN - Air'!X31","v":"2024-03-20"},"Mr. Stojan Boštjančič","sd.fu@gov.si","00386 1/478 38 72"]
[null,{"$f":"formats!D29&\"-\"&formats!E29","v":"SK-Slovensko"},"2025-01-01","Indicative","Not started","2025-02-01","2025-05-31","Indicative","Not started","2025-06-02","Indicative","Not started",null,null,null,null,"2025-06-02","Indicative","Not started",null,null,null,{"$f":"'AN - Air'!W32","v":1},{"$f":"'AN - Air'!X32","v":"2024-03-08"},"Marián Baláž","marian.balaz@financnasprava.sk","00421 2 48273216"]

{"sheet":"NIS","index":10,"n_rows":32,"n_cols":27,"rows_kept":32,"cut":false,"hidden":false,"merged":[[2,24,2,26],[3,2,3,4],[3,5,3,8],[3,9,3,11],[3,12,3,15],[3,16,3,18],[2,2,2,4],[2,5,2,8],[2,9,2,11],[2,12,2,15],[2,16,2,18],[2,22,2,23]]}
[]
[]
[null,null,"Technical Specifications",null,null,"Conformance Testing",null,null,null,"Deployment",null,null,"Migration",null,null,null,"Operations",null,null,"Web","Notes","Derogations","Version information and issue date",null,"Project Manager Details"]
[null,null,"The date of publication of the technical specifications for the external communication on the electronic system",null,null,"The period of conformance testing with economic operators",null,null,null,"The date of deployment of the electronic system",null,null,"Where applicable, the period during which the economic operators are allowed to carry out migration",null,null,null,"Start of Operations for all economic operators (end of transition period)",null,null,"Web address of specifications for EO's",null,"If a derogation under Art 6(4) UCC was granted, please indicate the activities carried out and the state of development in order to reach the derogation deadline."]
[null,{"$f":"formats!A6","v":"UCC National Import Systems upgrade"},"Date","Status","Progress","Start Date","End Date","Status","Progress","Date","Status","Progress","Start Date","End Date","Status","Progress","Date","Status","Progress","Web address","Note/Comment","Note/Comment","Version Number","Issue Date","Project Mgr Name","e-Mail","Phone"]
[null,{"$f":"formats!D3&\"-\"&formats!E3","v":"AT-Österreich"},"open","Indicative",null,"2025-02-03","2025-03-31","Indicative",null,"2025-06-02","Indicative",null,"2025-02-03","2025-03-31","Indicative",null,"2025-06-02","Indicative",null,"Technische Informationen e-zoll (bmf.gv.at)","tender completed, software provider available","derogation decission is outstanding",{"$f":"'AN - Air'!W6","v":13},{"$f":"'AN - Air'!X6","v":"2024-03-18"},"Manfred Winterleitner ","manfred.winterleitner@bmf.gv.at","0043-1-51433-504157"]
[null,{"$f":"formats!D4&\"-\"&formats!E4","v":"BE-Belgique/België"},"2021-11-01","Stable/Final",null,"2023-07-01","2023-10-01",null,null,"2024-04-24","Indicative",null,"2024-04-24","2024-07-31","Indicative",null,"2024-07-31","Indicative",null,"https://financien.belgium.be/nl/douane_accijnzen/ondernemingen/applicaties-da/technische-documentatie-0",null,null,{"$f":"'AN - Air'!W7","v":"4.00"},{"$f":"'AN - Air'!X7","v":"2024-02-20"},"Sarah Vanobberghe\nValery Pellichero (Service manager)","sarah.vanobberghen@minfin.fed.be\nvalery1.pellichero@minfin.fed.be"]
[null,{"$f":"formats!D5&\"-\"&formats!E5","v":"BG-България"},"2023-08-04","Stable/Final","Completed","2023-09-04","2023-10-16","Stable/Final","Completed","2023-11-10","Stable/Final","Completed",null,null,null,null,"2024-01-15","Stable/Final","Completed","https://ep.customs.bg/eportal/","In relation to the update of the new Annex B the new import national system became operational on 15.01.2024.",null,{"$f":"'AN - Air'!W8","v":"10.01"},{"$f":"'AN - Air'!X8","v":"2024-03-01"},"Gabriela Georgieva","masp_bg@customs.bg","00359 2 9859 4036"]
[null,{"$f":"formats!D6&\"-\"&formats!E6","v":"CY-Κύπρος"},"2023-05-22","Stable/Final","Completed","2023-10-01","2024-09-30","Stable/Final","In progress","2024-10-30","Stable/Final","Not started","N/A","N/A",null,"Not started","2024-10-30","Stable/Final","Not started","https://www.mof.gov.cy/mof/ce/theseas/theseas.nsf/techinfo_en/techinfo_en?OpenDocument",null,"Derogation was granted.",{"$f":"'AN - Air'!W9","v":7},{"$f":"'AN - Air'!X9","v":"2024-04-26"},"Panagiota Oxinou","poxinou@customs.mof.gov.cy",35722601863]
[null,{"$f":"formats!D7&\"-\"&formats!E7","v":"CZ-Česká republika"},"2024-06-30","Stable/Final","Completed","2024-07-08","open","Indicative","Not started","2025-12-15","Indicative","Not started",null,null,null,null,"2025-12-15","Indicative","Not started","Dokumentace pro výrobce SW | Celní správa ČR (celnisprava.cz)",null,null,{"$f":"'AN - Air'!W10","v":"1.5"},{"$f":"'AN - Air'!X10","v":"2024-05-16"},"Lenka Kubíková","NPP.MASP@cs.mfcr.cz","420/261332631"]
[null,{"$f":"formats!D8&\"-\"&formats!E8","v":"DE-Deutschland"},"2020-10-09","Stable/Final","Completed","2021-05-01","2022-10-14","Stable/Final","Completed","2021-03-06","Stable/Final","Completed","2021-05-01","2022-10-14","Stable/Final","Completed","2022-10-31","Stable/Final","Completed","www.zoll.de","This project is implemented in the major release of the national IT-ATLAS (Release 9.1) to ensure that all data requirements from Annex B are covered, especially to provide the information required by Surveillance 3. Please note, that the datamodel is not in line with EU-CDM (FMS) as implemented in CCI. Therefore the national import system will be replaced by CCI being the basis for the new and modernized import application.",null,{"$f":"'AN - Air'!W11","v":"7.00"},{"$f":"'AN - Air'!X11","v":"2024-03-20"},"Astrid Brieke","DIIB12.gzd@zoll.bund.de","0049(0)228/303-21097"]
[null,{"$f":"formats!D9&\"-\"&formats!E9","v":"DK-Danmark"},"2023-11-01","Indicative",null,"2024-05-01","2024-10-15","Indicative",null,"2024-10-15","Indicative",null,"2024-10-15","2024-10-15","Indicative",null,"2024-10-15","Indicative",null,"www.toldst.dk ","Tentative plan, as per derogation. Will be gradually updated.","After a replanning and a new prioritization of the MASP projects in the Danish UCC program, Denmark decided to prioritize implementation of the trans-European releases, AES, ICS2 and NCTS P5, in order not to compromise the work in other member states. As a consequence to this necessary reprioritization, the implementation of NIS has been delayed. We are currently reexamining our implementation plan in this regard and need to await a parliamentary process before we can inform the Commission formally about a new timeframe. The new implementation date for NIS is expected to be 8th March 2025.and the onboarding of national economic operators is expected to be concluded in August 2025.",{"$f":"'AN - Air'!W12","v":1},{"$f":"'AN - Air'!X12","v":"2024-04-15"},"Tine Mercebach","EUTK-kontrolsystemer@toldst.DK","+45 7237 0754"]
[null,{"$f":"formats!D10&\"-\"&formats!E10","v":"EE-Eesti"},"2020-09-30","Stable/Final","Completed","2020-12-01","2021-06-30","Stable/Final","Completed","2021-07-01","Stable/Final","Completed","2021-06-30","2021-07-01","Stable/Final","Completed","2021-07-01","Stable/Final","Completed","https://www.emta.ee/ariklient/toll-\nkaubavahetus/tolliinfosusteemid/tolliinfosusteemide-\nkasutajatele",null,null,{"$f":"'AN - Air'!W13","v":17},{"$f":"'AN - Air'!X13","v":"2024-03-25"},"Terje Kose","Impulss-EE@emta.ee",3726763274]
[null,{"$f":"formats!D11&\"-\"&formats!E11","v":"GR-Ελλάδα"},"2024-12-31","Indicative","Not started"," "," ",null,null,"2025-06-30","Indicative","Not started"," "," ",null,null,"2025-06-30","Indicative","Not started","https://www.aade.gr/customs","OUR CURRENT NATIONAL IMPORT SYSTEM WILL BE UPGRADED IN ORIDER TO SEND SURVEILLANCE DATA IN UCC FORMAT. IT WILL BE PUT IN PRODUCTION ON Q2 2024","derogation request",{"$f":"'AN - Air'!W14","v":6.1},{"$f":"'AN - Air'!X14","v":"2024-03-08"},"Ms Mpenaki","IMPORT_NPM@AADE.GR","0030 2106987446"]
[null,{"$f":"formats!D12&\"-\"&formats!E12","v":"ES-España"},"2022-03-14","Stable/Final","Completed","2023-05-16","2025-03-09","Stable/Final","In progress","2023-09-05","Stable/Final","Completed","2023-09-05","2025-03-09","Indicative","In progress","2025-03-10","Indicative","Not started","https://sede.agenciatributaria.gob.es/Sede/aduanas/aduana-electronica/guias-tecnicas.html",null,"In order to meet the 2023 deadline, we have developed a transitional solution that alows to lodge import declarations according to UCC Annex B that are converted to preUCC National Import System. This solution is already in Conformance testing and will be in production after summer 2023.\nIn addition, we have also developed a solution that will allow us connecting to SURV3 in Q3 2023. \nIt shall be noted that the end of transitional period included covers all possible additional dclaration types and full support to EIDR procedure (i.e. end of transitional period also for I2)",{"$f":"'AN - Air'!W15","v":3.2},{"$f":"'AN - Air'!X15","v":"2024-03-08"}]
[null,{"$f":"formats!D13&\"-\"&formats!E13","v":"FI-Suomi/Finland"},"2019-06-30","Stable/Final","Completed","N/A","N/A","Stable/Final","Not started","2019-12-31","Stable/Final","Completed","2019-12-31","2022-12-31","Stable/Final","Completed","2022-12-31","Stable/Final","Completed","https://finnishcustoms-suomentulli.github.io/MIGs/Import2_1/en/index.html ","National Import is in production, but some upgrades foreseen in Q2/2024.",null,{"$f":"'AN - Air'!W16","v":"13.00"},{"$f":"'AN - Air'!X16","v":"2024-03-22"},"Leila Lappalainen","leila.lappalainen@tulli.fi"]
[null,{"$f":"formats!D14&\"-\"&formats!E14","v":"FR-France"},"2022-03-31","Stable/Final","Completed","N/A","N/A","Indicative","Not started","2024-11-30","Stable/Final","Not started","2024-11-30","2025-06-30","Indicative","Not started","2025-06-30","Indicative","Not started","https://www.douane.gouv.fr/services-aide/edi","The technical specifications are published since February, 2022 and are regularly  with new information.\nThe project Surveillance 3 follow the same calendar deployment with a deployement at 07/11/2024. The conformance for Surveillance is planned during Q3 and Q4 2024",null,{"$f":"'AN - Air'!W17","v":1.2},{"$f":"'AN - Air'!X17","v":"2024-02-07"},"Office COMINT 1 DGDDI","dg-comint1-rec@douane.finances.gouv.fr"]
[null,{"$f":"formats!D15&\"-\"&formats!E15","v":"HR-Hrvatska"},"2021-12-31","Stable/Final",null,"2022-09-01","2022-12-31","Stable/Final","Completed","2023-01-01","Stable/Final","Completed",null,null,null,null,"2023-01-01","Stable/Final","Completed","https://carina.gov.hr ",null,null,{"$f":"'AN - Air'!W18","v":9.1999999999999993},{"$f":"'AN - Air'!X18","v":"2024-03-19"},"Melita Buljan","melita.buljan@carina.hr",38516211286]
[null,{"$f":"formats!D16&\"-\"&formats!E16","v":"HU-Magyarország"},"2022-07-31","Stable/Final","Completed","2023-07-01","2023-09-17","Stable/Final","Completed","2023-10-12","Stable/Final","Completed",null,null,null,null,"2023-11-01","Stable/Final","Completed","https://openkkk.nav.gov.hu/default.aspx?RootFolder=%2FDokumentumok%2FSpecifik%C3%A1ci%C3%B3k&FolderCTID=&View=%7B33F087E2-CEC9-4020-A148-2852161E114C%7D","In order to have a smooth transition we envisage to have a period (one week), during which both import systems (i.e. our current import system based on the UCC-TDA and the new import system based on Annex B UCC-DA/IA) would run in production in parallel (the new National Import System would be used in this period only by a few designated/volunteering economic operators).","The developments are in progress.",{"$f":"'AN - Air'!W19","v":11},{"$f":"'AN - Air'!X19","v":"2024-01-31"},"Kónya János","uvk_mp_masp@nav.gov.hu",3614704231]
[null,{"$f":"formats!D17&\"-\"&formats!E17","v":"IE-Éire/Ireland"},"2023-06-23","Stable/Final","Completed","2024-09-01","2025-02-23","Stable/Final","Not started","2025-02-24","Stable/Final","Not started","2025-02-24","2025-04-27","Stable/Final","Not started","2025-04-28","Stable/Final","Not started","www.revenue.ie","Will be updated to Revised Annex B in Q1 2025",null,{"$f":"'AN - Air'!W20","v":15.2},{"$f":"'AN - Air'!X20","v":"2024-03-21"},"Donal Flannery","UCCITDev@revenue.ie"]
[null,{"$f":"formats!D18&\"-\"&formats!E18","v":"IT-Italia"},"2019-12-02","Stable/Final",null,"2020-06-30","2021-06-30","Stable/Final",null,"2021-07-01","Stable/Final",null,"2021-07-01","2022-06-08","Stable/Final",null,"2022-11-30","Stable/Final",null,"https://www.adm.gov.it/portale/dichiarazioni-import",null,null,{"$f":"'AN - Air'!W21","v":1.01},{"$f":"'AN - Air'!X21","v":"2024-03-13"},"Rosa Trinchese","Rosa.Trinchese@adm.gov.it","+39 06 5024 3227"]
[null,{"$f":"formats!D19&\"-\"&formats!E19","v":"LT-Lietuva"},"15/08/2023","Stable/Final","Completed","15/08/2023","09/02/2024","Stable/Final","Completed","31/12/2023","Stable/Final","Completed","31/12/2023","31/12/2023","Stable/Final","Completed","11/03/2024","Stable/Final","In progress",null,"There will be a big bang for all economic operators. Due to the request of business representatives and ongoing integration with State Tax Inspectorate excise system the time for testing of the National Import system was extended. Therefore, businesses will be able to submit data to the updated system from 11/03/2024. All communication should be additionally copied to tautvydas.banelis@lrmuitine.lt and giedre.jusaityte@lrmuitine.lt.","Commission implementing decision (EU) 2023/237. Preparation of  the technical specification -  75 %  and development of system - 60%.",{"$f":"'AN - Air'!W22","v":13.1},{"$f":"'AN - Air'!X22","v":"2024-03-08"},"Auksė Buikienė","UCC_IMP_N-LT@lrmuitine.lt",37052327491]
[null,{"$f":"formats!D20&\"-\"&formats!E20","v":"LU-Luxembourg"},"2022-01-03","Stable/Final",null,"2022-12-01","2024-09-30",null,null,"2023-05-02","Stable/Final",null,null,null,null,null,"2023-05-02","Stable/Final",null,"https://douanes.public.lu/fr/services-ligne/edouanes/LUCCS.html",null,null,{"$f":"'AN - Air'!W23","v":1},{"$f":"'AN - Air'!X23","v":"2023-03-15"},"Robert Scheueren","it.npm@do.etat.lu","+352 621 306 782"]
[null,{"$f":"formats!D21&\"-\"&formats!E21","v":"LV-Latvija"},"N/A","Stable/Final","Not started","2018-05-01","2018-06-01","Stable/Final","Completed","2018-06-03","Stable/Final","Completed","N/A","N/A","Stable/Final","Not started","2018-06-04","Stable/Final","Completed","https://www.vid.gov.lv/lv/k%C4%81-lietot-emdas","As from 3.06.2018 National import system has been aligned with UCC DI/IA Annex B and EUCDM V2.0. New AIS aligned with the latest version of UCC and EUCDM has been implemented on 13.06.2023 and H6 has been transferred to the new AIS by the 8.08.2023. ",null,{"$f":"'AN - Air'!W24","v":3},{"$f":"'AN - Air'!X24","v":"2024-03-08"},"Daina Vilcina","ecustoms@vid.gov.lv ",37124429976]
[null,{"$f":"formats!D22&\"-\"&formats!E22","v":"MT-Malta"},"N/A","Indicative","Not started","N/A","N/A","Indicative","Not started","2025-02-01","Indicative","Not started",null,null,null,null,"2025-02-01","Indicative","Not started","www.customs.gov.mt",null,"Please note that Malta has requested an extension to an existing derogation (on 22 November 2023) thus all dates are tentative. The development work is currently in progress but is not yet completed. The current validations have been scripted, but the validations for EU Centralised Clearance for Import (CCI) and Import Update still need to be done by the supplier. The supplier has notified us that they have prepared common domain messages, but the Conformance Testing (CT) is still pending due to pending work on the validations. Matters are being discussed with suppliers and Malta has requested appropriate timelines.",{"$f":"'AN - Air'!W25","v":"3.02"},{"$f":"'AN - Air'!X25","v":"2024-03-20"},"Laura Cutajar","laura.cutajar@gov.mt",35623783085]
[null,{"$f":"formats!D23&\"-\"&formats!E23","v":"NL-Nederland"},"2021-06-22","Stable/Final","Completed","2022-02-01","2022-12-31","Stable/Final","Completed","2022-04-01","Stable/Final","Completed","2023-03-01","2023-12-31","Indicative","In progress","2023-12-31","Indicative","In progress","https://www.nhdouane.nl/","The transition period has formally ended, but not all traders are fully migrated yet. ",null,{"$f":"'AN - Air'!W26","v":"3.00"},{"$f":"'AN - Air'!X26","v":"2024-04-05"},"National Helpdesk Dutch Customs","NHD.apeldoorn@douane.nl","(+31)(0)88 156 6655"]
[null,{"$f":"formats!D24&\"-\"&formats!E24","v":"PL-Polska"},"2022-07-29","Stable/Final","Completed","2023-09-30","2024-07-01","Stable/Final","In progress","2024-07-01","Stable/Final","Not started",null,null,null,null,"2024-12-31","Indicative","Not started",null,null,null,{"$f":"'AN - Air'!W27","v":"3.20"},{"$f":"'AN - Air'!X27","v":"2024-03-11"},"Wojciech Sobczyk","wojciech.sobczyk@mf.gov.pl",48539019460]
[null,{"$f":"formats!D25&\"-\"&formats!E25","v":"PT-Portugal"},"2022-07-01","Stable/Final","Completed","2022-12-01","2024-09-30","Indicative","In progress","2024-10-28","Indicative","Not started",null,null,null,null,"2024-10-29","Indicative","Not started","https://info-aduaneiro.portaldasfinancas.gov.pt/pt/informacao_aduaneira/Pages/default.aspx","Derrogation request to second semester 2024"," Projects 4, 6, 8 and 9 are developed in same system;\nTest environment available to EOs;\nNo EOs started testing;\nDevelopment and testing is ongoing for Webforms and Webservices.",{"$f":"'AN - Air'!W28","v":7.2},{"$f":"'AN - Air'!X28","v":"2024-04-05"},"Carla Monteiro","Carla.Ferreira.Monteiro@at.gov.pt","00351 218 813 874"]
[null,{"$f":"formats!D26&\"-\"&formats!E26","v":"RO-România "},"2024-03-31","Indicative","In progress","2024-03-31","2024-06-30","Indicative","Not started","2024-06-30","Indicative","In progress","N/A","N/A",null,"Not started","2024-06-30","Indicative","Not started","www.customs.ro","We are reporting a delay in deployment of NIS because the development of this system is part of a large project in which several systems and applications that interact with each other are being developed/updated and some of them could not be completed by the deadline of 31/12/2023 ","the updated deadlines took into account the derogation decisions",{"$f":"'AN - Air'!W29","v":"3.00"},{"$f":"'AN - Air'!X29","v":"2024-03-25"},"Valeria Ureche","valeria.ureche@customs.ro",40720466777]
[null,{"$f":"formats!D27&\"-\"&formats!E27","v":"SE-Sverige"},"2021-09-15","Stable/Final","Completed","2021-12-01","2023-12-31","Stable/Final","Completed","2022-03-15","Stable/Final","Completed","2022-03-15","2023-12-31","Stable/Final","Completed","2023-12-31","Stable/Final","Completed","https://www.tullverket.se/en/startpage/business/infocus/scheduleforintroductionoftheunioncustomscode.4.422c8052175b1d827692251.html","We will have a phased implementation. The dates are applicable regarding standard customs declaration. The simplified declaration will be operational the 27 of September 2024 and EIDR the 31 of December 2024. Concerning the declaration for Customs warehousing procedure we will perform an update from the \"current\" Annex B to the \"new\" Annex B. The date of deployment will be during 2025.","Concerning simplified declaration we have asked for derogation until the 31 december 2024, and for EIDR until the 30 June 2025 and for the update of the customs warehousing system we have asked for derogation until 31 December 2025. Regarding the simplified declaration the technical specification has been available from 3 October 2023, the CT has been available from 15 November 2023, the deployment date will be 2 September 2024 with a migration period until 27 September 2024 where also all economic operators should be operational. Regarding Entry in the declarants records the technical specification will be available in May 2024, the CT will also be available in May 2024, the deployment date will be the 1 November 2024 with a migration period until 31 December 2024 where also all economic operators should be operational.  ",{"$f":"'AN - Air'!W30","v":21},{"$f":"'AN - Air'!X30","v":"2024-03-08"},"Katarina Nordberg","projekt.import@tullverket.se"]
[null,{"$f":"formats!D28&\"-\"&formats!E28","v":"SI-Slovenija"},"2019-07-01","Stable/Final","Completed","2021-04-01","2021-10-01","Stable/Final","Completed","2022-01-01","Stable/Final","Completed","2022-01-01","2022-01-01","Stable/Final","Completed","2022-01-01","Stable/Final","Completed","e-Carina | FINANČNA UPRAVA REPUBLIKE SLOVENIJE (gov.si)",null,null,{"$f":"'AN - Air'!W31","v":16.02},{"$f":"'AN - Air'!X31","v":"2024-03-20"},"Mr. Stojan Boštjančič","sd.fu@gov.si","00386 1/478 38 72"]
[null,{"$f":"formats!D29&\"-\"&formats!E29","v":"SK-Slovensko"},"2023-02-17","Stable/Final","Completed","2024-04-01","2024-12-31","Indicative","Not started","2025-01-01","Indicative","Not started","2024-12-31","2024-12-31","Indicative","Not started","2025-01-01","Indicative","Not started","Projekt eDovoz CCK - PFS (financnasprava.sk)",null,"Request for derogation sent on 2nd of October 2023 ",{"$f":"'AN - Air'!W32","v":1},{"$f":"'AN - Air'!X32","v":"2024-03-08"},"Martin Svrček","martin.svrcek@financnasprava.sk","00421 2 48273231"]

{"sheet":"SP EXP","index":11,"n_rows":32,"n_cols":27,"rows_kept":32,"cut":false,"hidden":false,"merged":[[2,24,2,26],[3,2,3,4],[3,5,3,8],[3,9,3,11],[3,12,3,15],[3,16,3,18],[2,2,2,4],[2,5,2,8],[2,9,2,11],[2,12,2,15],[2,16,2,18],[2,22,2,23]]}
[]
[]
[null,null,"Technical Specifications",null,null,"Conformance Testing",null,null,null,"Deployment",null,null,"Migration",null,null,null,"Operations",null,null,"Web","Notes","Derogations","Version information and issue date",null,"Project Manager Details"]
[null,null,"The date of publication of the technical specifications for the external communication on the electronic system",null,null,"The period of conformance testing with economic operators",null,null,null,"The date of deployment of the electronic system",null,null,"Where applicable, the period during which the economic operators are allowed to carry out migration",null,null,null,"Start of Operations for all economic operators (end of transition period)",null,null,"Web address of specifications for EO's",null,"If a derogation under Art 6(4) UCC was granted, please indicate the activities carried out and the state of development in order to reach the derogation deadline."]
[null,{"$f":"formats!A7","v":"UCC Special Procedures (Component 1) \"National SP EXP\""},"Date","Status","Progress","Start Date","End Date","Status","Progress","Date","Status","Progress","Start Date","End Date","Status","Progress","Date","Status","Progress","Web address","Note/Comment","Note/Comment","Version Number","Issue Date","Project Mgr Name","e-Mail","Phone"]
[null,{"$f":"formats!D3&\"-\"&formats!E3","v":"AT-Österreich"},"2022-01-01","Stable/Final","Completed","2024-06-01","2024-08-30","Stable/Final","Not started","2024-11-15","Stable/Final","In progress","open","open","Indicative",null,"2024-11-15","Indicative","In progress","AES - Automated Export System (bmf.gv.at)","tender completed, software provider available, developement started, CT started","derogation decission is outstanding",{"$f":"'AN - Air'!W6","v":13},{"$f":"'AN - Air'!X6","v":"2024-03-18"},"Bianca Posch","bianca.posch@bmf.gv.at","0043-1-51433-504160"]
[null,{"$f":"formats!D4&\"-\"&formats!E4","v":"BE-Belgique/België"},"2021-09-01","Stable/Final",null,"2023-06-01","2023-09-01",null,null,"2023-09-30",null,null,null,null,null,null,"2023-09-30",null,null,"https://financien.belgium.be/nl/douane_accijnzen/ondernemingen/applicaties-da/technische-documentatie-0",null,null,{"$f":"'AN - Air'!W7","v":"4.00"},{"$f":"'AN - Air'!X7","v":"2024-02-20"},"Wouter De Vlieger","wouter.devlieger@minfin.fed.be"]
[null,{"$f":"formats!D5&\"-\"&formats!E5","v":"BG-България"},"2022-08-31","Stable/Final","Completed","2023-07-24","2023-08-11","Stable/Final","Completed","2023-08-28","Stable/Final","Completed",null,null,null,null,"2023-08-29","Stable/Final","Completed","https://ep.customs.bg/eportal/",null,null,{"$f":"'AN - Air'!W8","v":"10.01"},{"$f":"'AN - Air'!X8","v":"2024-03-01"},"Yordanka Stoyanova","masp_bg@customs.bg","00359 2 9859 4180"]
[null,{"$f":"formats!D6&\"-\"&formats!E6","v":"CY-Κύπρος"},"2023-08-01","Stable/Final","Completed","2023-09-18","2023-11-30","Stable/Final","Completed","2023-12-18","Stable/Final","Completed","N/A","N/A",null,"Not started","2023-12-18","Stable/Final","Completed","https://www.mof.gov.cy/mof/ce/theseas/theseas.nsf/techinfo_en/techinfo_en?OpenDocument",null,null,{"$f":"'AN - Air'!W9","v":7},{"$f":"'AN - Air'!X9","v":"2024-04-26"},"Anna Christodoulidou","anchristodoulidou@customs.mof.gov.cy",35722601868]
[null,{"$f":"formats!D7&\"-\"&formats!E7","v":"CZ-Česká republika"},"2021-10-21","Stable/Final","Completed","2023-01-02","2023-09-30","Stable/Final","Completed","2023-10-01","Stable/Final","Completed",null,null,null,null,"2023-10-01","Stable/Final","Completed","https://www.celnisprava.cz/cz/clo/e-customs/ecs/Stranky/dokumentace-pro-vyrobce-SW-UCC-AES.aspx","In CZ will be \"big bang\". All economic operators will start at the same date. ",null,{"$f":"'AN - Air'!W10","v":"1.5"},{"$f":"'AN - Air'!X10","v":"2024-05-16"},"František Šíma","NPP.MASP@cs.mfcr.cz",420261332633]
[null,{"$f":"formats!D8&\"-\"&formats!E8","v":"DE-Deutschland"},"2020-10-09","Stable/Final","Completed","2021-04-19","2023-10-29","Stable/Final","Completed","2021-03-06","Stable/Final","Completed","2021-04-19","2023-11-30","Stable/Final","Completed","2023-12-01","Stable/Final","Completed","www.zoll.de","This component is implemented in line with the project \"UCC AES (Component 1) Transeuropean AES\"\nIT Service Providers and Economic Operators must ensure that the conformance test is planned in time to be connected to the new system by the end date of the soft migration on 30.11.2023 at the latest.",null,{"$f":"'AN - Air'!W11","v":"7.00"},{"$f":"'AN - Air'!X11","v":"2024-03-20"},"Michael Schröter","DIIB12.gzd@zoll.bund.de","0049(0)228/303-21096"]
[null,{"$f":"formats!D9&\"-\"&formats!E9","v":"DK-Danmark"},"2022-08-01","Stable/Final",null,"2023-03-01","2023-07-14","Stable/Final","Completed","2023-07-29","Stable/Final","Completed","2023-07-29","2024-05-01","Stable/Final","In progress","2024-05-01","Indicative","In progress","www.toldst.dk ",null,null,{"$f":"'AN - Air'!W12","v":1},{"$f":"'AN - Air'!X12","v":"2024-04-15"},"Tine Mercebach","EUTK-kontrolsystemer@toldst.DK","+45 7237 0754"]
[null,{"$f":"formats!D10&\"-\"&formats!E10","v":"EE-Eesti"},"2022-03-31","Stable/Final","Completed","2023-03-01","2023-09-01","Stable/Final","Completed","2023-09-30","Stable/Final","Completed","2023-09-30","2023-09-30","Stable/Final","Completed","2023-10-01","Stable/Final","Completed","https://www.emta.ee/ariklient/toll-kaubavahetus/tolliinfosusteemid/tolliinfosusteemide-kasutajatele",null,null,{"$f":"'AN - Air'!W13","v":17},{"$f":"'AN - Air'!X13","v":"2024-03-25"},"Tiiu Kaup","AES-NPM-EE@emta.ee",3726762264]
[null,{"$f":"formats!D11&\"-\"&formats!E11","v":"GR-Ελλάδα"},"2024-09-30","Indicative","Not started"," "," ",null,null,"2025-03-31","Indicative","Not started"," "," ",null,null,"2025-03-31","Indicative","Not started","https://www.aade.gr/customs",null,null,{"$f":"'AN - Air'!W14","v":6.1},{"$f":"'AN - Air'!X14","v":"2024-03-08"},"Ms Tsironi","AES_NPM@AADE.GR","0030-2131356745"]
[null,{"$f":"formats!D12&\"-\"&formats!E12","v":"ES-España"},"2021-04-15","Stable/Final","Completed","2021-11-10","2023-05-08","Stable/Final","Completed","2022-10-18","Stable/Final","Completed","2022-10-18","2023-05-08","Stable/Final","Completed","2023-05-09","Stable/Final","Completed","https://sede.agenciatributaria.gob.es/Sede/aduanas/aduana-electronica/guias-tecnicas.html",null,null,{"$f":"'AN - Air'!W15","v":3.2},{"$f":"'AN - Air'!X15","v":"2024-03-08"}]
[null,{"$f":"formats!D13&\"-\"&formats!E13","v":"FI-Suomi/Finland"},"2023-06-30","Stable/Final","Completed","2023-06-30","2024-12-31","Stable/Final","In progress","2024-12-31","Stable/Final","In progress","2024-12-31","2024-12-31","Stable/Final","Not started","2024-12-31","Stable/Final","Not started","https://finnishcustoms-suomentulli.github.io/MIGs/Export/en/index.html ","The derogation paper has been sent for end date Q2/2024. Unfortunately we have to postpone the date until Q4/2024.  We have devided implementation into two phases. Phase 1  contains normal export, sp, simplifications, centralized clearance and EMCS integration.  Phase 2 contains exit functionalities and integration to EMSWe.  Phase 2 will be deployed Q2/2025. Phase 1 will be found in line for step 1 and phase 2 in line for step 3. Thus the line for step 2 will be empty.",null,{"$f":"'AN - Air'!W16","v":"13.00"},{"$f":"'AN - Air'!X16","v":"2024-03-22"},"Leila Lappalainen","leila.lappalainen@tulli.fi"]
[null,{"$f":"formats!D14&\"-\"&formats!E14","v":"FR-France"},"2024-06-30","Stable/Final","In progress","2025-03-31","2025-12-31","Indicative","Not started","2025-12-31","Indicative","Not started","2025-12-31","2026-03-31","Indicative","Not started","2026-06-30","Indicative","Not started","https://www.douane.gouv.fr/services-aide/edi","Progress can be consulted via the following link  :https://www.douane.gouv.fr/fiche/progress-report","Planning under review",{"$f":"'AN - Air'!W17","v":1.2},{"$f":"'AN - Air'!X17","v":"2024-02-07"},"Office COMINT 1 DGDDI","dg-comint1-rec@douane.finances.gouv.fr"]
[null,{"$f":"formats!D15&\"-\"&formats!E15","v":"HR-Hrvatska"},"2021-12-31","Stable/Final",null,"2022-10-01","2022-12-31",null,null,"2023-01-01","Stable/Final",null,null,null,null,null,"to be defined","Indicative",null,"https://carina.gov.hr ","Depending on the development of the national import customs clearance system and the budget",null,{"$f":"'AN - Air'!W18","v":9.1999999999999993},{"$f":"'AN - Air'!X18","v":"2024-03-19"},"Mihaela Kleković","mihaela.klekovic@carina.hr ",38516211407]
[null,{"$f":"formats!D16&\"-\"&formats!E16","v":"HU-Magyarország"},"2023-04-03","Stable/Final","Completed","2024-07-01","2024-11-15","Indicative","Not started","2024-12-01","Indicative","Not started","2024-12-01","2024-12-01","Indicative","Not started","2024-12-01","Indicative","Not started","Dokumentumok (gov.hu)","The developments will be implemented within the framework of AES",null,{"$f":"'AN - Air'!W19","v":11},{"$f":"'AN - Air'!X19","v":"2024-01-31"},"Jenes Barbara","uvk_mp_masp@nav.gov.hu",3614569584]
[null,{"$f":"formats!D17&\"-\"&formats!E17","v":"IE-Éire/Ireland"},"2022-01-28","Stable/Final","Completed","2022-07-31","2023-03-30","Stable/Final","Completed","2023-03-21","Stable/Final","Completed","2023-03-21","2023-05-21","Stable/Final","Completed","2023-05-21","Stable/Final","Completed","www.revenue.ie",null,null,{"$f":"'AN - Air'!W20","v":15.2},{"$f":"'AN - Air'!X20","v":"2024-03-21"},"Paul Paxman","UCCITDev@revenue.ie","00 353 67 63340"]
[null,{"$f":"formats!D18&\"-\"&formats!E18","v":"IT-Italia"},"2021-02-15","Stable/Final",null,"2022-02-01","2023-05-07",null,null,"2023-06-08","Stable/Final",null,"2023-06-08","2024-12-01","Indicative",null,"2024-12-02","Indicative",null,"https://www.adm.gov.it/portale/dichiarazioni-export",null,null,{"$f":"'AN - Air'!W21","v":1.01},{"$f":"'AN - Air'!X21","v":"2024-03-13"},"Francesco Cusmai","Francesco.Cusmai@adm.gov.it","+39 06 5024 3015"]
[null,{"$f":"formats!D19&\"-\"&formats!E19","v":"LT-Lietuva"},"04/05/2023","Stable/Final","Completed","04/06/2023","01/12/2023","Stable/Final","Completed","03/12/2023","Stable/Final","Completed","03/12/2023","03/12/2023","Stable/Final","Completed","03/12/2023","Stable/Final","Completed","https://lrmuitine.lt/web/guest/591 ","There will be a big bang for all economic operators. All communication should be additionally copied to tautvydas.banelis@lrmuitine.lt , giedre.jusaityte@lrmuitine.lt",null,{"$f":"'AN - Air'!W22","v":13.1},{"$f":"'AN - Air'!X22","v":"2024-03-08"},"Edita Stankūnienė","UCC_SP_C1_EXP_N-LT@lrmuitine.lt",37052327489]
[null,{"$f":"formats!D20&\"-\"&formats!E20","v":"LU-Luxembourg"},"2023-07-01",null,null,"2024-02-01","2024-03-30",null,null,"2023-12-01",null,null,null,null,null,null,"2024-03-30",null,null,"https://douanes.public.lu/fr/services-ligne/edouanes/LUCCS.html","Simplified declarations, complementary declarations and centralised clearance for export will just be available for 1 december 2024",null,{"$f":"'AN - Air'!W23","v":1},{"$f":"'AN - Air'!X23","v":"2023-03-15"},"Robert Scheueren","it.npm@do.etat.lu","+352 621 306 782"]
[null,{"$f":"formats!D21&\"-\"&formats!E21","v":"LV-Latvija"},"N/A","Stable/Final","Not started","2023-07-10","2023-09-30","Stable/Final","Completed","2023-10-10","Stable/Final","Completed","N/A","N/A","Stable/Final","Not started","2023-10-10","Stable/Final","Completed","https://www.vid.gov.lv/lv/k%C4%81-lietot-emdas","Along with AES",null,{"$f":"'AN - Air'!W24","v":3},{"$f":"'AN - Air'!X24","v":"2024-03-08"},"Nikolajs Zimnoho","ecustoms@vid.gov.lv ",37167120820]
[null,{"$f":"formats!D22&\"-\"&formats!E22","v":"MT-Malta"},"N/A","Indicative","Not started","N/A","N/A","Indicative","Not started","2024-12-01","Indicative",null,null,null,null,null,"2024-12-01","Indicative","Not started","www.customs.gov.mt","Due to the small amount of movements that Maltese Economic Operators (EOs) have, it is not feasible for the majority of EOs to develop a system-to-system mechanism and therefore a Graphic User Interface (GUI) where declarations can be filed suffices for the time being. Nonetheless, Malta will provide such facility at a later stage for those EOs interested in developing a system-to-system mechanism.",null,{"$f":"'AN - Air'!W25","v":"3.02"},{"$f":"'AN - Air'!X25","v":"2024-03-20"},"Keith Aquilina","keith.b.aquilina@gov.mt",35625685209]
[null,{"$f":"formats!D23&\"-\"&formats!E23","v":"NL-Nederland"},"2021-06-22","Stable/Final","Completed","2022-02-01","2022-12-31","Stable/Final","Completed","2022-04-01","Stable/Final","Completed","2023-05-08","2023-11-30","Indicative","In progress","2023-11-30","Indicative","In progress","https://www.nhdouane.nl/","The transition period has formally ended, but not all traders are fully migrated yet.",null,{"$f":"'AN - Air'!W26","v":"3.00"},{"$f":"'AN - Air'!X26","v":"2024-04-05"},"National Helpdesk Dutch Customs","NHD.apeldoorn@douane.nl","(+31)(0)88 156 6655"]
[null,{"$f":"formats!D24&\"-\"&formats!E24","v":"PL-Polska"},"2020-10-23","Stable/Final",null,"2020-11-23","2021-05-04","Stable/Final",null,"2021-07-01","Stable/Final",null,null,null,null,null,"2022-03-28","Stable/Final",null,"https://puesc.gov.pl/uslugi/uslugi-sieciowe-informacje-i-specyfikacje","The National (PL) UCC Special Procedures Project as a whole consists of some parts: \n(1) activities carried out within the National Project of UCC Automated Export System (AES) and \n(2) activities carried out within the National Project of UCC Automated Import System (AIS) and also \n(3) activities carried out within the National Project of (a new) System “RPS” concerning management & settlement of the Special Procedures.  \n\nCOMPONENT 1_(Part AES and RPS)\nHere we indicate that part of relevant functionalities regarding export issues connected with UCC Special Procedures is being implemented during the works concerning the Project of System AES – ad(1) and also the Project of System “RPS” – ad(3).\n\nExplanation:\nThe given dates of stages concern the contracts which were completed in 2022 and the selected key functionalities of UCC SP were entered into IT Components 1+2. \nSupplementation of current Components 1+2 with additional required UCC SP functions are being developed in AIS, AES and RPS systems and will be aligned with the new data matrix referred to in Annex B of the UCC-DA/UCC-IA. \nAfter necessary tests these functionalities will become operational in planned dates: 7.2024 for IMP; 12.2024 for EXP.",null,{"$f":"'AN - Air'!W27","v":"3.20"},{"$f":"'AN - Air'!X27","v":"2024-03-11"},"Krzysztof Gil (Component 1_Part AES)\nMarcin Cichocki (Component 1_Part RPS)","aes.ais.projekt.aes.350000@mf.gov.pl \nsp_pl_project@mf.gov.pl ","(+48) 12 629 01 12\n(+48) 22 510 46 57"]
[null,{"$f":"formats!D25&\"-\"&formats!E25","v":"PT-Portugal"},"2023-02-22","Stable/Final","Completed","2023-04-01","2024-10-31","Indicative","In progress","2024-11-30","Indicative","Not started",null,null,null,null,"2024-12-02","Indicative","Not started","https://info-aduaneiro.portaldasfinancas.gov.pt/pt/informacao_aduaneira/Pages/default.aspx","Integrated in AES component 1\nDerrogation request to second semester 2024",null,{"$f":"'AN - Air'!W28","v":7.2},{"$f":"'AN - Air'!X28","v":"2024-04-05"},"Alcinda Santos","Alcinda.Fortes.Santos@at.gov.pt","00351 218 813 878    "]
[null,{"$f":"formats!D26&\"-\"&formats!E26","v":"RO-România "},"2023-01-06",null,null,"2023-05-15","2023-11-30",null,null,"2023-05-15","Indicative",null,"N/A","N/A",null,"Not started","2024-03-16","Indicative","Completed","www.customs.ro",null,null,{"$f":"'AN - Air'!W29","v":"3.00"},{"$f":"'AN - Air'!X29","v":"2024-03-25"},"Andreea Bîrsan","andreea.birsan@customs.ro",40213107042]
[null,{"$f":"formats!D27&\"-\"&formats!E27","v":"SE-Sverige"},"2022-12-15","Stable/Final","Completed","2024-01-01","2024-12-02","Stable/Final","In progress","2024-10-01","Stable/Final","Not started","2024-10-01","2024-12-02","Stable/Final","Not started","2024-12-02","Stable/Final","Not started","https://www.tullverket.se/eng/business/scheduleforintroductionoftheunioncustomscode.4.422c8052175b1d827692251.html","Concerning export, Sweden has asked for derogation until the 31 December 2024. Work is progressing but our assessment is that there is still a need for the derogation.",null,{"$f":"'AN - Air'!W30","v":21},{"$f":"'AN - Air'!X30","v":"2024-03-08"},"Lotta Lindh","projekt.export@tullverket.se"]
[null,{"$f":"formats!D28&\"-\"&formats!E28","v":"SI-Slovenija"},"2020-12-18","Stable/Final","Completed","2022-05-03","2023-05-23","Stable/Final","Completed","2023-05-24","Stable/Final","Completed","2023-05-24","2023-05-24","Stable/Final","Completed","2023-05-24","Stable/Final","Completed","e-Carina | FINANČNA UPRAVA REPUBLIKE SLOVENIJE (gov.si)",null,null,{"$f":"'AN - Air'!W31","v":16.02},{"$f":"'AN - Air'!X31","v":"2024-03-20"},"Mr. Davorin Lončar","sd.fu@gov.si","00386 1/478 39 22"]
[null,{"$f":"formats!D29&\"-\"&formats!E29","v":"SK-Slovensko"},"2023-02-03","Stable/Final","Completed","2023-10-25","2024-10-13","Indicative","In progress","2024-10-14","Indicative","Not started","2024-10-13","2024-10-13","Indicative","Not started","2024-10-14","Indicative","Not started",null,"SP (Component 1) is developed as a part of AES. ","Request for derogation sent on 2nd of October 2023 ",{"$f":"'AN - Air'!W32","v":1},{"$f":"'AN - Air'!X32","v":"2024-03-08"},"Lenka Balážová","lenka.balazova@financnasprava.sk","00421 2 48273211"]

{"sheet":"SP IMP","index":12,"n_rows":32,"n_cols":27,"rows_kept":32,"cut":false,"hidden":false,"merged":[[2,24,2,26],[3,2,3,4],[3,5,3,8],[3,9,3,11],[3,12,3,15],[3,16,3,18],[2,2,2,4],[2,5,2,8],[2,9,2,11],[2,12,2,15],[2,16,2,18],[2,22,2,23]]}
[]
[]
[null,null,"Technical Specifications",null,null,"Conformance Testing",null,null,null,"Deployment",null,null,"Migration",null,null,null,"Operations",null,null,"Web","Notes","Derogations","Version information and issue date",null,"Project Manager Details"]
[null,null,"The date of publication of the technical specifications for the external communication on the electronic system",null,null,"The period of conformance testing with economic operators",null,null,null,"The date of deployment of the electronic system",null,null,"Where applicable, the period during which the economic operators are allowed to carry out migration",null,null,null,"Start of Operations for all economic operators (end of transition period)",null,null,"Web address of specifications for EO's",null,"If a derogation under Art 6(4) UCC was granted, please indicate the activities carried out and the state of development in order to reach the derogation deadline."]
[null,{"$f":"formats!A8","v":"UCC Special Procedures (Component 2) \"National SP IMP\""},"Date","Status","Progress","Start Date","End Date","Status","Progress","Date","Status","Progress","Start Date","End Date","Status","Progress","Date","Status","Progress","Web address","Note/Comment","Note/Comment","Version Number","Issue Date","Project Mgr Name","e-Mail","Phone"]
[null,{"$f":"formats!D3&\"-\"&formats!E3","v":"AT-Österreich"},"open","Indicative",null,"2025-02-03","2025-03-31","Indicative",null,"2025-06-02","Indicative",null,"2025-02-03","2025-03-31","Indicative",null,"2025-06-02","Indicative",null,"Technische Informationen e-zoll (bmf.gv.at)","tender completed, software provider available","derogation decission is outstanding",{"$f":"'AN - Air'!W6","v":13},{"$f":"'AN - Air'!X6","v":"2024-03-18"},"Bianca Posch","bianca.posch@bmf.gv.at","0043-1-51433-504160"]
[null,{"$f":"formats!D4&\"-\"&formats!E4","v":"BE-Belgique/België"},"2021-11-01","Stable/Final",null,"2023-07-01","2023-10-01",null,null,"2023-12-06",null,null,"2023-12-31","2024-03-31",null,null,"2024-03-31",null,null,"https://financien.belgium.be/nl/douane_accijnzen/ondernemingen/applicaties-da/technische-documentatie-0",null,null,{"$f":"'AN - Air'!W7","v":"4.00"},{"$f":"'AN - Air'!X7","v":"2024-02-20"},"Sarah Vanobberghen","sarah.vanobberghen@minfin.fed.be"]
[null,{"$f":"formats!D5&\"-\"&formats!E5","v":"BG-България"},"2023-08-04","Stable/Final","Completed","2023-09-04","2023-10-16","Stable/Final","Completed","2023-11-10","Stable/Final","Completed",null,null,null,null,"2024-01-15","Stable/Final","Completed","https://ep.customs.bg/eportal/",null,null,{"$f":"'AN - Air'!W8","v":"10.01"},{"$f":"'AN - Air'!X8","v":"2024-03-01"},"Yordanka Stoyanova","masp_bg@customs.bg","00359 2 9859 4180"]
[null,{"$f":"formats!D6&\"-\"&formats!E6","v":"CY-Κύπρος"},"2023-05-22","Stable/Final","Completed","2023-10-01","2024-09-30","Stable/Final","In progress","2024-10-30","Stable/Final","Not started","N/A","N/A",null,"Not started","2024-10-30","Stable/Final","Not started","https://www.mof.gov.cy/mof/ce/theseas/theseas.nsf/techinfo_en/techinfo_en?OpenDocument",null,null,{"$f":"'AN - Air'!W9","v":7},{"$f":"'AN - Air'!X9","v":"2024-04-26"},"Panagiota Oxinou","poxinou@customs.mof.gov.cy",35722601863]
[null,{"$f":"formats!D7&\"-\"&formats!E7","v":"CZ-Česká republika"},"2024-06-30","Stable/Final","Completed","2024-07-08","open","Indicative","Not started","2025-12-15","Indicative","Not started",null,null,null,null,"2025-12-15","Indicative","Not started","Dokumentace pro výrobce SW | Celní správa ČR (celnisprava.cz)",null,"GAN, data mapping",{"$f":"'AN - Air'!W10","v":"1.5"},{"$f":"'AN - Air'!X10","v":"2024-05-16"},"Lenka Kubíková","NPP.MASP@cs.mfcr.cz","420/261332631"]
[null,{"$f":"formats!D8&\"-\"&formats!E8","v":"DE-Deutschland"},"2020-10-09","Stable/Final","Completed","2021-05-01","2022-10-14","Stable/Final","Completed","2021-03-06","Stable/Final","Completed","2021-05-01","2022-10-14","Stable/Final","Completed","2022-10-31","Stable/Final","Completed","www.zoll.de","This component is implemented in the major release of the national IT-System ATLAS (Release 9.1) being part of the \"National Import Systems upgrade\".",null,{"$f":"'AN - Air'!W11","v":"7.00"},{"$f":"'AN - Air'!X11","v":"2024-03-20"},"Astrid Brieke","DIIB12.gzd@zoll.bund.de","0049(0)228/303-21097"]
[null,{"$f":"formats!D9&\"-\"&formats!E9","v":"DK-Danmark"},"2023-11-01","Indicative",null,"2024-05-01","2024-10-15","Indicative",null,"2024-10-15","Indicative",null,"2024-10-15","2024-10-15","Indicative",null,"2024-10-15","Indicative",null,"www.toldst.dk ",null,"We are currently reexamining our implementation plan and need to await a parliamentary process before we can inform the Commission formally about a new timeframe. The new implementation date for National SP IMP is expected to be 8th March 2025 and the onboarding of national economic operators is expected to be concluded in August 2025.",{"$f":"'AN - Air'!W12","v":1},{"$f":"'AN - Air'!X12","v":"2024-04-15"},"Tine Mercebach","EUTK-kontrolsystemer@toldst.DK","+45 7237 0754"]
[null,{"$f":"formats!D10&\"-\"&formats!E10","v":"EE-Eesti"},"2020-09-30","Stable/Final","Completed","2020-12-01","2021-06-30","Stable/Final","Completed","2021-07-01","Stable/Final","Completed","2021-06-30","2021-07-01","Stable/Final","Completed","2021-07-01","Stable/Final","Completed","https://www.emta.ee/ariklient/toll-\nkaubavahetus/tolliinfosusteemid/tolliinfosusteemide-kasutajatele",null,null,{"$f":"'AN - Air'!W13","v":17},{"$f":"'AN - Air'!X13","v":"2024-03-25"},"Terje Kose","Impulss-EE@emta.ee",3726763274]
[null,{"$f":"formats!D11&\"-\"&formats!E11","v":"GR-Ελλάδα"},"2024-12-31","Indicative","Not started"," "," ",null,null,"2025-06-30","Indicative","Not started"," "," ",null,null,"2025-06-30","Indicative","Not started","https://www.aade.gr/customs",null,null,{"$f":"'AN - Air'!W14","v":6.1},{"$f":"'AN - Air'!X14","v":"2024-03-08"},"Ms Mpenaki","IMPORT_NPM@AADE.GR","0030 2106987446"]
[null,{"$f":"formats!D12&\"-\"&formats!E12","v":"ES-España"},"2022-03-14","Stable/Final","Completed","2023-05-16","2025-03-09","Stable/Final","In progress","2023-09-05","Stable/Final","Completed","2023-09-05","2025-03-09","Indicative","In progress","2025-03-10","Indicative","Not started","https://sede.agenciatributaria.gob.es/Sede/aduanas/aduana-electronica/guias-tecnicas.html",null,null,{"$f":"'AN - Air'!W15","v":3.2},{"$f":"'AN - Air'!X15","v":"2024-03-08"}]
[null,{"$f":"formats!D13&\"-\"&formats!E13","v":"FI-Suomi/Finland"},"2019-06-30","Stable/Final","Completed","N/A","N/A","Stable/Final","Not started","2022-12-31","Stable/Final","Completed","2022-12-31","2022-12-31","Stable/Final","Completed","2022-12-31","Stable/Final","Completed","https://finnishcustoms-suomentulli.github.io/MIGs/Import2_1/en/index.html ","IMP Special procerures are in production, but some upgrades foreseen in Q2/2024.",null,{"$f":"'AN - Air'!W16","v":"13.00"},{"$f":"'AN - Air'!X16","v":"2024-03-22"},"Leila Lappalainen","leila.lappalainen@tulli.fi"]
[null,{"$f":"formats!D14&\"-\"&formats!E14","v":"FR-France"},"2022-03-31","Stable/Final","Completed","N/A","N/A","Indicative","Not started","2024-11-30","Stable/Final","Not started","2024-11-30","2025-06-30","Indicative","Not started","2025-06-30","Indicative","Not started","https://www.douane.gouv.fr/services-aide/edi","The technical specifications are published since February, 2022 and are regularly  with new information.\nProgress can be consulted via the following link: https://www.douane.gouv.fr/fiche/progress-report",null,{"$f":"'AN - Air'!W17","v":1.2},{"$f":"'AN - Air'!X17","v":"2024-02-07"},"Office COMINT 1 DGDDI","dg-comint1-rec@douane.finances.gouv.fr"]
[null,{"$f":"formats!D15&\"-\"&formats!E15","v":"HR-Hrvatska"},"2021-12-31","Stable/Final",null,"2022-09-01","2022-12-31","Stable/Final","Completed","2023-01-01","Stable/Final","Completed",null,null,null,null,"2023-01-01","Stable/Final","Completed","https://carina.gov.hr ",null,null,{"$f":"'AN - Air'!W18","v":9.1999999999999993},{"$f":"'AN - Air'!X18","v":"2024-03-19"},"Melita Buljan","melita.buljan@carina.hr",38516211285]
[null,{"$f":"formats!D16&\"-\"&formats!E16","v":"HU-Magyarország"},"2022-07-31","Stable/Final","Completed","2023-07-01","2023-09-17","Stable/Final","Completed","2023-10-12","Stable/Final","Completed",null,null,null,null,"2023-11-01","Stable/Final","Completed","https://openkkk.nav.gov.hu/default.aspx?RootFolder=%2FDokumentumok%2FSpecifik%C3%A1ci%C3%B3k&FolderCTID=&View=%7B33F087E2-CEC9-4020-A148-2852161E114C%7D","The developments will be implemented within the framework of NIS","The developments are in progress.",{"$f":"'AN - Air'!W19","v":11},{"$f":"'AN - Air'!X19","v":"2024-01-31"},"Keizinger Erik","uvk_mp_masp@nav.gov.hu",3614704187]
[null,{"$f":"formats!D17&\"-\"&formats!E17","v":"IE-Éire/Ireland"},"2019-10-04","Stable/Final","Completed","2020-04-30","2021-10-04","Stable/Final","Completed","2020-11-23","Stable/Final","Completed","2020-11-23","2021-10-04","Stable/Final","Completed","2021-10-05","Stable/Final","Completed","www.revenue.ie","Will be updated to Revised Annex B in Q1 2025, Revised trader specifications will issues end of Feb 2024.",null,{"$f":"'AN - Air'!W20","v":15.2},{"$f":"'AN - Air'!X20","v":"2024-03-21"},"Donal Flannery","UCCITDev@revenue.ie","00 353 67 63362"]
[null,{"$f":"formats!D18&\"-\"&formats!E18","v":"IT-Italia"},"2019-12-02","Stable/Final",null,"2020-06-30","2021-06-30","Stable/Final",null,"2021-07-01","Stable/Final",null,"2021-07-01","2022-06-08","Stable/Final",null,"2022-11-30","Stable/Final",null,"https://www.adm.gov.it/portale/dichiarazioni-import",null,null,{"$f":"'AN - Air'!W21","v":1.01},{"$f":"'AN - Air'!X21","v":"2024-03-13"},"Francesca Graziano","Francesca.Graziano@adm.gov.it","+39 06 5024 3064"]
[null,{"$f":"formats!D19&\"-\"&formats!E19","v":"LT-Lietuva"},"15/08/2023","Stable/Final","Completed","15/08/2023","09/02/2024","Stable/Final","Completed","31/12/2023","Stable/Final","Completed","31/12/2023","31/12/2023","Stable/Final","Completed","11/03/2024","Stable/Final","In progress",null,"There will be a big bang for all economic operators. Due to the request of business representatives and ongoing integration with State Tax Inspectorate excise system the time for testing of the National Import system was extended. Therefore, businesses will be able to submit data to the updated system from 11/03/2024. All communication should be additionally copied to tautvydas.banelis@lrmuitine.lt and giedre.jusaityte@lrmuitine.lt.",null,{"$f":"'AN - Air'!W22","v":13.1},{"$f":"'AN - Air'!X22","v":"2024-03-08"},"Edita Stankūnienė","UCC_SP_C2_IMP_N-LT@lrmuitine.lt",37052327489]
[null,{"$f":"formats!D20&\"-\"&formats!E20","v":"LU-Luxembourg"},"2022-02-22","Stable/Final",null,"2022-07-01","2023-04-29",null,null,"2023-05-02","Stable/Final",null,null,null,null,null,"2023-05-02","Stable/Final",null,"https://douanes.public.lu/fr/services-ligne/edouanes/LUCCS.html","The go-live of our national import system will  include Special procedures for Import.\n\nNo migration of data - big bang including big bang for traders.",null,{"$f":"'AN - Air'!W23","v":1},{"$f":"'AN - Air'!X23","v":"2023-03-15"},"Robert Scheueren","it.npm@do.etat.lu","+352 621 306 782"]
[null,{"$f":"formats!D21&\"-\"&formats!E21","v":"LV-Latvija"},"2017-10-30","Stable/Final","Completed","2018-05-01","2018-06-01","Stable/Final","Completed","2018-06-03","Stable/Final","Completed","N/A","N/A","Stable/Final","Not started","2018-06-04","Stable/Final","Completed","https://www.vid.gov.lv/lv/k%C4%81-lietot-emdas","As from 3.06.2018 National import system has been aligned with UCC DI/IA Annex B and EUCDM V2.0. New national AIS aligned with the latest version of UCC and EUCDM has been implemented on 13.06.2023. ",null,{"$f":"'AN - Air'!W24","v":3},{"$f":"'AN - Air'!X24","v":"2024-03-08"},"Daina Vilcina","ecustoms@vid.gov.lv ",37124429976]
[null,{"$f":"formats!D22&\"-\"&formats!E22","v":"MT-Malta"},"N/A","Indicative","Not started","N/A","N/A","Indicative","Not started","2025-02-01","Indicative","Not started",null,null,null,null,"2025-02-01","Indicative","Not started","www.customs.gov.mt",null,null,{"$f":"'AN - Air'!W25","v":"3.02"},{"$f":"'AN - Air'!X25","v":"2024-03-20"},"Laura Cutajar","laura.cutajar@gov.mt",35623783085]
[null,{"$f":"formats!D23&\"-\"&formats!E23","v":"NL-Nederland"},"2021-06-22","Stable/Final","Completed","2022-02-01","2022-12-31","Stable/Final","Completed","2022-04-01","Stable/Final","Completed","2022-10-01","2023-12-31","Indicative","In progress","2023-12-31","Indicative","In progress","https://www.nhdouane.nl/","The transition period has formally ended, but not all traders are fully migrated yet.",null,{"$f":"'AN - Air'!W26","v":"3.00"},{"$f":"'AN - Air'!X26","v":"2024-04-05"},"National Helpdesk Dutch Customs","NHD.apeldoorn@douane.nl","(+31)(0)88 156 6655"]
[null,{"$f":"formats!D24&\"-\"&formats!E24","v":"PL-Polska"},"2020-11-16","Stable/Final",null,"2020-11-23","2021-05-04","Stable/Final",null,"2021-07-01","Stable/Final",null,null,null,null,null,"2022-03-28","Stable/Final",null,"https://puesc.gov.pl/uslugi/uslugi-sieciowe-informacje-i-specyfikacje","The National (PL) UCC Special Procedures Project as a whole consists of some parts: \n(1) activities carried out within the National Project of UCC Automated Export System (AES) and \n(2) activities carried out within the National Project of UCC Automated Import System (AIS) and also \n(3) activities carried out within the National Project of (a new) System “RPS” concerning management & settlement of the Special Procedures.  \n\nCOMPONENT 1_(Part AES and RPS)\nHere we indicate that part of relevant functionalities regarding export issues connected with UCC Special Procedures is being implemented during the works concerning the Project of System AES – ad(1) and also the Project of System “RPS” – ad(3).\n\nCOMPONENT 2_(Part AIS and RPS)\nHere we indicate that part of relevant functionalities regarding import issues connected with UCC Special Procedures is being implemented during the works concerning  the Project of System (AIS) – ad(2) and also the Project of System “RPS” – ad(3).\n\nExplanation:\nThe given dates of stages concern the contracts which were completed in 2022 and the selected key functionalities of UCC SP were entered into IT Components 1+2. \nSupplementation of current Components 1+2 with additional required UCC SP functions are being developed in AIS, AES and RPS systems and will be aligned with the new data matrix referred to in Annex B of the UCC-DA/UCC-IA. \nAfter necessary tests these functionalities will become operational in planned dates: 7.2024 for IMP; 12.2024 for EXP.",null,{"$f":"'AN - Air'!W27","v":"3.20"},{"$f":"'AN - Air'!X27","v":"2024-03-11"},"Wojciech Sobczyk (Component 2_Part AIS)\nMarcin Cichocki (Component 2_Part RPS)","aes.ais.projekt.ais.350000@mf.gov.pl \nsp_pl_project@mf.gov.pl","(+48) 12 629 01 29 \n(+48) 22 510 46 57"]
[null,{"$f":"formats!D25&\"-\"&formats!E25","v":"PT-Portugal"},"2022-07-01","Stable/Final","Completed","2022-12-01","2024-09-30","Indicative","In progress","2024-10-28","Indicative","Not started",null,null,null,null,"2024-10-29","Indicative","Not started","https://info-aduaneiro.portaldasfinancas.gov.pt/pt/informacao_aduaneira/Pages/default.aspx","Integrated in NIS\nDerrogation request to second semester 2024","Projects 4, 6, 8 and 9 are developed in same system;\nTest environment available to EOs;\nNo EOs started testing;\nDevelopment is ongoing for Webforms and Webservices.",{"$f":"'AN - Air'!W28","v":7.2},{"$f":"'AN - Air'!X28","v":"2024-04-05"},"Alcinda Santos","Alcinda.Fortes.Santos@at.gov.pt","00351 218 813 878    "]
[null,{"$f":"formats!D26&\"-\"&formats!E26","v":"RO-România "},"2024-03-31","Indicative","In progress","2024-03-31","2024-06-30","Indicative","Not started","2024-06-30","Indicative","In progress","N/A","N/A",null,"Not started","2024-06-30","Indicative","Not started","www.customs.ro","We are reporting a delay in deployment of SP IMP because the development of this system is part of a large project in which several systems and applications that interact with each other are being developed/updated and some of them could not be completed by the deadline of 31/12/2023 ","the updated deadlines took into account the derogation decisions",{"$f":"'AN - Air'!W29","v":"3.00"},{"$f":"'AN - Air'!X29","v":"2024-03-25"},"Andreea Bîrsan","andreea.birsan@customs.ro",40213107042]
[null,{"$f":"formats!D27&\"-\"&formats!E27","v":"SE-Sverige"},"2022-06-01","Stable/Final","Completed","2022-11-01","2023-12-31","Stable/Final","Completed","2023-02-23","Stable/Final","Completed","2023-02-23","2023-12-31","Stable/Final","Completed","2023-12-31","Stable/Final","Completed","https://www.tullverket.se/en/startpage/business/infocus/scheduleforintroductionoftheunioncustomscode.4.422c8052175b1d827692251.html",null,null,{"$f":"'AN - Air'!W30","v":21},{"$f":"'AN - Air'!X30","v":"2024-03-08"},"Katarina Nordberg","projekt.import@tullverket.se"]
[null,{"$f":"formats!D28&\"-\"&formats!E28","v":"SI-Slovenija"},"2019-07-01","Stable/Final","Completed","2021-04-01","2021-10-01","Stable/Final","Completed","2022-01-01","Stable/Final","Completed","2022-01-01","2022-01-01","Stable/Final","Completed","2022-01-01","Stable/Final","Completed","e-Carina | FINANČNA UPRAVA REPUBLIKE SLOVENIJE (gov.si)",null,null,{"$f":"'AN - Air'!W31","v":16.02},{"$f":"'AN - Air'!X31","v":"2024-03-20"},"Mr. Stojan Boštjančič","sd.fu@gov.si","00386 1/478 38 72"]
[null,{"$f":"formats!D29&\"-\"&formats!E29","v":"SK-Slovensko"},"2016-01-27","Stable/Final","Completed","2016-03-15","2016-06-10","Stable/Final","Completed","2016-06-11","Stable/Final","Completed","2016-06-10","2016-06-10","Stable/Final","Completed","2016-06-11","Stable/Final","Completed",null,"SP (Component 2) was developed as a part of National Import System.Our NIS and thus SP IMP are based on Annex D DA. Our understanding was that full alignment with Annex B DA is considered as fullfilment of the project requirements. However according to our communication with EC, the implementation of Annex D in our NIS is considered as fulfilment for NIS and therefore we can confirm, that SP IMP as a part of NIS, even if not be in line with Annex B DA, is already deployed.",null,{"$f":"'AN - Air'!W32","v":1},{"$f":"'AN - Air'!X32","v":"2024-03-08"},"Lenka Balážová","lenka.balazova@financnasprava.sk","00421 2 48273211"]

{"sheet":"GUM-C2","index":13,"n_rows":32,"n_cols":27,"rows_kept":32,"cut":false,"hidden":false,"merged":[[2,24,2,26],[3,2,3,4],[3,5,3,8],[3,9,3,11],[3,12,3,15],[3,16,3,18],[2,2,2,4],[2,5,2,8],[2,9,2,11],[2,12,2,15],[2,16,2,18],[2,22,2,23]]}
[]
[]
[null,null,"Technical Specifications",null,null,"Conformance Testing",null,null,null,"Deployment",null,null,"Migration",null,null,null,"Operations",null,null,"Web","Notes","Derogations","Version information and issue date",null,"Project Manager Details"]
[null,null,"The date of publication of the technical specifications for the external communication on the electronic system",null,null,"The period of conformance testing with economic operators",null,null,null,"The date of deployment of the electronic system",null,null,"Where applicable, the period during which the economic operators are allowed to carry out migration",null,null,null,"Start of Operations for all economic operators (end of transition period)",null,null,"Web address of specifications for EO's",null,"If a derogation under Art 6(4) UCC was granted, please indicate the activities carried out and the state of development in order to reach the derogation deadline."]
[null,{"$f":"formats!A9","v":"UCC Guarantee Management (Component 2) \"National GUM\""},"Date","Status","Progress","Start Date","End Date","Status","Progress","Date","Status","Progress","Start Date","End Date","Status","Progress","Date","Status","Progress","Web address","Note/Comment","Note/Comment","Version Number","Issue Date","Project Mgr Name","e-Mail","Phone"]
[null,{"$f":"formats!D3&\"-\"&formats!E3","v":"AT-Österreich"},"N/A","Indicative","Not started","2025-02-03","2025-03-31","Indicative",null,"2025-06-02","Indicative",null,"N/A","N/A","Indicative","Not started","2025-06-02","Indicative",null,null,null,null,{"$f":"'AN - Air'!W6","v":13},{"$f":"'AN - Air'!X6","v":"2024-03-18"},"Andreas Jeschko ","andreas.jeschko@bmf.gv.at","0043-1-51433-504156"]
[null,{"$f":"formats!D4&\"-\"&formats!E4","v":"BE-Belgique/België"},"N/A","Indicative","Not started","N/A","N/A","Indicative","Not started","N/A","Indicative",null,null,null,null,null,null,null,null,"https://financien.belgium.be/nl/douane_accijnzen/ondernemingen/applicaties-da/technische-documentatie-0",null,null,{"$f":"'AN - Air'!W7","v":"4.00"},{"$f":"'AN - Air'!X7","v":"2024-02-20"},"Jean-Paul De Nier","jeanpaul.denier@minfin.fed.be"]
[null,{"$f":"formats!D5&\"-\"&formats!E5","v":"BG-България"},null,null,null,"2024-11-09","2025-03-28","Indicative","Not started","2025-04-14","Indicative","Not started",null,null,null,null,"2025-04-14","Indicative","Not started","https://ep.customs.bg/eportal/","National GUM system (in production as of 07.01.2019) is going to be upgraded in order to implement UCC GUM2 project.",null,{"$f":"'AN - Air'!W8","v":"10.01"},{"$f":"'AN - Air'!X8","v":"2024-03-01"},"Maria Koparanova","MASP_BG@customs.bg","00359 2 9859 4381"]
[null,{"$f":"formats!D6&\"-\"&formats!E6","v":"CY-Κύπρος"},"N/A",null,"Not started","N/A","N/A",null,"Not started","2025-06-02","Indicative","Not started","N/A","N/A",null,"Not started","2025-06-02","Indicative","Not started",null,null,null,{"$f":"'AN - Air'!W9","v":7},{"$f":"'AN - Air'!X9","v":"2024-04-26"},"Sofoklis Akkidis","sakkidis@customs.mof.gov.cy",35722601867]
[null,{"$f":"formats!D7&\"-\"&formats!E7","v":"CZ-Česká republika"},"2024-05-01","Indicative","In progress","2025-01-01","2025-05-31","Indicative","Not started","2025-06-01","Stable/Final","Not started",null,null,null,null,"2025-06-01","Stable/Final","Not started",null,null,null,{"$f":"'AN - Air'!W10","v":"1.5"},{"$f":"'AN - Air'!X10","v":"2024-05-16"},"Zdeněk Buček","NPP.MASP@cs.mfcr.cz",420261332623]
[null,{"$f":"formats!D8&\"-\"&formats!E8","v":"DE-Deutschland"},null,null,null,null,null,null,null,"2025-11-15","Indicative","In progress",null,null,null,null,null,null,null,"www.zoll.de","This project will be implemented as part of the major release of the national IT-System ATLAS (Release 10.2), which will be oprational in parallel to CCI.",null,{"$f":"'AN - Air'!W11","v":"7.00"},{"$f":"'AN - Air'!X11","v":"2024-03-20"},"Astrid Brieke","DIIB12.gzd@zoll.bund.de","0049(0)228/303-21097"]
[null,{"$f":"formats!D9&\"-\"&formats!E9","v":"DK-Danmark"},"2024-10-31","Indicative","In progress","2025-01-01","2025-01-31","Indicative","Not started","2025-06-02","Indicative","Not started","2025-04-01","2025-05-31","Indicative","Not started","2025-06-02","Indicative","Not started","www.toldst.dk ","The project is currently being analysed. Next phase - development - expect to be started 1st of June 2024",null,{"$f":"'AN - Air'!W12","v":1},{"$f":"'AN - Air'!X12","v":"2024-04-15"},"Karin Britt Mickiewicz","karin.mickiewicz@toldst.dk","+45 72373910"]
[null,{"$f":"formats!D10&\"-\"&formats!E10","v":"EE-Eesti"},"N/A","Stable/Final","Not started","N/A","N/A","Stable/Final","Not started","2024-06-09","Indicative","In progress","N/A","N/A","Stable/Final","Not started","2024-06-09","Indicative","In progress","https://www.emta.ee/ariklient/toll-\nkaubavahetus/tolliinfosusteemid/tolliinfosusteemide-kasutajatele",null,null,{"$f":"'AN - Air'!W13","v":17},{"$f":"'AN - Air'!X13","v":"2024-03-25"},"Kaidy Saar","GUM-NPM-EE@emta.ee",3726761017]
[null,{"$f":"formats!D11&\"-\"&formats!E11","v":"GR-Ελλάδα"},null,null,null," "," ",null,null,"2026-03-31","Indicative","Not started"," "," ",null,null,"2026-03-31","Indicative","Not started","https://www.aade.gr/customs","NATIONAL GAURANTEE MANAGEMENT SYSTEM ALREADY IN PRODUCTION - IT WILL BE UPGRADED IN ORDER TO SUPPORT SOME NEW FUNCTIONALITIES",null,{"$f":"'AN - Air'!W14","v":6.1},{"$f":"'AN - Air'!X14","v":"2024-03-08"},"Not appointed yet"]
[null,{"$f":"formats!D12&\"-\"&formats!E12","v":"ES-España"},"2016-06-30","Stable/Final","Completed","2016-07-01","2016-08-31","Stable/Final","Completed","2016-09-01","Stable/Final","Completed","2016-09-01","2019-05-01","Stable/Final","Completed","2019-05-01","Stable/Final","Completed",null,null,null,{"$f":"'AN - Air'!W15","v":3.2},{"$f":"'AN - Air'!X15","v":"2024-03-08"}]
[null,{"$f":"formats!D13&\"-\"&formats!E13","v":"FI-Suomi/Finland"},"N/A","Stable/Final","Not started","N/A","N/A","Stable/Final","Not started","2025-06-30","Stable/Final","In progress","N/A","N/A","Stable/Final","Not started","2025-06-30","Stable/Final","In progress",null,"National GUM goes into production in several phases, NCTS part was deployed on Q4/2024. The final phase (integration to CRS + Import) will be in production Q2/2025",null,{"$f":"'AN - Air'!W16","v":"13.00"},{"$f":"'AN - Air'!X16","v":"2024-03-22"},"Kaj-Erik Sandström","kaj-erik.sandström@tulli.fi"]
[null,{"$f":"formats!D14&\"-\"&formats!E14","v":"FR-France"},"2024-03-31","Indicative","Not started","TBD","TBD","Indicative","Not started","2025-06-30","Indicative","Not started","2025-06-30","2025-06-30","Indicative","Not started","2025-06-30","Indicative","Not started","https://www.douane.gouv.fr/services-aide/edi","Progress can be consulted via the following link  :https://www.douane.gouv.fr/fiche/progress-report","Planning under review",{"$f":"'AN - Air'!W17","v":1.2},{"$f":"'AN - Air'!X17","v":"2024-02-07"},"Office FIN 3 DGDDI","dg-fin3@douane.finances.gouv.fr"]
[null,{"$f":"formats!D15&\"-\"&formats!E15","v":"HR-Hrvatska"},"2024-12-31","Indicative","Not started","N/A","N/A",null,"Not started","2025-06-02","Indicative","Not started",null,null,null,null,"2025-06-02","Indicative","Not started","https://carina.gov.hr","depending on the development of the Centralised Clearance for Import, budget and priorities of development of other systems which have to be iplemented in the next two years",null,{"$f":"'AN - Air'!W18","v":9.1999999999999993},{"$f":"'AN - Air'!X18","v":"2024-03-19"},"Višnja Marković","visnja.markovic@carina.hr ",38516211252]
[null,{"$f":"formats!D16&\"-\"&formats!E16","v":"HU-Magyarország"},"2025-01-30","Indicative","Not started","2025-02-01","2025-05-01","Indicative","Not started","2025-06-01","Indicative","Not started",null,null,null,null,"2025-06-01","Indicative","Not started","https://openkkk.nav.gov.hu/default.aspx?RootFolder=%2FDokumentumok%2FSpecifik%C3%A1ci%C3%B3k&FolderCTID=&View=%7B33F087E2-CEC9-4020-A148-2852161E114C%7D",null,null,{"$f":"'AN - Air'!W19","v":11},{"$f":"'AN - Air'!X19","v":"2024-01-31"},"Juhász Milán","uvk_mp_masp@nav.gov.hu",3614569535]
[null,{"$f":"formats!D17&\"-\"&formats!E17","v":"IE-Éire/Ireland"},"2019-10-04","Stable/Final","Completed","2020-04-30","2021-10-04","Stable/Final","Completed","2020-11-23","Stable/Final","Completed","2020-11-23","2021-10-04","Stable/Final","Completed","2021-10-05","Stable/Final","Completed","www.revenue.ie","Review undertaken - no requriement for IE to build additional system. ",null,{"$f":"'AN - Air'!W20","v":15.2},{"$f":"'AN - Air'!X20","v":"2024-03-21"},"Donal Flannery","UCCITDev@revenue.ie"]
[null,{"$f":"formats!D18&\"-\"&formats!E18","v":"IT-Italia"},"2024-11-29","Indicative",null,"2025-01-13","2025-03-28","Indicative",null,"2025-06-02","Indicative",null,null,null,null,null,null,null,null,"https://www.adm.gov.it/portale/web/guest/home",null,null,{"$f":"'AN - Air'!W21","v":1.01},{"$f":"'AN - Air'!X21","v":"2024-03-13"},"Diego Di Claudio","diego.diclaudio@adm.gov.it","+39 06 5024 3748"]
[null,{"$f":"formats!D19&\"-\"&formats!E19","v":"LT-Lietuva"},"01/11/2021","Stable/Final","Completed","01/03/2022","31/08/2022","Stable/Final","Completed","16/11/2022","Stable/Final","Completed","17/10/2022","19/03/2023","Stable/Final","Completed","2023-03-20","Stable/Final","Completed","https://lrmuitine.lt/web/guest/988","There will be a big bang for all economic operators. All communication should be additionally copied to tautvydas.banelis@lrmuitine.lt , giedre.jusaityte@lrmuitine.lt",null,{"$f":"'AN - Air'!W22","v":13.1},{"$f":"'AN - Air'!X22","v":"2024-03-08"},"Julita Paulauskaitė","UCC_GUM_C2_N-LT@lrmuitine.lt",37052666095]
[null,{"$f":"formats!D20&\"-\"&formats!E20","v":"LU-Luxembourg"},null,null,null,null,null,null,null,"2025-06-01","Indicative",null,null,null,null,null,"2025-06-01","Indicative",null,null,"The dates for GUM phase 2 are purely Indicative till now",null,{"$f":"'AN - Air'!W23","v":1},{"$f":"'AN - Air'!X23","v":"2023-03-15"},"Robert Scheueren","it.npm@do.etat.lu","+352 621 306 782"]
[null,{"$f":"formats!D21&\"-\"&formats!E21","v":"LV-Latvija"},"N/A","Stable/Final","Not started","N/A","N/A","Stable/Final","Not started","2018-06-03","Stable/Final","Completed","N/A","N/A","Stable/Final","Not started","2018-06-04","Stable/Final","Completed","https://www.vid.gov.lv/lv/k%C4%81-lietot-emdas","Updated along with national import system. ",null,{"$f":"'AN - Air'!W24","v":3},{"$f":"'AN - Air'!X24","v":"2024-03-08"},"Daina Vilcina","ecustoms@vid.gov.lv ",37124429976]
[null,{"$f":"formats!D22&\"-\"&formats!E22","v":"MT-Malta"},"N/A","Indicative","Not started","N/A","N/A","Indicative","Not started","2025-06-02","Indicative","Not started",null,null,null,null,"2025-06-02","Indicative","Not started","www.customs.gov.mt","Due to the small amount of movements that Maltese EOs have, it is not feasible for the majority of EOs to develop a system-to-system mechanism and therefore a GUI where declarations can be filed suffices for the time being. Nonetheless, Malta will provide such facility at a later stage for those EOs interested in developing a system-to-system mechanism.",null,{"$f":"'AN - Air'!W25","v":"3.02"},{"$f":"'AN - Air'!X25","v":"2024-03-20"},"Marvic Pavia","marvic.pavia@gov.mt",35623783082]
[null,{"$f":"formats!D23&\"-\"&formats!E23","v":"NL-Nederland"},"N/A",null,"Not started","N/A","N/A",null,"Not started","2025-06-01","Indicative","In progress","N/A","N/A","Indicative","Not started","2025-06-01","Indicative","Not started","https://www.nhdouane.nl/","GUM2 is the implementation of the national guarantee management system. No conformance tests with EO's or TAXUD needed, therefor the migration (transitional period) for EO's and external communication is not applicable. ",null,{"$f":"'AN - Air'!W26","v":"3.00"},{"$f":"'AN - Air'!X26","v":"2024-04-05"},"National Helpdesk Dutch Customs","NHD.apeldoorn@douane.nl","(+31)(0)88 156 6655"]
[null,{"$f":"formats!D24&\"-\"&formats!E24","v":"PL-Polska"},"2021-12-31","Stable/Final",null,"2024-01-01","2025-06-02",null,null,"2024-01-01",null,null,"N/A","N/A","Stable/Final","Not started","2025-06-02",null,null,"https://puesc.gov.pl/uslugi/uslugi-sieciowe-informacje-i-specyfikacje/system-osoz2",null,null,{"$f":"'AN - Air'!W27","v":"3.20"},{"$f":"'AN - Air'!X27","v":"2024-03-11"},"Dariusz Gielas","dariusz.gielas@mf.gov.pl","(+4812) 629-01-33"]
[null,{"$f":"formats!D25&\"-\"&formats!E25","v":"PT-Portugal"},"N/A",null,"Not started","N/A","N/A",null,"Not started","2024-10-28","Indicative","Not started",null,null,null,null,"2024-10-29","Indicative","Not started","https://info-aduaneiro.portaldasfinancas.gov.pt/pt/informacao_aduaneira/Pages/default.aspx","There is no Technical Specifications to the external interface.",null,{"$f":"'AN - Air'!W28","v":7.2},{"$f":"'AN - Air'!X28","v":"2024-04-05"},"Pedro Rocha","Pedro.Lino.Rocha@at.gov.pt",351218813856]
[null,{"$f":"formats!D26&\"-\"&formats!E26","v":"RO-România "},null,"Indicative","In progress","N/A","N/A",null,"Not started","2025-01-06","Indicative",null,"N/A","N/A",null,"Not started","2025-01-06","Indicative","In progress","www.customs.ro","There is no Tehnical Specification to external communication. Updated together with national import system. ",null,{"$f":"'AN - Air'!W29","v":"3.00"},{"$f":"'AN - Air'!X29","v":"2024-03-25"},"Oana Becheru","oana.becheru@customs.ro",40213112491]
[null,{"$f":"formats!D27&\"-\"&formats!E27","v":"SE-Sverige"},"N/A",null,"Not started","N/A",null,null,"Not started","2021-04-17","Stable/Final","Completed","N/A","N/A",null,"Not started","2021-04-17","Stable/Final","Completed","https://www.tullverket.se/nyheter/nyheter/iaprilinforstransaktionsbaseradavrakningavgarantividovergangtillfriomsattning.5.422c8052175b1d8276916f6.html","Dates for technical spec and CT are not applcable since there will be no external domain for the Economic Operator (EO) to the system. There will be a webservice for the EO to check the reference amount. ",null,{"$f":"'AN - Air'!W30","v":21},{"$f":"'AN - Air'!X30","v":"2024-03-08"},"Helena Landgren Ekorre","ecustoms@tullverket.se"]
[null,{"$f":"formats!D28&\"-\"&formats!E28","v":"SI-Slovenija"},"2024-06-30",null,"In progress","2025-01-01","2025-05-20","Indicative","In progress","2025-06-01","Indicative","In progress","2025-06-01","2025-06-01","Indicative","Not started","2025-06-01","Indicative","In progress",null,null,null,{"$f":"'AN - Air'!W31","v":16.02},{"$f":"'AN - Air'!X31","v":"2024-03-20"},"Mrs. Mateja Rejec","sd.fu@gov.si","00386 1/369 30 74"]
[null,{"$f":"formats!D29&\"-\"&formats!E29","v":"SK-Slovensko"},"2024-09-01","Indicative","In progress","2025-01-01","2025-05-01","Indicative","Not started","2025-06-02","Indicative","Not started",null,null,null,null,"2025-06-02","Indicative","Not started",null,null,null,{"$f":"'AN - Air'!W32","v":1},{"$f":"'AN - Air'!X32","v":"2024-03-08"},"Lea Harmahová","lea.harmathova@financnasprava.sk","00421 2 48273232"]

{"sheet":"CCI-C1","index":14,"n_rows":32,"n_cols":27,"rows_kept":32,"cut":false,"hidden":false,"merged":[[2,24,2,26],[3,2,3,4],[3,5,3,8],[3,9,3,11],[3,12,3,15],[3,16,3,18],[2,2,2,4],[2,5,2,8],[2,9,2,11],[2,12,2,15],[2,16,2,18],[2,22,2,23]]}
[]
[]
[null,null,"Technical Specifications",null,null,"Conformance Testing",null,null,null,"Deployment",null,null,"Migration",null,null,null,"Operations",null,null,"Web","Notes","Derogations","Version information and issue date",null,"Project Manager Details"]
[null,null,"The date of publication of the technical specifications for the external communication on the electronic system",null,null,"The period of conformance testing with economic operators",null,null,null,"The date of deployment of the electronic system",null,null,"Where applicable, the period during which the economic operators are allowed to carry out migration",null,null,null,"Start of Operations for all economic operators (end of transition period)",null,null,"Web address of specifications for EO's",null,"If a derogation under Art 6(4) UCC was granted, please indicate the activities carried out and the state of development in order to reach the derogation deadline."]
[null,{"$f":"formats!A10","v":"UCC Centralised Clearance for Import (Phase 1)"},"Date","Status","Progress","Start Date","End Date","Status","Progress","Date","Status","Progress","Start Date","End Date","Status","Progress","Date","Status","Progress","Web address","Note/Comment","Note/Comment","Version Number","Issue Date","Project Mgr Name","e-Mail","Phone"]
[null,{"$f":"formats!D3&\"-\"&formats!E3","v":"AT-Österreich"},"open","Indicative",null,"2025-02-03","2025-03-31","Indicative",null,"2025-02-03","Indicative",null,"2025-02-03","2025-03-31","Indicative",null,"2025-02-03","Indicative",null,null,"tender completed, software provider available","derogation decission is outstanding",{"$f":"'AN - Air'!W6","v":13},{"$f":"'AN - Air'!X6","v":"2024-03-18"},"Manfred Winterleitner ","manfred.winterleitner@bmf.gv.at","0043-1-51433-504157"]
[null,{"$f":"formats!D4&\"-\"&formats!E4","v":"BE-Belgique/België"},"2021-12-01",null,null,"2023-09-01","2023-12-31",null,"In progress","2024-06-30",null,null,null,null,null,null,"2024-06-30",null,null,"https://financien.belgium.be/nl/douane_accijnzen/ondernemingen/applicaties-da/technische-documentatie-0",null,null,{"$f":"'AN - Air'!W7","v":"4.00"},{"$f":"'AN - Air'!X7","v":"2024-02-20"},"Shari De Saedeleer\nValery Pellichero (Service manager)","shari.desaedeleer@minfin.fed.be\nvalery1.pellichero@minfin.fed.be"]
[null,{"$f":"formats!D5&\"-\"&formats!E5","v":"BG-България"},"2023-06-26","Stable/Final","Completed","2023-09-04","2023-10-16","Stable/Final","Completed","2023-11-10","Stable/Final","Completed",null,null,null,null,"2024-01-15","Stable/Final","Completed","https://ep.customs.bg/eportal/",null,null,{"$f":"'AN - Air'!W8","v":"10.01"},{"$f":"'AN - Air'!X8","v":"2024-03-01"},"Gabriela Georgieva","masp_bg@customs.bg","00359 2 9859 4036"]
[null,{"$f":"formats!D6&\"-\"&formats!E6","v":"CY-Κύπρος"},"2023-05-22","Stable/Final","Completed","2024-09-02","2024-09-30","Stable/Final","In progress","2024-10-30","Stable/Final","Not started","N/A","N/A",null,"Not started","2024-10-30","Stable/Final","Not started","https://www.mof.gov.cy/mof/ce/theseas/theseas.nsf/techinfo_en/techinfo_en?OpenDocument",null,null,{"$f":"'AN - Air'!W9","v":7},{"$f":"'AN - Air'!X9","v":"2024-04-26"},"Evanthia Kamenou","ekamenou@customs.mof.gov.cy",35722601888]
[null,{"$f":"formats!D7&\"-\"&formats!E7","v":"CZ-Česká republika"},"2024-06-30","Stable/Final","Completed","2024-07-08","open","Indicative","Not started","2025-12-15","Indicative","Not started",null,null,null,null,"2025-12-15","Indicative","Not started","Dokumentace pro výrobce SW | Celní správa ČR (celnisprava.cz)",null,null,{"$f":"'AN - Air'!W10","v":"1.5"},{"$f":"'AN - Air'!X10","v":"2024-05-16"},"Lenka Kubíková","NPP.MASP@cs.mfcr.cz","420/261332631"]
[null,{"$f":"formats!D8&\"-\"&formats!E8","v":"DE-Deutschland"},"2024-06-30","Indicative","In progress","2025-09-01","2026-10-30","Indicative","In progress","2025-11-15","Indicative","In progress","N/A","N/A","Indicative","Not started","2025-11-15","Indicative","In progress","www.zoll.de","This project will be implemented as part of the major release of the national IT-System ATLAS (Release 10.2) as a new trans-European system. Note to CT: the duration of this phase depends on the number of traders who will participate. \nAs a rule, a test with the participants takes about 4 weeks.  As the number of possible traders is currently unknown, a notional end date has been set. \n\nNote on migration: Migration from phase 1 to phase 2 does not take place, since live operation is started with phase 2. Therefore the topic is not relevant. The technical specifications will be published from 30 June 2024. Initially only for the area of the supervising customs office, after completion of the other areas, further technical specifications will be published without delay. This is due to the iterative approach of the development.  ",null,{"$f":"'AN - Air'!W11","v":"7.00"},{"$f":"'AN - Air'!X11","v":"2024-03-20"},"Astrid Brieke","DIIB12.gzd@zoll.bund.de","0049(0)228/303-21097"]
[null,{"$f":"formats!D9&\"-\"&formats!E9","v":"DK-Danmark"},"2024-03-01","Stable/Final","In progress","2024-10-01","2024-12-31","Indicative","Not started","2025-01-31","Indicative","Not started","2025-01-31","not provided","Indicative","Not started","2025-01-31","Indicative","Not started","www.toldst.dk ",null,null,{"$f":"'AN - Air'!W12","v":1},{"$f":"'AN - Air'!X12","v":"2024-04-15"},"Tine Mercebach","EUTK-kontrolsystemer@toldst.DK","+45 7237 0754"]
[null,{"$f":"formats!D10&\"-\"&formats!E10","v":"EE-Eesti"},"2024-04-01","Stable/Final","In progress","N/A","N/A","Stable/Final","Not started","2024-06-09","Stable/Final","In progress","2024-06-08","2024-06-09","Stable/Final","Not started","2024-06-09","Stable/Final","Not started","https://www.emta.ee/ariklient/toll-\nkaubavahetus/tolliinfosusteemid/tolliinfosusteemide-kasutajatele",null,null,{"$f":"'AN - Air'!W13","v":17},{"$f":"'AN - Air'!X13","v":"2024-03-25"},"Karin Kruusa","CCI-NPM-EE@emta.ee",3726762957]
[null,{"$f":"formats!D11&\"-\"&formats!E11","v":"GR-Ελλάδα"},"2024-12-31","Indicative","Not started","2025-03-31","2025-06-30","Indicative","Not started","2025-06-30","Indicative","Not started",null,null,null,null,"2025-06-30","Indicative","Not started","https://www.aade.gr/customs","IMPLEMENT PHASE 1 AND 2 ON THE SAME TIME","derogation request",{"$f":"'AN - Air'!W14","v":6.1},{"$f":"'AN - Air'!X14","v":"2024-03-08"},"Ms Mpenaki","IMPORT_NPM@AADE.GR","0030 2106987446"]
[null,{"$f":"formats!D12&\"-\"&formats!E12","v":"ES-España"},"2022-03-14","Stable/Final","Completed","2022-07-04","tbc","Stable/Final","Completed","2022-09-30","Stable/Final","Completed","2022-10-03","2022-10-03","Stable/Final","Completed","2022-10-03","Stable/Final","Completed","https://sede.agenciatributaria.gob.es/Sede/aduanas/aduana-electronica/guias-tecnicas.html",null,null,{"$f":"'AN - Air'!W15","v":3.2},{"$f":"'AN - Air'!X15","v":"2024-03-08"}]
[null,{"$f":"formats!D13&\"-\"&formats!E13","v":"FI-Suomi/Finland"},"2024-12-31","Stable/Final","In progress","2025-06-30",null,"Stable/Final","Not started","2025-06-30","Stable/Final","Not started","2025-06-30","N/A","Stable/Final","Not started","2025-06-30","Stable/Final","Not started",null,"Traders will start to use CCI according to their own needs, hence no end data for migration. Derogation request has been sent.",null,{"$f":"'AN - Air'!W16","v":"13.00"},{"$f":"'AN - Air'!X16","v":"2024-03-22"},"Leila Lappalainen","leila.lappalainen@tulli.fi"]
[null,{"$f":"formats!D14&\"-\"&formats!E14","v":"FR-France"},"Under review","Indicative","In progress","Under review","Under review","Indicative","Not started","Under review","Indicative","Not started","Under review","Under review","Indicative","Not started","Under review","Indicative","Not started","https://www.douane.gouv.fr/services-aide/edi","Progress can be consulted via the following link: https://www.douane.gouv.fr/fiche/progress-report","Planning under review",{"$f":"'AN - Air'!W17","v":1.2},{"$f":"'AN - Air'!X17","v":"2024-02-07"},"Office COMINT 1 DGDDI","dg-comint1-rec@douane.finances.gouv.fr"]
[null,{"$f":"formats!D15&\"-\"&formats!E15","v":"HR-Hrvatska"},"2023-10-31","Stable/Final","Completed","2023-12-01","2024-06-20","Stable/Final","In progress","2024-06-30","Stable/Final","In progress",null,null,null,null,"2024-06-30","Stable/Final","Not started","https://carina.gov.hr ",null,null,{"$f":"'AN - Air'!W18","v":9.1999999999999993},{"$f":"'AN - Air'!X18","v":"2024-03-19"},"Melita Buljan","project.hrais2@carina.hr",38516211287]
[null,{"$f":"formats!D16&\"-\"&formats!E16","v":"HU-Magyarország"},"2023-09-15","Stable/Final","Completed","2025-01-02","2025-05-01","Indicative","Not started","2025-06-02","Indicative","Not started",null,null,null,null,"2025-06-02","Indicative","Not started","https://openkkk.nav.gov.hu/default.aspx?RootFolder=%2FDokumentumok%2FSpecifik%C3%A1ci%C3%B3k&FolderCTID=&View=%7B33F087E2-CEC9-4020-A148-2852161E114C%7D",null,"The replanning of the developments are in progress. Probably NA_HU will request derogation.",{"$f":"'AN - Air'!W19","v":11},{"$f":"'AN - Air'!X19","v":"2024-01-31"},"Kónya János","uvk_mp_masp@nav.gov.hu",3614704231]
[null,{"$f":"formats!D17&\"-\"&formats!E17","v":"IE-Éire/Ireland"},"2023-06-23","Stable/Final","Completed","2024-09-01","2025-02-23","Stable/Final","Not started","2025-02-24","Stable/Final","Not started","2025-02-24","2025-04-27","Stable/Final","Not started","2025-04-28","Stable/Final","Not started","www.revenue.ie","Revised trader specifications will issues end of Feb 2024",null,{"$f":"'AN - Air'!W20","v":15.2},{"$f":"'AN - Air'!X20","v":"2024-03-21"},"Donal Flannery","UCCITDev@revenue.ie"]
[null,{"$f":"formats!D18&\"-\"&formats!E18","v":"IT-Italia"},"2023-01-31","Indicative",null,"2024-03-01","2024-03-30","Indicative",null,"2024-07-01","Indicative",null,null,null,null,null,null,null,null,"https://www.adm.gov.it/portale/web/guest/home","Currently under internal review.",null,{"$f":"'AN - Air'!W21","v":1.01},{"$f":"'AN - Air'!X21","v":"2024-03-13"},"Pietro Ciucci","Pietro.Ciucci@adm.gov.it","+39 06 5024 3049"]
[null,{"$f":"formats!D19&\"-\"&formats!E19","v":"LT-Lietuva"},"31/10/2023","Stable/Final","Completed","18/03/2024","28/05/2024","Stable/Final","Not started","30/06/2024","Stable/Final","Not started","30/06/2024","30/06/2024","Stable/Final","Not started","30/06/2024","Stable/Final","Not started",null,"There will be a big bang for all economic operators. All communication should be additionally copied to tautvydas.banelis@lrmuitine.lt , giedre.jusaityte@lrmuitine.lt",null,{"$f":"'AN - Air'!W22","v":13.1},{"$f":"'AN - Air'!X22","v":"2024-03-08"},"Laimis Žlabys","UCC_CC_IMP_P1-LT@lrmuitine.lt",37052666088]
[null,{"$f":"formats!D20&\"-\"&formats!E20","v":"LU-Luxembourg"},"2023-10-01",null,null,"2024-02-01","2024-06-30",null,null,"2024-06-30",null,null,null,null,null,null,"2024-06-30",null,null,null,"NA-LU will already implement the P2 messages with the go-live of CCI P1 ",null,{"$f":"'AN - Air'!W23","v":1},{"$f":"'AN - Air'!X23","v":"2023-03-15"},"Robert Scheueren","it.npm@do.etat.lu","+352 621 306 782"]
[null,{"$f":"formats!D21&\"-\"&formats!E21","v":"LV-Latvija"},"N/A","Stable/Final","Not started","2023-06-01","2024-06-30","Indicative","In progress","2024-06-30","Indicative","Not started","N/A","N/A","Stable/Final","Not started","2024-07-01","Indicative","Not started","https://www.vid.gov.lv/lv/k%C4%81-lietot-emdas","CCI is a part of the new national import system (AIS). GUI is provided, API will be added on later stages if needed (no business case so far). ",null,{"$f":"'AN - Air'!W24","v":3},{"$f":"'AN - Air'!X24","v":"2024-03-08"},"Daina Vilcina","ecustoms@vid.gov.lv ",37124429976]
[null,{"$f":"formats!D22&\"-\"&formats!E22","v":"MT-Malta"},"N/A","Indicative","Not started","N/A","N/A","Indicative","Not started","2025-06-02","Indicative","Not started",null,null,null,null,"2025-06-02","Indicative","Not started","www.customs.gov.mt",null,null,{"$f":"'AN - Air'!W25","v":"3.02"},{"$f":"'AN - Air'!X25","v":"2024-03-20"},"Laura Cutajar","laura.cutajar@gov.mt",35623783085]
[null,{"$f":"formats!D23&\"-\"&formats!E23","v":"NL-Nederland"},"2024-11-01","Indicative","Not started","2025-01-01","2025-05-01","Indicative","Not started","2025-05-01","Indicative","Not started","2025-05-01","2025-11-01","indicative","Not started","2025-11-01","Indicative","Not started","https://www.nhdouane.nl/","Impact and planning are at the moment being analysed. An update will be send as soon as the planning is more clear.",null,{"$f":"'AN - Air'!W26","v":"3.00"},{"$f":"'AN - Air'!X26","v":"2024-04-05"},"National Helpdesk Dutch Customs","NHD.apeldoorn@douane.nl","(+31)(0)88 156 6655"]
[null,{"$f":"formats!D24&\"-\"&formats!E24","v":"PL-Polska"},"2022-07-30",null,null,"2023-06-01","2024-05-30",null,null,"2024-07-01",null,null,"2024-06-30","2024-07-01","Indicative",null,"2024-07-01",null,null,"https://puesc.gov.pl/uslugi/uslugi-sieciowe-informacje-i-specyfikacje  ",null,null,{"$f":"'AN - Air'!W27","v":"3.20"},{"$f":"'AN - Air'!X27","v":"2024-03-11"},"Małgorzata Przysucha ","malgorzata.przysucha@mf.gov.pl",48226294623]
[null,{"$f":"formats!D25&\"-\"&formats!E25","v":"PT-Portugal"},"2022-07-01","Stable/Final","Completed","2024-07-01","2024-09-30","Indicative","In progress","2024-10-28","Indicative","Not started",null,null,null,null,"2024-10-29","Indicative","Not started","https://info-aduaneiro.portaldasfinancas.gov.pt/pt/informacao_aduaneira/Pages/default.aspx","Derrogation request to second semester 2024",null,{"$f":"'AN - Air'!W28","v":7.2},{"$f":"'AN - Air'!X28","v":"2024-04-05"},"Carla Monteiro","Carla.Ferreira.Monteiro@at.gov.pt","00351 218 813 874"]
[null,{"$f":"formats!D26&\"-\"&formats!E26","v":"RO-România "},"2024-05-30","Indicative","In progress","N/A","N/A",null,"Not started","2024-06-30","Indicative","In progress","N/A","N/A",null,"Not started","2024-06-30","Indicative","In progress","www.customs.ro","Phase 1 and phase 2 will be implemented at the same time. Romania will do Mode 1, 2 and 3 compliance tests, without Mode 3+",null,{"$f":"'AN - Air'!W29","v":"3.00"},{"$f":"'AN - Air'!X29","v":"2024-03-25"},"Valeria Ureche","valeria.ureche@customs.ro",40720466777]
[null,{"$f":"formats!D27&\"-\"&formats!E27","v":"SE-Sverige"},"2024-06-01","Indicative","In progress","2025-01-02","N/A","Indicative","Not started","2025-06-02","Indicative","Not started","N/A","N/A",null,"Not started","2025-06-02","Indicative","Not started","https://www.tullverket.se/eng/business/scheduleforintroductionoftheunioncustomscode.4.422c8052175b1d827692251.html","No need for migration since we have no authorisations today.","We have asked for derogation until the 2 June 2025 and there is still a need for such a derogation.",{"$f":"'AN - Air'!W30","v":21},{"$f":"'AN - Air'!X30","v":"2024-03-08"},"Katarina Nordberg","projekt.import@tullverket.se"]
[null,{"$f":"formats!D28&\"-\"&formats!E28","v":"SI-Slovenija"},"2021-03-01","Stable/Final","Completed","2024-09-01","2024-10-01","Indicative","Not started","2024-11-29","Indicative","Not started","2024-12-02","2024-12-02","Indicative","Not started","2024-12-02","Indicative","Not started",null,null,null,{"$f":"'AN - Air'!W31","v":16.02},{"$f":"'AN - Air'!X31","v":"2024-03-20"},"Mr. Stojan Boštjančič","sd.fu@gov.si","00386 1/478 38 72"]
[null,{"$f":"formats!D29&\"-\"&formats!E29","v":"SK-Slovensko"},"2023-02-17","Stable/Final","Completed","2024-04-01","2024-12-31","Indicative","Not started","2025-01-01","Indicative","Not started","2024-12-31","2024-12-31","Indicative","Not started","2025-01-01","Indicative","Not started","Projekt eDovoz CCK - PFS (financnasprava.sk)",null,"Request for derogation sent on 2nd of October 2023 ",{"$f":"'AN - Air'!W32","v":1},{"$f":"'AN - Air'!X32","v":"2024-03-08"},"Lea Harmahová","lea.harmathova@financnasprava.sk","00421 2 48273232"]

{"sheet":"CCI-C2","index":15,"n_rows":32,"n_cols":27,"rows_kept":32,"cut":false,"hidden":false,"merged":[[2,24,2,26],[3,2,3,4],[3,5,3,8],[3,9,3,11],[3,12,3,15],[3,16,3,18],[2,2,2,4],[2,5,2,8],[2,9,2,11],[2,12,2,15],[2,16,2,18],[2,22,2,23]]}
[]
[]
[null,null,"Technical Specifications",null,null,"Conformance Testing",null,null,null,"Deployment",null,null,"Migration",null,null,null,"Operations",null,null,"Web","Notes","Derogations","Version information and issue date",null,"Project Manager Details"]
[null,null,"The date of publication of the technical specifications for the external communication on the electronic system",null,null,"The period of conformance testing with economic operators",null,null,null,"The date of deployment of the electronic system",null,null,"Where applicable, the period during which the economic operators are allowed to carry out migration",null,null,null,"Start of Operations for all economic operators (end of transition period)",null,null,"Web address of specifications for EO's",null,"If a derogation under Art 6(4) UCC was granted, please indicate the activities carried out and the state of development in order to reach the derogation deadline."]
[null,{"$f":"formats!A11","v":"UCC Centralised Clearance for Import (Phase 2)"},"Date","Status","Progress","Start Date","End Date","Status","Progress","Date","Status","Progress","Start Date","End Date","Status","Progress","Date","Status","Progress","Web address","Note/Comment","Note/Comment","Version Number","Issue Date","Project Mgr Name","e-Mail","Phone"]
[null,{"$f":"formats!D3&\"-\"&formats!E3","v":"AT-Österreich"},"open","Indicative",null,"2025-06-16","2025-10-17","Indicative",null,"2025-06-02","Indicative",null,"2025-11-01","2025-12-31","Indicative",null,"2025-06-02","Indicative",null,null,"tender completed, software provider available","derogation decission is outstanding",{"$f":"'AN - Air'!W6","v":13},{"$f":"'AN - Air'!X6","v":"2024-03-18"},"Manfred Winterleitner ","manfred.winterleitner@bmf.gv.at","0043-1-51433-504157"]
[null,{"$f":"formats!D4&\"-\"&formats!E4","v":"BE-Belgique/België"},"N/A","Indicative","Not started","N/A","N/A","Indicative","Not started","2025-06-02","Indicative",null,null,null,null,null,"2025-06-30",null,null,"https://financien.belgium.be/nl/douane_accijnzen/ondernemingen/applicaties-da/technische-documentatie-0",null,null,{"$f":"'AN - Air'!W7","v":"4.00"},{"$f":"'AN - Air'!X7","v":"2024-02-20"},"Shari De Saedeleer\nValery Pellichero (Service manager)","shari.desaedeleer@minfin.fed.be\nvalery1.pellichero@minfin.fed.be"]
[null,{"$f":"formats!D5&\"-\"&formats!E5","v":"BG-България"},"2024-10-07","Indicative","In progress","2025-02-03","2025-02-28","Indicative","Not started","2025-04-20","Indicative","Not started",null,null,null,null,"2025-04-20","Indicative","Not started","https://ep.customs.bg/eportal/",null,null,{"$f":"'AN - Air'!W8","v":"10.01"},{"$f":"'AN - Air'!X8","v":"2024-03-01"},"Gabriela Georgieva","masp_bg@customs.bg","00359 2 9859 4036"]
[null,{"$f":"formats!D6&\"-\"&formats!E6","v":"CY-Κύπρος"},"2024-11-30","Indicative","Completed","2025-04-28","2025-05-23","Indicative","Not started","2025-06-02","Indicative","Not started","N/A","N/A",null,"Not started","2025-06-02","Indicative","Not started","https://www.mof.gov.cy/mof/ce/theseas/theseas.nsf/techinfo_en/techinfo_en?OpenDocument",null,null,{"$f":"'AN - Air'!W9","v":7},{"$f":"'AN - Air'!X9","v":"2024-04-26"},"Evanthia Kamenou","ekamenou@customs.mof.gov.cy",35722601888]
[null,{"$f":"formats!D7&\"-\"&formats!E7","v":"CZ-Česká republika"},"2024-06-30","Stable/Final","Completed","2024-07-08","open","Indicative","Not started","2025-12-15","Indicative","Not started",null,null,null,null,"2025-12-15","Indicative","Not started",null,null,null,{"$f":"'AN - Air'!W10","v":"1.5"},{"$f":"'AN - Air'!X10","v":"2024-05-16"},"Lenka Kubíková","NPP.MASP@cs.mfcr.cz","420/261332631"]
[null,{"$f":"formats!D8&\"-\"&formats!E8","v":"DE-Deutschland"},"2024-06-30","Indicative","In progress","2025-09-01","2026-10-30","Indicative","In progress","2025-11-15","Indicative","In progress","N/A","N/A",null,"Not started","2025-11-15","Indicative","In progress","www.zoll.de","This project will be implemented as part of the major release of the national IT-System ATLAS (Release 10.2) as a new trans-European system. Note to CT: the duration of this phase depends on the number of traders who will participate. \nAs a rule, a test with the participants takes about 4 weeks. As the number of possible traders is currently unknown, a notional end date has been set. The technical specifications will be published from 30 June 2024. Initially only for the area of the supervising customs office, after completion of the other areas, further technical specifications will be published without delay. This is due to the iterative approach of the development. \n\nNote on migration: Migration from phase 1 to phase 2 does not take place, since live operation is started with phase 2. Therefore the topic is not relevant",null,{"$f":"'AN - Air'!W11","v":"7.00"},{"$f":"'AN - Air'!X11","v":"2024-03-20"},"Astrid Brieke","DIIB12.gzd@zoll.bund.de","0049(0)228/303-21097"]
[null,{"$f":"formats!D9&\"-\"&formats!E9","v":"DK-Danmark"},"2024-03-01","Stable/Final","In progress","2025-01-01","2025-04-01","Indicative","Not started","2025-06-02","Indicative","Not started","2025-06-02","not provided","Indicative","Not started","2025-06-02","Indicative","Not started","www.toldst.dk ",null,null,{"$f":"'AN - Air'!W12","v":1},{"$f":"'AN - Air'!X12","v":"2024-04-15"},"Tine Mercebach","EUTK-kontrolsystemer@toldst.DK","+45 7237 0754"]
[null,{"$f":"formats!D10&\"-\"&formats!E10","v":"EE-Eesti"},"2024-11-30","Indicative","In progress","2025-01-15","2025-05-16","Indicative","Not started","2025-06-02","Indicative","Not started","2025-06-01","2025-06-02","Indicative","Not started","2025-06-02","Indicative","Not started","https://www.emta.ee/ariklient/toll-\nkaubavahetus/tolliinfosusteemid/tolliinfosusteemide-kasutajatele",null,null,{"$f":"'AN - Air'!W13","v":17},{"$f":"'AN - Air'!X13","v":"2024-03-25"},"Karin Kruusa","CCI-NPM-EE@emta.ee",3726762957]
[null,{"$f":"formats!D11&\"-\"&formats!E11","v":"GR-Ελλάδα"},"2024-12-31","Indicative","Not started","2025-03-31","2025-06-30","Indicative","Not started","2025-06-30","Indicative","Not started",null,null,null,null,"2025-06-30","Indicative","Not started","https://www.aade.gr/customs","IMPLEMENT PHASE 1 AND 2 ON THE SAME TIME",null,{"$f":"'AN - Air'!W14","v":6.1},{"$f":"'AN - Air'!X14","v":"2024-03-08"},"Ms Mpenaki","IMPORT_NPM@AADE.GR","0030 2106987446"]
[null,{"$f":"formats!D12&\"-\"&formats!E12","v":"ES-España"},"2024-06-02","Indicative","Not started","2025-03-03","2025-06-02","Indicative","Not started","2025-06-02","Indicative","Not started","2025-06-02","2025-06-02","Indicative","Not started","2025-06-02","Indicative","Not started","https://sede.agenciatributaria.gob.es/Sede/aduanas/aduana-electronica/guias-tecnicas.html",null,null,{"$f":"'AN - Air'!W15","v":3.2},{"$f":"'AN - Air'!X15","v":"2024-03-08"}]
[null,{"$f":"formats!D13&\"-\"&formats!E13","v":"FI-Suomi/Finland"},"2024-12-31","Stable/Final","In progress","2025-06-30",null,"Stable/Final","Not started","2025-06-30","Stable/Final","Not started","2025-06-30","N/A","Stable/Final","Not started","2025-06-30","Stable/Final","Not started",null,"Traders will start to use CCI according to their own needs, hence no end data for migration. Derogation request has been sent.",null,{"$f":"'AN - Air'!W16","v":"13.00"},{"$f":"'AN - Air'!X16","v":"2024-03-22"},"Leila Lappalainen","leila.lappalainen@tulli.fi"]
[null,{"$f":"formats!D14&\"-\"&formats!E14","v":"FR-France"},"Under review","Indicative","In progress","Under review","Under review","Indicative","Not started","Under review","Indicative","Not started","Under review","Under review","Indicative","Not started","Under review","Indicative","Not started","https://www.douane.gouv.fr/services-aide/edi","Progress can be consulted via the following link: https://www.douane.gouv.fr/fiche/progress-report","Planning under review",{"$f":"'AN - Air'!W17","v":1.2},{"$f":"'AN - Air'!X17","v":"2024-02-07"},"Office COMINT 1 DGDDI","dg-comint1-rec@douane.finances.gouv.fr"]
[null,{"$f":"formats!D15&\"-\"&formats!E15","v":"HR-Hrvatska"},"2024-09-30","Stable/Final","Not started","2024-11-15","2025-05-30","Stable/Final","Not started","2025-06-02","Stable/Final","Not started",null,null,null,null,"2025-06-02","Stable/Final","Not started","https://carina.gov.hr ",null,null,{"$f":"'AN - Air'!W18","v":9.1999999999999993},{"$f":"'AN - Air'!X18","v":"2024-03-19"},"Melita Buljan","project.hrais2@carina.hr",38516211288]
[null,{"$f":"formats!D16&\"-\"&formats!E16","v":"HU-Magyarország"},"2024-10-15","Indicative","Not started","2025-01-02","2025-05-01","Indicative","Not started","2025-06-02","Indicative","Not started",null,null,null,null,"2025-06-02","Indicative","Not started","https://openkkk.nav.gov.hu/default.aspx?RootFolder=%2FDokumentumok%2FSpecifik%C3%A1ci%C3%B3k&FolderCTID=&View=%7B33F087E2-CEC9-4020-A148-2852161E114C%7D",null,"The replanning of the developments are in progress. Probably NA_HU will request derogation.",{"$f":"'AN - Air'!W19","v":11},{"$f":"'AN - Air'!X19","v":"2024-01-31"},"Kónya János","uvk_mp_masp@nav.gov.hu",3614704231]
[null,{"$f":"formats!D17&\"-\"&formats!E17","v":"IE-Éire/Ireland"},"2023-06-23","Stable/Final","Completed","2024-09-01","2025-02-23","Stable/Final","Not started","2025-02-24","Stable/Final","Not started","2025-02-24","2025-04-27","Stable/Final","Not started","2025-04-28","Stable/Final","Not started","www.revenue.ie","Revised trader specifications will issues end of Feb 2024",null,{"$f":"'AN - Air'!W20","v":15.2},{"$f":"'AN - Air'!X20","v":"2024-03-21"},"Donal Flannery","UCCITDev@revenue.ie"]
[null,{"$f":"formats!D18&\"-\"&formats!E18","v":"IT-Italia"},"TBD",null,null,"TBD","TBD",null,null,"2025-06-02","Indicative",null,null,null,null,null,null,null,null,"https://www.adm.gov.it/portale/web/guest/home",null,null,{"$f":"'AN - Air'!W21","v":1.01},{"$f":"'AN - Air'!X21","v":"2024-03-13"},"Pietro Ciucci","Pietro.Ciucci@adm.gov.it","+39 06 5024 3049"]
[null,{"$f":"formats!D19&\"-\"&formats!E19","v":"LT-Lietuva"},"17/06/2024","Indicative","In progress","01/10/2024","02/06/2025","Indicative","Not started","02/06/2025","Indicative","Not started","02/06/2025","02/06/2025","Indicative","Not started","02/06/2025","Indicative","Not started",null,"There will be a big bang for all economic operators. All communication should be additionally copied to tautvydas.banelis@lrmuitine.lt , giedre.jusaityte@lrmuitine.lt",null,{"$f":"'AN - Air'!W22","v":13.1},{"$f":"'AN - Air'!X22","v":"2024-03-08"},"Laimis Žlabys","UCC_CC_IMP_P2-LT@lrmuitine.lt",37052666088]
[null,{"$f":"formats!D20&\"-\"&formats!E20","v":"LU-Luxembourg"},"2024-04-01",null,null,"2025-01-01","2025-05-01",null,null,"2025-06-01",null,null,null,null,null,null,"2025-06-01","Indicative",null,null,null,null,{"$f":"'AN - Air'!W23","v":1},{"$f":"'AN - Air'!X23","v":"2023-03-15"},"Robert Scheueren","it.npm@do.etat.lu","+352 621 306 782"]
[null,{"$f":"formats!D21&\"-\"&formats!E21","v":"LV-Latvija"},"2024-09-01","Indicative","Not started","2024-10-10","2025-03-24","Indicative","Not started","2025-03-25","Indicative","Not started","N/A","N/A","Stable/Final","Not started","2025-03-25","Indicative","Not started","https://www.vid.gov.lv/lv/k%C4%81-lietot-emdas",null,null,{"$f":"'AN - Air'!W24","v":3},{"$f":"'AN - Air'!X24","v":"2024-03-08"},"Daina Vilcina","ecustoms@vid.gov.lv ",37124429976]
[null,{"$f":"formats!D22&\"-\"&formats!E22","v":"MT-Malta"},"N/A","Indicative","Not started","N/A","N/A","Indicative","Not started","2025-06-02","Indicative","Not started",null,null,null,null,"2025-06-02","Indicative","Not started","www.customs.gov.mt",null,"Please note that Malta has requested a derogation (on 22 November 2023) thus all dates are tentative. The development work is currently in progress but is not yet completed. The current validations have been scripted, but the validations for the CCI and Import Update still need to be done by the supplier. Malta has been notified by the supplier that he has prepared the common domain messages, but the CT is still pending due to pending work on the validations.",{"$f":"'AN - Air'!W25","v":"3.02"},{"$f":"'AN - Air'!X25","v":"2024-03-20"},"Laura Cutajar","laura.cutajar@gov.mt",35623783085]
[null,{"$f":"formats!D23&\"-\"&formats!E23","v":"NL-Nederland"},"2024-11-01","Indicative","Not started","2025-01-01","2025-05-01","Indicative","Not started","2025-05-01","Indicative","Not started","2025-05-01","2025-11-01","indicative","Not started","2025-11-01","Indicative","Not started","https://www.nhdouane.nl/","Impact and planning are at the moment being analysed. An update will be send as soon as the planning is more clear.",null,{"$f":"'AN - Air'!W26","v":"3.00"},{"$f":"'AN - Air'!X26","v":"2024-04-05"},"National Helpdesk Dutch Customs","NHD.apeldoorn@douane.nl","(+31)(0)88 156 6655"]
[null,{"$f":"formats!D24&\"-\"&formats!E24","v":"PL-Polska"},"2024-10-30","Indicative",null,"2025-03-01","2025-06-30","Indicative",null,"2025-09-15","Indicative",null,null,null,null,null,"2025-09-15","Indicative",null,null,null,null,{"$f":"'AN - Air'!W27","v":"3.20"},{"$f":"'AN - Air'!X27","v":"2024-03-11"},"Małgorzata Przysucha ","malgorzata.przysucha@mf.gov.pl",48226294623]
[null,{"$f":"formats!D25&\"-\"&formats!E25","v":"PT-Portugal"},"2024-06-01","Indicative","Not started","2024-12-01","2025-04-15","Indicative","Not started","2025-05-31","Indicative","Not started",null,null,null,null,"2025-06-02","Indicative","Not started","https://info-aduaneiro.portaldasfinancas.gov.pt/pt/informacao_aduaneira/Pages/default.aspx",null,null,{"$f":"'AN - Air'!W28","v":7.2},{"$f":"'AN - Air'!X28","v":"2024-04-05"},"Carla Monteiro","Carla.Ferreira.Monteiro@at.gov.pt","00351 218 813 874"]
[null,{"$f":"formats!D26&\"-\"&formats!E26","v":"RO-România "},"2024-05-30","Indicative","In progress","N/A","N/A",null,"Not started","2024-06-30","Indicative","In progress","N/A","N/A",null,"Not started","2024-06-30","Indicative","In progress","www.customs.ro","Phase 1 and phase 2 will be implemented at the same time. Romania will do Mode 1, 2 and 3 compliance tests, without Mode 3+",null,{"$f":"'AN - Air'!W29","v":"3.00"},{"$f":"'AN - Air'!X29","v":"2024-03-25"},"Valeria Ureche","valeria.ureche@customs.ro",40720466777]
[null,{"$f":"formats!D27&\"-\"&formats!E27","v":"SE-Sverige"},"2024-06-01","Indicative","In progress","2025-01-02","N/A","Indicative","Not started","2025-06-02","Indicative","Not started","N/A","N/A",null,"Not started","2025-06-02","Indicative","Not started","https://www.tullverket.se/eng/business/scheduleforintroductionoftheunioncustomscode.4.422c8052175b1d827692251.html","No need for migration since we have no authorisations today",null,{"$f":"'AN - Air'!W30","v":21},{"$f":"'AN - Air'!X30","v":"2024-03-08"},"Katarina Nordberg","projekt.import@tullverket.se"]
[null,{"$f":"formats!D28&\"-\"&formats!E28","v":"SI-Slovenija"},"2023-10-01","Stable/Final","Completed","2025-02-01","2025-05-20","Indicative","Not started","2025-06-01","Indicative","Not started","2025-06-01","2025-06-01","Indicative","Not started","2025-06-02","Indicative","Not started",null,null,null,{"$f":"'AN - Air'!W31","v":16.02},{"$f":"'AN - Air'!X31","v":"2024-03-20"},"Mr. Stojan Boštjančič","sd.fu@gov.si","00386 1/478 38 72"]
[null,{"$f":"formats!D29&\"-\"&formats!E29","v":"SK-Slovensko"},"2025-01-01","Indicative","In progress","2025-02-01","2025-05-31","Indicative","Not started","2025-06-02","Indicative","Not started",null,null,null,null,"2025-06-02","Indicative","Not started",null,null,null,{"$f":"'AN - Air'!W32","v":1},{"$f":"'AN - Air'!X32","v":"2024-03-08"},"Lea Harmahová","lea.harmathova@financnasprava.sk","00421 2 48273232"]

{"sheet":"NCTS-P5","index":16,"n_rows":86,"n_cols":28,"rows_kept":86,"cut":false,"hidden":false,"merged":[[77,8,79,8],[77,12,79,12],[77,11,79,11],[77,3,79,3],[77,5,79,5],[77,4,79,4],[77,16,79,16],[77,15,79,15],[77,19,79,19],[77,18,79,18],[77,9,79,9],[5,27,7,27],[5,26,7,26],[5,25,7,25],[5,24,7,24],[5,23,7,23],[8,23,10,23],[8,24,10,24],[8,25,10,25],[8,26,10,26],[8,27,10,27],[11,27,13,27],[11,26,13,26],[11,25,13,25],[11,24,13,24],[11,23,13,23],[14,23,16,23],[14,24,16,24],[14,25,16,25],[14,26,16,26],[14,27,16,27],[17,27,19,27],[17,26,19,26],[17,25,19,25],[17,24,19,24],[17,23,19,23],[23,26,25,26],[20,26,22,26],[26,27,28,27],[23,27,25,27],[20,27,22,27],[23,25,25,25],[23,24,25,24],[23,23,25,23],[20,23,22,23],[20,24,22,24],[20,25,22,25],[29,27,31,27],[29,26,31,26],[29,25,31,25],[26,23,28,23],[26,24,28,24],[26,25,28,25],[26,26,28,26],[35,25,37,25],[35,26,37,26],[35,27,37,27],[32,27,34,27],[32,26,34,26],[32,25,34,25],[32,23,34,23],[32,24,34,24],[29,24,31,24],[29,23,31,23],[41,25,43,25],[41,26,43,26],[41,27,43,27],[38,27,40,27],[38,26,40,26],[38,25,40,25],[47,27,49,27],[47,26,49,26],[47,25,49,25],[44,25,46,25],[44,26,46,26],[44,27,46,27],[53,26,55,26],[53,25,55,25],[50,25,52,25],[50,26,52,26],[50,27,52,27],[59,27,61,27],[59,26,61,26],[59,25,61,25],[56,25,58,25],[56,26,58,26],[56,27,58,27],[41,24,43,24],[38,24,40,24],[38,23,40,23],[35,24,37,24],[35,23,37,23],[41,23,43,23],[62,27,64,27],[62,26,64,26],[62,25,64,25],[62,24,64,24],[62,23,64,23],[50,24,52,24],[50,23,52,23],[47,24,49,24],[47,23,49,23],[44,24,46,24],[44,23,46,23],[59,24,61,24],[59,23,61,23],[56,24,58,24],[56,23,58,23],[53,24,55,24],[53,23,55,23],[53,27,55,27],[65,27,67,27],[65,26,67,26],[65,25,67,25],[65,24,67,24],[65,23,67,23],[68,23,70,23],[68,24,70,24],[68,25,70,25],[68,26,70,26],[68,27,70,27],[71,27,73,27],[71,26,73,26],[71,25,73,25],[71,24,73,24],[71,23,73,23],[74,23,76,23],[74,24,76,24],[74,25,76,25],[74,26,76,26],[74,27,76,27],[77,27,79,27],[77,26,79,26],[77,25,79,25],[77,24,79,24],[77,23,79,23],[80,16,82,16],[80,18,82,18],[80,19,82,19],[83,27,85,27],[83,26,85,26],[83,25,85,25],[83,24,85,24],[83,23,85,23],[80,23,82,23],[80,24,82,24],[80,25,82,25],[80,26,82,26],[80,27,82,27],[83,8,85,8],[83,9,85,9],[83,11,85,11],[83,12,85,12],[83,15,85,15],[83,16,85,16],[83,18,85,18],[83,19,85,19],[80,8,82,8],[80,9,82,9],[80,11,82,11],[80,12,82,12],[80,15,82,15],[71,16,73,16],[71,18,73,18],[71,19,73,19],[74,8,76,8],[74,9,76,9],[74,11,76,11],[74,12,76,12],[74,18,76,18],[74,19,76,19],[74,15,76,15],[74,16,76,16],[71,8,73,8],[71,9,73,9],[71,11,73,11],[71,12,73,12],[71,15,73,15],[68,16,70,16],[68,18,70,18],[68,19,70,19],[68,11,70,11],[68,12,70,12],[65,8,67,8],[65,9,67,9],[65,11,67,11],[65,12,67,12],[68,15,70,15],[68,8,70,8],[68,9,70,9],[62,19,64,19],[62,15,64,15],[62,16,64,16],[65,15,67,15],[65,16,67,16],[65,18,67,18],[65,19,67,19],[62,8,64,8],[62,9,64,9],[62,11,64,11],[62,12,64,12],[62,18,64,18],[56,15,58,15],[56,16,58,16],[56,11,58,11],[56,12,58,12],[59,11,61,11],[59,12,61,12],[56,8,58,8],[56,9,58,9],[59,8,61,8],[59,9,61,9],[59,16,61,16],[59,15,61,15],[53,11,55,11],[50,16,52,16],[50,18,52,18],[50,19,52,19],[53,8,55,8],[53,9,55,9],[53,12,55,12],[53,15,55,15],[53,16,55,16],[50,8,52,8],[50,9,52,9],[50,11,52,11],[50,12,52,12],[50,15,52,15],[47,8,49,8],[47,9,49,9],[47,11,49,11],[47,12,49,12],[47,15,49,15],[47,16,49,16],[47,18,49,18],[47,19,49,19],[44,8,46,8],[44,9,46,9],[44,11,46,11],[44,12,46,12],[44,15,46,15],[32,8,34,8],[32,9,34,9],[32,11,34,11],[32,12,34,12],[32,15,34,15],[35,11,37,11],[44,16,46,16],[44,18,46,18],[44,19,46,19],[38,8,40,8],[38,9,40,9],[38,11,40,11],[38,12,40,12],[38,15,40,15],[38,16,40,16],[35,15,37,15],[35,16,37,16],[35,18,37,18],[35,12,37,12],[35,8,37,8],[35,9,37,9],[41,11,43,11],[41,12,43,12],[41,15,43,15],[29,8,31,8],[29,9,31,9],[29,11,31,11],[29,12,31,12],[29,15,31,15],[29,16,31,16],[29,18,31,18],[29,19,31,19],[23,12,25,12],[23,11,25,11],[23,15,25,15],[23,16,25,16],[23,18,25,18],[26,18,28,18],[26,19,28,19],[26,11,28,11],[26,12,28,12],[26,15,28,15],[26,16,28,16],[41,16,43,16],[41,18,43,18],[41,19,43,19],[38,18,40,18],[38,19,40,19],[20,9,22,9],[20,19,22,19],[20,18,22,18],[20,16,22,16],[20,15,22,15],[23,19,25,19],[32,16,34,16],[32,18,34,18],[32,19,34,19],[35,19,37,19],[20,8,22,8],[23,8,25,8],[23,9,25,9],[26,8,28,8],[26,9,28,9],[8,12,10,12],[8,11,10,11],[11,12,13,12],[11,11,13,11],[8,8,10,8],[20,12,22,12],[20,11,22,11],[17,12,19,12],[17,11,19,11],[14,12,16,12],[14,11,16,11],[17,9,19,9],[17,8,19,8],[14,9,16,9],[14,8,16,8],[11,8,13,8],[17,19,19,19],[17,18,19,18],[17,16,19,16],[17,15,19,15],[14,19,16,19],[14,18,16,18],[14,16,16,16],[14,15,16,15],[8,19,10,19],[8,18,10,18],[8,16,10,16],[8,15,10,15],[5,19,7,19],[5,18,7,18],[5,16,7,16],[5,15,7,15],[8,9,10,9],[11,19,13,19],[11,18,13,18],[11,16,13,16],[11,15,13,15],[11,9,13,9],[62,5,64,5],[62,4,64,4],[62,3,64,3],[59,5,61,5],[59,4,61,4],[71,5,73,5],[71,4,73,4],[71,3,73,3],[68,5,70,5],[50,5,52,5],[50,4,52,4],[50,3,52,3],[47,5,49,5],[47,4,49,4],[47,3,49,3],[59,3,61,3],[56,5,58,5],[56,4,58,4],[53,5,55,5],[53,4,55,4],[53,3,55,3],[83,5,85,5],[83,4,85,4],[83,3,85,3],[80,5,82,5],[80,4,82,4],[80,3,82,3],[68,4,70,4],[68,3,70,3],[65,5,67,5],[65,4,67,4],[65,3,67,3],[74,5,76,5],[74,4,76,4],[74,3,76,3],[14,4,16,4],[14,3,16,3],[44,3,46,3],[32,5,34,5],[32,4,34,4],[32,3,34,3],[35,5,37,5],[35,4,37,4],[35,3,37,3],[29,4,31,4],[29,3,31,3],[29,5,31,5],[26,5,28,5],[26,4,28,4],[26,3,28,3],[23,5,25,5],[17,5,19,5],[17,4,19,4],[17,3,19,3],[65,1,67,1],[62,1,64,1],[59,1,61,1],[56,1,58,1],[53,1,55,1],[5,1,7,1],[83,1,85,1],[20,1,22,1],[17,1,19,1],[14,1,16,1],[11,1,13,1],[8,1,10,1],[35,1,37,1],[32,1,34,1],[29,1,31,1],[80,1,82,1],[77,1,79,1],[74,1,76,1],[71,1,73,1],[68,1,70,1],[26,1,28,1],[23,1,25,1],[50,1,52,1],[47,1,49,1],[2,25,2,27],[2,23,2,24],[2,17,2,19],[3,3,3,5],[3,6,3,9],[3,10,3,12],[3,13,3,16],[3,17,3,19],[2,3,2,5],[2,6,2,9],[2,10,2,12],[2,13,2,16],[44,1,46,1],[41,1,43,1],[38,1,40,1],[41,5,43,5],[41,4,43,4],[41,3,43,3],[38,5,40,5],[38,4,40,4],[38,3,40,3],[44,5,46,5],[44,4,46,4],[5,3,7,3],[5,5,7,5],[5,4,7,4],[5,12,7,12],[5,11,7,11],[5,9,7,9],[5,8,7,8],[59,19,61,19],[59,18,61,18],[41,8,43,8],[41,9,43,9],[56,3,58,3],[8,5,10,5],[8,4,10,4],[8,3,10,3],[23,4,25,4],[23,3,25,3],[20,5,22,5],[20,4,22,4],[11,5,13,5],[11,4,13,4],[11,3,13,3],[20,3,22,3],[14,5,16,5]]}
[]
[]
[null,null,null,"Technical Specifications",null,null,"Conformance Testing",null,null,null,"Deployment",null,null,"Migration",null,null,null,"Operations",null,null,"Web","Notes","Derogations","Version information and issue date",null,"Project Manager Details"]
[null,null,null,"The date of publication of the technical specifications for the external communication on the electronic system",null,null,"The period of conformance testing with economic operators",null,null,null,"The date of deployment of the electronic system",null,null,"Where applicable, the period during which the economic operators are allowed to carry out migration",null,null,null,"Start of Operations for all economic operators (end of transition period)",null,null,"Web address of specifications for EO's",null,"If a derogation under Art 6(4) UCC was granted, please indicate the activities carried out and the state of development in order to reach the derogation deadline."]
[null,{"$f":"formats!A12","v":"UCC NCTS upgrade (Phase 5)"},null,"Date","Status","Progress","Start Date","End Date","Status","Progress","Date","Status","Progress","Start Date","End Date","Status","Progress","Date","Status","Progress","Web address","Note/Comment","Note/Comment","Version Number","Issue Date","Project Mgr Name","e-Mail","Phone"]
[null,{"$f":"formats!D3&\"-\"&formats!E3","v":"AT-Österreich"},"Single deployment","2023-12-01","Indicative","In progress","2024-07-01","2024-08-30","Indicative","Not started","2024-09-02","Indicative","Not started","2024-09-02","2024-12-01","Indicative","Not started","2024-09-02","Indicative","Not started","https://www.bmf.gv.at/themen/zoll/uzk-it-anwendungen/ncts-5-new-computerised-transit-system.html","tender completed, software provider available","derogation decission is outstanding",{"$f":"'AN - Air'!W6","v":13},{"$f":"'AN - Air'!X6","v":"2024-03-18"},"Peter Frühwirt","peter.fruehwirt@bmf.gv.at","0043-1-51433-504159"]
[null,null,"Step 1"]
[null,null,"Step 2"]
[null,{"$f":"formats!D4&\"-\"&formats!E4","v":"BE-Belgique/België"},"Single deployment","2021-09-01","Stable/Final",null,"2023-02-16","2024-04-30","Stable/Final","In progress","2024-06-10","Indicative",null,null,null,null,null,"2024-06-10","Stable/Final",null,"https://financien.belgium.be/nl/douane_accijnzen/ondernemingen/applicaties-da/technische-documentatie-0",null,null,{"$f":"'AN - Air'!W7","v":"4.00"},{"$f":"'AN - Air'!X7","v":"2024-02-20"},"Lincey Jacobs\nGeert Wilderjans (Service manager)","lincey.jacobs@minfin.fed.be\ngeert.wilderjans@temp.minfin.be"]
[null,null,"Step 1","2021-09-01"]
[null,null,"Step 2","2021-09-01"]
[null,{"$f":"formats!D5&\"-\"&formats!E5","v":"BG-България"},"Single deployment","2022-08-31","Stable/Final","Completed","2023-07-24","2023-08-11","Stable/Final","Completed","2023-08-28","Stable/Final","Completed",null,null,null,null,"2023-08-28","Stable/Final","Completed","https://ep.customs.bg/eportal/",null,null,{"$f":"'AN - Air'!W8","v":"10.01"},{"$f":"'AN - Air'!X8","v":"2024-03-01"},"Darina Karadencheva","MASP_BG@customs.bg","0035952689452"]
[null,null,"Step 1"]
[null,null,"Step 2"]
[null,{"$f":"formats!D6&\"-\"&formats!E6","v":"CY-Κύπρος"},"Single deployment",null,null,"Completed",null,null,"Stable/Final","In progress",null,"Stable/Final","In progress","N/A","N/A",null,"Not started",null,"Stable/Final","In progress",null,null,null,{"$f":"'AN - Air'!W9","v":7},{"$f":"'AN - Air'!X9","v":"2024-04-26"},"Theofanis Neocleous","tneocleous@customs.mof.gov.cy",35722601717]
[null,null,"Step 1",null,null,null,"2024-03-18","2024-04-19",null,null,"2024-04-24",null,null,"N/A","N/A",null,null,"2024-04-24"]
[null,null,"Step 2",null,null,null,"2024-11-01","2024-11-29",null,null,"2024-12-02",null,null,"N/A","N/A",null,null,"2024-12-02"]
[null,{"$f":"formats!D7&\"-\"&formats!E7","v":"CZ-Česká republika"},"Single deployment","2021-10-21","Stable/Final","Completed","2022-03-01","2023-09-30","Stable/Final","Completed","2023-10-01","Stable/Final","Completed",null,null,null,null,"2023-10-01","Stable/Final","Completed","https://www.celnisprava.cz/cz/clo/e-customs/ncts/Stranky/dokumentace-pro-vyrobce-SW-UCC-NCTS.aspx","In CZ will be \"big bang\". All economic operators will start at the same date. ",null,{"$f":"'AN - Air'!W10","v":"1.5"},{"$f":"'AN - Air'!X10","v":"2024-05-16"},"František Šíma","NPP.MASP@cs.mfcr.cz",420261332633]
[null,null,"Step 1"]
[null,null,"Step 2"]
[null,{"$f":"formats!D8&\"-\"&formats!E8","v":"DE-Deutschland"},"Single deployment","2020-10-09","Stable/Final","Completed","2021-04-19","2023-10-29","Stable/Final","Completed","2021-03-06","Stable/Final","Completed","2021-04-19","2023-11-30","Stable/Final","Completed","2023-10-29","Stable/Final","Completed","www.zoll.de","This component is implemented in the major release of the national IT-System ATLAS (Release 9.1)\nIT Service Providers and Economic Operators must ensure that the conformance test is planned in time to be connected to the new system by the end date of the soft migration on 30.11.2023 at the latest.",null,{"$f":"'AN - Air'!W11","v":"7.00"},{"$f":"'AN - Air'!X11","v":"2024-03-20"},"Michael Schröter","DIIB12.gzd@zoll.bund.de","0049(0)228/303-21096"]
[null,null,"Step 1"]
[null,null,"Step 2",null,null,null,null,null,null,null,null,null,null,null,null,null,null,null,null,null,null,"The functionality \"Interface with NCTS\" is already covered by the national IT-systems ATLAS (Release 9.1) and AES Release 3.0, but will be activated end 3rd Quarter 2024."]
[null,{"$f":"formats!D9&\"-\"&formats!E9","v":"DK-Danmark"},"Single deployment","2022-08-01","Stable/Final",null,"2023-03-01","2023-05-22","Stable/Final","Completed","2023-07-29","Stable/Final","Completed","2023-07-29","2024-05-01","Stable/Final","In progress","2024-05-01","Indicative","In progress","www.toldst.dk ",null,null,{"$f":"'AN - Air'!W12","v":1},{"$f":"'AN - Air'!X12","v":"2024-04-15"},"Niels Legaard","Niels.Legaard2@Ufst.dk","+45 7237 6810"]
[null,null,"Step 1"]
[null,null,"Step 2"]
[null,{"$f":"formats!D10&\"-\"&formats!E10","v":"EE-Eesti"},"Single deployment","2022-05-31","Stable/Final","Completed","2023-03-01","2023-09-01","Stable/Final","Completed","2023-09-30","Stable/Final","Completed","2023-09-30","2023-09-30","Stable/Final","Completed","2023-10-01","Stable/Final","Completed","https://www.emta.ee/ariklient/e-teenused-koolitused/e-teenuste-kasutamine/teenuste-tehniline-info#ncts",null,null,{"$f":"'AN - Air'!W13","v":17},{"$f":"'AN - Air'!X13","v":"2024-03-25"},"Katrin Punga","NCTS-NPM-EE@emta.ee",3726761031]
[null,null,"Step 1","2022-05-31"]
[null,null,"Step 2","2022-05-31"]
[null,{"$f":"formats!D11&\"-\"&formats!E11","v":"GR-Ελλάδα"},"Single deployment","2024-09-30","Indicative","Not started","2024-09-30","2024-12-31","Indicative",null,"2025-03-31","Indicative","Not started","2024-09-30","2024-12-31","Indicative","Not started","2025-03-31","Indicative","Not started","https://www.aade.gr/customs",null,"derogation request",{"$f":"'AN - Air'!W14","v":6.1},{"$f":"'AN - Air'!X14","v":"2024-03-08"},"Ms Gavgiotaki","NCTS_NPM@AADE.GR","0030-2131356723"]
[null,null,"Step 1"]
[null,null,"Step 2"]
[null,{"$f":"formats!D12&\"-\"&formats!E12","v":"ES-España"},"Single deployment","2022-06-30","Stable/Final","Completed","2022-12-19","2024-03-11","Stable/Final","In progress","2023-10-03","Stable/Final","Completed","2023-10-03","2024-03-11","Stable/Final","In progress","2024-03-12","Stable/Final","Not started","https://sede.agenciatributaria.gob.es/Sede/aduanas/aduana-electronica/guias-tecnicas.html",null,null,{"$f":"'AN - Air'!W15","v":3.2},{"$f":"'AN - Air'!X15","v":"2024-03-08"}]
[null,null,"Step 1"]
[null,null,"Step 2"]
[null,{"$f":"formats!D13&\"-\"&formats!E13","v":"FI-Suomi/Finland"},"Single deployment","2022-03-31","Stable/Final","Completed",null,null,"Stable/Final","In progress",null,"Stable/Final","In progress",null,null,"Stable/Final","In progress",null,"Stable/Final","In progress","https://finnishcustoms-suomentulli.github.io/MIGs/Transit/en/index.html","The first step  contains all except integration to AES, prior decl and reduced dataset decl . Those will be implemented in step 2 which will be deployed in Q4/2024.Progress column indicates step 1.",null,{"$f":"'AN - Air'!W16","v":"13.00"},{"$f":"'AN - Air'!X16","v":"2024-03-22"},"Leila Lappalainen","leila.lappalainen@tulli.fi"]
[null,null,"Step 1",null,null,null,"2023-06-30","2023-12-31",null,null,"2023-12-31",null,null,"2023-12-31","2023-12-31",null,null,"2023-12-31"]
[null,null,"Step 2",null,null,null,"2024-06-30","2024-12-31",null,null,"2024-12-31",null,null,"2024-12-31","2024-12-31",null,null,"2024-12-31"]
[null,{"$f":"formats!D14&\"-\"&formats!E14","v":"FR-France"},"Single deployment","2021-11-01","Stable/Final","Completed","2024-05-01","TBD","Indicative","Not started","2024-10-29","Indicative","Not started","2024-10-29","2025-01-22","Indicative","Not started","2025-01-22","Indicative",null,"https://www.douane.gouv.fr/services-aide/edi","Progress can be consulted via the following link: https://www.douane.gouv.fr/fiche/progress-report","Planning under review",{"$f":"'AN - Air'!W17","v":1.2},{"$f":"'AN - Air'!X17","v":"2024-02-07"},"Office COMINT 1 DGDDI","dg-comint1-transit@douane.finances.gouv.fr"]
[null,null,"Step 1"]
[null,null,"Step 2"]
[null,{"$f":"formats!D15&\"-\"&formats!E15","v":"HR-Hrvatska"},"Single deployment","2022-01-02","Stable/Final","Completed","2023-01-30","2023-05-31","Stable/Final","Completed","2023-06-01","Stable/Final","Completed",null,null,null,null,"2023-06-01","Stable/Final","Completed","https://carina.gov.hr",null,null,{"$f":"'AN - Air'!W18","v":9.1999999999999993},{"$f":"'AN - Air'!X18","v":"2024-03-19"},"Nenad Fonjak","nenad.fonjak@carina.hr",38516211256]
[null,null,"Step 1","2022-01-02"]
[null,null,"Step 2","2022-01-02"]
[null,{"$f":"formats!D16&\"-\"&formats!E16","v":"HU-Magyarország"},"Single deployment","2024-02-15","Indicative","In progress","2024-06-15","2024-11-15","Indicative","Not started","2024-12-01","Indicative","Not started","2024-12-01","2024-12-01","Indicative","Not started","2024-12-01","Indicative","Not started","https://openkkk.nav.gov.hu/default.aspx?RootFolder=%2FDokumentumok%2FSpecifik%C3%A1ci%C3%B3k&FolderCTID=&View=%7B33F087E2-CEC9-4020-A148-2852161E114C%7D",null,null,{"$f":"'AN - Air'!W19","v":11},{"$f":"'AN - Air'!X19","v":"2024-01-31"},"Jenes Barbara","uvk_mp_masp@nav.gov.hu",3614569584]
[null,null,"Step 1","2024-01-01"]
[null,null,"Step 2","2024-01-01"]
[null,{"$f":"formats!D17&\"-\"&formats!E17","v":"IE-Éire/Ireland"},"Single deployment","2022-08-19","Stable/Final","Completed",null,null,"Stable/Final","In progress"," ","Stable/Final","Completed"," "," ","Stable/Final","Not started"," ","Stable/Final","Not started","www.revenue.ie",null,null,{"$f":"'AN - Air'!W20","v":15.2},{"$f":"'AN - Air'!X20","v":"2024-03-21"},"Donal Flannery","UCCITDev@revenue.ie"]
[null,null,"Step 1",null,null,null,"2023-05-26","2024-05-26",null,null,"2023-11-30",null,null,"2024-02-26","2024-05-26",null,null,"2024-05-27"]
[null,null,"Step 2",null,null,null,"2024-04-08","2024-12-01",null,null,"2024-07-01",null,null,"2024-07-01","2024-12-01",null,null,"2024-12-02"]
[null,{"$f":"formats!D18&\"-\"&formats!E18","v":"IT-Italia"},"Single deployment","2021-02-15","Stable/Final",null,"2022-02-01","2023-05-07",null,null,"2023-11-29",null,null,"2023-03-01","2023-05-07",null,null,"2023-06-08",null,null,"https://www.adm.gov.it/portale/dichiarazioni-transito",null,null,{"$f":"'AN - Air'!W21","v":1.01},{"$f":"'AN - Air'!X21","v":"2024-03-13"},"Francesco Cusmai","Francesco.Cusmai@adm.gov.it","+39 06 5024 3015"]
[null,null,"Step 1"]
[null,null,"Step 2"]
[null,{"$f":"formats!D19&\"-\"&formats!E19","v":"LT-Lietuva"},"Single deployment","2024-02-01","Stable/Final","Completed","18/03/2024","31/08/2024","Indicative","Not started","01/09/2024","Indicative","Not started","01/09/2024","01/09/2024","Indicative","Not started","01/09/2024","Indicative","Not started",null,"There will be a big bang for all economic operators. All communication should be additionally copied to tautvydas.banelis@lrmuitine.lt , giedre.jusaityte@lrmuitine.lt, anna.udalova@lrmuitine.lt","LT Customs has asked for derogation. The contract Agreement with contractor signed on 14-02-2023. MODE-1 testing activities has been finished in October-December 2023. MODE-2 activities have started in January 2024.",13.1,"2024-03-05","Dalija Gabrielaitienė","UCC_NCTS_C1-LT@lrmuitine.lt",37052666085]
[null,null,"Step 1",null,null,null,null,null,null,null,null,null,null,null,null,null,null,null,null,null,null,"Single deployment"]
[null,null,"Step 2",null,null,null,null,null,null,null,null,null,null,null,null,null,null,null,null,null,null,"Single deployment"]
[null,{"$f":"formats!D20&\"-\"&formats!E20","v":"LU-Luxembourg"},"Single deployment","2022-02-22","Stable/Final",null,"2022-09-01","2023-10-01",null,null,"2023-05-10",null,null,"2023-05-23","2023-10-01","Stable/Final",null,"2023-10-01",null,null,"https://douanes.public.lu/fr/services-ligne/edouanes/LUCCS.html",null,null,{"$f":"'AN - Air'!W23","v":1},{"$f":"'AN - Air'!X23","v":"2023-03-15"},"Robert Scheueren","it.npm@do.etat.lu","+352 621 306 782"]
[null,null,"Step 1"]
[null,null,"Step 2"]
[null,{"$f":"formats!D21&\"-\"&formats!E21","v":"LV-Latvija"},"Single deployment","2021-03-01","Stable/Final","Completed",null,null,"Stable/Final","In progress",null,"Stable/Final","In progress",null,null,"Stable/Final","Not started",null,"Stable/Final","In progress","https://www.vid.gov.lv/lv/k%C4%81-lietot-emdas",null,null,{"$f":"'AN - Air'!W24","v":3},{"$f":"'AN - Air'!X24","v":"2024-03-08"},"Gita Viksne","nctshelpdesk@vid.gov.lv",37167121093]
[null,null,"Step 1",null,null,null,"2023-02-01","2023-11-24",null,null,"2023-11-27",null,null,"N/A","N/A",null,null,"2023-11-27"]
[null,null,"Step 2",null,null,null,"2024-08-01","2024-11-30",null,null,"2024-12-01",null,null,"N/A","N/A",null,null,"2024-12-01",null,null,null,"Interface with AES (work in progress) is foreseen to be added in 2024 Q1 and declaration with reduced data will be added on later stage (no business case so far)"]
[null,{"$f":"formats!D22&\"-\"&formats!E22","v":"MT-Malta"},"Single deployment","N/A","Indicative","Not started","N/A","N/A","Indicative","Not started","2024-12-01","Indicative","Not started",null,null,null,null,"2024-12-01","Indicative","Not started","www.customs.gov.mt","Due to the small amount of movements that Maltese EOs have, it is not feasible for the majority of EOs to develop a system-to-system mechanism and therefore a GUI where declarations can be filed suffices for the time being. Nonetheless, Malta will provide such facility at a later stage for those EOs interested in developing a system-to-system mechanism.","Please note that Malta has requested a derogation (on 22 November 2023) thus all dates are tentative. Regarding the New Computerised Transit System - Phase 5 (NCTS-P5), the supplier is still working on completing the installation of the solution. Delays might be experienced due to lack of risk engine to test the application. Matters are being discussed with suppliers and Malta has requested appropriate timelines.",{"$f":"'AN - Air'!W25","v":"3.02"},{"$f":"'AN - Air'!X25","v":"2024-03-20"},"Keith Aquilina","keith.b.aquilina@gov.mt",35623783083]
[null,null,"Step 1"]
[null,null,"Step 2"]
[null,{"$f":"formats!D23&\"-\"&formats!E23","v":"NL-Nederland"},"Single deployment","2023-12-11","Stable/Final","Completed","2024-03-01","2024-06-30","Indicative","In progress","2024-10-01","Indicative","Not started","2024-10-01","2024-12-31","Indicative","Not started","2024-12-31","Indicative","Not started","https://www.nhdouane.nl/","We are re-evaluating our transition strategy and analysing the possibility of a Big Bang transition. This might influence the start of operations.",null,{"$f":"'AN - Air'!W26","v":"3.00"},{"$f":"'AN - Air'!X26","v":"2024-04-05"},"National Helpdesk Dutch Customs","NHD.apeldoorn@douane.nl","(+31)(0)88 156 6655"]
[null,null,"Step 1"]
[null,null,"Step 2"]
[null,{"$f":"formats!D24&\"-\"&formats!E24","v":"PL-Polska"},"Single deployment","2023-06-30","Stable/Final","Completed","2023-01-16","2023-12-21","Stable/Final","Completed","2024-05-01","Stable/Final","In progress","N/A","N/A","Stable/Final","Not started","2024-07-01","Stable/Final","In progress","https://puesc.gov.pl/uslugi/uslugi-sieciowe-informacje-i-specyfikacje/#ncts2","In 12.2023 executed DDNTA5.15.1 CT scenarios.\nRfC.39 changes not yet contracted. ",null,{"$f":"'AN - Air'!W27","v":"3.20"},{"$f":"'AN - Air'!X27","v":"2024-03-11"},"Jacek Krysztofiak","jacek.krysztofiak@mf.gov.pl",48426388012]
[null,null,"Step 1",null,null,null,null,null,null,null,null,null,null,null,null,null,null,null,null,null,null,null,null,null,null,"Jacek Krysztofiak","jacek.krysztofiak@mf.gov.pl",48426388012]
[null,null,"Step 2",null,null,null,null,null,null,null,null,null,null,null,null,null,null,null,null,null,null,null,null,null,null,"Jacek Krysztofiak","jacek.krysztofiak@mf.gov.pl",48426388012]
[null,{"$f":"formats!D25&\"-\"&formats!E25","v":"PT-Portugal"},"Single deployment","2023-01-10","Stable/Final","Completed","2023-03-15","2024-10-31","Indicative","In progress","2024-11-30","Indicative","Not started",null,null,null,null,"2024-12-02","Indicative","Not started","https://info-aduaneiro.portaldasfinancas.gov.pt/pt/informacao_aduaneira/Pages/default.aspx","No EOs started testing;\nDeployment of core and non core funcionalities in the same date.\nDerrogation request to second semester 2024",null,{"$f":"'AN - Air'!W28","v":7.2},{"$f":"'AN - Air'!X28","v":"2024-04-05"},"Isabel Santos ","Isabel.Silva.Santos@at.gov.pt","00351 218 813 984 "]
[null,null,"Step 1"]
[null,null,"Step 2"]
[null,{"$f":"formats!D26&\"-\"&formats!E26","v":"RO-România "},"Single deployment","2023-01-06",null,null,"2023-05-15","2023-11-30",null,null,"2023-05-15","Indicative",null,null,null,null,null,"2024-05-15","Indicative",null,"www.customs.ro",null,null,{"$f":"'AN - Air'!W29","v":"3.00"},{"$f":"'AN - Air'!X29","v":"2024-03-25"},"Liviu Stefan\nDragos Popescu","liviu.stefan@customs.ro\ndragos.popescu@customs.ro",40213108553]
[null,null,"Step 1"]
[null,null,"Step 2"]
[null,{"$f":"formats!D27&\"-\"&formats!E27","v":"SE-Sverige"},"Single deployment","2022-09-01","Stable/Final","Completed","2023-03-10","2024-01-28","Stable/Final","Completed","2024-01-28","Stable/Final","Completed","2024-01-28","2024-01-28","Stable/Final","Completed","2024-01-28","Stable/Final","Completed","https://www.tullverket.se/eng/business/scheduleforintroductionoftheunioncustomscode.4.422c8052175b1d827692251.html","The system is in production to the full extent and all traders are using the system. ",null,{"$f":"'AN - Air'!W30","v":21},{"$f":"'AN - Air'!X30","v":"2024-03-08"},"Tina Thomas","projekt.transit@tullverket.se"]
[null,null,"Step 1"]
[null,null,"Step 2"]
[null,{"$f":"formats!D28&\"-\"&formats!E28","v":"SI-Slovenija"},"Single deployment","2020-02-15","Stable/Final","Completed","2021-09-01","2023-01-20","Stable/Final","Completed","2023-02-22","Stable/Final","Completed","2023-02-22","2023-02-22","Stable/Final","Completed","2023-02-22","Stable/Final","Completed","e-Carina | FINANČNA UPRAVA REPUBLIKE SLOVENIJE (gov.si)","A single deployment approach",null,{"$f":"'AN - Air'!W31","v":16.02},{"$f":"'AN - Air'!X31","v":"2024-03-20"},"Mrs. Katja Ščurk","sd.fu@gov.si","00386 1/478 38 91"]
[null,null,"Step 1",null,null,null,null,null,null,null,null,null,null,null,null,null,null,null,null,null,null,"A single deployment approach"]
[null,null,"Step 2",null,null,null,null,null,null,null,null,null,null,null,null,null,null,null,null,null,null,"A single deployment approach"]
[null,{"$f":"formats!D29&\"-\"&formats!E29","v":"SK-Slovensko"},"Single deployment","2022-12-19","Stable/Final","Completed","2023-10-25","2024-06-30","Indicative","In  progress","2024-07-01","Indicative","Not started","2024-06-30","2024-06-30","Indicative","Not started","2024-07-01","Indicative","Not started","Projekt NCTS-P5 - PFS (financnasprava.sk)",null,"Request for derogation sent on 2nd of October 2023 ",{"$f":"'AN - Air'!W32","v":1},{"$f":"'AN - Air'!X32","v":"2024-03-08"},"Martin Svrček","martin.svrcek@financnasprava.sk","00421 2 48273231"]
[null,null,"Step 1"]
[null,null,"Step 2"]

{"sheet":"(CTC) NCTS-P5","index":17,"n_rows":44,"n_cols":28,"rows_kept":44,"cut":false,"hidden":false,"merged":[[38,27,40,27],[38,9,40,9],[38,11,40,11],[38,12,40,12],[38,15,40,15],[38,16,40,16],[38,18,40,18],[41,25,43,25],[41,26,43,26],[41,27,43,27],[41,1,43,1],[41,3,43,3],[41,4,43,4],[41,5,43,5],[41,8,43,8],[41,9,43,9],[38,19,40,19],[38,23,40,23],[38,24,40,24],[41,23,43,23],[41,24,43,24],[41,11,43,11],[41,12,43,12],[41,15,43,15],[41,16,43,16],[41,18,43,18],[41,19,43,19],[35,23,37,23],[35,24,37,24],[35,25,37,25],[35,26,37,26],[35,27,37,27],[38,1,40,1],[38,3,40,3],[38,4,40,4],[38,5,40,5],[38,8,40,8],[35,11,37,11],[35,12,37,12],[35,15,37,15],[35,16,37,16],[35,18,37,18],[35,19,37,19],[35,1,37,1],[35,3,37,3],[35,4,37,4],[35,5,37,5],[35,8,37,8],[35,9,37,9],[38,25,40,25],[38,26,40,26],[32,24,34,24],[32,25,34,25],[32,26,34,26],[32,27,34,27],[32,9,34,9],[32,11,34,11],[32,12,34,12],[32,15,34,15],[32,16,34,16],[32,18,34,18],[29,23,31,23],[29,24,31,24],[29,25,31,25],[29,26,31,26],[29,27,31,27],[32,1,34,1],[32,3,34,3],[32,4,34,4],[32,5,34,5],[32,8,34,8],[29,11,31,11],[29,12,31,12],[29,15,31,15],[29,16,31,16],[29,18,31,18],[29,19,31,19],[29,1,31,1],[29,3,31,3],[29,4,31,4],[29,5,31,5],[29,8,31,8],[29,9,31,9],[32,19,34,19],[32,23,34,23],[26,24,28,24],[26,25,28,25],[26,26,28,26],[26,27,28,27],[26,9,28,9],[26,11,28,11],[26,12,28,12],[26,15,28,15],[26,16,28,16],[26,18,28,18],[23,23,25,23],[23,24,25,24],[23,25,25,25],[23,26,25,26],[23,27,25,27],[26,1,28,1],[26,3,28,3],[26,4,28,4],[26,5,28,5],[26,8,28,8],[23,11,25,11],[23,12,25,12],[23,15,25,15],[23,16,25,16],[23,18,25,18],[23,19,25,19],[23,1,25,1],[23,3,25,3],[23,4,25,4],[23,5,25,5],[23,8,25,8],[23,9,25,9],[26,19,28,19],[26,23,28,23],[20,24,22,24],[20,25,22,25],[20,26,22,26],[20,27,22,27],[20,9,22,9],[20,11,22,11],[20,12,22,12],[20,15,22,15],[20,16,22,16],[20,18,22,18],[17,23,19,23],[17,24,19,24],[17,25,19,25],[17,26,19,26],[17,27,19,27],[20,1,22,1],[20,3,22,3],[20,4,22,4],[20,5,22,5],[20,8,22,8],[17,11,19,11],[17,12,19,12],[17,15,19,15],[17,16,19,16],[17,18,19,18],[17,19,19,19],[17,1,19,1],[17,3,19,3],[17,4,19,4],[17,5,19,5],[17,8,19,8],[17,9,19,9],[20,19,22,19],[20,23,22,23],[14,24,16,24],[14,25,16,25],[14,26,16,26],[14,27,16,27],[14,9,16,9],[14,11,16,11],[14,12,16,12],[14,15,16,15],[14,16,16,16],[14,18,16,18],[11,23,13,23],[11,24,13,24],[11,25,13,25],[11,26,13,26],[11,27,13,27],[14,1,16,1],[14,3,16,3],[14,4,16,4],[14,5,16,5],[14,8,16,8],[11,11,13,11],[11,12,13,12],[11,15,13,15],[11,16,13,16],[11,18,13,18],[11,19,13,19],[11,1,13,1],[11,3,13,3],[11,4,13,4],[11,5,13,5],[11,8,13,8],[11,9,13,9],[14,19,16,19],[14,23,16,23],[8,24,10,24],[8,25,10,25],[8,26,10,26],[8,27,10,27],[8,9,10,9],[8,11,10,11],[8,12,10,12],[8,15,10,15],[8,16,10,16],[8,18,10,18],[5,23,7,23],[5,24,7,24],[5,25,7,25],[5,26,7,26],[5,27,7,27],[8,1,10,1],[8,3,10,3],[8,4,10,4],[8,5,10,5],[8,8,10,8],[5,11,7,11],[5,12,7,12],[5,15,7,15],[5,16,7,16],[5,18,7,18],[5,19,7,19],[5,1,7,1],[5,3,7,3],[5,4,7,4],[5,5,7,5],[5,8,7,8],[5,9,7,9],[8,19,10,19],[8,23,10,23],[2,25,2,27],[3,3,3,5],[3,6,3,9],[3,10,3,12],[3,13,3,16],[3,17,3,19],[2,3,2,5],[2,6,2,9],[2,10,2,12],[2,13,2,16],[2,17,2,19],[2,23,2,24]]}
[]
[]
[null,null,null,"Technical Specifications",null,null,"Conformance Testing",null,null,null,"Deployment",null,null,"Migration",null,null,null,"Operations",null,null,"Web","Notes","Derogations","Version information and issue date",null,"Project Manager Details"]
[null,null,null,"The date of publication of the technical specifications for the external communication on the electronic system",null,null,"The period of conformance testing with economic operators",null,null,null,"The date of deployment of the electronic system",null,null,"Where applicable, the period during which the economic operators are allowed to carry out migration",null,null,null,"Start of Operations for all economic operators (end of transition period)",null,null,"Web address of specifications for EO's",null,"If a derogation under Art 6(4) UCC was granted, please indicate the activities carried out and the state of development in order to reach the derogation deadline."]
[null,{"$f":"formats!A12","v":"UCC NCTS upgrade (Phase 5)"},null,"Date","Status","Progress","Start Date","End Date","Status","Progress","Date","Status","Progress","Start Date","End Date","Status","Progress","Date","Status","Progress","Web address","Note/Comment","Note/Comment","Version Number","Issue Date","Project Mgr Name","e-Mail","Phone"]
[null,"AD - Andorra","Single deployment","2020-02-01",null,null,"2022-10-15","2024-09-30",null,null,"2024-06-10",null,null,"2024-06-10","2024-09-30",null,null,"2024-09-30",null,null,null,null,null,4,"2023-12-14"]
[null,null,"Step 1"]
[null,null,"Step 2"]
[null,"CH - Schweiz","Single deployment","2022-06-30",null,null,"2021-12-01","2024-04-30",null,null,"2023-06-01",null,null,"2023-06-01","2024-04-30",null,null,"2024-04-30",null,null,null,null,null,4,"2023-12-01"]
[null,null,"Step 1"]
[null,null,"Step 2"]
[null,"ME - Crna Gora","Single deployment","2020-09-30",null,null,"2022-05-05","2022-06-16",null,null,"2022-05-16",null,null,"2022-05-16","2022-06-16",null,null,"2022-06-16",null,null,null,null,null,4,"2023-12-20"]
[null,null,"Step 1"]
[null,null,"Step 2"]
[null,"MK -  Severna Makedonija","Single deployment","2023-09-21",null,null,"2024-01-11","2024-03-29",null,null,"2024-03-29",null,null,"2024-03-29","2024-03-29",null,null,"2024-03-29",null,null,null,null,null,4,"2023-06-20"]
[null,null,"Step 1"]
[null,null,"Step 2"]
[null,"RS - Srbija","Single deployment","2022-11-15",null,null,"2023-01-09","2024-01-28",null,null,"2024-01-28",null,null,"2024-01-28","2024-01-28",null,null,"2024-01-28",null,null,null,null,null,4,"2024-01-28"]
[null,null,"Step 1"]
[null,null,"Step 2"]
[null,"NO - Norge","Single deployment","2021-06-16",null,null,"2023-04-15","2024-05-31",null,null,"2023-03-06",null,null,"2023-03-06","2024-05-31",null,null,"2024-05-31",null,null,null,null,null,4,"2024-01-16"]
[null,null,"Step 1"]
[null,null,"Step 2"]
[null,"SM - San Marino","Single deployment","N/A",null,"Not started","N/A","N/A",null,"Not started","N/A",null,"Not started","N/A","N/A",null,"Not started","N/A",null,"Not started",null,null,null,4,"2023-03-08"]
[null,null,"Step 1"]
[null,null,"Step 2"]
[null,"TR - Türkiye","Single deployment","2022-03-30",null,null,"2023-09-12","2024-06-18",null,null,"2024-06-18",null,null,"2024-06-18","2024-06-18",null,null,"2024-06-18",null,null,null,null,null,4,"2023-10-02"]
[null,null,"Step 1"]
[null,null,"Step 2"]
[null,"UA - Ukraïna","Single deployment","2023-01-15",null,null,"2023-08-10","2024-05-01",null,null,"2024-05-01",null,null,"2024-05-01","2024-05-01",null,null,"2024-05-01",null,null,null,null,null,4,"2023-12-01"]
[null,null,"Step 1"]
[null,null,"Step 2"]
[null,"UK - The United Kingdom","Single deployment","2022-08-16",null,null,"2023-05-22","2024-07-01",null,null,"2024-07-01",null,null,"2024-07-01","2024-07-01",null,null,"2024-07-01",null,null,null,null,null,4,"2023-11-29"]
[null,null,"Step 1"]
[null,null,"Step 2"]
[null,"XI - Northern Ireland","Single deployment","2022-08-16",null,null,"2023-05-22","2024-07-01",null,null,"2024-07-01",null,null,"2024-07-01","2024-07-01",null,null,"2024-07-01",null,null,null,null,null,4,"2023-11-29"]
[null,null,"Step 1"]
[null,null,"Step 2"]
[null,"GE - Georgia","Single deployment","2023-04-03",null,null,"2022-11-01","2024-04-03",null,null,"2023-04-03",null,null,"2024-04-03","2024-04-03",null,null,"2024-04-03",null,null,null,null,null,4,"2023-07-18"]
[null,null,"Step 1"]
[null,null,"Step 2"]
[null,"MD - Moldavia","Single deployment","2024-03-02",null,null,"2024-07-02","2025-04-01",null,null,"2025-04-01",null,null,"2025-04-01","2025-04-01",null,null,"2025-04-01",null,null,null,null,null,4,"2023-11-10"]
[null,null,"Step 1"]
[null,null,"Step 2"]

{"sheet":"NCTS-P6","index":18,"n_rows":32,"n_cols":27,"rows_kept":32,"cut":false,"hidden":false,"merged":[[2,24,2,26],[3,2,3,4],[3,5,3,8],[3,9,3,11],[3,12,3,15],[3,16,3,18],[2,2,2,4],[2,5,2,8],[2,9,2,11],[2,12,2,15],[2,16,2,18],[2,22,2,23]]}
[]
[]
[null,null,"Technical Specifications",null,null,"Conformance Testing",null,null,null,"Deployment",null,null,"Migration",null,null,null,"Operations",null,null,"Web","Notes","Derogations","Version information and issue date",null,"Project Manager Details"]
[null,null,"The date of publication of the technical specifications for the external communication on the electronic system",null,null,"The period of conformance testing with economic operators",null,null,null,"The date of deployment of the electronic system",null,null,"Where applicable, the period during which the economic operators are allowed to carry out migration",null,null,null,"Start of Operations for all economic operators (end of transition period)",null,null,"Web address of specifications for EO's",null,"If a derogation under Art 6(4) UCC was granted, please indicate the activities carried out and the state of development in order to reach the derogation deadline."]
[null,{"$f":"formats!A13","v":"UCC NCTS upgrade (Phase 6)"},"Date","Status","Progress","Start Date","End Date","Status","Progress","Date","Status","Progress","Start Date","End Date","Status","Progress","Date","Status","Progress","Web address","Note/Comment","Note/Comment","Version Number","Issue Date","Project Mgr Name","e-Mail","Phone"]
[null,{"$f":"formats!D3&\"-\"&formats!E3","v":"AT-Österreich"},"2024-10-01","Indicative","Not started","open","open","Indicative","Not started","2025-05-31","Indicative","Not started","open","open","Indicative","Not started","2025-05-31","Indicative","Not started","https://www.bmf.gv.at/themen/zoll/uzk-it-anwendungen/ncts-5-new-computerised-transit-system.html","planning not started due to missing final Technical Specifications (DDNTA 6)",null,{"$f":"'AN - Air'!W6","v":13},{"$f":"'AN - Air'!X6","v":"2024-03-18"},"Peter Frühwirt","peter.fruehwirt@bmf.gv.at","0043-1-51433-504159"]
[null,{"$f":"formats!D4&\"-\"&formats!E4","v":"BE-Belgique/België"},"N/A","Indicative","Not started","N/A","N/A","Indicative","Not started","N/A","Indicative","Not started",null,null,null,null,null,null,null,"https://financien.belgium.be/nl/douane_accijnzen/ondernemingen/applicaties-da/technische-documentatie-0",null,null,{"$f":"'AN - Air'!W7","v":"4.00"},{"$f":"'AN - Air'!X7","v":"2024-02-20"},"Lincey Jacobs\nGeert Wilderjans (Service manager)","lincey.jacobs@minfin.fed.be\ngeert.wilderjans@temp.minfin.be"]
[null,{"$f":"formats!D5&\"-\"&formats!E5","v":"BG-България"},"2024-06-03","Indicative","In progress","2025-02-03","2025-08-01","Indicative","Not started","2025-09-01","Indicative","Not started",null,null,null,null,"2025-09-01","Indicative","Not started","https://ep.customs.bg/eportal/",null,null,{"$f":"'AN - Air'!W8","v":"10.01"},{"$f":"'AN - Air'!X8","v":"2024-03-01"},"Darina Karadencheva","masp_bg@customs.bg","0035952689452"]
[null,{"$f":"formats!D6&\"-\"&formats!E6","v":"CY-Κύπρος"},null,null,null,"2025-07-01","2025-08-15","Stable/Final","Not started","2025-09-01","Stable/Final","Not started","N/A","N/A",null,"Not started","2025-09-01","Stable/Final","Not started",null,null,null,{"$f":"'AN - Air'!W9","v":7},{"$f":"'AN - Air'!X9","v":"2024-04-26"},"Theofanis Neocleous","tneocleous@customs.mof.gov.cy",35722601717]
[null,{"$f":"formats!D7&\"-\"&formats!E7","v":"CZ-Česká republika"},"2024-09-01","Indicative","In progress","2025-01-01","2025-08-31","Indicative","Not started","2025-09-01","Indicative","Not started",null,null,null,null,"2025-09-01","Indicative","Not started",null,null,null,{"$f":"'AN - Air'!W10","v":"1.5"},{"$f":"'AN - Air'!X10","v":"2024-05-16"},"František Šíma","NPP.MASP@cs.mfcr.cz",420261332633]
[null,{"$f":"formats!D8&\"-\"&formats!E8","v":"DE-Deutschland"},null,null,null,null,null,null,null,null,null,null,null,null,null,null,null,null,null,null,"Not applicable, due to the decision not to make use of the \"combined declaration\" following Art. 130 UCC (NCTS Phase 6).",null,{"$f":"'AN - Air'!W11","v":"7.00"},{"$f":"'AN - Air'!X11","v":"2024-03-20"},"Michael Schröter","DIIB12.gzd@zoll.bund.de","0049(0)228/303-21096"]
[null,{"$f":"formats!D9&\"-\"&formats!E9","v":"DK-Danmark"},"2024-11-01","Indicative","Not started","2025-03-01","2025-06-30","Indicative","Not started","2025-08-30","Indicative","Not started","2025-09-01","2025-12-31","Indicative","Not started","2025-09-01","Indicative","Not started","www.toldst.dk ",null,null,{"$f":"'AN - Air'!W12","v":1},{"$f":"'AN - Air'!X12","v":"2024-04-15"},"Niels Legaard","Niels.Legaard2@Ufst.dk","+45 7237 6810"]
[null,{"$f":"formats!D10&\"-\"&formats!E10","v":"EE-Eesti"},"2024-12-06","Indicative","In progress","2024-12-06","2025-04-01","Indicative","Not started","2025-04-01","Indicative","Not started","N/A","N/A","Indicative","Not started","2025-04-01","Indicative","Not started","https://www.emta.ee/ariklient/toll-kau\nbavahetus/tolliinfosusteemid/tolliinfosusteemide-kasutajatele","We have determined that NCTS phase 6 is closely linked to project.\nICS2 Release 3 and hence the project deadlines should be amended accordingly.",null,{"$f":"'AN - Air'!W13","v":17},{"$f":"'AN - Air'!X13","v":"2024-03-25"},"Katrin Punga","NCTS-NPM-EE@emta.ee",3726761031]
[null,{"$f":"formats!D11&\"-\"&formats!E11","v":"GR-Ελλάδα"},"2025-03-31","Indicative","Not started","2025-06-30","2025-09-30","Indicative",null,"2025-09-30","Indicative","Not started","2024-03-31","2024-12-31","Indicative","Not started","2025-09-30","Indicative","Not started","https://www.aade.gr/customs",null,null,{"$f":"'AN - Air'!W14","v":6.1},{"$f":"'AN - Air'!X14","v":"2024-03-08"},"Ms Gavgiotaki","NCTS_NPM@AADE.GR","0030-2131356723"]
[null,{"$f":"formats!D12&\"-\"&formats!E12","v":"ES-España"},"2024-10-03","Indicative","Not started","2025-03-04","2025-06-03","Indicative","Not started","2025-06-03","Indicative","Not started","2025-06-03","2025-09-01","Indicative","Not started","2025-09-02","Indicative","Not started","https://sede.agenciatributaria.gob.es/Sede/aduanas/aduana-electronica/guias-tecnicas.html",null,null,{"$f":"'AN - Air'!W15","v":3.2},{"$f":"'AN - Air'!X15","v":"2024-03-08"}]
[null,{"$f":"formats!D13&\"-\"&formats!E13","v":"FI-Suomi/Finland"},"2024-12-31","Stable/Final","In progress","2025-09-30","2025-12-31","Stable/Final","Not started","2025-12-31","Stable/Final","Not started","2025-12-31","N/A","Stable/Final","Not started","2025-12-31","Stable/Final","Not started",null,"Dependency on ICS2 rel 3. All traders will not use combined declarations or shall start to use later, hence no end data for migration",null,{"$f":"'AN - Air'!W16","v":"13.00"},{"$f":"'AN - Air'!X16","v":"2024-03-22"},"Leila Lappalainen","leila.lappalainen@tulli.fi"]
[null,{"$f":"formats!D14&\"-\"&formats!E14","v":"FR-France"},"2023-11-01","Stable/Final","Completed","TBD","TBD","Indicative","Not started","TBD","Indicative","Not started","TBD","TBD","Indicative","Not started","TBD","Indicative","Not started","https://www.douane.gouv.fr/services-aide/edi","Progress can be consulted via the following link: https://www.douane.gouv.fr/fiche/progress-report","Planning under review",{"$f":"'AN - Air'!W17","v":1.2},{"$f":"'AN - Air'!X17","v":"2024-02-07"},"Office COMINT 1 DGDDI","dg-comint1-transit@douane.finances.gouv.fr"]
[null,{"$f":"formats!D15&\"-\"&formats!E15","v":"HR-Hrvatska"},"2025-01-01","Indicative","Not started","2025-06-01","2025-09-01","Indicative","Not started","2025-09-01","Indicative","Not started",null,null,null,null,"2025-09-01","Indicative","Not started","https://carina.gov.hr ",null,null,{"$f":"'AN - Air'!W18","v":9.1999999999999993},{"$f":"'AN - Air'!X18","v":"2024-03-19"},"Nenad Fonjak","nenad.fonjak@carina.hr",38516211256]
[null,{"$f":"formats!D16&\"-\"&formats!E16","v":"HU-Magyarország"},"2025-01-02","Indicative","Not started","2025-03-01","2025-08-15","Indicative","Not started","2025-08-31","Indicative","Not started","2025-09-01","2025-09-01","Indicative","Not started","2025-09-01","Indicative","Not started","https://openkkk.nav.gov.hu/default.aspx?RootFolder=%2FDokumentumok%2FSpecifik%C3%A1ci%C3%B3k&FolderCTID=&View=%7B33F087E2-CEC9-4020-A148-2852161E114C%7D",null,null,{"$f":"'AN - Air'!W19","v":11},{"$f":"'AN - Air'!X19","v":"2024-01-31"},"Jenes Barbara","uvk_mp_masp@nav.gov.hu",3614569584]
[null,{"$f":"formats!D17&\"-\"&formats!E17","v":"IE-Éire/Ireland"},"2024-06-10","Stable/Final","Not started","2024-12-02","2025-06-08","Stable/Final","Not started","2025-06-09","Stable/Final","Not started","2025-06-09","2025-08-31","Stable/Final","Not started","2025-09-01","Stable/Final","Not started","www.revenue.ie",null,null,{"$f":"'AN - Air'!W20","v":15.2},{"$f":"'AN - Air'!X20","v":"2024-03-21"},"Donal Flannery","UCCITDev@revenue.ie"]
[null,{"$f":"formats!D18&\"-\"&formats!E18","v":"IT-Italia"},"2025-01-15","Indicative",null,"2025-03-18","2025-06-18","Indicative",null,"2025-06-30","Indicative",null,"2025-06-30","2025-08-29","Indicative",null,"2025-08-29","Indicative",null,"https://www.adm.gov.it/portale/dichiarazioni-transito",null,null,{"$f":"'AN - Air'!W21","v":1.01},{"$f":"'AN - Air'!X21","v":"2024-03-13"},"Francesco Cusmai","Francesco.Cusmai@adm.gov.it","+39 06 5024 3015"]
[null,{"$f":"formats!D19&\"-\"&formats!E19","v":"LT-Lietuva"},"01/06/2024","Indicative","Not started","03/11/2024","02/05/2025","Indicative","Not started","02/06/2025","Indicative","Not started","02/06/2025","02/06/2025","Indicative","Not started","02/06/2025","Indicative","Not started",null,"There will be a big bang for all economic operators. All communication should be additionally copied to tautvydas.banelis@lrmuitine.lt , giedre.jusaityte@lrmuitine.lt, anna.udalova@lrmuitine.lt",null,{"$f":"'AN - Air'!W22","v":13.1},{"$f":"'AN - Air'!X22","v":"2024-03-08"},"Dalija Gabrielaitienė","UCC_NCTS-C2-LT@lrmuitine.lt",37052666085]
[null,{"$f":"formats!D20&\"-\"&formats!E20","v":"LU-Luxembourg"},"2024-02-01",null,null,"2024-08-01","2024-12-01","Indicative",null,"2024-12-01","Indicative",null,null,null,null,null,null,null,null,null,null,null,{"$f":"'AN - Air'!W23","v":1},{"$f":"'AN - Air'!X23","v":"2023-03-15"},"Robert Scheueren","it.npm@do.etat.lu","+352 621 306 782"]
[null,{"$f":"formats!D21&\"-\"&formats!E21","v":"LV-Latvija"},"2024-09-01","Indicative","Not started","2025-06-01","2025-08-30","Indicative","Not started","2025-09-01","Indicative","Not started","N/A","N/A","Stable/Final","Not started","2025-09-01","Indicative","Not started","https://www.vid.gov.lv/lv/k%C4%81-lietot-emdas",null,null,{"$f":"'AN - Air'!W24","v":3},{"$f":"'AN - Air'!X24","v":"2024-03-08"},"Gita Viksne","nctshelpdesk@vid.gov.lv",37167121093]
[null,{"$f":"formats!D22&\"-\"&formats!E22","v":"MT-Malta"},"N/A","Indicative","Not started","N/A","N/A","Indicative","Not started","2025-09-01","Indicative","Not started",null,null,null,null,"2025-02-01","Indicative","Not started","www.customs.gov.mt","Due to the small amount of movements that Maltese EOs have, it is not feasible for the majority of EOs to develop a system-to-system mechanism and therefore a GUI where declarations can be filed suffices for the time being. Nonetheless, Malta will provide such facility at a later stage for those EOs interested in developing a system-to-system mechanism.",null,{"$f":"'AN - Air'!W25","v":"3.02"},{"$f":"'AN - Air'!X25","v":"2024-03-20"},"Keith Aquilina","keith.b.aquilina@gov.mt",35623783083]
[null,{"$f":"formats!D23&\"-\"&formats!E23","v":"NL-Nederland"},null,null,null,"2025-01-01","2025-03-02","Indicative","Not started","2025-03-03","Indicative","Not started","2025-03-03","2025-08-31","Indicative","Not started","2025-09-01","Indicative","Not started","https://www.nhdouane.nl/",null,null,{"$f":"'AN - Air'!W26","v":"3.00"},{"$f":"'AN - Air'!X26","v":"2024-04-05"},"National Helpdesk Dutch Customs","NHD.apeldoorn@douane.nl","(+31)(0)88 156 6655"]
[null,{"$f":"formats!D24&\"-\"&formats!E24","v":"PL-Polska"},"2025-08-01","Stable/Final","Not started","2025-12-01","2026-01-15","Indicative","Not started","2026-03-01","Indicative","Not started","2026-02-25","2026-06-30","Indicative","Not started","2026-06-01","Indicative","Not started","https://puesc.gov.pl/uslugi/uslugi-sieciowe-informacje-i-specyfikacje/#ncts2","NCTS-P6 will be developed uder new contract.",null,{"$f":"'AN - Air'!W27","v":"3.20"},{"$f":"'AN - Air'!X27","v":"2024-03-11"},"Jacek Krysztofiak","jacek.krysztofiak@mf.gov.pl",48426388012]
[null,{"$f":"formats!D25&\"-\"&formats!E25","v":"PT-Portugal"},"2024-09-01","Indicative","Not started","2024-12-01","2025-05-01","Indicative","Not started","2025-08-31","Indicative","Not started",null,null,null,null,"2025-09-01","Indicative","Not started","https://info-aduaneiro.portaldasfinancas.gov.pt/pt/informacao_aduaneira/Pages/default.aspx",null,null,{"$f":"'AN - Air'!W28","v":7.2},{"$f":"'AN - Air'!X28","v":"2024-04-05"},"Isabel Santos ","Isabel.Silva.Santos@at.gov.pt","00351 218 813 984 "]
[null,{"$f":"formats!D26&\"-\"&formats!E26","v":"RO-România "},"2022-12-31","Indicative",null,"2024-12-31","2025-06-01","Indicative",null,"2025-06-01","Indicative",null,null,null,null,null,"2025-12-31","Indicative",null,"www.customs.ro","Considering that the entry into production of NCTS phase 5 will take place on May 15, 2024, the implementation date of NCTS phase 6 will be postponed by at least 6 months",null,{"$f":"'AN - Air'!W29","v":"3.00"},{"$f":"'AN - Air'!X29","v":"2024-03-25"},"Liviu Stefan\nDragos Popescu","liviu.stefan@customs.ro\ndragos.popescu@customs.ro",40213108553]
[null,{"$f":"formats!D27&\"-\"&formats!E27","v":"SE-Sverige"},null,null,null,"2024-11-01","2025-09-01","Indicative","Not started","2025-03-03","Indicative","Not started","2025-03-03","2025-09-01","Indicative","Not started","2025-09-01","Indicative","Not started","https://www.tullverket.se/eng/business/scheduleforintroductionoftheunioncustomscode.4.422c8052175b1d827692251.html",null,null,{"$f":"'AN - Air'!W30","v":21},{"$f":"'AN - Air'!X30","v":"2024-03-08"},"Mats Jarbe","projekt.transit@tullverket.se"]
[null,{"$f":"formats!D28&\"-\"&formats!E28","v":"SI-Slovenija"},"2024-09-01","Indicative","In progress","2024-11-01","2025-05-20","Indicative","Not started","2025-06-01","Indicative","Not started","2025-06-01","2025-06-01","Indicative","Not started","2025-06-01","Indicative","Not started","e-Carina | FINANČNA UPRAVA REPUBLIKE SLOVENIJE (gov.si)","Opt-out approach",null,{"$f":"'AN - Air'!W31","v":16.02},{"$f":"'AN - Air'!X31","v":"2024-03-20"},"Mrs. Katja Ščurk","sd.fu@gov.si","00386 1/478 38 91"]
[null,{"$f":"formats!D29&\"-\"&formats!E29","v":"SK-Slovensko"},null,null,null,null,null,null,null,null,null,null,null,null,null,null,null,null,null,null,null,"Project is still in planning phase. Once the NCTSP5 is finished, we will provide specific dates.",{"$f":"'AN - Air'!W32","v":1},{"$f":"'AN - Air'!X32","v":"2024-03-08"},"Martin Svrček","martin.svrcek@financnasprava.sk","00421 2 48273231"]

{"sheet":"AES-C1","index":19,"n_rows":113,"n_cols":28,"rows_kept":113,"cut":false,"hidden":false,"merged":[[69,11,72,11],[69,12,72,12],[89,3,92,3],[85,3,88,3],[81,3,84,3],[73,3,76,3],[77,3,80,3],[101,19,104,19],[101,18,104,18],[101,9,104,9],[93,18,96,18],[93,19,96,19],[93,11,96,11],[101,4,104,4],[101,5,104,5],[101,16,104,16],[89,12,92,12],[89,18,92,18],[89,19,92,19],[89,15,92,15],[89,16,92,16],[89,4,92,4],[89,5,92,5],[89,8,92,8],[109,3,112,3],[105,3,108,3],[97,3,100,3],[93,3,96,3],[101,3,104,3],[97,12,100,12],[97,15,100,15],[97,16,100,16],[97,4,100,4],[97,5,100,5],[97,8,100,8],[97,9,100,9],[97,11,100,11],[101,8,104,8],[101,12,104,12],[101,11,104,11],[101,15,104,15],[93,12,96,12],[93,15,96,15],[93,16,96,16],[93,4,96,4],[93,5,96,5],[93,8,96,8],[93,9,96,9],[25,27,28,27],[21,27,24,27],[21,26,24,26],[21,25,24,25],[17,24,20,24],[17,23,20,23],[21,24,24,24],[21,23,24,23],[25,24,28,24],[25,23,28,23],[9,27,12,27],[5,27,8,27],[5,26,8,26],[5,25,8,25],[17,25,20,25],[17,26,20,26],[17,27,20,27],[13,27,16,27],[13,26,16,26],[13,25,16,25],[5,24,8,24],[5,23,8,23],[9,24,12,24],[9,23,12,23],[13,24,16,24],[13,23,16,23],[33,25,36,25],[33,26,36,26],[29,24,32,24],[29,23,32,23],[9,25,12,25],[9,26,12,26],[25,25,28,25],[25,26,28,26],[29,27,32,27],[29,26,32,26],[29,25,32,25],[41,25,44,25],[41,26,44,26],[41,27,44,27],[37,27,40,27],[37,26,40,26],[37,25,40,25],[49,25,52,25],[49,26,52,26],[49,27,52,27],[45,27,48,27],[45,26,48,26],[45,25,48,25],[37,24,40,24],[37,23,40,23],[33,23,36,23],[33,24,36,24],[49,24,52,24],[49,23,52,23],[45,24,48,24],[45,23,48,23],[41,24,44,24],[41,23,44,23],[33,27,36,27],[57,27,60,27],[57,26,60,26],[57,25,60,25],[53,24,56,24],[53,23,56,23],[53,27,56,27],[53,26,56,26],[53,25,56,25],[65,27,68,27],[65,26,68,26],[65,25,68,25],[61,25,64,25],[61,26,64,26],[61,27,64,27],[65,24,68,24],[65,23,68,23],[61,24,64,24],[61,23,64,23],[57,24,60,24],[57,23,60,23],[73,27,76,27],[73,26,76,26],[73,25,76,25],[69,25,72,25],[69,26,72,26],[69,27,72,27],[81,27,84,27],[81,26,84,26],[81,25,84,25],[77,25,80,25],[77,26,80,26],[77,27,80,27],[77,23,80,23],[77,24,80,24],[73,24,76,24],[73,23,76,23],[69,24,72,24],[69,23,72,23],[93,25,96,25],[89,25,92,25],[85,25,88,25],[81,24,84,24],[81,23,84,23],[89,27,92,27],[85,27,88,27],[109,26,112,26],[105,26,108,26],[101,26,104,26],[97,26,100,26],[93,26,96,26],[89,26,92,26],[85,26,88,26],[109,27,112,27],[105,27,108,27],[101,27,104,27],[97,27,100,27],[109,25,112,25],[105,25,108,25],[101,25,104,25],[97,25,100,25],[93,27,96,27],[109,18,112,18],[109,19,112,19],[85,23,88,23],[85,24,88,24],[89,24,92,24],[89,23,92,23],[93,24,96,24],[93,23,96,23],[97,24,100,24],[97,23,100,23],[101,24,104,24],[101,23,104,23],[105,24,108,24],[105,23,108,23],[109,24,112,24],[97,18,100,18],[97,19,100,19],[85,18,88,18],[85,19,88,19],[109,23,112,23],[105,18,108,18],[105,19,108,19],[105,8,108,8],[105,9,108,9],[105,11,108,11],[105,12,108,12],[105,15,108,15],[105,4,108,4],[105,5,108,5],[109,4,112,4],[109,5,112,5],[109,8,112,8],[109,9,112,9],[109,11,112,11],[109,12,112,12],[109,15,112,15],[105,16,108,16],[109,16,112,16],[89,9,92,9],[89,11,92,11],[85,4,88,4],[85,5,88,5],[85,8,88,8],[85,9,88,9],[85,11,88,11],[85,12,88,12],[85,15,88,15],[81,12,84,12],[81,18,84,18],[85,16,88,16],[81,19,84,19],[81,15,84,15],[81,16,84,16],[81,4,84,4],[81,5,84,5],[81,8,84,8],[81,9,84,9],[81,11,84,11],[73,16,76,16],[73,18,76,18],[73,19,76,19],[73,4,76,4],[73,5,76,5],[73,8,76,8],[73,9,76,9],[73,15,76,15],[77,16,80,16],[77,15,80,15],[77,19,80,19],[77,18,80,18],[77,12,80,12],[77,11,80,11],[77,9,80,9],[77,8,80,8],[77,4,80,4],[77,5,80,5],[69,15,72,15],[69,16,72,16],[69,18,72,18],[69,19,72,19],[69,4,72,4],[69,5,72,5],[69,8,72,8],[69,9,72,9],[61,19,64,19],[65,4,68,4],[65,5,68,5],[65,8,68,8],[65,9,68,9],[65,11,68,11],[65,12,68,12],[65,15,68,15],[65,16,68,16],[65,18,68,18],[65,19,68,19],[61,11,64,11],[61,12,64,12],[61,15,64,15],[61,16,64,16],[61,18,64,18],[57,8,60,8],[57,9,60,9],[57,4,60,4],[57,5,60,5],[61,4,64,4],[61,5,64,5],[61,8,64,8],[61,9,64,9],[57,15,60,15],[57,16,60,16],[57,18,60,18],[57,19,60,19],[57,11,60,11],[57,12,60,12],[53,12,56,12],[53,15,56,15],[53,16,56,16],[53,18,56,18],[53,19,56,19],[53,8,56,8],[53,9,56,9],[53,11,56,11],[37,15,40,15],[37,16,40,16],[37,18,40,18],[37,19,40,19],[49,15,52,15],[49,16,52,16],[49,18,52,18],[49,19,52,19],[49,9,52,9],[49,11,52,11],[49,12,52,12],[37,8,40,8],[37,9,40,9],[37,11,40,11],[37,12,40,12],[49,8,52,8],[41,15,44,15],[41,16,44,16],[41,18,44,18],[41,19,44,19],[45,8,48,8],[45,9,48,9],[45,11,48,11],[45,12,48,12],[45,15,48,15],[45,16,48,16],[45,18,48,18],[45,19,48,19],[41,11,44,11],[41,12,44,12],[41,8,44,8],[41,9,44,9],[29,16,32,16],[29,18,32,18],[29,19,32,19],[33,4,36,4],[33,5,36,5],[33,8,36,8],[33,9,36,9],[33,11,36,11],[33,12,36,12],[33,15,36,15],[33,16,36,16],[33,18,36,18],[33,19,36,19],[29,8,32,8],[29,9,32,9],[29,11,32,11],[29,12,32,12],[29,15,32,15],[21,16,24,16],[21,18,24,18],[21,19,24,19],[25,8,28,8],[25,9,28,9],[25,11,28,11],[25,12,28,12],[25,15,28,15],[25,16,28,16],[25,18,28,18],[25,19,28,19],[21,8,24,8],[21,9,24,9],[21,11,24,11],[21,12,24,12],[21,15,24,15],[13,16,16,16],[13,18,16,18],[13,19,16,19],[17,8,20,8],[17,9,20,9],[17,11,20,11],[17,12,20,12],[17,15,20,15],[17,16,20,16],[17,18,20,18],[17,19,20,19],[13,8,16,8],[13,9,16,9],[13,11,16,11],[13,12,16,12],[13,15,16,15],[9,9,12,9],[9,11,12,11],[9,12,12,12],[9,15,12,15],[9,16,12,16],[9,18,12,18],[9,19,12,19],[5,15,8,15],[5,16,8,16],[5,19,8,19],[5,18,8,18],[5,12,8,12],[5,11,8,11],[5,9,8,9],[69,3,72,3],[65,3,68,3],[61,3,64,3],[57,3,60,3],[53,3,56,3],[49,3,52,3],[45,3,48,3],[17,5,20,5],[17,4,20,4],[29,5,32,5],[29,4,32,4],[29,3,32,3],[25,5,28,5],[25,4,28,4],[25,3,28,3],[57,1,60,1],[61,1,64,1],[21,5,24,5],[21,4,24,4],[21,3,24,3],[49,4,52,4],[49,5,52,5],[41,4,44,4],[41,5,44,5],[53,4,56,4],[53,5,56,5],[37,5,40,5],[37,4,40,4],[45,4,48,4],[45,5,48,5],[33,3,36,3],[49,1,52,1],[41,3,44,3],[37,3,40,3],[2,25,2,27],[3,3,3,5],[3,6,3,9],[3,10,3,12],[3,13,3,16],[3,17,3,19],[2,3,2,5],[2,6,2,9],[2,10,2,12],[2,13,2,16],[2,17,2,19],[2,23,2,24],[5,5,8,5],[5,4,8,4],[5,3,8,3],[5,8,8,8],[13,5,16,5],[13,4,16,4],[13,3,16,3],[9,5,12,5],[9,4,12,4],[9,3,12,3],[9,8,12,8],[5,1,8,1],[9,1,12,1],[13,1,16,1],[17,1,20,1],[21,1,24,1],[65,1,68,1],[69,1,72,1],[109,1,112,1],[105,1,108,1],[85,1,88,1],[89,1,92,1],[93,1,96,1],[97,1,100,1],[101,1,104,1],[25,1,28,1],[29,1,32,1],[33,1,36,1],[37,1,40,1],[41,1,44,1],[73,1,76,1],[77,1,80,1],[81,1,84,1],[45,1,48,1],[53,1,56,1]]}
[]
[]
[null,null,null,"Technical Specifications",null,null,"Conformance Testing",null,null,null,"Deployment",null,null,"Migration",null,null,null,"Operations",null,null,"Web","Notes","Derogations","Version information and issue date",null,"Project Manager Details"]
[null,null,null,"The date of publication of the technical specifications for the external communication on the electronic system",null,null,"The period of conformance testing with economic operators",null,null,null,"The date of deployment of the electronic system",null,null,"Where applicable, the period during which the economic operators are allowed to carry out migration",null,null,null,"Start of Operations for all economic operators (end of transition period)",null,null,"Web address of specifications for EO's",null,"If a derogation under Art 6(4) UCC was granted, please indicate the activities carried out and the state of development in order to reach the derogation deadline."]
[null,{"$f":"formats!A14","v":"UCC AES (Component 1) \"Trans-European AES\""},null,"Date","Status","Progress","Start Date","End Date","Status","Progress","Date","Status","Progress","Start Date","End Date","Status","Progress","Date","Status","Progress","Web address","Note/Comment","Note/Comment","Version Number","Issue Date","Project Mgr Name","e-Mail","Phone"]
[null,{"$f":"formats!D3&\"-\"&formats!E3","v":"AT-Österreich"},"Single deployment","2022-01-01","Stable/Final","Completed","2024-04-05","AT","Stable/Final","Not started","2024-11-15","Stable/Final","In progress","N/A","N/A","Stable/Final","Not started","2024-11-15","Indicative","In progress","AES - Automated Export System (bmf.gv.at)","tender completed, software provider available, developement started, CT started","derogation decission is outstanding",{"$f":"'AN - Air'!W6","v":13},{"$f":"'AN - Air'!X6","v":"2024-03-18"},"Klaus Schacherl","klaus.schacherl@bmf.gv.at","0043-1-51433-506221"]
[null,null,"Step 1"]
[null,null,"Step 2"]
[null,null,"Step 3"]
[null,{"$f":"formats!D4&\"-\"&formats!E4","v":"BE-Belgique/België"},"Single deployment","2021-09-01","Stable/Final",null,"2023-06-23","2024-04-12",null,"In progress","2024-04-17","Indicative",null,"2024-04-17","2024-09-02","Indicative",null,"2024-09-02","Indicative",null,"https://financien.belgium.be/nl/douane_accijnzen/ondernemingen/applicaties-da/technische-documentatie-0",null,null,{"$f":"'AN - Air'!W7","v":"4.00"},{"$f":"'AN - Air'!X7","v":"2024-02-20"},"Wouter De Vlieger\nJurgen Van Dijck (Service manager)","wouter.devlieger@minfin.fed.be\njurgen.vandijck@temp.minfin.be"]
[null,null,"Step 1","2021-09-01"]
[null,null,"Step 2","2021-09-01"]
[null,null,"Step 3","2021-09-01"]
[null,{"$f":"formats!D5&\"-\"&formats!E5","v":"BG-България"},"Single deployment","2022-08-31","Stable/Final","Completed","2023-07-24","2023-08-11","Stable/Final","Completed","2023-08-28","Stable/Final","Completed",null,null,null,null,"2023-08-29","Stable/Final","Completed","https://ep.customs.bg/eportal/",null,null,{"$f":"'AN - Air'!W8","v":"10.01"},{"$f":"'AN - Air'!X8","v":"2024-03-01"},"Darina Karadencheva","masp_bg@customs.bg","0035952689452"]
[null,null,"Step 1"]
[null,null,"Step 2"]
[null,null,"Step 3"]
[null,{"$f":"formats!D6&\"-\"&formats!E6","v":"CY-Κύπρος"},"Single deployment","2023-08-01","Stable/Final","Completed","N/A","N/A","Indicative","In progress",null,"Indicative","In progress","N/A","N/A",null,"Not started",null,"Indicative","In progress","https://www.mof.gov.cy/mof/ce/theseas/theseas.nsf/techinfo_en/techinfo_en?OpenDocument",null,null,{"$f":"'AN - Air'!W9","v":7},{"$f":"'AN - Air'!X9","v":"2024-04-26"},"Anna Christodoulidou","anchristodoulidou@customs.mof.gov.cy",35722601868]
[null,null,"Step 1",null,null,null,"2023-09-18","2023-11-30",null,null,"2023-12-18",null,null,"N/A","N/A",null,null,"2023-12-18"]
[null,null,"Step 2",null,null,null,"N/A","N/A",null,null,"2024-06-14",null,null,"N/A","N/A",null,null,"2024-06-14"]
[null,null,"Step 3",null,null,null,"2025-01-06","2025-01-31",null,null,"2025-02-11",null,null,"N/A","N/A",null,null,"2025-02-11"]
[null,{"$f":"formats!D7&\"-\"&formats!E7","v":"CZ-Česká republika"},"Single deployment","2021-10-21","Stable/Final","Completed","2023-01-02","2023-09-30","Stable/Final","Completed","2023-10-01","Stable/Final","Completed",null,null,null,null,"2023-10-01","Stable/Final","Completed","https://www.celnisprava.cz/cz/clo/e-customs/ecs/Stranky/dokumentace-pro-vyrobce-SW-UCC-AES.aspx","In CZ will be \"big bang\". All economic operators will start at the same date. ",null,{"$f":"'AN - Air'!W10","v":"1.5"},{"$f":"'AN - Air'!X10","v":"2024-05-16"},"František Šíma","NPP.MASP@cs.mfcr.cz",420261332633]
[null,null,"Step 1"]
[null,null,"Step 2"]
[null,null,"Step 3"]
[null,{"$f":"formats!D8&\"-\"&formats!E8","v":"DE-Deutschland"},"Single deployment","2020-10-09","Stable/Final","Completed","2021-04-19","2023-10-29","Stable/Final","Completed","2021-03-06","Stable/Final","Completed","2021-04-19","2023-11-30","Stable/Final","Completed","2023-10-29","Stable/Final","Completed","www.zoll.de","This component is already implemented in the major release of the national Export System (AES Release 3.0)\nIT Service Providers and Economic Operators must ensure that the conformance test is planned in time to be connected to the new system by the end date of the soft migration on 30.11.2023 at the latest.",null,{"$f":"'AN - Air'!W11","v":"7.00"},{"$f":"'AN - Air'!X11","v":"2024-03-20"},"Michael Schröter","DIIB12.gzd@zoll.bund.de","0049(0)228/303-21096"]
[null,null,"Step 1"]
[null,null,"Step 2"]
[null,null,"Step 3",null,null,null,null,null,null,null,null,null,null,null,null,null,null,null,null,null,null,"The functionalities Centralised Clearance and  \"Interface with NCTS\" are already covered by the national IT-systems ATLAS (Release 9.1) and AES Release 3.0, but will be activated end 3rd Quarter 2024."]
[null,{"$f":"formats!D9&\"-\"&formats!E9","v":"DK-Danmark"},"Single deployment","2022-08-01","Stable/Final","Completed",null,null,"Stable/Final","Completed",null,"Stable/Final","In progress","2023-07-29","2023-11-01","Stable/Final","In progress","2024-05-01","Indicative","In progress","www.toldst.dk ",null,null,{"$f":"'AN - Air'!W12","v":1},{"$f":"'AN - Air'!X12","v":"2024-04-15"},"Sadik Zeki Topcu","szt@UFST.DK","+45 7238 9320"]
[null,null,"Step 1",null,null,null,"2023-03-01","2023-07-17",null,null,"2023-07-29",null,null,"2023-07-29","2024-05-01",null,null,"2024-05-01"]
[null,null,"Step 2",null,null,null,"2023-12-06","2023-12-12",null,null,"2024-02-13",null,null,"2024-02-13","2024-05-01",null,null,"2024-05-01"]
[null,null,"Step 3",null,null,null,"2023-12-06","2023-12-12",null,null,"2025-01-21",null,null,"2023-07-29","2024-05-01",null,null,"2024-05-01"]
[null,{"$f":"formats!D10&\"-\"&formats!E10","v":"EE-Eesti"},"Single deployment","2022-03-31","Stable/Final","Completed","2023-03-01","2023-09-01","Stable/Final","Completed","2023-09-30","Stable/Final","In progress","2023-09-30","2023-09-30","Stable/Final","Completed","2023-10-01","Stable/Final","In progress","https://www.emta.ee/ariklient/e-teenused-koolitused/e-teenuste-kasutamine/teenuste-tehniline-info#aes\n",null,null,{"$f":"'AN - Air'!W13","v":17},{"$f":"'AN - Air'!X13","v":"2024-03-25"},"Tiiu Kaup","AES-NPM-EE@emta.ee",3726762264]
[null,null,"Step 1","2022-03-31"]
[null,null,"Step 2","2022-03-31"]
[null,null,"Step 3","2022-03-31"]
[null,{"$f":"formats!D11&\"-\"&formats!E11","v":"GR-Ελλάδα"},"Single deployment","2024-09-30","Indicative","Not started","2024-09-30","2024-12-31","Indicative","Not started","2025-03-31","Indicative","Not started"," "," ",null,null,"2025-03-31","Indicative","Not started","https://www.aade.gr/customs",null,"derogation request",{"$f":"'AN - Air'!W14","v":6.1},{"$f":"'AN - Air'!X14","v":"2024-03-08"},"Ms Tsironi","AES_NPM@AADE.GR","0030-2131356745"]
[null,null,"Step 1"]
[null,null,"Step 2"]
[null,null,"Step 3"]
[null,{"$f":"formats!D12&\"-\"&formats!E12","v":"ES-España"},"Single deployment","2021-04-15","Stable/Final","Completed","2021-11-10","2023-05-08","Stable/Final","Completed","2022-02-22","Stable/Final","Completed","2022-10-18","2023-05-08","Stable/Final","Completed","2023-05-09","Stable/Final","Completed",null,null,null,{"$f":"'AN - Air'!W15","v":3.2},{"$f":"'AN - Air'!X15","v":"2024-03-08"}]
[null,null,"Step 1"]
[null,null,"Step 2"]
[null,null,"Step 3"]
[null,{"$f":"formats!D13&\"-\"&formats!E13","v":"FI-Suomi/Finland"},"Single deployment","2023-06-30","Stable/Final","Completed",null,null,"Stable/Final","In progress",null,"Stable/Final","In progress",null,null,"Stable/Final","Not started",null,"Stable/Final","Not started","https://finnishcustoms-suomentulli.github.io/MIGs/Export/fi/index.html","The derogation paper has been sent for end date Q2/2024. Unfortunately we have to postpone the date until Q4/2024.  We have devided implementation into two phases. Phase 1  contains normal export, sp, simplifications, centralized clearance and EMCS integration.  Phase 2 contains exit functionalities and integration to EMSWe.  Phase 2 will be deployed Q2/2025. Phase 1 will be found in line for step 1 and phase 2 in line for step 3. Thus the line for step 2 will be empty.",null,{"$f":"'AN - Air'!W16","v":"13.00"},{"$f":"'AN - Air'!X16","v":"2024-03-22"},"Leila Lappalainen","leila.lappalainen@tulli.fi"]
[null,null,"Step 1",null,null,null,"2023-06-30","2024-12-31",null,null,"2024-12-31",null,null,"2024-12-31","2024-12-31",null,null,"2024-12-31"]
[null,null,"Step 2",null,null,null,"N/A","N/A",null,null,"N/A",null,null,"N/A","N/A",null,null,"N/A"]
[null,null,"Step 3",null,null,null,"2025-03-31","2025-06-30",null,null,"2025-06-30",null,null,"2025-06-30","2025-06-30",null,null,"2025-06-30"]
[null,{"$f":"formats!D14&\"-\"&formats!E14","v":"FR-France"},"Single deployment","2024-06-30","Indicative","In progress",null,null,"Indicative","Not started",null,"Indicative","Not started",null,null,"Indicative","Not started",null,"Indicative","Not started","https://www.douane.gouv.fr/services-aide/edi","Deployment of a partial perimeter \nProgress can be consulted via the following link: https://www.douane.gouv.fr/fiche/progress-report","Planning under review",{"$f":"'AN - Air'!W17","v":1.2},{"$f":"'AN - Air'!X17","v":"2024-02-07"},"Office COMINT 1 DGDDI","dg-comint1-delta@douane.finances.gouv.fr"]
[null,null,"Step 1","Q1 2023",null,null,"2025-03-31","2025-12-31",null,null,"2025-12-31",null,null,"2025-12-31","2026-03-31",null,null,"2026-06-30"]
[null,null,"Step 2","Q1 2023",null,null,"TBD","TBD",null,null,"TBD",null,null,"TBD","TBD",null,null,"TBD"]
[null,null,"Step 3","Q1 2023",null,null,"TBD","TBD",null,null,"TBD",null,null,"TBD","TBD",null,null,"TBD"]
[null,{"$f":"formats!D15&\"-\"&formats!E15","v":"HR-Hrvatska"},"Single deployment","2021-12-31","Stable/Final","Completed","2022-10-01","2023-03-10","Stable/Final","Completed","2023-05-02",null,null,null,null,null,null,"2023-05-03","Stable/Final",null,"https://carina.gov.hr",null,null,{"$f":"'AN - Air'!W18","v":9.1999999999999993},{"$f":"'AN - Air'!X18","v":"2024-03-19"},"Mihaela Kleković","mihaela.klekovic@carina.hr ",38516211407]
[null,null,"Step 1"]
[null,null,"Step 2"]
[null,null,"Step 3"]
[null,{"$f":"formats!D16&\"-\"&formats!E16","v":"HU-Magyarország"},"Single deployment","2023-04-03","Stable/Final","Completed",null,null,"Indicative","Not started",null,"Indicative","Not started",null,null,"Indicative","Not started",null,"Indicative","Not started","Dokumentumok (gov.hu)",null,null,{"$f":"'AN - Air'!W19","v":11},{"$f":"'AN - Air'!X19","v":"2024-01-31"},"Jenes Barbara","uvk_mp_masp@nav.gov.hu",3614569584]
[null,null,"Step 1","2023-03-31",null,null,"2024-07-01","2024-11-15",null,null,"2024-12-01",null,null,"2024-12-01","2024-12-01",null,null,"2024-12-01"]
[null,null,"Step 2","2023-03-31",null,null,"2024-07-01","2024-11-15",null,null,"2024-12-01",null,null,"2024-12-01","2024-12-01",null,null,"2024-12-01"]
[null,null,"Step 3","2023-03-31",null,null,"2025-04-01","2025-06-15",null,null,"2025-07-01",null,null,"2025-07-01","2025-07-01",null,null,"2025-07-01",null,null,null,null,"The CCE and the EIDR functionalities won't be ready until 2nd December 2024."]
[null,{"$f":"formats!D17&\"-\"&formats!E17","v":"IE-Éire/Ireland"},"Single deployment","2022-01-28","Stable/Final","Completed",null,null,"Stable/Final","In progress",null,"Stable/Final","In progress",null,null,"Stable/Final","In progress",null,"Stable/Final","In progress","www.revenue.ie",null,null,{"$f":"'AN - Air'!W20","v":15.2},{"$f":"'AN - Air'!X20","v":"2024-03-21"},"Paul Paxman","UCCITDev@revenue.ie"]
[null,null,"Step 1",null,null,null,"2022-07-31","2023-03-30",null,null,"2023-03-21",null,null,"2023-03-21","2023-05-21",null,null,"2023-05-21",null,null,null,"Step 1 is complete, however spreadsheet doesn’t allow for differentiation of each step"]
[null,null,"Step 2",null,null,null,"2022-07-31","2024-12-01",null,null,"2024-02-13",null,null,"2024-02-13","2024-02-13",null,null,"2024-02-13"]
[null,null,"Step 3",null,null,null,"2024-04-08","2024-12-01",null,null,"2024-07-01",null,null,"2024-07-01","2024-12-01",null,null,"2024-12-02"]
[null,{"$f":"formats!D18&\"-\"&formats!E18","v":"IT-Italia"},"Single deployment","2021-02-15","Stable/Final",null,null,null,null,null,null,null,null,null,null,null,null,null,null,null,"https://www.adm.gov.it/portale/dichiarazioni-export",null,null,{"$f":"'AN - Air'!W21","v":1.01},{"$f":"'AN - Air'!X21","v":"2024-03-13"},"Francesco Cusmai","francesco.cusmai@adm.gov.it","+39 06 5024 3015"]
[null,null,"Step 1",null,null,null,"2022-02-01","2023-05-07",null,null,"2023-11-29",null,null,"2023-03-01","2023-05-07",null,null,"2023-06-08"]
[null,null,"Step 2",null,null,null,"NA","NA",null,null,"2024-02-13",null,null,"NA","NA",null,null,"NA"]
[null,null,"Step 3",null,null,null,"2024-09-16","2024-11-29",null,null,"2024-12-01",null,null,"2024-11-25","2024-12-01",null,null,"2024-12-01"]
[null,{"$f":"formats!D19&\"-\"&formats!E19","v":"LT-Lietuva"},"Single deployment","2023-05-04","Stable/Final","Completed",null,null,"Stable/Final","In progress",null,"Stable/Final","In progress",null,null,"Stable/Final","In progress",null,"Stable/Final","In progress","https://www.lrmuitine.lt/web/guest/591 ","There will be a big bang for all economic operators. All communication should be additionally copied to tautvydas.banelis@lrmuitine.lt , giedre.jusaityte@lrmuitine.lt, danute.gruzaite@lrmuitine.lt",null,{"$f":"'AN - Air'!W22","v":13.1},{"$f":"'AN - Air'!X22","v":"2024-03-08"},"Nida Ruseckienė","UCC_AES_C1-LT@lrmuitine.lt",37052327490]
[null,null,"Step 1",null,null,null,"04/06/2023","01/12/2023",null,null,"03/12/2023",null,null,"03/12/2023","03/12/2023",null,null,"03/12/2023"]
[null,null,"Step 2",null,null,null,"03/12/2023","01/12/2023",null,null,"03/12/2023",null,null,"03/12/2023","03/12/2023",null,null,"03/12/2023"]
[null,null,"Step 3",null,null,null,"18/03/2024","31/08/2024",null,null,"01/09/2024",null,null,"01/09/2024","01/09/2024",null,null,"01/09/2024",null,null,null," Step 1 and Step 2 are finished. For Step 3 - given that NCTS P5 will be implemented on 01/09/2024, accordingly, AES integration with NCTS will be implemented on 01/09/2024."]
[null,{"$f":"formats!D20&\"-\"&formats!E20","v":"LU-Luxembourg"},"Single deployment","2023-07-01",null,null,"2024-02-01","2024-03-30",null,null,"2023-12-01",null,null,null,null,null,null,"2024-03-30",null,null,"https://douanes.public.lu/fr/services-ligne/edouanes/LUCCS.html","Simplified declarations, complementary declarations and centralised clearance for export will just be available for 1 december 2024",null,{"$f":"'AN - Air'!W23","v":1},{"$f":"'AN - Air'!X23","v":"2023-03-15"},"Robert Scheueren","it.npm@do.etat.lu","+352 621 306 782"]
[null,null,"Step 1"]
[null,null,"Step 2"]
[null,null,"Step 3"]
[null,{"$f":"formats!D21&\"-\"&formats!E21","v":"LV-Latvija"},"Single deployment","N/A","Stable/Final","Not started",null,null,"Stable/Final","Completed",null,"Stable/Final","In progress",null,null,"Stable/Final","Not started",null,"Stable/Final","In progress","https://www.vid.gov.lv/lv/k%C4%81-lietot-emdas",null,null,{"$f":"'AN - Air'!W24","v":3},{"$f":"'AN - Air'!X24","v":"2024-03-08"},"Nikolajs Zimnoho","ecustoms@vid.gov.lv ",37167120820]
[null,null,"Step 1",null,null,null,"2023-07-10","2023-09-30",null,null,"2023-10-10",null,null,"N/A","N/A",null,null,"2023-10-10",null,null,null,"Full funcionality according to the EU technical specifications including standart and simplified procedures, EXS, REN and Centralised clerance for export has been implemented (GUI)"]
[null,null,"Step 2",null,null,null,"N/A","N/A",null,null,"2024-02-13",null,null,"N/A","N/A",null,null,"2024-02-13",null,null,null,"Adjustsments in the interface with EMCS according the the changes in EMCS"]
[null,null,"Step 3",null,null,null,"N/A","N/A",null,null,"2024-12-01",null,null,"N/A","N/A",null,null,"2024-12-01",null,null,null,"Interface with NCTS (work in progress) is foressen to will be added in 2024 Q1, but not later then 1.12.2024"]
[null,{"$f":"formats!D22&\"-\"&formats!E22","v":"MT-Malta"},"Single deployment","N/A","Indicative","Not started","N/A","N/A","Indicative","Not started","2024-12-01","Indicative",null,null,null,null,null,"2024-12-01","Indicative","Not started","www.customs.gov.mt","Due to the small amount of movements that Maltese EOs have, it is not feasible for the majority of EOs to develop a system-to-system mechanism and therefore a GUI where declarations can be filed suffices for the time being. Nonetheless, Malta will provide such facility at a later stage for those EOs interested in developing a system-to-system mechanism.","Please note that Malta has requested a derogation (on 22 November 2023) thus all dates are tentative.  Automated Export System - Phase 1 (AES-P1) development is ongoing, CT work has started, however there are delays due to some risk providers and delays in the EU Customs Integrated Tariff database (TARIC).",{"$f":"'AN - Air'!W25","v":"3.02"},{"$f":"'AN - Air'!X25","v":"2024-03-20"},"Keith Aquilina","keith.b.aquilina@gov.mt",35623783083]
[null,null,"Step 1"]
[null,null,"Step 2"]
[null,null,"Step 3"]
[null,{"$f":"formats!D23&\"-\"&formats!E23","v":"NL-Nederland"},"Single deployment","2021-06-22","Stable/Final","Completed",null,null,"Indicative","In progress",null,"Indicative","In progress",null,null,"Indicative","In progress",null,"Indicative","In progress","https://www.nhdouane.nl/","The transition period has formally ended, but not all traders are fully migrated yet.",null,{"$f":"'AN - Air'!W26","v":"3.00"},{"$f":"'AN - Air'!X26","v":"2024-04-05"},"National Helpdesk Dutch Customs","NHD.apeldoorn@douane.nl","(+31)(0)88 156 6655"]
[null,null,"Step 1",null,null,null,"2022-09-20","2022-09-21",null,null,"2023-05-08",null,null,"2023-05-08","2023-11-30",null,null,"2023-12-01"]
[null,null,"Step 2",null,null,null,"2024-01-01","2024-02-12",null,null,"2024-02-13",null,null,"N/A","N/A",null,null,"2024-02-13"]
[null,null,"Step 3",null,null,null,"2024-08-01","2024-12-01",null,null,"2024-12-02",null,null,"N/A","N/A",null,null,"2024-12-02"]
[null,{"$f":"formats!D24&\"-\"&formats!E24","v":"PL-Polska"},"Single deployment","2021-05-15","Stable/Final","Completed","2023-01-16","2023-10-02","Stable/Final","Completed","2024-05-01","Indicative","In progress","N/A","N/A","Indicative","Not started","2024-07-01","Indicative","In progress","https://puesc.gov.pl/en/puesc",null,null,{"$f":"'AN - Air'!W27","v":"3.20"},{"$f":"'AN - Air'!X27","v":"2024-03-11"},"Krzysztof Gil","aes.ais.projekt.ias.350000@mf.gov.pl",48126290112]
[null,null,"Step 1",null,null,null,null,null,null,null,null,null,null,null,null,null,null,null,null,null,null,null,null,null,null,"Krzysztof Gil","aes.ais.projekt.ias.350000@mf.gov.pl",48126290112]
[null,null,"Step 2",null,null,null,null,null,null,null,null,null,null,null,null,null,null,null,null,null,null,null,null,null,null,"Krzysztof Gil","aes.ais.projekt.ias.350000@mf.gov.pl",48126290112]
[null,null,"Step 3",null,null,null,null,null,null,null,null,null,null,null,null,null,null,null,null,null,null,null,null,null,null,"Krzysztof Gil","aes.ais.projekt.ias.350000@mf.gov.pl",48126290112]
[null,{"$f":"formats!D25&\"-\"&formats!E25","v":"PT-Portugal"},"Single deployment","2023-02-22","Stable/Final","Completed","2023-04-01","2024-10-31","Indicative","In progress","2024-11-30","Indicative","Not started",null,null,null,null,"2024-12-02","Indicative","Not started","https://info-aduaneiro.portaldasfinancas.gov.pt/pt/informacao_aduaneira/Pages/default.aspx","Test environment available to EOs. \nDeployment of core and non core funcionalities in the same date.\nDerrogation request to second semester 2024",null,{"$f":"'AN - Air'!W28","v":7.2},{"$f":"'AN - Air'!X28","v":"2024-04-05"},"Carla Filipe","Carla.Simoes.Filipe@at.gov.pt","00351 218 813 887"]
[null,null,"Step 1"]
[null,null,"Step 2"]
[null,null,"Step 3"]
[null,{"$f":"formats!D26&\"-\"&formats!E26","v":"RO-România "},"Single deployment","2023-01-06",null,null,"2023-05-15","2023-11-30",null,null,"2023-05-15","Indicative",null,"N/A","N/A",null,"Not started","2024-03-16","Indicative","Completed","www.customs.ro",null,null,{"$f":"'AN - Air'!W29","v":"3.00"},{"$f":"'AN - Air'!X29","v":"2024-03-25"},"Liviu Stefan\nAndreea Bîrsan","liviu.stefan@customs.ro\nandreea.birsan@customs.ro",40213108553]
[null,null,"Step 1"]
[null,null,"Step 2"]
[null,null,"Step 3"]
[null,{"$f":"formats!D27&\"-\"&formats!E27","v":"SE-Sverige"},"Single deployment","2022-12-15","Stable/Final","Completed","2024-01-24","2024-12-02","Stable/Final","In progress","2024-10-01","Stable/Final","Not started","2024-10-01","2024-12-02","Stable/Final","Not started","2024-12-02","Stable/Final","Not started","https://www.tullverket.se/eng/business/scheduleforintroductionoftheunioncustomscode.4.422c8052175b1d827692251.html","Concerning export, Sweden has asked for derogation until the 31 December 2024. Work is progressing and we will now follow the updated WP and the end date where alla EO should be operational is 2 December 2024. According to our plan we will have a phased implementation and we have asked for derogation for EIDR until the 30 June 2025.",null,{"$f":"'AN - Air'!W30","v":21},{"$f":"'AN - Air'!X30","v":"2024-03-08"},"Lotta Lindh","projekt.export@tullverket.se"]
[null,null,"Step 1"]
[null,null,"Step 2",null,null,null,null,null,null,null,null,null,null,null,null,null,null,null,null,null,null,"Regarding step 2 and the interface with EMCS there is a solution between Swedish Customs and Swedish Tax authorities that will be used during the period from the 24 February 2024 until the 2 December 2024. This solution has no impact for the traders and the external domain."]
[null,null,"Step 3"]
[null,{"$f":"formats!D28&\"-\"&formats!E28","v":"SI-Slovenija"},"Single deployment","2020-12-18","Stable/Final","Completed","2022-05-03","2023-05-23","Stable/Final","Completed","2023-05-24","Stable/Final","Completed","2023-05-24","2023-05-24","Stable/Final","Completed","2023-05-24","Stable/Final","Completed","e-Carina | FINANČNA UPRAVA REPUBLIKE SLOVENIJE (gov.si)","A single deployment approach",null,{"$f":"'AN - Air'!W31","v":16.02},{"$f":"'AN - Air'!X31","v":"2024-03-20"},"Mr. Davorin Lončar","sd.fu@gov.si","00386 1/478 39 22"]
[null,null,"Step 1",null,null,null,null,null,null,null,null,null,null,null,null,null,null,null,null,null,null,"A single deployment approach"]
[null,null,"Step 2",null,null,null,null,null,null,null,null,null,null,null,null,null,null,null,null,null,null,"A single deployment approach"]
[null,null,"Step 3",null,null,null,null,null,null,null,null,null,null,null,null,null,null,null,null,null,null,"A single deployment approach"]
[null,{"$f":"formats!D29&\"-\"&formats!E29","v":"SK-Slovensko"},"Single deployment","2023-02-03","Stable/Final","Completed","2023-10-25","2024-10-13","Indicative","In progress","2024-10-14","Indicative","Not started","2024-10-13","2024-10-13","Indicative","Not started","2024-10-14","Indicative","Not started","Projekt AES - PFS (financnasprava.sk)",null,"Request for derogation sent on 2nd of October 2023 ",{"$f":"'AN - Air'!W32","v":1},{"$f":"'AN - Air'!X32","v":"2024-03-08"},"Martin Svrček","martin.svrcek@financnasprava.sk","00421 2 48273231"]
[null,null,"Step 1"]
[null,null,"Step 2"]
[null,null,"Step 3"]

{"sheet":"AES-C2","index":20,"n_rows":32,"n_cols":27,"rows_kept":32,"cut":false,"hidden":false,"merged":[[2,24,2,26],[3,2,3,4],[3,5,3,8],[3,9,3,11],[3,12,3,15],[3,16,3,18],[2,2,2,4],[2,5,2,8],[2,9,2,11],[2,12,2,15],[2,16,2,18],[2,22,2,23]]}
[]
[]
[null,null,"Technical Specifications",null,null,"Conformance Testing",null,null,null,"Deployment",null,null,"Migration",null,null,null,"Operations",null,null,"Web","Notes","Derogations","Version information and issue date",null,"Project Manager Details"]
[null,null,"The date of publication of the technical specifications for the external communication on the electronic system",null,null,"The period of conformance testing with economic operators",null,null,null,"The date of deployment of the electronic system",null,null,"Where applicable, the period during which the economic operators are allowed to carry out migration",null,null,null,"Start of Operations for all economic operators (end of transition period)",null,null,"Web address of specifications for EO's",null,"If a derogation under Art 6(4) UCC was granted, please indicate the activities carried out and the state of development in order to reach the derogation deadline."]
[null,{"$f":"formats!A15","v":"UCC AES (Component 2) \"National Export Systems upgrade\""},"Date","Status","Progress","Start Date","End Date","Status","Progress","Date","Status","Progress","Start Date","End Date","Status","Progress","Date","Status","Progress","Web address","Note/Comment","Note/Comment","Version Number","Issue Date","Project Mgr Name","e-Mail","Phone"]
[null,{"$f":"formats!D3&\"-\"&formats!E3","v":"AT-Österreich"},"2022-01-01","Stable/Final","Completed","2024-06-01","2024-08-30","Stable/Final","Not started","2024-11-15","Stable/Final","In progress","open","open","Indicative",null,"2024-11-15","Indicative","In progress","AES - Automated Export System (bmf.gv.at)","tender completed, software provider available, developement started, CT started","derogation decission is outstanding",{"$f":"'AN - Air'!W6","v":13},{"$f":"'AN - Air'!X6","v":"2024-03-18"},"Klaus Schacherl","klaus.schacherl@bmf.gv.at","0043-1-51433-506221"]
[null,{"$f":"formats!D4&\"-\"&formats!E4","v":"BE-Belgique/België"},"2021-09-01","Stable/Final",null,"2023-06-23","2024-04-12",null,"In progress","2024-04-17","Indicative",null,"2024-04-17","2024-09-02","Indicative",null,"2024-09-02",null,null,"https://financien.belgium.be/nl/douane_accijnzen/ondernemingen/applicaties-da/technische-documentatie-0",null,null,{"$f":"'AN - Air'!W7","v":"4.00"},{"$f":"'AN - Air'!X7","v":"2024-02-20"},"Wouter De Vlieger\nJurgen Van Dijck (Service manager)","wouter.devlieger@minfin.fed.be\njurgen.vandijck@temp.minfin.be"]
[null,{"$f":"formats!D5&\"-\"&formats!E5","v":"BG-България"},"2022-08-31","Stable/Final","Completed","2023-07-24","2023-08-11","Stable/Final","Completed","2023-08-28","Stable/Final","Completed",null,null,null,null,"2023-08-29","Stable/Final","Completed","https://ep.customs.bg/eportal/",null,null,{"$f":"'AN - Air'!W8","v":"10.01"},{"$f":"'AN - Air'!X8","v":"2024-03-01"},"Darina Karadencheva","masp_bg@customs.bg","0035952689452"]
[null,{"$f":"formats!D6&\"-\"&formats!E6","v":"CY-Κύπρος"},"2023-08-01","Stable/Final","Completed","2023-09-18","2023-11-30","Stable/Final","Completed","2023-12-18","Stable/Final","Completed","N/A","N/A",null,"Not started","2023-12-18","Stable/Final","Completed","https://www.mof.gov.cy/mof/ce/theseas/theseas.nsf/techinfo_en/techinfo_en?OpenDocument",null,null,{"$f":"'AN - Air'!W9","v":7},{"$f":"'AN - Air'!X9","v":"2024-04-26"},"Anna Christodoulidou","anchristodoulidou@customs.mof.gov.cy",35722601868]
[null,{"$f":"formats!D7&\"-\"&formats!E7","v":"CZ-Česká republika"},"2021-10-21","Stable/Final","Completed","2023-01-02","2023-09-30","Stable/Final","Completed","2023-10-01","Stable/Final","Completed",null,null,null,null,"2023-10-01","Stable/Final","Completed","https://www.celnisprava.cz/cz/clo/e-customs/ecs/Stranky/dokumentace-pro-vyrobce-SW-UCC-AES.aspx","In CZ will be \"big bang\". All economic operators will start at the same date. ",null,{"$f":"'AN - Air'!W10","v":"1.5"},{"$f":"'AN - Air'!X10","v":"2024-05-16"},"František Šíma","NPP.MASP@cs.mfcr.cz",420261332633]
[null,{"$f":"formats!D8&\"-\"&formats!E8","v":"DE-Deutschland"},"2020-10-09","Stable/Final",null,"2021-04-19","2023-10-29","Stable/Final",null,"2021-03-06","Stable/Final",null,"2021-04-19","2023-11-30","Stable/Final","Completed","2023-10-29","Stable/Final",null,"www.zoll.de","This component is implemented in line with the project \"UCC AES (Component 1) Transeuropean AES\"\nIT Service Providers and Economic Operators must ensure that the conformance test is planned in time to be connected to the new system by the end date of the soft migration on 30.11.2023 at the latest.",null,{"$f":"'AN - Air'!W11","v":"7.00"},{"$f":"'AN - Air'!X11","v":"2024-03-20"},"Michael Schröter","DIIB12.gzd@zoll.bund.de","0049(0)228/303-21096"]
[null,{"$f":"formats!D9&\"-\"&formats!E9","v":"DK-Danmark"},"2022-08-01","Stable/Final","Completed","2023-03-01","2023-12-12","Stable/Final","Completed","2024-02-13","Stable/Final","Completed","2023-07-29","2024-05-01","Stable/Final","In progress","2024-05-01","Indicative","In progress","www.toldst.dk ",null,null,{"$f":"'AN - Air'!W12","v":1},{"$f":"'AN - Air'!X12","v":"2024-04-15"},"Sadik Zeki Topcu","szt@UFST.DK","+45 7238 9320"]
[null,{"$f":"formats!D10&\"-\"&formats!E10","v":"EE-Eesti"},"2022-03-31","Stable/Final","Completed","2023-03-01","2023-09-01","Stable/Final","Completed","2023-09-30","Stable/Final","Completed","2023-09-30","2023-09-30","Stable/Final","Completed","2023-10-01","Stable/Final","Completed","https://www.emta.ee/ariklient/e-teenused-koolitused/e-teenuste-kasutamine/teenuste-tehniline-info#aes",null,null,{"$f":"'AN - Air'!W13","v":17},{"$f":"'AN - Air'!X13","v":"2024-03-25"},"Tiiu Kaup","AES-NPM-EE@emta.ee",3726762264]
[null,{"$f":"formats!D11&\"-\"&formats!E11","v":"GR-Ελλάδα"},"2024-09-30","Indicative","Not started"," "," ",null,null,"2024-12-31","Indicative","Not started","2024-12-31","2024-12-31","Indicative","Not started","2024-12-31","Indicative","Not started","https://www.aade.gr/customs",null,null,{"$f":"'AN - Air'!W14","v":6.1},{"$f":"'AN - Air'!X14","v":"2024-03-08"},"Ms Tsironi","AES_NPM@AADE.GR","0030-2131356745"]
[null,{"$f":"formats!D12&\"-\"&formats!E12","v":"ES-España"},"2021-04-15","Stable/Final","Completed","2021-11-10","2023-05-08","Stable/Final","Completed","2022-10-18","Stable/Final","Completed","2022-10-18","2023-05-08","Stable/Final","Completed","2023-05-09","Stable/Final","Completed","https://sede.agenciatributaria.gob.es/Sede/aduanas/aduana-electronica/guias-tecnicas.html",null,null,{"$f":"'AN - Air'!W15","v":3.2},{"$f":"'AN - Air'!X15","v":"2024-03-08"}]
[null,{"$f":"formats!D13&\"-\"&formats!E13","v":"FI-Suomi/Finland"},"2023-06-30","Stable/Final","Completed","2024-06-30","2024-12-31","Stable/Final","In progress","2024-12-31","Stable/Final","In progress","2024-12-31","2024-12-31","Stable/Final","Not started","2024-12-31","Stable/Final","Not started","https://finnishcustoms-suomentulli.github.io/MIGs/Export/en/index.html ","The derogation paper has been sent for end date Q2/2024. Unfortunately we have to postpone the date until Q4/2024.  We have divided implementation into two phases. Phase 1  contains normal export, sp, simplifications, centralized clearance and EMCS integration.  Phase 2 contains exit functionalities and integration to EMSWe.  Phase 2 will be deployed Q2/2025. Phase 1 will be found in line for step 1 and phase 2 in line for step 3. Thus the line for step 2 will be empty.",null,{"$f":"'AN - Air'!W16","v":"13.00"},{"$f":"'AN - Air'!X16","v":"2024-03-22"},"Leila Lappalainen","leila.lappalainen@tulli.fi"]
[null,{"$f":"formats!D14&\"-\"&formats!E14","v":"FR-France"},"2024-06-30","Indicative","In progress","2025-03-31","2025-12-31","Indicative","Not started","2025-12-31","Indicative","Not started","2025-12-31","2026-03-31","Indicative","Not started","2026-06-30","Indicative","Not started","https://www.douane.gouv.fr/services-aide/edi","Progress can be consulted via the following link  :https://www.douane.gouv.fr/fiche/progress-report","Planning under review",{"$f":"'AN - Air'!W17","v":1.2},{"$f":"'AN - Air'!X17","v":"2024-02-07"},"Office COMINT 1 DGDDI","dg-comint1-delta@douane.finances.gouv.fr"]
[null,{"$f":"formats!D15&\"-\"&formats!E15","v":"HR-Hrvatska"},"2022-01-01","Stable/Final",null,"2022-10-01","2023-03-10","Stable/Final",null,"2023-05-02",null,null,null,null,null,null,"2023-05-02","Stable/Final","Completed","https://carina.gov.hr",null,null,{"$f":"'AN - Air'!W18","v":9.1999999999999993},{"$f":"'AN - Air'!X18","v":"2024-03-19"},"Mihaela Kleković","mihaela.klekovic@carina.hr ",38516211407]
[null,{"$f":"formats!D16&\"-\"&formats!E16","v":"HU-Magyarország"},"2023-04-03","Stable/Final","Completed","2024-07-01","2024-11-15","Indicative","Not started","2024-12-01","Indicative","Not started","2024-12-01","2024-12-01","Indicative","Not started","2024-12-01","Indicative","Not started","Dokumentumok (gov.hu)",null,null,{"$f":"'AN - Air'!W19","v":11},{"$f":"'AN - Air'!X19","v":"2024-01-31"},"Jenes Barbara","uvk_mp_masp@nav.gov.hu",3614569584]
[null,{"$f":"formats!D17&\"-\"&formats!E17","v":"IE-Éire/Ireland"},"2022-01-28","Stable/Final","Completed","2022-07-31","2023-03-30","Stable/Final","Completed","2023-03-21","Stable/Final","Completed","2023-03-21","2023-05-21","Stable/Final","Completed","2023-05-21","Stable/Final","Completed","www.revenue.ie",null,null,{"$f":"'AN - Air'!W20","v":15.2},{"$f":"'AN - Air'!X20","v":"2024-03-21"},"Paul Paxman","UCCITDev@revenue.ie"]
[null,{"$f":"formats!D18&\"-\"&formats!E18","v":"IT-Italia"},"2021-02-15","Stable/Final",null,"2022-02-01","2023-05-07",null,null,"2023-11-29",null,null,"2023-03-01","2023-05-07",null,null,"2023-06-08",null,null,"https://www.adm.gov.it/portale/dichiarazioni-export",null,null,{"$f":"'AN - Air'!W21","v":1.01},{"$f":"'AN - Air'!X21","v":"2024-03-13"},"Francesco Cusmai","Francesco.Cusmai@adm.gov.it","+39 06 5024 3015"]
[null,{"$f":"formats!D19&\"-\"&formats!E19","v":"LT-Lietuva"},"04/05/2023","Stable/Final","Completed","04/06/2023","01/12/2023","Stable/Final","Completed","03/12/2023","Stable/Final","Completed","03/12/2023","03/12/2023","Stable/Final","Completed","03/12/2023","Stable/Final","Completed","https://www.lrmuitine.lt/web/guest/591 ","There will be a big bang for all economic operators. All communication should be additionally copied to tautvydas.banelis@lrmuitine.lt , giedre.jusaityte@lrmuitine.lt, danute.gruzaite@lrmuitine.lt",null,{"$f":"'AN - Air'!W22","v":13.1},{"$f":"'AN - Air'!X22","v":"2024-03-08"},"Nida Ruseckienė","UCC_AES_C2_N-LT@lrmuitine.lt",37052327490]
[null,{"$f":"formats!D20&\"-\"&formats!E20","v":"LU-Luxembourg"},"2023-07-01",null,null,"2024-02-01","2024-03-30",null,null,"2023-12-01",null,null,null,null,null,null,"2024-03-30",null,null,"https://douanes.public.lu/fr/services-ligne/edouanes/LUCCS.html","Simplified declarations, complementary declarations and centralised clearance for export will just be available for 1 december 2024",null,{"$f":"'AN - Air'!W23","v":1},{"$f":"'AN - Air'!X23","v":"2023-03-15"},"Robert Scheueren","it.npm@do.etat.lu","+352 621 306 782"]
[null,{"$f":"formats!D21&\"-\"&formats!E21","v":"LV-Latvija"},"N/A","Stable/Final","Not started","N/A","N/A","Stable/Final","Not started","2023-10-10","Stable/Final","Completed","N/A","N/A","Stable/Final","Not started","2023-10-10","Stable/Final","Completed","https://www.vid.gov.lv/lv/k%C4%81-lietot-emdas","Updated together with national import system. ",null,{"$f":"'AN - Air'!W24","v":3},{"$f":"'AN - Air'!X24","v":"2024-03-08"},"Nikolajs Zimnoho","ecustoms@vid.gov.lv ",37167120820]
[null,{"$f":"formats!D22&\"-\"&formats!E22","v":"MT-Malta"},"N/A","Indicative","Not started","N/A","N/A","Indicative","Not started","2024-12-01","Indicative","Not started",null,null,null,null,"2024-12-01","Indicative","Not started","www.customs.gov.mt","Due to the small amount of movements that Maltese EOs have, it is not feasible for the majority of EOs to develop a system-to-system mechanism and therefore a GUI where declarations can be filed suffices for the time being. Nonetheless, Malta will provide such facility at a later stage for those EOs interested in developing a system-to-system mechanism.","Please note that Malta has requested a derogation (on 22 November 2023) thus all dates are tentative. AES-P1 development is ongoing, CT work has started, however there are delays due to some risk providers and delays in the TARIC.",{"$f":"'AN - Air'!W25","v":"3.02"},{"$f":"'AN - Air'!X25","v":"2024-03-20"},"Keith Aquilina","keith.b.aquilina@gov.mt",35623783083]
[null,{"$f":"formats!D23&\"-\"&formats!E23","v":"NL-Nederland"},"2021-06-22","Stable/Final","Completed","2022-09-20","2023-12-01","Stable/Final","Completed","2023-05-08","Indicative","In progress","2023-05-08","2023-11-30","Indicative","In progress","2023-12-01","Indicative","In progress","https://www.nhdouane.nl/","The transition period has formally ended, but not all traders are fully migrated yet.",null,{"$f":"'AN - Air'!W26","v":"3.00"},{"$f":"'AN - Air'!X26","v":"2024-04-05"},"National Helpdesk Dutch Customs","NHD.apeldoorn@douane.nl","(+31)(0)88 156 6655"]
[null,{"$f":"formats!D24&\"-\"&formats!E24","v":"PL-Polska"},"2021-05-15","Stable/Final","Completed","2023-01-16","2023-10-02","Stable/Final","Completed","2024-05-01",null,null,"N/A","N/A","Indicative","Not started","2024-07-01","Indicative","In progress","https://puesc.gov.pl/en/puesc",null,null,{"$f":"'AN - Air'!W27","v":"3.20"},{"$f":"'AN - Air'!X27","v":"2024-03-11"},"Krzysztof Gil","aes.ais.projekt.ias.350000@mf.gov.pl",48126290112]
[null,{"$f":"formats!D25&\"-\"&formats!E25","v":"PT-Portugal"},"2023-02-22","Stable/Final","Completed","2023-04-01","2024-10-31","Indicative","In progress","2024-11-30","Indicative","Not started",null,null,null,null,"2024-12-02","Indicative","Not started","https://info-aduaneiro.portaldasfinancas.gov.pt/pt/informacao_aduaneira/Pages/default.aspx","Test environment available to EOs. \nDeployment of core and non core funcionalities in the same date.",null,{"$f":"'AN - Air'!W28","v":7.2},{"$f":"'AN - Air'!X28","v":"2024-04-05"},"Carla Filipe","Carla.Simoes.Filipe@at.gov.pt","00351 218 813 887"]
[null,{"$f":"formats!D26&\"-\"&formats!E26","v":"RO-România "},"2023-01-06",null,null,"2023-05-15","2023-11-30",null,null,"2023-05-15","Indicative",null,"N/A","N/A",null,"Not started","2024-03-16","Indicative","Completed","www.customs.ro",null,null,{"$f":"'AN - Air'!W29","v":"3.00"},{"$f":"'AN - Air'!X29","v":"2024-03-25"},"Liviu Stefan\nAndreea Bîrsan","liviu.stefan@customs.ro\nandreea.birsan@customs.ro",40213108553]
[null,{"$f":"formats!D27&\"-\"&formats!E27","v":"SE-Sverige"},"2022-12-15","Stable/Final","Completed","2024-01-24","2024-12-02","Stable/Final","In progress","2024-10-01","Stable/Final","Not started","2024-10-01","2024-12-02","Stable/Final","Not started","2024-12-02","Indicative","Not started","https://www.tullverket.se/eng/business/scheduleforintroductionoftheunioncustomscode.4.422c8052175b1d827692251.html","Concerning export, Sweden has asked for derogation until the 31 December 2024.  Work is progressing but our assessment is that there is still a need for the derogation. According to our updated plan we will have a phased implementation and we have asked for derogation for EIDR until the 30 June 2025 and for re export notification and exit summary declaration until the 31 of December 2025. ",null,{"$f":"'AN - Air'!W30","v":21},{"$f":"'AN - Air'!X30","v":"2024-03-08"},"Lotta Lindh","projekt.export@tullverket.se"]
[null,{"$f":"formats!D28&\"-\"&formats!E28","v":"SI-Slovenija"},"2020-12-18","Stable/Final","Completed","2022-05-03","2023-05-23","Stable/Final","Completed","2023-05-24","Stable/Final","Completed","2023-05-24","2023-05-24","Stable/Final","Completed","2023-05-24","Stable/Final","Completed","e-Carina | FINANČNA UPRAVA REPUBLIKE SLOVENIJE (gov.si)",null,null,{"$f":"'AN - Air'!W31","v":16.02},{"$f":"'AN - Air'!X31","v":"2024-03-20"},"Mr. Davorin Lončar","sd.fu@gov.si","00386 1/478 39 22"]
[null,{"$f":"formats!D29&\"-\"&formats!E29","v":"SK-Slovensko"},"2023-02-03","Stable/Final","Completed","2023-10-25","2024-10-13","Indicative","In progress","2024-10-14","Indicative","Not started","2024-10-13","2024-10-13","Indicative","Not started","2024-10-14",null,"Not started","Projekt AES - PFS (financnasprava.sk)",null,"Request for derogation sent on 2nd of October 2023 ",{"$f":"'AN - Air'!W32","v":1},{"$f":"'AN - Air'!X32","v":"2024-03-08"},"Martin Svrček","martin.svrcek@financnasprava.sk","00421 2 48273231"]

{"sheet":"ICS2-R3","index":21,"n_rows":113,"n_cols":28,"rows_kept":113,"cut":false,"hidden":false,"merged":[[101,12,104,12],[101,11,104,11],[101,3,104,3],[101,4,104,4],[101,5,104,5],[101,16,104,16],[101,15,104,15],[101,19,104,19],[101,18,104,18],[101,9,104,9],[109,25,112,25],[109,26,112,26],[109,27,112,27],[109,18,112,18],[109,19,112,19],[109,23,112,23],[109,24,112,24],[105,25,108,25],[105,26,108,26],[105,27,108,27],[105,18,108,18],[105,19,108,19],[105,23,108,23],[105,24,108,24],[33,3,36,3],[37,3,40,3],[41,3,44,3],[45,3,48,3],[49,3,52,3],[109,15,112,15],[109,16,112,16],[53,3,56,3],[57,3,60,3],[61,3,64,3],[65,3,68,3],[69,3,72,3],[73,3,76,3],[105,3,108,3],[109,3,112,3],[81,3,84,3],[85,3,88,3],[89,3,92,3],[89,5,92,5],[81,4,84,4],[89,8,92,8],[93,15,96,15],[93,16,96,16],[93,3,96,3],[109,1,112,1],[109,4,112,4],[109,5,112,5],[109,8,112,8],[109,9,112,9],[109,11,112,11],[109,12,112,12],[105,15,108,15],[105,16,108,16],[105,1,108,1],[105,4,108,4],[105,5,108,5],[105,8,108,8],[105,9,108,9],[105,11,108,11],[105,12,108,12],[101,23,104,23],[101,24,104,24],[97,25,100,25],[97,26,100,26],[97,27,100,27],[101,1,104,1],[97,15,100,15],[97,16,100,16],[97,18,100,18],[97,19,100,19],[97,23,100,23],[97,24,100,24],[101,25,104,25],[101,26,104,26],[101,27,104,27],[97,3,100,3],[97,1,100,1],[97,4,100,4],[97,5,100,5],[97,8,100,8],[97,9,100,9],[97,11,100,11],[97,12,100,12],[101,8,104,8],[89,26,92,26],[89,27,92,27],[93,1,96,1],[93,4,96,4],[93,5,96,5],[93,8,96,8],[93,9,96,9],[93,11,96,11],[93,12,96,12],[89,15,92,15],[89,16,92,16],[89,18,92,18],[89,19,92,19],[89,23,92,23],[89,24,92,24],[93,25,96,25],[93,26,96,26],[93,27,96,27],[93,18,96,18],[93,19,96,19],[93,23,96,23],[93,24,96,24],[89,1,92,1],[89,4,92,4],[89,9,92,9],[89,11,92,11],[89,12,92,12],[85,15,88,15],[85,16,88,16],[81,25,84,25],[81,5,84,5],[81,8,84,8],[81,9,84,9],[81,11,84,11],[81,12,84,12],[89,25,92,25],[81,26,84,26],[81,27,84,27],[85,1,88,1],[85,4,88,4],[85,5,88,5],[85,8,88,8],[85,9,88,9],[85,11,88,11],[85,12,88,12],[81,15,84,15],[81,16,84,16],[81,18,84,18],[81,19,84,19],[81,23,84,23],[81,24,84,24],[85,25,88,25],[85,26,88,26],[85,27,88,27],[85,18,88,18],[85,19,88,19],[85,23,88,23],[85,24,88,24],[81,1,84,1],[73,25,76,25],[73,26,76,26],[73,27,76,27],[77,1,80,1],[73,15,76,15],[73,16,76,16],[73,18,76,18],[73,19,76,19],[73,23,76,23],[73,24,76,24],[77,25,80,25],[77,26,80,26],[77,27,80,27],[77,23,80,23],[77,24,80,24],[73,1,76,1],[73,4,76,4],[73,5,76,5],[73,8,76,8],[73,9,76,9],[77,3,80,3],[77,4,80,4],[77,5,80,5],[77,12,80,12],[65,24,68,24],[65,25,68,25],[65,26,68,26],[65,27,68,27],[69,1,72,1],[69,4,72,4],[69,5,72,5],[69,8,72,8],[69,9,72,9],[65,11,68,11],[65,12,68,12],[65,15,68,15],[65,16,68,16],[65,18,68,18],[65,19,68,19],[69,23,72,23],[69,24,72,24],[69,25,72,25],[69,26,72,26],[69,27,72,27],[69,18,72,18],[65,1,68,1],[65,5,68,5],[69,15,72,15],[65,23,68,23],[65,8,68,8],[65,9,68,9],[61,11,64,11],[61,12,64,12],[61,15,64,15],[61,16,64,16],[61,1,64,1],[61,4,64,4],[61,19,64,19],[57,24,60,24],[57,25,60,25],[57,26,60,26],[57,27,60,27],[61,5,64,5],[61,8,64,8],[61,9,64,9],[57,11,60,11],[57,12,60,12],[57,15,60,15],[57,16,60,16],[57,18,60,18],[57,19,60,19],[61,23,64,23],[61,24,64,24],[61,25,64,25],[61,26,64,26],[61,27,64,27],[61,18,64,18],[57,23,60,23],[57,5,60,5],[57,8,60,8],[57,9,60,9],[57,1,60,1],[57,4,60,4],[49,23,52,23],[49,24,52,24],[49,25,52,25],[49,26,52,26],[49,27,52,27],[49,18,52,18],[49,19,52,19],[53,23,56,23],[53,24,56,24],[53,25,56,25],[53,26,56,26],[53,27,56,27],[53,18,56,18],[53,19,56,19],[53,1,56,1],[53,4,56,4],[53,5,56,5],[53,8,56,8],[53,9,56,9],[49,11,52,11],[49,12,52,12],[49,15,52,15],[49,1,52,1],[49,4,52,4],[49,5,52,5],[49,8,52,8],[49,9,52,9],[53,11,56,11],[53,12,56,12],[53,15,56,15],[53,16,56,16],[41,23,44,23],[41,24,44,24],[41,25,44,25],[41,26,44,26],[41,27,44,27],[45,23,48,23],[45,24,48,24],[45,25,48,25],[45,26,48,26],[45,27,48,27],[45,1,48,1],[45,4,48,4],[45,5,48,5],[45,8,48,8],[45,9,48,9],[41,1,44,1],[41,4,44,4],[41,5,44,5],[41,8,44,8],[41,9,44,9],[37,11,40,11],[37,12,40,12],[37,15,40,15],[37,16,40,16],[33,25,36,25],[33,26,36,26],[33,27,36,27],[37,1,40,1],[37,4,40,4],[37,5,40,5],[37,8,40,8],[37,9,40,9],[33,11,36,11],[33,12,36,12],[33,15,36,15],[33,16,36,16],[33,18,36,18],[33,19,36,19],[37,23,40,23],[37,24,40,24],[37,25,40,25],[37,26,40,26],[37,27,40,27],[37,18,40,18],[37,19,40,19],[29,23,32,23],[29,24,32,24],[29,25,32,25],[29,26,32,26],[29,27,32,27],[33,1,36,1],[33,4,36,4],[33,5,36,5],[33,8,36,8],[33,9,36,9],[29,11,32,11],[29,12,32,12],[29,15,32,15],[29,16,32,16],[29,18,32,18],[29,19,32,19],[29,1,32,1],[29,3,32,3],[29,4,32,4],[29,5,32,5],[29,8,32,8],[29,9,32,9],[33,23,36,23],[33,24,36,24],[25,24,28,24],[25,25,28,25],[25,26,28,26],[25,27,28,27],[25,9,28,9],[25,11,28,11],[25,12,28,12],[25,15,28,15],[25,16,28,16],[25,18,28,18],[21,23,24,23],[21,24,24,24],[21,25,24,25],[21,26,24,26],[21,27,24,27],[25,1,28,1],[25,3,28,3],[25,4,28,4],[25,5,28,5],[25,8,28,8],[21,11,24,11],[21,12,24,12],[21,15,24,15],[21,16,24,16],[21,18,24,18],[21,19,24,19],[21,1,24,1],[21,3,24,3],[21,4,24,4],[21,5,24,5],[21,8,24,8],[21,9,24,9],[25,19,28,19],[25,23,28,23],[17,23,20,23],[17,24,20,24],[17,25,20,25],[17,26,20,26],[17,27,20,27],[17,9,20,9],[17,11,20,11],[17,12,20,12],[17,15,20,15],[17,16,20,16],[17,18,20,18],[13,18,16,18],[13,19,16,19],[17,1,20,1],[17,3,20,3],[17,4,20,4],[17,5,20,5],[17,8,20,8],[13,11,16,11],[13,12,16,12],[13,15,16,15],[13,16,16,16],[17,19,20,19],[13,4,16,4],[13,5,16,5],[13,8,16,8],[13,9,16,9],[9,12,12,12],[9,15,12,15],[9,16,12,16],[9,1,12,1],[9,3,12,3],[9,4,12,4],[9,5,12,5],[9,8,12,8],[9,9,12,9],[9,11,12,11],[5,1,8,1],[9,24,12,24],[9,18,12,18],[9,19,12,19],[9,23,12,23],[45,19,48,19],[65,4,68,4],[5,19,8,19],[5,18,8,18],[41,19,44,19],[41,18,44,18],[41,16,44,16],[41,15,44,15],[5,12,8,12],[5,11,8,11],[5,9,8,9],[5,8,8,8],[5,3,8,3],[5,4,8,4],[5,5,8,5],[5,16,8,16],[5,15,8,15],[13,1,16,1],[13,3,16,3],[2,25,2,27],[3,3,3,5],[3,6,3,9],[3,10,3,12],[3,13,3,16],[3,17,3,19],[2,3,2,5],[2,6,2,9],[2,10,2,12],[2,13,2,16],[2,17,2,19],[2,23,2,24],[5,25,8,25],[5,26,8,26],[5,27,8,27],[9,25,12,25],[9,26,12,26],[9,27,12,27],[13,23,16,23],[13,24,16,24],[13,25,16,25],[13,26,16,26],[5,23,8,23],[5,24,8,24],[13,27,16,27],[77,11,80,11],[77,9,80,9],[77,8,80,8],[77,16,80,16],[77,15,80,15],[77,19,80,19],[77,18,80,18],[41,12,44,12],[41,11,44,11],[45,11,48,11],[45,12,48,12],[45,15,48,15],[45,16,48,16],[45,18,48,18],[49,16,52,16],[69,19,72,19],[69,16,72,16],[69,11,72,11],[69,12,72,12]]}
[]
[]
[null,null,null,"Technical Specifications",null,null,"Conformance Testing",null,null,null,"Deployment",null,null,"Migration",null,null,null,"Operations",null,null,"Web","Notes","Derogations","Version information and issue date",null,"Project Manager Details"]
[null,null,null,"The date of publication of the technical specifications for the external communication on the electronic system",null,null,"The period of conformance testing with economic operators",null,null,null,"The date of deployment of the electronic system",null,null,"Where applicable, the period during which the economic operators are allowed to carry out migration",null,null,null,"Start of Operations for all economic operators (end of transition period)",null,null,"Web address of specifications for EO's",null,"If a derogation under Art 6(4) UCC was granted, please indicate the activities carried out and the state of development in order to reach the derogation deadline."]
[null,"UCC Import Control System 2 – Release 3",null,"Date","Status","Progress","Start Date","End Date","Status","Progress","Date","Status","Progress","Start Date","End Date","Status","Progress","Date","Status","Progress","Web address","Note/Comment","Note/Comment","Version Number","Issue Date","Project Mgr Name","e-Mail","Phone"]
[null,{"$f":"formats!D3&\"-\"&formats!E3","v":"AT-Österreich"},"Single operations","2022-04-01","Stable/Final","Completed","N/A","N/A","Stable/Final","Not started","2024-03-06","Indicative","In progress","N/A","N/A","Stable/Final","Not started",null,"Stable/Final",null,"ICS2 - Import Control System (bmf.gv.at)","Not applicable because only air traffic in AT. For other modes of transport, AT acts only as involved member state (IMS)",null,{"$f":"'AN - Air'!W6","v":13},{"$f":"'AN - Air'!X6","v":"2024-03-18"},"Dietmar Paulitsch","dietmar.paulitsch@bmf.gv.at","0043-1-50233-565466"]
[null,null,"Step 1","open",null,null,null,null,null,null,null,null,null,null,null,null,null,"2024-12-04",null,null,null,null,null,null,null,"Dietmar Paulitsch","dietmar.paulitsch@bmf.gv.at","0043-1-50233-565466"]
[null,null,"Step 2","open",null,null,null,null,null,null,null,null,null,null,null,null,null,"2025-04-01",null,null,null,null,null,null,null,"Dietmar Paulitsch","dietmar.paulitsch@bmf.gv.at","0043-1-50233-565466"]
[null,null,"Step 3","open",null,null,null,null,null,null,null,null,null,null,null,null,null,"2025-09-01",null,null,null,null,null,null,null,"Dietmar Paulitsch","dietmar.paulitsch@bmf.gv.at","0043-1-50233-565466"]
[null,{"$f":"formats!D4&\"-\"&formats!E4","v":"BE-Belgique/België"},"Single operations",null,null,null,null,null,null,null,"2024-03-01","Stable/Final",null,null,null,null,null,"2024-03-01","Stable/Final",null,"https://financien.belgium.be/nl/douane_accijnzen/ondernemingen/applicaties-da/technische-documentatie-0",null,null,{"$f":"'AN - Air'!W7","v":"4.00"},{"$f":"'AN - Air'!X7","v":"2024-02-20"},"Sarah Vanobberghen\nSven Abels (Service manager)","sarah.vanobberghen@minfin.fed.be\nsven.abels@minfin.fed.be"]
[null,null,"Step 1",null,null,null,null,null,null,null,null,null,null,null,null,null,null,null,null,null,null,null,null,null,null,"Sarah Vanobberghen\nSven Abels (Service manager)","sarah.vanobberghen@minfin.fed.be\nsven.abels@minfin.fed.be"]
[null,null,"Step 2",null,null,null,null,null,null,null,null,null,null,null,null,null,null,null,null,null,null,null,null,null,null,"Sarah Vanobberghen\nSven Abels (Service manager)","sarah.vanobberghen@minfin.fed.be\nsven.abels@minfin.fed.be"]
[null,null,"Step 3",null,null,null,null,null,null,null,null,null,null,null,null,null,null,"2024-06-03",null,null,null,null,null,null,null,"Sarah Vanobberghen\nSven Abels (Service manager)","sarah.vanobberghen@minfin.fed.be\nsven.abels@minfin.fed.be"]
[null,{"$f":"formats!D5&\"-\"&formats!E5","v":"BG-България"},"Single deployment","2022-03-28","Stable/Final","Completed","2024-02-19","2024-02-20","Stable/Final","Completed","2024-06-03","Stable/Final","Not started",null,null,null,null,"2024-06-03","Stable/Final","Not started","https://ep.customs.bg/eportal/","COMMISSION IMPLEMENTING DECISION (EU) o2023/2879 f 15.12.2023 establishing the Work Programme relating to the development and deployment for the electronic systems provided for in the Union Customs Code",null,{"$f":"'AN - Air'!W8","v":"10.01"},{"$f":"'AN - Air'!X8","v":"2024-03-01"},"Milena Ivanova","masp_bg@customs.bg","0035952689531"]
[null,null,"Step 1","2022-03-28",null,null,null,null,null,null,null,null,null,null,null,null,null,null,null,null,null,null,null,null,null,"Milena Ivanova","masp_bg@customs.bg","0035952689531"]
[null,null,"Step 2","2022-03-28",null,null,null,null,null,null,null,null,null,null,null,null,null,null,null,null,null,null,null,null,null,"Milena Ivanova","masp_bg@customs.bg","0035952689531"]
[null,null,"Step 3","2022-03-28",null,null,null,null,null,null,null,null,null,null,null,null,null,null,null,null,null,null,null,null,null,"Milena Ivanova","masp_bg@customs.bg","0035952689531"]
[null,{"$f":"formats!D6&\"-\"&formats!E6","v":"CY-Κύπρος"},"Single operations","2023-09-15","Stable/Final","Completed",null,null,"Stable/Final","Not started",null,"Stable/Final","Not started",null,null,"Stable/Final","Not started",null,"Stable/Final","Not started",null,null,null,{"$f":"'AN - Air'!W9","v":7},{"$f":"'AN - Air'!X9","v":"2024-04-26"},"Zinonas Zinonos","zzinonos@customs.mof.gov.cy",35722601673]
[null,null,"Step 1","2023-09-15",null,null,"2024-05-06","2024-05-24",null,null,"2024-06-03",null,null,"2024-06-03","2024-12-04",null,null,"2024-12-04",null,null,null,null,null,null,null,"Zinonas Zinonos","zzinonos@customs.mof.gov.cy",35722601673]
[null,null,"Step 2","2023-09-15",null,null,"2024-05-06","2024-05-24",null,null,"2024-06-03",null,null,"2024-06-03","2025-04-01",null,null,"2025-04-01",null,null,null,null,null,null,null,"Zinonas Zinonos","zzinonos@customs.mof.gov.cy",35722601673]
[null,null,"Step 3","2023-09-15",null,null,"N/A",null,null,null,"N/A",null,null,null,null,null,null,"N/A",null,null,null,null,null,null,null,"Zinonas Zinonos","zzinonos@customs.mof.gov.cy",35722601673]
[null,{"$f":"formats!D7&\"-\"&formats!E7","v":"CZ-Česká republika"},"Single operations","N/A","Stable/Final","Not started","N/A","N/A","Stable/Final","Not started","2024-06-01","Stable/Final","Completed",null,null,null,null,"2024-06-01","Stable/Final","Completed",null,null,null,{"$f":"'AN - Air'!W10","v":"1.5"},{"$f":"'AN - Air'!X10","v":"2024-05-16"},"Lenka Kubíková","NPP.MASP@cs.mfcr.cz","420/261332631"]
[null,null,"Step 1","2023-06-30","Indicative",null,null,null,null,null,null,null,null,null,null,null,null,null,null,null,null,null,null,null,null,"Lenka Kubíková","NPP.MASP@cs.mfcr.cz","420/261332631"]
[null,null,"Step 2","2023-06-30","Indicative",null,null,null,null,null,null,null,null,null,null,null,null,null,null,null,null,null,null,null,null,"Lenka Kubíková","NPP.MASP@cs.mfcr.cz","420/261332631"]
[null,null,"Step 3","2023-06-30","Indicative",null,null,null,null,null,null,null,null,null,null,null,null,null,null,null,null,null,null,null,null,"Lenka Kubíková","NPP.MASP@cs.mfcr.cz","420/261332631"]
[null,{"$f":"formats!D8&\"-\"&formats!E8","v":"DE-Deutschland"},"Single operations",null,null,null,null,null,null,null,"2024-06-03","Stable/Final","In progress",null,null,null,null,null,null,null,null,"This Phase will be covered by the national IT-System ATLAS (Release 10.2), but will require no change compared to ICS2-Release 2. All Milestones relating to Economic Operators will be published by EU-COM. The Technical Specs for the external communication via STI-ICS2 will be provided by EU-COM. CT between Economic Operator and EU-COM will be scheduled individually in coordinaton with EU-MS concerned. ",null,{"$f":"'AN - Air'!W11","v":"7.00"},{"$f":"'AN - Air'!X11","v":"2024-03-20"},"Michael Schröter","DIIB12.gzd@zoll.bund.de","0049(0)228/303-21096"]
[null,null,"Step 1",null,null,null,null,null,null,null,"2024-06-03",null,null,null,null,null,null,"2024-12-04",null,null,null,"The date of Deployment and End of Transition Period are determined by the UCC-Work Programme and indicated for completeness.",null,null,null,"Michael Schröter","DIIB12.gzd@zoll.bund.de","0049(0)228/303-21096"]
[null,null,"Step 2",null,null,null,null,null,null,null,"2024-12-04",null,null,null,null,null,null,"2025-04-01",null,null,null,"The date of Deployment and End of Transition Period are determined by the UCC-Work Programme and indicated for completeness.",null,null,null,"Michael Schröter","DIIB12.gzd@zoll.bund.de","0049(0)228/303-21096"]
[null,null,"Step 3",null,null,null,null,null,null,null,"2025-04-01",null,null,null,null,null,null,"2025-09-01",null,null,null,"The date of Deployment and End of Transition Period are determined by the UCC-Work Programme and indicated for completeness.",null,null,null,"Michael Schröter","DIIB12.gzd@zoll.bund.de","0049(0)228/303-21096"]
[null,{"$f":"formats!D9&\"-\"&formats!E9","v":"DK-Danmark"},"Single operations","2023-12-21","Stable/Final","Completed",null,null,"Indicative","In progress","2024-05-25","Indicative","In progress",null,null,"Indicative","Not started","2025-09-01","Indicative",null,"www.toldst.dk ",null,null,{"$f":"'AN - Air'!W12","v":1},{"$f":"'AN - Air'!X12","v":"2024-04-15"},"Janne Madsen","Janne.Madsen@TOLDST.DK","+45 7237 2183"]
[null,null,"Step 1",null,"Stable/Final",null,"2023-12-11","2024-12-04",null,null,null,null,null,"2024-06-03","2024-12-04",null,null,null,null,null,null,null,null,null,null,"Mette Ehlers Mikkelsen","Mette.Mikkelsen@ufst.dk","+45 7238 2223"]
[null,null,"Step 2",null,"Stable/Final",null,"2024-04-01","2025-04-01",null,null,null,null,null,"2024-12-04","2025-04-01",null,null,null,null,null,null,null,null,null,null,"Mette Ehlers Mikkelsen","Mette.Mikkelsen@ufst.dk","+45 7238 2223"]
[null,null,"Step 3",null,"Stable/Final",null,"2024-04-01","2025-09-01",null,null,null,null,null,"2025-04-01","2025-09-01",null,null,null,null,null,null,null,null,null,null,"Mette Ehlers Mikkelsen","Mette.Mikkelsen@ufst.dk","+45 7238 2223"]
[null,{"$f":"formats!D10&\"-\"&formats!E10","v":"EE-Eesti"},"Single operations","2023-06-01","Stable/Final",null,null,null,"Indicative","In progress","2024-06-03","Indicative","In progress","2024-06-03","2025-09-01","Indicative","In progress","2025-09-01","Indicative","In progress","https://www.emta.ee/ariklient/toll-kaubavahetus/tolliinfosusteemid/tolliinfosusteemide-kasutajatele#nes-uldinfo","We have determined that NCTS phase 6 is closely linked to project ICS2 Release 3 and hence the project deadlines should be amended accordingly.",null,{"$f":"'AN - Air'!W13","v":17},{"$f":"'AN - Air'!X13","v":"2024-03-25"},"Leili Kristovald","ICS2-NPM-EE@emta.ee",3726761041]
[null,null,"Step 1","2023-06-01",null,null,"2023-11-01","2024-12-04",null,null,"2024-06-03",null,null,"2024-06-03","2024-12-04",null,null,"2024-12-04"]
[null,null,"Step 2","2023-06-01",null,null,"2024-01-02","2025-04-01",null,null,"2024-06-03",null,null,"2024-12-04","2025-04-01",null,null,"2025-04-01"]
[null,null,"Step 3","2023-06-01",null,null,"2024-12-04","2025-09-01",null,null,"2024-06-03",null,null,"2025-04-01","2025-09-01",null,null,"2025-09-01"]
[null,{"$f":"formats!D11&\"-\"&formats!E11","v":"GR-Ελλάδα"},"Single operations","2023-09-30","Stable/Final","Completed","2023-09-30","2023-12-31","Stable/Final","Completed","2024-03-31","Stable/Final","In progress","2024-03-31","2025-03-31","Stable/Final","In progress","2024-03-31","Stable/Final","Not started","https://www.aade.gr/customs",null,null,{"$f":"'AN - Air'!W14","v":6.1},{"$f":"'AN - Air'!X14","v":"2024-03-08"},"Mr Katagis","ICS_NPM@AADE.GR","0030210 6987434"]
[null,null,"Step 1",null,null,null,null,null,null,null,null,null,null,null,null,null,null,null,null,null,null,null,null,null,null,"Mr Katagis","ICS_NPM@AADE.GR","0030210 6987434"]
[null,null,"Step 2",null,null,null,null,null,null,null,null,null,null,null,null,null,null,null,null,null,null,null,null,null,null,"Mr Katagis","ICS_NPM@AADE.GR","0030210 6987434"]
[null,null,"Step 3",null,null,null,null,null,null,null,null,null,null,null,null,null,null,null,null,null,null,null,null,null,null,"Mr Katagis","ICS_NPM@AADE.GR","0030210 6987434"]
[null,{"$f":"formats!D12&\"-\"&formats!E12","v":"ES-España"},"Single operations","2022-03-01","Stable/Final","Completed",null,null,"Stable/Final","In progress",null,"Stable/Final","Not started",null,null,"Stable/Final","Not started",null,"Stable/Final","Not started",null,"ICS2 R3 Deployment window has been increased",null,{"$f":"'AN - Air'!W15","v":3.2},{"$f":"'AN - Air'!X15","v":"2024-03-08"},"Clara Retamar Arias","clara.retamar@correo.aeat.es",34917289853]
[null,null,"Step 1","2022-03-01","Stable/Final",null,"2023-12-01","2024-12-04",null,null,"2024-06-03",null,null,"2024-06-03","2024-12-04",null,null,"2024-12-04",null,null,null,null,null,null,null,"Clara Retamar Arias","clara.retamar@correo.aeat.es",34654087901]
[null,null,"Step 2","2022-03-01","Stable/Final",null,"2023-12-01","2025-04-01",null,null,"2024-12-04",null,null,"2024-12-04","2025-04-01",null,null,"2025-04-01",null,null,null,null,null,null,null,"Clara Retamar Arias","clara.retamar@correo.aeat.es",34654087901]
[null,null,"Step 3","2022-03-01","Stable/Final",null,"2023-12-01","2025-09-01",null,null,"2025-04-01",null,null,"2025-04-01","2025-09-01",null,null,"2025-09-01",null,null,null,null,null,null,null,"Clara Retamar Arias","clara.retamar@correo.aeat.es",34654087901]
[null,{"$f":"formats!D13&\"-\"&formats!E13","v":"FI-Suomi/Finland"},"Single operations","2022-03-31","Stable/Final","Completed","2023-09-30","2024-03-31","Stable/Final","In progress","2024-03-31","Stable/Final","In progress","2024-03-31","2025-03-31","Stable/Final","In progress","2025-03-31","Stable/Final","In progress","https://finnishcustoms-suomentulli.github.io/MIGs/Entry2.5/en/index.html","Deployment covers all steps and will be in operation and accessible to trade according to WP.",null,{"$f":"'AN - Air'!W16","v":"13.00"},{"$f":"'AN - Air'!X16","v":"2024-03-22"},"Leila Lappalainen","leila.lappalainen@tulli.fi"]
[null,null,"Step 1","2022-03-31","Stable/Final",null,null,null,null,null,null,null,null,null,null,null,null,null,null,null,null,null,null,null,null,"Leila Lappalainen","leila.lappalainen@tulli.fi"]
[null,null,"Step 2","2022-03-31","Stable/Final",null,null,null,null,null,null,null,null,null,null,null,null,null,null,null,null,null,null,null,null,"Leila Lappalainen","leila.lappalainen@tulli.fi"]
[null,null,"Step 3","2022-03-31","Stable/Final",null,null,null,null,null,null,null,null,null,null,null,null,null,null,null,null,null,null,null,null,"Leila Lappalainen","leila.lappalainen@tulli.fi"]
[null,{"$f":"formats!D14&\"-\"&formats!E14","v":"FR-France"},"Single operations","2023-03-31","Stable/Final","Completed","N/A","N/A","Indicative","Not started","2024-06-01","Indicative","Not started","2024-06-01","2024-11-30","Indicative","Not started","2024-12-04","Indicative","Not started","https://www.douane.gouv.fr/services-aide/edi","Progress can be consulted via the following link  :https://www.douane.gouv.fr/fiche/progress-report",null,{"$f":"'AN - Air'!W17","v":1.2},{"$f":"'AN - Air'!X17","v":"2024-02-07"},"Office JCF 2 DGDDI","Veille-ics-dg@douane.finances.gouv.fr"]
[null,null,"Step 1","2023-03-31","Indicative",null,null,null,null,null,null,null,null,null,null,null,null,null,null,null,null,null,null,null,null,"Office JCF 2 DGDDI","Veille-ics-dg@douane.finances.gouv.fr"]
[null,null,"Step 2","2023-03-31","Indicative",null,null,null,null,null,null,null,null,null,null,null,null,null,null,null,null,null,null,null,null,"Office JCF 2 DGDDI","Veille-ics-dg@douane.finances.gouv.fr"]
[null,null,"Step 3","2023-03-31","Indicative",null,null,null,null,null,null,null,null,null,null,null,null,null,null,null,null,null,null,null,null,"Office JCF 2 DGDDI","Veille-ics-dg@douane.finances.gouv.fr"]
[null,{"$f":"formats!D15&\"-\"&formats!E15","v":"HR-Hrvatska"},"Single operations","2023-05-01","Stable/Final","Completed","2024-06-03","2025-09-01","Indicative","In progress","2024-06-30","Indicative","In progress","2024-06-30","2025-09-01","Indicative","In progress",null,"Indicative","Not started","https://carina.gov.hr","Plan is ICS2 R3 start 03.06.2024. for maritime. The roll-out of Release 3 will occur in the following way: first maritime carriers will be phasing in (step 1  03. 06. 2024 for MS), then the house level filers (step 2), and then the road and rail carriers (step 3 from 01. 04. 2025 for MS). At the moment, the tender for the executor of the development of the IT part has not yet been announced - the risk of untimely involvement.","Derogation for ICS2 R3 (steps 1,2,3)",{"$f":"'AN - Air'!W18","v":9.1999999999999993},{"$f":"'AN - Air'!X18","v":"2024-03-19"},"Albert Đurđević","albert.durdevic@carina.hr ",38516211536]
[null,null,"Step 1","2023-05-01","Indicative",null,"2024-06-03","2024-12-04","Indicative",null,"2024-06-03","Indicative",null,"2024-06-03","2024-12-04","Indicative",null,"2024-12-04","Indicative",null,null,null,null,null,null,"Albert Đurđević","albert.durdevic@carina.hr ",38516211536]
[null,null,"Step 2","2023-05-01","Indicative",null,"2024-06-03","2025-04-01","Indicative",null,"2024-06-03","Indicative",null,"2024-06-03","2025-04-01","Indicative",null,"2025-04-01","Indicative",null,null,null,null,null,null,"Albert Đurđević","albert.durdevic@carina.hr ",38516211536]
[null,null,"Step 3","2023-05-01","Indicative",null,"2024-06-03","2025-09-01","Indicative",null,"2025-04-01","Indicative",null,"2024-06-03","2025-09-01","Indicative",null,"2025-09-01","Indicative",null,null,null,null,null,null,"Albert Đurđević","albert.durdevic@carina.hr ",38516211536]
[null,{"$f":"formats!D16&\"-\"&formats!E16","v":"HU-Magyarország"},"Single operations","2023-11-25","Stable/Final","Completed",null,null,null,null,"2023-03-01","Stable/Final","Completed",null,null,null,null,null,null,null,null,"No development task in connection with the R3 phase. The deployment date provided corresponds to the R2 phase.",null,{"$f":"'AN - Air'!W19","v":11},{"$f":"'AN - Air'!X19","v":"2024-01-31"},"Jenes Barbara","uvk_mp_masp@nav.gov.hu",3614569584]
[null,null,"Step 1",null,null,null,null,null,null,null,null,null,null,null,null,null,null,"2024-12-04",null,null,null,"The system is already available.",null,null,null,"Jenes Barbara"]
[null,null,"Step 2",null,null,null,null,null,null,null,null,null,null,null,null,null,null,"2025-04-01",null,null,null,null,null,null,null,"Jenes Barbara"]
[null,null,"Step 3",null,null,null,null,null,null,null,null,null,null,null,null,null,null,"2025-09-01",null,null,null,null,null,null,null,"Jenes Barbara"]
[null,{"$f":"formats!D17&\"-\"&formats!E17","v":"IE-Éire/Ireland"},"Single operations","2022-01-28","Stable/Final","Completed",null,null,"Stable/Final","In progress",null,"Stable/Final","Not started",null,null,"Stable/Final","Not started",null,"Stable/Final","Not started","www.revenue.ie","Link to EU Specs from Revenue Website",null,{"$f":"'AN - Air'!W20","v":15.2},{"$f":"'AN - Air'!X20","v":"2024-03-21"},"Paul Paxman","UCCITDev@revenue.ie"]
[null,null,"Step 1",null,null,null,"2023-12-01","2024-11-30",null,null,"2024-06-03",null,null,"2024-06-03","2024-12-04",null,null,"2024-12-04",null,null,null,null,null,null,null,"Paul Paxman","UCCITDev@revenue.ie"]
[null,null,"Step 2",null,null,null,"2023-12-01","2025-03-31",null,null,"2024-12-04",null,null,"2024-12-04","2025-04-01",null,null,"2025-04-01",null,null,null,null,null,null,null,"Paul Paxman","UCCITDev@revenue.ie"]
[null,null,"Step 3",null,null,null,"2023-12-01","2025-07-31",null,null,"2025-04-01",null,null,"2025-04-01","2025-09-01",null,null,"2025-09-01",null,null,null,null,null,null,null,"Paul Paxman","UCCITDev@revenue.ie"]
[null,{"$f":"formats!D18&\"-\"&formats!E18","v":"IT-Italia"},"Single operations","2024-03-27","Indicative",null,null,null,"Indicative",null,null,"Indicative",null,null,null,null,null,null,null,null,"https://www.adm.gov.it/portale/-/ics2","Technical Specs provided by EU",null,{"$f":"'AN - Air'!W21","v":1.01},{"$f":"'AN - Air'!X21","v":"2024-03-13"},"Sarah Melini","Sarah.Melini@adm.gov.it","+39 06 5024 6425"]
[null,null,"Step 1",null,null,null,"2024-05-03","2024-05-31",null,null,"2024-06-03",null,null,null,null,null,null,null,null,null,null,null,null,null,null,"Sarah Melini","Sarah.Melini@adm.gov.it","+39 06 5024 6425"]
[null,null,"Step 2",null,null,null,"2024-05-03","2024-05-31",null,null,"2024-06-03",null,null,null,null,null,null,null,null,null,null,null,null,null,null,"Sarah Melini","Sarah.Melini@adm.gov.it","+39 06 5024 6425"]
[null,null,"Step 3",null,null,null,"NA","NA",null,null,"NA",null,null,"NA","NA",null,null,"NA",null,null,null,null,null,null,null,"Sarah Melini","Sarah.Melini@adm.gov.it","+39 06 5024 6425"]
[null,{"$f":"formats!D19&\"-\"&formats!E19","v":"LT-Lietuva"},"Single operations","30/07/2023","Stable/Final","Completed",null,null,"Stable/Final","In progress",null,"Stable/Final","In progress",null,null,"Stable/Final","In progress",null,"Stable/Final","In progress",null,null,null,{"$f":"'AN - Air'!W22","v":13.1},{"$f":"'AN - Air'!X22","v":"2024-03-08"},"Vitalis Vareikis","UCC_ICS2_R1R2R3-LT@lrmuitine.lt",37052666144]
[null,null,"Step 1",null,null,null,"15/10/2023","04/11/2024","Indicative",null,"01/06/2024","Indicative",null,"01/03/2024","04/11/2024",null,null,"04/12/2024",null,null,null,"Web Address for EO is Central ICS2 system ",null,null,null,"Vitalis Vareikis","UCC_ICS2_R1R2R3-LT@lrmuitine.lt",37052666144]
[null,null,"Step 2",null,null,null,"15/10/2023","01/03/2025","Indicative",null,"01/06/2024","Indicative",null,"01/03/2024","01/03/2025",null,null,"01/04/2025",null,null,null,"Web Address for EO is Central ICS2 system ",null,null,null,"Vitalis Vareikis","UCC_ICS2_R1R2R3-LT@lrmuitine.lt",37052666144]
[null,null,"Step 3",null,null,null,"15/10/2023","01/08/2025","Indicative",null,"01/06/2024","Indicative",null,"01/03/2024","01/08/2025",null,null,"01/09/2025",null,null,null,"Web Address for EO is Central ICS2 system ",null,null,null,"Vitalis Vareikis","UCC_ICS2_R1R2R3-LT@lrmuitine.lt",37052666144]
[null,{"$f":"formats!D20&\"-\"&formats!E20","v":"LU-Luxembourg"},"Single operations","2024-02-01",null,null,"2024-01-01","2024-02-28",null,null,"2024-12-15",null,null,null,null,null,null,"2024-12-30",null,null,null,"The impact of ICS2R3 will be very limited for NA-LU so we are optimistic to fulfil the legal deadline.",null,{"$f":"'AN - Air'!W23","v":1},{"$f":"'AN - Air'!X23","v":"2023-03-15"},"Robert Scheueren","it.npm@do.etat.lu","+352 621 306 782"]
[null,null,"Step 1","2024-02-01",null,null,null,null,null,null,null,null,null,null,null,null,null,null,null,null,null,null,null,null,null,"Robert Scheueren","it.npm@do.etat.lu","+352 621 306 782"]
[null,null,"Step 2","2024-02-01",null,null,null,null,null,null,null,null,null,null,null,null,null,null,null,null,null,null,null,null,null,"Robert Scheueren","it.npm@do.etat.lu","+352 621 306 782"]
[null,null,"Step 3","2024-02-01",null,null,null,null,null,null,null,null,null,null,null,null,null,null,null,null,null,null,null,null,null,"Robert Scheueren","it.npm@do.etat.lu","+352 621 306 782"]
[null,{"$f":"formats!D21&\"-\"&formats!E21","v":"LV-Latvija"},"Single operations","2022-01-10","Stable/Final","Completed",null,null,"Indicative","Not started","2023-03-01","Stable/Final","Completed",null,null,"Indicative","Not started",null,"Indicative","Not started","https://www.vid.gov.lv/lv/k%C4%81-lietot-emdas ",null,null,{"$f":"'AN - Air'!W24","v":3},{"$f":"'AN - Air'!X24","v":"2024-03-08"},"Nikolajs Zimnoho","ecustoms@vid.gov.lv ",37167120820]
[null,null,"Step 1",null,null,null,"N/A","N/A",null,null,null,null,null,"2024-07-03","2024-12-04",null,null,"2024-12-04",null,null,null,null,null,null,null,"Nikolajs Zimnoho","ecustoms@vid.gov.lv ",37167120820]
[null,null,"Step 2",null,null,null,"N/A","N/A",null,null,null,null,null,"2024-12-04","2025-04-01",null,null,"2025-04-01",null,null,null,null,null,null,null,"Nikolajs Zimnoho","ecustoms@vid.gov.lv ",37167120820]
[null,null,"Step 3",null,null,null,"2025-01-02","2025-03-30",null,null,null,null,null,"2025-04-01","2025-09-01",null,null,"2025-09-01",null,null,null,null,null,null,null,"Nikolajs Zimnoho","ecustoms@vid.gov.lv ",37167120820]
[null,{"$f":"formats!D22&\"-\"&formats!E22","v":"MT-Malta"},"Single operations","N/A","Indicative","Not started","N/A","N/A","Indicative","Not started",null,"Indicative",null,null,null,null,null,"2025-09-01","Indicative","Not started","https://customs.gov.mt/electronic-systems/import-control-system-2",null,null,{"$f":"'AN - Air'!W25","v":"3.02"},{"$f":"'AN - Air'!X25","v":"2024-03-20"},"Shanel Sciriha","shanel.sciriha@gov.mt",35623783084]
[null,null,"Step 1","N/A","Indicative",null,null,null,null,null,"2024-12-04",null,null,null,null,null,null,null,null,null,null,null,null,null,null,"Shanel Sciriha","shanel.sciriha@gov.mt",35623783084]
[null,null,"Step 2","N/A","Indicative",null,null,null,null,null,null,null,null,null,null,null,null,null,null,null,null,null,null,null,null,"Shanel Sciriha","shanel.sciriha@gov.mt",35623783084]
[null,null,"Step 3","N/A","Indicative",null,null,null,null,null,null,null,null,null,null,null,null,null,null,null,null,null,null,null,null,"Shanel Sciriha","shanel.sciriha@gov.mt",35623783084]
[null,{"$f":"formats!D23&\"-\"&formats!E23","v":"NL-Nederland"},"Single operations","2023-09-01","Stable/Final","Completed","2024-01-01","2024-05-24","Indicative","Not started","2024-05-27","Indicative","Not started",null,null,"Indicative","Not started",null,"Indicative","Not started","https://www.nhdouane.nl/","Technical specs are NA PN TS maritime",null,{"$f":"'AN - Air'!W26","v":"3.00"},{"$f":"'AN - Air'!X26","v":"2024-04-05"},"National Helpdesk Dutch Customs","NHD.apeldoorn@douane.nl","(+31)(0)88 156 6655"]
[null,null,"Step 1","2023-09-01","Indicative",null,null,null,null,null,null,null,null,"2024-06-03","2024-12-04",null,null,"2024-12-04",null,null,null,null,null,null,null,"National Helpdesk Dutch Customs","NHD.apeldoorn@douane.nl","(+31)(0)88 156 6655"]
[null,null,"Step 2","2023-09-01","Indicative",null,null,null,null,null,null,null,null,"2024-12-04","2025-04-01",null,null,"2025-04-01",null,null,null,null,null,null,null,"National Helpdesk Dutch Customs","NHD.apeldoorn@douane.nl","(+31)(0)88 156 6655"]
[null,null,"Step 3","2023-09-01","Indicative",null,null,null,null,null,null,null,null,"2025-04-01","2025-09-01",null,null,"2025-09-01",null,null,null,null,null,null,null,"National Helpdesk Dutch Customs","NHD.apeldoorn@douane.nl","(+31)(0)88 156 6655"]
[null,{"$f":"formats!D24&\"-\"&formats!E24","v":"PL-Polska"},"Single operations","2022-09-19","Stable/Final",null,null,null,"Stable/Final","In progress",null,"Stable/Final","Not started",null,null,null,null,null,"Stable/Final","Not started",null,null,null,{"$f":"'AN - Air'!W27","v":"3.20"},{"$f":"'AN - Air'!X27","v":"2024-03-11"},"Beata Utylska","beata.utylska@mf.gov.pl",48126290201]
[null,null,"Step 1","not scheduled yet","Indicative",null,"2023-12-11","2025-08-31","Indicative",null,"2024-06-03","Indicative",null,null,null,null,null,"2024-12-04",null,null,null,null,null,null,null,"Beata Utylska","beata.utylska@mf.gov.pl",48126290201]
[null,null,"Step 2","not scheduled yet","Indicative",null,"2023-12-11","2025-08-31","Indicative",null,"2024-12-04","Indicative",null,null,null,null,null,"2025-04-01",null,null,null,null,null,null,null,"Beata Utylska","beata.utylska@mf.gov.pl",48126290201]
[null,null,"Step 3","not scheduled yet","Indicative",null,"2023-12-11","2025-08-31","Indicative",null,"2025-04-01","Indicative",null,null,null,null,null,"2025-09-01",null,null,null,null,null,null,null,"Beata Utylska","beata.utylska@mf.gov.pl",48126290201]
[null,{"$f":"formats!D25&\"-\"&formats!E25","v":"PT-Portugal"},"Single operations","2023-09-01","Stable/Final",null,"2023-12-15","2024-05-01","Indicative","In progress","2024-06-02","Indicative","Not started",null,null,null,null,"2024-06-03","Indicative","Not started","https://info-aduaneiro.portaldasfinancas.gov.pt/pt/informacao_aduaneira/Pages/default.aspx","There is no National Technical Specifications to the external interface.\nNot expetect any delay.",null,{"$f":"'AN - Air'!W28","v":7.2},{"$f":"'AN - Air'!X28","v":"2024-04-05"},"Ana Freitas Couto","Ana.Freitas.Couto@at.gov.pt",351218813866]
[null,null,"Step 1","2023-09-01",null,null,null,null,null,null,null,null,null,null,null,null,null,null,null,null,null,null,null,null,null,"Ana Freitas Couto","Ana.Freitas.Couto@at.gov.pt",351218813866]
[null,null,"Step 2","2023-09-01",null,null,null,null,null,null,null,null,null,null,null,null,null,null,null,null,null,null,null,null,null,"Ana Freitas Couto","Ana.Freitas.Couto@at.gov.pt",351218813866]
[null,null,"Step 3","2023-09-01",null,null,null,null,null,null,null,null,null,null,null,null,null,null,null,null,null,null,null,null,null,"Ana Freitas Couto","Ana.Freitas.Couto@at.gov.pt",351218813866]
[null,{"$f":"formats!D26&\"-\"&formats!E26","v":"RO-România "},"Single operations","2022-11-07","Stable/Final","Completed","2024-12-16","2025-09-01","Indicative","Not started","2024-12-16","Indicative","Not started",null,null,"Indicative","Not started","2025-09-01","Indicative","Not started",null,null,null,{"$f":"'AN - Air'!W29","v":"3.00"},{"$f":"'AN - Air'!X29","v":"2024-03-25"},"Andrei-Cristian PÂRVU","cristian.parvu@customs.ro",40723220158]
[null,null,"Step 1",null,null,null,null,null,null,null,null,null,null,"2024-12-16","2025-04-01",null,null,null,null,null,null,null,null,null,null,"Andrei-Cristian PÂRVU","cristian.parvu@customs.ro",40723220158]
[null,null,"Step 2",null,null,null,null,null,null,null,null,null,null,"2024-12-16","2025-04-01",null,null,null,null,null,null,null,null,null,null,"Andrei-Cristian PÂRVU","cristian.parvu@customs.ro",40723220158]
[null,null,"Step 3",null,null,null,null,null,null,null,null,null,null,"2025-04-01","2025-09-01",null,null,null,null,null,null,null,null,null,null,"Andrei-Cristian PÂRVU","cristian.parvu@customs.ro",40723220158]
[null,{"$f":"formats!D27&\"-\"&formats!E27","v":"SE-Sverige"},"Single operations","N/A",null,"Not started",null,null,null,"Not started",null,"Indicative","In progress",null,null,"Indicative","In progress",null,"Indicative","Not started","https://www.tullverket.se/en/startpage/business/infocus/futurecustomsprocedures/goodstransportandstorage/entrysummarydeclaration.4.422c8052175b1d8276959dc.html","Updated according to the proposal in the work programme. Dates for technical spec and CT are not applicable since the central ICS/STI will be used.",null,{"$f":"'AN - Air'!W30","v":21},{"$f":"'AN - Air'!X30","v":"2024-03-08"},"Agneta Andersson","underrattelseavd.npm.ics2@tullverket.se"]
[null,null,"Step 1",null,null,null,"N/A","N/A",null,null,"2024-06-03",null,null,"2024-06-03","2024-12-04",null,null,"2024-12-04",null,null,null,null,null,null,null,"Agneta Andersson","underrattelseavd.npm.ics2@tullverket.se"]
[null,null,"Step 2",null,null,null,"N/A","N/A",null,null,"2024-12-04",null,null,"2024-12-04","2025-04-01",null,null,"2025-04-01",null,null,null,null,null,null,null,"Agneta Andersson","underrattelseavd.npm.ics2@tullverket.se"]
[null,null,"Step 3",null,null,null,"N/A","N/A",null,null,"2025-04-01",null,null,"2025-04-01","2025-09-01",null,null,"2025-09-01",null,null,null,null,null,null,null,"Agneta Andersson","underrattelseavd.npm.ics2@tullverket.se"]
[null,{"$f":"formats!D28&\"-\"&formats!E28","v":"SI-Slovenija"},"Single operations","2023-10-01","Stable/Final","Completed","N/A","N/A","Stable/Final","Not started","2024-06-02","Stable/Final","Not started","2024-06-02","2024-06-02","Stable/Final","Not started","2024-06-03","Stable/Final","Not started",null,null,null,{"$f":"'AN - Air'!W31","v":16.02},{"$f":"'AN - Air'!X31","v":"2024-03-20"},"Mr. Milan Kušer","sd.fu@gov.si","00386 1/478 38 84"]
[null,null,"Step 1",null,null,null,"N/A","N/A","Indicative",null,"2024-06-02","Indicative",null,"2024-06-02","2024-06-02","Indicative",null,"2024-06-03","Indicative",null,null,null,null,null,null,"Mr. Milan Kušer","sd.fu@gov.si","00386 1/478 38 84"]
[null,null,"Step 2",null,null,null,"N/A","N/A","Indicative",null,"2024-06-02","Indicative",null,"2024-06-02","2024-06-02","Indicative",null,"2024-06-03","Indicative",null,null,null,null,null,null,"Mr. Milan Kušer","sd.fu@gov.si","00386 1/478 38 84"]
[null,null,"Step 3",null,null,null,"N/A","N/A","Indicative",null,"2024-06-02","Indicative",null,"2024-06-02","2024-06-02","Indicative",null,"2024-06-03","Indicative",null,null,null,null,null,null,"Mr. Milan Kušer","sd.fu@gov.si","00386 1/478 38 84"]
[null,{"$f":"formats!D29&\"-\"&formats!E29","v":"SK-Slovensko"},"Single operations","2023-01-01","Stable/Final","Completed",null,null,"Indicative","Not started","2024-06-03","Indicative","In progress",null,null,"Indicative","Not started",null,"Indicative","Not started",null,null,null,{"$f":"'AN - Air'!W32","v":1},{"$f":"'AN - Air'!X32","v":"2024-03-08"},"Igor Lalík","igor.lalik@financnasprava.sk","00421 48 4393632"]
[null,null,"Step 1",null,null,null,"N/A","N/A",null,null,null,null,null,"2024-06-03","2024-12-04",null,null,"2024-12-04",null,null,null,null,null,null,null,"Igor Lalík","igor.lalik@financnasprava.sk"]
[null,null,"Step 2",null,null,null,"N/A","N/A",null,null,null,null,null,"2024-12-04","2025-04-01",null,null,"2025-04-01",null,null,null,null,null,null,null,"Igor Lalík","igor.lalik@financnasprava.sk"]
[null,null,"Step 3",null,null,null,"2025-01-01","2025-03-31",null,null,null,null,null,"2025-04-01","2025-09-01",null,null,"2025-09-01",null,null,null,null,null,null,null,"Igor Lalík","igor.lalik@financnasprava.sk"]

{"sheet":"PoUS-P1","index":22,"n_rows":32,"n_cols":27,"rows_kept":32,"cut":false,"hidden":false,"merged":[[2,24,2,26],[3,2,3,4],[3,5,3,8],[3,9,3,11],[3,12,3,15],[3,16,3,18],[2,2,2,4],[2,5,2,8],[2,9,2,11],[2,12,2,15],[2,16,2,18],[2,22,2,23]]}
[]
[]
[null,null,"Technical Specifications",null,null,"Conformance Testing",null,null,null,"Deployment",null,null,"Migration",null,null,null,"Operations",null,null,"Web","Notes","Derogations","Version information and issue date",null,"Project Manager Details"]
[null,null,"The date of publication of the technical specifications for the external communication on the electronic system",null,null,"The period of conformance testing with economic operators",null,null,null,"The date of deployment of the electronic system",null,null,"Where applicable, the period during which the economic operators are allowed to carry out migration",null,null,null,"Start of Operations for all economic operators (end of transition period)",null,null,"Web address of specifications for EO's",null,"If a derogation under Art 6(4) UCC was granted, please indicate the activities carried out and the state of development in order to reach the derogation deadline."]
[null,{"$f":"formats!A17","v":"UCC Proof of Union Status (PoUS) - Phase 1"},"Date","Status","Progress","Start Date","End Date","Status","Progress","Date","Status","Progress","Start Date","End Date","Status","Progress","Date","Status","Progress","Web address","Note/Comment","Note/Comment","Version Number","Issue Date","Project Mgr Name","e-Mail","Phone"]
[null,{"$f":"formats!D3&\"-\"&formats!E3","v":"AT-Österreich"},null,null,null,null,null,null,null,"2024-03-01","Stable/Final","In progress",null,null,null,null,"2024-03-01","Stable/Final","In progress",null,null,null,{"$f":"'AN - Air'!W6","v":13},{"$f":"'AN - Air'!X6","v":"2024-03-18"},"Peter Frühwirt","peter.fruehwirt@bmf.gv.at","0043-1-51433-504159"]
[null,{"$f":"formats!D4&\"-\"&formats!E4","v":"BE-Belgique/België"},null,null,null,null,null,null,null,"2024-03-01","Stable/Final","In progress",null,null,null,null,"2024-03-01","Stable/Final","In progress",null,null,null,{"$f":"'AN - Air'!W7","v":"4.00"},{"$f":"'AN - Air'!X7","v":"2024-02-20"},"Joelle Lauwers\nSven Abels (Service manager)","joelle.lauwers@minfin.fed.be\nsven.abels@minfin.fed.be"]
[null,{"$f":"formats!D5&\"-\"&formats!E5","v":"BG-България"},null,null,null,null,null,null,null,"2024-03-01","Stable/Final","In progress",null,null,null,null,"2024-03-01","Stable/Final","In progress",null,null,null,{"$f":"'AN - Air'!W8","v":"10.01"},{"$f":"'AN - Air'!X8","v":"2024-03-01"},"Yordanka Stoyanova","masp_bg@customs.bg","00359 2 9859 4180"]
[null,{"$f":"formats!D6&\"-\"&formats!E6","v":"CY-Κύπρος"},null,null,null,null,null,null,null,"2024-03-01","Stable/Final","In progress",null,null,null,null,"2024-03-01","Stable/Final","In progress",null,null,null,{"$f":"'AN - Air'!W9","v":7},{"$f":"'AN - Air'!X9","v":"2024-04-26"},"Theofanis Neocleous","tneocleous@customs.mof.gov.cy",35722601717]
[null,{"$f":"formats!D7&\"-\"&formats!E7","v":"CZ-Česká republika"},null,null,null,null,null,null,null,"2024-03-01","Stable/Final","In progress",null,null,null,null,"2024-03-01","Stable/Final","In progress",null,null,null,{"$f":"'AN - Air'!W10","v":"1.5"},{"$f":"'AN - Air'!X10","v":"2024-05-16"},"Petr Maruška","NPP.MASP@cs.mfcr.cz","420/261332637"]
[null,{"$f":"formats!D8&\"-\"&formats!E8","v":"DE-Deutschland"},null,null,null,null,null,null,null,"2024-03-01","Stable/Final","In progress",null,null,null,null,"2024-03-01","Stable/Final","In progress",null,null,null,{"$f":"'AN - Air'!W11","v":"7.00"},{"$f":"'AN - Air'!X11","v":"2024-03-20"},"Michael Schröter","DIIB12.gzd@zoll.bund.de","0049(0)228/303-21096"]
[null,{"$f":"formats!D9&\"-\"&formats!E9","v":"DK-Danmark"},null,null,null,null,null,null,null,"2024-03-01","Stable/Final","In progress",null,null,null,null,"2024-03-01","Stable/Final","In progress",null,null,null,{"$f":"'AN - Air'!W12","v":1},{"$f":"'AN - Air'!X12","v":"2024-04-15"},"Sadik Zeki Topcu","szt@UFST.DK","+45 7238 9320"]
[null,{"$f":"formats!D10&\"-\"&formats!E10","v":"EE-Eesti"},null,null,null,null,null,null,null,"2024-03-01","Stable/Final","In progress",null,null,null,null,"2024-03-01","Stable/Final","In progress",null,null,null,{"$f":"'AN - Air'!W13","v":17},{"$f":"'AN - Air'!X13","v":"2024-03-25"},"Mario Peterson","PoUS-NPM-EE@emta.ee",37253358644]
[null,{"$f":"formats!D11&\"-\"&formats!E11","v":"GR-Ελλάδα"},null,null,null,null,null,null,null,"2024-03-01","Stable/Final","In progress",null,null,null,null,"2024-03-01","Stable/Final","In progress",null,null,null,{"$f":"'AN - Air'!W14","v":6.1},{"$f":"'AN - Air'!X14","v":"2024-03-08"},"Ms Gavgiotaki","NCTS_NPM@AADE.GR","0030-2131356723"]
[null,{"$f":"formats!D12&\"-\"&formats!E12","v":"ES-España"},"2023-01-15","Stable/Final","Completed","2023-04-12","2024-02-28","Stable/Final","Completed","2024-01-15","Stable/Final","Completed","2024-01-15","2024-02-28","Stable/Final","Completed","2024-03-01","Stable/Final","Completed","https://sede.agenciatributaria.gob.es/Sede/aduanas/estatuto-aduanero-mercancia.html?faqId=e91cc7756ab39710VgnVCM100000dc381e0aRCRD",null,null,{"$f":"'AN - Air'!W15","v":3.2},{"$f":"'AN - Air'!X15","v":"2024-03-08"}]
[null,{"$f":"formats!D13&\"-\"&formats!E13","v":"FI-Suomi/Finland"},null,null,null,null,null,null,null,"2024-03-01","Stable/Final","In progress",null,null,null,null,"2024-03-01","Stable/Final","In progress",null,null,null,{"$f":"'AN - Air'!W16","v":"13.00"},{"$f":"'AN - Air'!X16","v":"2024-03-22"},"Leila Lappalainen","leila.lappalainen@tulli.fi"]
[null,{"$f":"formats!D14&\"-\"&formats!E14","v":"FR-France"},null,null,null,null,null,null,null,"2024-03-01","Stable/Final","In progress",null,null,null,null,"2024-03-01","Stable/Final","In progress",null,null,null,{"$f":"'AN - Air'!W17","v":1.2},{"$f":"'AN - Air'!X17","v":"2024-02-07"},"Office COMINT 1 DGDDI","dg-comint1-transit@douane.finances.gouv.fr"]
[null,{"$f":"formats!D15&\"-\"&formats!E15","v":"HR-Hrvatska"},null,null,null,null,null,null,null,"2024-03-01","Stable/Final","In progress",null,null,null,null,"2024-01-03","Stable/Final","In progress",null,null,null,{"$f":"'AN - Air'!W18","v":9.1999999999999993},{"$f":"'AN - Air'!X18","v":"2024-03-19"},"Željko Franjić","zeljko.franjic@carina.hr",38516211375]
[null,{"$f":"formats!D16&\"-\"&formats!E16","v":"HU-Magyarország"},null,null,null,null,null,null,null,"2024-03-01","Stable/Final","In progress",null,null,null,null,"2024-03-01","Stable/Final","In progress",null,null,null,{"$f":"'AN - Air'!W19","v":11},{"$f":"'AN - Air'!X19","v":"2024-01-31"},"Erős Károly","uvk_mp_masp@nav.gov.hu",3614569517]
[null,{"$f":"formats!D17&\"-\"&formats!E17","v":"IE-Éire/Ireland"},null,null,null,null,null,null,null,"2024-03-01","Stable/Final","In progress",null,null,null,null,"2024-03-01","Stable/Final","In progress",null,null,null,{"$f":"'AN - Air'!W20","v":15.2},{"$f":"'AN - Air'!X20","v":"2024-03-21"},"Joe Cleary","jcleary@revenue.ie","00 353 67 63224"]
[null,{"$f":"formats!D18&\"-\"&formats!E18","v":"IT-Italia"},null,null,null,null,null,null,null,"2024-03-01","Stable/Final","In progress",null,null,null,null,"2024-03-01","Stable/Final","In progress",null,null,null,{"$f":"'AN - Air'!W21","v":1.01},{"$f":"'AN - Air'!X21","v":"2024-03-13"},"Giuseppe Urraci","Giuseppe.Urraci@adm.gov.it","+39 06 5024 3084"]
[null,{"$f":"formats!D19&\"-\"&formats!E19","v":"LT-Lietuva"},null,null,null,null,null,null,null,"2024-03-01","Stable/Final","In progress",null,null,null,null,"2024-03-01","Stable/Final","In progress",null,null,null,{"$f":"'AN - Air'!W22","v":13.1},{"$f":"'AN - Air'!X22","v":"2024-03-08"}]
[null,{"$f":"formats!D20&\"-\"&formats!E20","v":"LU-Luxembourg"},null,null,null,null,null,null,null,"2024-03-01","Stable/Final","In progress",null,null,null,null,"2024-03-01","Stable/Final","In progress",null,null,null,{"$f":"'AN - Air'!W23","v":1},{"$f":"'AN - Air'!X23","v":"2023-03-15"},"Robert Scheueren","it.npm@do.etat.lu","+352 621 306 782"]
[null,{"$f":"formats!D21&\"-\"&formats!E21","v":"LV-Latvija"},null,null,null,null,null,null,null,"2024-03-01","Stable/Final","In progress",null,null,null,null,"2024-03-01","Stable/Final","In progress",null,null,null,{"$f":"'AN - Air'!W24","v":3},{"$f":"'AN - Air'!X24","v":"2024-03-08"},"Iluta Millina","iluta.millina@vid.gov.lv",37167121099]
[null,{"$f":"formats!D22&\"-\"&formats!E22","v":"MT-Malta"},null,null,null,null,null,null,null,"2024-03-01","Stable/Final","In progress",null,null,null,null,"2024-03-01","Stable/Final","Completed",null,null,null,{"$f":"'AN - Air'!W25","v":"3.02"},{"$f":"'AN - Air'!X25","v":"2024-03-20"},"Shanel Sciriha","shanel.sciriha@gov.mt",35623783084]
[null,{"$f":"formats!D23&\"-\"&formats!E23","v":"NL-Nederland"},null,null,null,null,null,null,null,"2024-03-01","Stable/Final","In progress",null,null,null,null,"2024-03-01","Stable/Final","In progress",null,null,null,{"$f":"'AN - Air'!W26","v":"3.00"},{"$f":"'AN - Air'!X26","v":"2024-04-05"},"National Helpdesk Dutch Customs","NHD.apeldoorn@douane.nl","(+31)(0)88 156 6655"]
[null,{"$f":"formats!D24&\"-\"&formats!E24","v":"PL-Polska"},"2023-09-15",null,null,"2023-09-16","2024-02-29",null,null,"2024-03-01",null,null,null,null,null,null,"2024-03-01",null,null,"https://puesc.gov.pl/en/puesc",null,null,{"$f":"'AN - Air'!W27","v":"3.20"},{"$f":"'AN - Air'!X27","v":"2024-03-11"}]
[null,{"$f":"formats!D25&\"-\"&formats!E25","v":"PT-Portugal"},null,null,null,null,null,null,null,"2024-03-01","Stable/Final","In progress",null,null,null,null,"2024-03-01","Stable/Final","In progress",null,null,null,{"$f":"'AN - Air'!W28","v":7.2},{"$f":"'AN - Air'!X28","v":"2024-04-05"},"Isabel Santos","Isabel.Silva.Santos@at.gov.pt","00351 218 813 984"]
[null,{"$f":"formats!D26&\"-\"&formats!E26","v":"RO-România "},null,null,null,null,null,null,null,"2024-03-01","Stable/Final","In progress",null,null,null,null,"2024-03-01","Stable/Final","In progress",null,null,null,{"$f":"'AN - Air'!W29","v":"3.00"},{"$f":"'AN - Air'!X29","v":"2024-03-25"}]
[null,{"$f":"formats!D27&\"-\"&formats!E27","v":"SE-Sverige"},null,null,null,null,null,null,null,"2024-03-01","Stable/Final","In progress",null,null,null,null,"2024-03-01","Stable/Final","In progress",null,null,null,{"$f":"'AN - Air'!W30","v":21},{"$f":"'AN - Air'!X30","v":"2024-03-08"},"Omid Bezaghian","ecustoms@tullverket.se"]
[null,{"$f":"formats!D28&\"-\"&formats!E28","v":"SI-Slovenija"},null,null,null,null,null,null,null,"2024-03-01","Stable/Final","In progress",null,null,null,null,"2024-03-01","Stable/Final","In progress",null,null,null,{"$f":"'AN - Air'!W31","v":16.02},{"$f":"'AN - Air'!X31","v":"2024-03-20"},"Mr. Laste Naumovski","sd.fu@gov.si","00386 1/478 38 75"]
[null,{"$f":"formats!D29&\"-\"&formats!E29","v":"SK-Slovensko"},null,null,null,null,null,null,null,"2024-03-01","Stable/Final","In progress",null,null,null,null,"2024-03-01","Stable/Final","In progress",null,null,null,{"$f":"'AN - Air'!W32","v":1},{"$f":"'AN - Air'!X32","v":"2024-03-08"},"Zuzana Magdolenová","zuzana.magdolenova@financnasprava.sk","00421 2 48273233"]

{"sheet":"PoUS-P2","index":23,"n_rows":32,"n_cols":27,"rows_kept":32,"cut":false,"hidden":false,"merged":[[2,24,2,26],[3,2,3,4],[3,5,3,8],[3,9,3,11],[3,12,3,15],[3,16,3,18],[2,2,2,4],[2,5,2,8],[2,9,2,11],[2,12,2,15],[2,16,2,18],[2,22,2,23]]}
[]
[]
[null,null,"Technical Specifications",null,null,"Conformance Testing",null,null,null,"Deployment",null,null,"Migration",null,null,null,"Operations",null,null,"Web","Notes","Derogations","Version information and issue date",null,"Project Manager Details"]
[null,null,"The date of publication of the technical specifications for the external communication on the electronic system",null,null,"The period of conformance testing with economic operators",null,null,null,"The date of deployment of the electronic system",null,null,"Where applicable, the period during which the economic operators are allowed to carry out migration",null,null,null,"Start of Operations for all economic operators (end of transition period)",null,null,"Web address of specifications for EO's",null,"If a derogation under Art 6(4) UCC was granted, please indicate the activities carried out and the state of development in order to reach the derogation deadline."]
[null,{"$f":"formats!A18","v":"UCC Proof of Union Status (PoUS) - Phase 2"},"Date","Status","Progress","Start Date","End Date","Status","Progress","Date","Status","Progress","Start Date","End Date","Status","Progress","Date","Status","Progress","Web address","Note/Comment","Note/Comment","Version Number","Issue Date","Project Mgr Name","e-Mail","Phone"]
[null,{"$f":"formats!D3&\"-\"&formats!E3","v":"AT-Österreich"},null,null,null,null,null,null,null,"2025-08-15","Indicative","Not started",null,null,null,null,"2025-08-15","Indicative","Not started",null,null,null,{"$f":"'AN - Air'!W6","v":13},{"$f":"'AN - Air'!X6","v":"2024-03-18"},"Peter Frühwirt","peter.fruehwirt@bmf.gv.at","0043-1-51433-504159"]
[null,{"$f":"formats!D4&\"-\"&formats!E4","v":"BE-Belgique/België"},null,null,null,null,null,null,null,"2025-08-15","Indicative","Not started",null,null,null,null,"2025-08-15","Indicative","Not started",null,null,null,{"$f":"'AN - Air'!W7","v":"4.00"},{"$f":"'AN - Air'!X7","v":"2024-02-20"},"Joelle Lauwers\nSven Abels (Service manager)","joelle.lauwers@minfin.fed.be\nsven.abels@minfin.fed.be"]
[null,{"$f":"formats!D5&\"-\"&formats!E5","v":"BG-България"},null,null,null,null,null,null,null,"2025-08-15","Indicative","Not started",null,null,null,null,"2025-08-15","Indicative","Not started",null,null,null,{"$f":"'AN - Air'!W8","v":"10.01"},{"$f":"'AN - Air'!X8","v":"2024-03-01"},"Yordanka Stoyanova","masp_bg@customs.bg","00359 2 9859 4180"]
[null,{"$f":"formats!D6&\"-\"&formats!E6","v":"CY-Κύπρος"},null,null,null,null,null,null,null,"2025-08-15","Indicative","Not started",null,null,null,null,"2025-08-15","Indicative","Not started",null,null,null,{"$f":"'AN - Air'!W9","v":7},{"$f":"'AN - Air'!X9","v":"2024-04-26"},"Theofanis Neocleous","tneocleous@customs.mof.gov.cy",35722601717]
[null,{"$f":"formats!D7&\"-\"&formats!E7","v":"CZ-Česká republika"},null,null,null,null,null,null,null,"2025-08-15","Indicative","Not started",null,null,null,null,"2025-08-15","Indicative","Not started",null,null,null,{"$f":"'AN - Air'!W10","v":"1.5"},{"$f":"'AN - Air'!X10","v":"2024-05-16"},"Petr Maruška","NPP.MASP@cs.mfcr.cz","420/261332637"]
[null,{"$f":"formats!D8&\"-\"&formats!E8","v":"DE-Deutschland"},null,null,null,null,null,null,null,"2025-08-15","Indicative","Not started",null,null,null,null,"2025-08-15","Indicative","Not started",null,null,null,{"$f":"'AN - Air'!W11","v":"7.00"},{"$f":"'AN - Air'!X11","v":"2024-03-20"},"Michael Schröter","DIIB12.gzd@zoll.bund.de","0049(0)228/303-21096"]
[null,{"$f":"formats!D9&\"-\"&formats!E9","v":"DK-Danmark"},null,null,null,null,null,null,null,"2025-08-15","Indicative","Not started",null,null,null,null,"2025-08-15","Indicative","Not started",null,null,null,{"$f":"'AN - Air'!W12","v":1},{"$f":"'AN - Air'!X12","v":"2024-04-15"},"Sadik Zeki Topcu","szt@UFST.DK","+45 7238 9320"]
[null,{"$f":"formats!D10&\"-\"&formats!E10","v":"EE-Eesti"},null,null,null,null,null,null,null,"2025-08-15","Indicative","Not started",null,null,null,null,"2025-08-15","Indicative","Not started",null,null,null,{"$f":"'AN - Air'!W13","v":17},{"$f":"'AN - Air'!X13","v":"2024-03-25"},"Mario Peterson","PoUS-NPM-EE@emta.ee","00 372 53358644"]
[null,{"$f":"formats!D11&\"-\"&formats!E11","v":"GR-Ελλάδα"},null,null,null,null,null,null,null,"2025-08-15","Indicative","Not started",null,null,null,null,"2025-08-15","Indicative","Not started",null,null,null,{"$f":"'AN - Air'!W14","v":6.1},{"$f":"'AN - Air'!X14","v":"2024-03-08"},"Ms Gavgiotaki","NCTS_NPM@AADE.GR","0030-2131356723"]
[null,{"$f":"formats!D12&\"-\"&formats!E12","v":"ES-España"},"2024-06-30","Indicative","Not started","2025-01-15","2025-08-15","Indicative","Not started","2025-05-16","Indicative","Not started","2025-05-16","2025-08-15","Indicative","Not started","2025-08-15","Indicative","Not started",null,null,null,{"$f":"'AN - Air'!W15","v":3.2},{"$f":"'AN - Air'!X15","v":"2024-03-08"}]
[null,{"$f":"formats!D13&\"-\"&formats!E13","v":"FI-Suomi/Finland"},null,null,null,null,null,null,null,"2025-08-15","Indicative","Not started",null,null,null,null,"2025-08-15","Indicative","Not started",null,null,null,{"$f":"'AN - Air'!W16","v":"13.00"},{"$f":"'AN - Air'!X16","v":"2024-03-22"},"Leila Lappalainen","leila.lappalainen@tulli.fi"]
[null,{"$f":"formats!D14&\"-\"&formats!E14","v":"FR-France"},null,null,null,null,null,null,null,"2025-08-15","Indicative","Not started",null,null,null,null,"2025-08-15","Indicative","Not started",null,null,null,{"$f":"'AN - Air'!W17","v":1.2},{"$f":"'AN - Air'!X17","v":"2024-02-07"},"Office COMINT 1 DGDDI","dg-comint1-transit@douane.finances.gouv.fr"]
[null,{"$f":"formats!D15&\"-\"&formats!E15","v":"HR-Hrvatska"},null,null,null,null,null,null,null,"2025-08-15","Indicative","Not started",null,null,null,null,"2025-08-15","Indicative","Not started",null,null,null,{"$f":"'AN - Air'!W18","v":9.1999999999999993},{"$f":"'AN - Air'!X18","v":"2024-03-19"},"Željko Franjić","zeljko.franjic@carina.hr",38516211375]
[null,{"$f":"formats!D16&\"-\"&formats!E16","v":"HU-Magyarország"},null,null,null,null,null,null,null,"2025-08-15","Indicative","Not started",null,null,null,null,"2025-08-15","Indicative","Not started",null,null,null,{"$f":"'AN - Air'!W19","v":11},{"$f":"'AN - Air'!X19","v":"2024-01-31"},"Erős Károly","uvk_mp_masp@nav.gov.hu",3614569517]
[null,{"$f":"formats!D17&\"-\"&formats!E17","v":"IE-Éire/Ireland"},null,null,null,null,null,null,null,"2025-08-15","Indicative","Not started",null,null,null,null,"2025-08-15","Indicative","Not started",null,null,null,{"$f":"'AN - Air'!W20","v":15.2},{"$f":"'AN - Air'!X20","v":"2024-03-21"},"Joe Cleary","jcleary@revenue.ie"]
[null,{"$f":"formats!D18&\"-\"&formats!E18","v":"IT-Italia"},null,null,null,null,null,null,null,"2025-08-15","Indicative","Not started",null,null,null,null,"2025-08-15","Indicative","Not started",null,null,null,{"$f":"'AN - Air'!W21","v":1.01},{"$f":"'AN - Air'!X21","v":"2024-03-13"},"Giuseppe Urraci","Giuseppe.Urraci@adm.gov.it","+39 06 5024 3084"]
[null,{"$f":"formats!D19&\"-\"&formats!E19","v":"LT-Lietuva"},null,null,null,null,null,null,null,"2025-08-15","Indicative","Not started",null,null,null,null,"2025-08-15","Indicative","Not started",null,null,null,{"$f":"'AN - Air'!W22","v":13.1},{"$f":"'AN - Air'!X22","v":"2024-03-08"}]
[null,{"$f":"formats!D20&\"-\"&formats!E20","v":"LU-Luxembourg"},null,null,null,null,null,null,null,"2025-08-15","Indicative","Not started",null,null,null,null,"2025-08-15","Indicative","Not started",null,null,null,{"$f":"'AN - Air'!W23","v":1},{"$f":"'AN - Air'!X23","v":"2023-03-15"},"Robert Scheueren","it.npm@do.etat.lu","+352 621 306 782"]
[null,{"$f":"formats!D21&\"-\"&formats!E21","v":"LV-Latvija"},null,null,null,null,null,null,null,"2025-08-15","Indicative","Not started",null,null,null,null,"2025-08-15","Indicative","Not started",null,null,null,{"$f":"'AN - Air'!W24","v":3},{"$f":"'AN - Air'!X24","v":"2024-03-08"},"Iluta Millina","iluta.millina@vid.gov.lv",37167121099]
[null,{"$f":"formats!D22&\"-\"&formats!E22","v":"MT-Malta"},null,null,null,null,null,null,null,"2025-08-15","Indicative","Not started",null,null,null,null,"2025-08-15","Indicative","Not started",null,null,null,{"$f":"'AN - Air'!W25","v":"3.02"},{"$f":"'AN - Air'!X25","v":"2024-03-20"},"Shanel Sciriha","shanel.sciriha@gov.mt",35623783084]
[null,{"$f":"formats!D23&\"-\"&formats!E23","v":"NL-Nederland"},null,null,null,null,null,null,null,"2025-08-15","Indicative","Not started",null,null,null,null,"2025-08-15","Indicative","Not started",null,null,null,{"$f":"'AN - Air'!W26","v":"3.00"},{"$f":"'AN - Air'!X26","v":"2024-04-05"},"National Helpdesk Dutch Customs","NHD.apeldoorn@douane.nl","(+31)(0)88 156 6655"]
[null,{"$f":"formats!D24&\"-\"&formats!E24","v":"PL-Polska"},"2024-12-31","Indicative",null,"2025-01-01","2025-08-01","Indicative",null,"2025-08-15","indicative",null,null,null,null,null,"2025-08-15","indicative",null,"https://puesc.gov.pl/en/puesc",null,null,{"$f":"'AN - Air'!W27","v":"3.20"},{"$f":"'AN - Air'!X27","v":"2024-03-11"}]
[null,{"$f":"formats!D25&\"-\"&formats!E25","v":"PT-Portugal"},null,null,null,null,null,null,null,"2025-08-15","Indicative","Not started",null,null,null,null,"2025-08-15","Indicative","Not started",null,null,null,{"$f":"'AN - Air'!W28","v":7.2},{"$f":"'AN - Air'!X28","v":"2024-04-05"},"Isabel Santos","Isabel.Silva.Santos@at.gov.pt","00351 218 813 984"]
[null,{"$f":"formats!D26&\"-\"&formats!E26","v":"RO-România "},null,null,null,null,null,null,null,"2025-08-15","Indicative","Not started",null,null,null,null,"2025-08-15","Indicative","Not started",null,null,null,{"$f":"'AN - Air'!W29","v":"3.00"},{"$f":"'AN - Air'!X29","v":"2024-03-25"}]
[null,{"$f":"formats!D27&\"-\"&formats!E27","v":"SE-Sverige"},null,null,null,null,null,null,null,"2025-08-15","Indicative","Not started",null,null,null,null,"2025-08-15","Indicative","Not started",null,null,null,{"$f":"'AN - Air'!W30","v":21},{"$f":"'AN - Air'!X30","v":"2024-03-08"},"Omid Bezaghian","ecustoms@tullverket.se"]
[null,{"$f":"formats!D28&\"-\"&formats!E28","v":"SI-Slovenija"},null,null,null,null,null,null,null,"2025-08-15","Indicative","Not started",null,null,null,null,"2025-08-15","Indicative","Not started",null,null,null,{"$f":"'AN - Air'!W31","v":16.02},{"$f":"'AN - Air'!X31","v":"2024-03-20"},"Mr. Laste Naumovski","sd.fu@gov.si","00386 1/478 38 75"]
[null,{"$f":"formats!D29&\"-\"&formats!E29","v":"SK-Slovensko"},null,null,null,null,null,null,null,"2025-08-15","Indicative","Not started",null,null,null,null,"2025-08-15","Indicative","Not started",null,null,null,{"$f":"'AN - Air'!W32","v":1},{"$f":"'AN - Air'!X32","v":"2024-03-08"},"Zuzana Magdolenová","zuzana.magdolenova@financnasprava.sk","00421 2 48273233"]

{"sheet":"ICS2(1)","index":24,"n_rows":32,"n_cols":32,"rows_kept":32,"cut":false,"hidden":true,"merged":[[3,5,3,6],[3,8,3,10],[3,12,3,13],[3,15,3,17],[3,19,3,20]]}
[]
[]
[null,null,null,null,null,"Technical Specs",null,null,"CT",null,null,null,"Deployment",null,null,"Migration",null,null,null,"Operations",null,null,"Web",null,"Notes",null,"Version information and issue date",null,null,"Project Mgr Details"]
[null,null,null,null,null,{"$f":"formats!#REF!","v":{"$error":"#REF!"}},null,null,{"$f":"formats!#REF!","v":{"$error":"#REF!"}},null,null,null,{"$f":"formats!#REF!","v":{"$error":"#REF!"}},null,null,{"$f":"formats!#REF!","v":{"$error":"#REF!"}},null,null,null,{"$f":"formats!#REF!","v":{"$error":"#REF!"}},null,null,"Web address of specifications for EO's"]
[null,null,{"$f":"formats!A20","v":0},"Filter",null,"Date","Status",null,"Start Date","End Date","Status",null,"Date","Status",null,"Start Date","End Date","Status",null,"Date","Status",null,"Web address",null,"Note/Comment",null,"Version Number","Issue Date",null,"Project Mgr Name","e-Mail","Phone"]
[null,null,{"$f":"formats!D3&\"-\"&formats!E3","v":"AT-Österreich"},null,null,"N/A","stable/final",null,"2021-05-20","2021-05-31","stable/final",null,"2021-06-06","stable/final",null,null,null,null,null,"2021-07-01","stable/final",null,"ICS2 - Import Control System (bmf.gv.at)",null,null,null,{"$f":"IF(#REF!=\"\",\"\",#REF!)","v":{"$error":"#REF!"}},{"$f":"IF(#REF!=\"\",\"\",#REF!)","v":{"$error":"#REF!"}},null,"Manfred Winterleitner ","manfred.winterleitner@bmf.gv.at","0043-1-51433-504157"]
[null,null,{"$f":"formats!D4&\"-\"&formats!E4","v":"BE-Belgique/België"},null,null,null,null,null,null,null,null,null,"2021-03-15","stable/final",null,null,null,null,null,"2021-03-15","stable/final",null,"https://financien.belgium.be/nl/douane_accijnzen/ondernemingen/applicaties-da/technische-documentatie-0",null,null,null,{"$f":"IF(#REF!=\"\",\"\",#REF!)","v":{"$error":"#REF!"}},{"$f":"IF(#REF!=\"\",\"\",#REF!)","v":{"$error":"#REF!"}},null,"Alejandro Maria Aragon","alejandro.mariaaragon@minfin.fed.be"]
[null,null,{"$f":"formats!D5&\"-\"&formats!E5","v":"BG-България"},null,null,null,null,null,"2021-01-25","2021-04-10","stable/final",null,"2021-03-01","stable/final",null,null,null,null,null,"2021-04-17","stable/final",null,"https://ep.customs.bg/eportal/",null,"Deployed on production environment on 17.04.2021",null,{"$f":"IF(#REF!=\"\",\"\",#REF!)","v":{"$error":"#REF!"}},{"$f":"IF(#REF!=\"\",\"\",#REF!)","v":{"$error":"#REF!"}},null,"Milena Ivanova","masp_bg@customs.bg","0035952689531"]
[null,null,{"$f":"formats!D6&\"-\"&formats!E6","v":"CY-Κύπρος"},null,null,"2020-01-31","stable/final",null,"2021-03-31","2021-05-14","stable/final",null,"2021-05-14","stable/final",null,null,null,null,null,"2021-10-01","stable/final",null,null,null,null,null,{"$f":"IF(#REF!=\"\",\"\",#REF!)","v":{"$error":"#REF!"}},{"$f":"IF(#REF!=\"\",\"\",#REF!)","v":{"$error":"#REF!"}},null,"Zinonas Zinonos","zzinonos@customs.mof.gov.cy",35722601673]
[null,null,{"$f":"formats!D7&\"-\"&formats!E7","v":"CZ-Česká republika"},null,null,"2020-11-26","stable/final",null,"2021-01-01","2021-03-14","stable/final",null,"2021-03-15","stable/final",null,null,null,null,null,"2021-03-15","stable/final",null,null,null,null,null,{"$f":"IF(#REF!=\"\",\"\",#REF!)","v":{"$error":"#REF!"}},{"$f":"IF(#REF!=\"\",\"\",#REF!)","v":{"$error":"#REF!"}},null,"Miloslav Šlegr","NPP.MASP@cs.mfcr.cz","420/261332631"]
[null,null,{"$f":"formats!D8&\"-\"&formats!E8","v":"DE-Deutschland"},null,null,null,null,null,null,null,null,null,"2021-03-06","stable/final",null,null,null,null,null,null,null,null,"Not applicable",null,"This Phase is already implemented as part of the national IT-System ATLAS (Release 9.1)",null,{"$f":"IF(#REF!=\"\",\"\",#REF!)","v":{"$error":"#REF!"}},{"$f":"IF(#REF!=\"\",\"\",#REF!)","v":{"$error":"#REF!"}},null,"Michael Schröter","DIIB12.gzd@zoll.bund.de","0049(0)228/303-21096"]
[null,null,{"$f":"formats!D9&\"-\"&formats!E9","v":"DK-Danmark"},null,null,"2021-03-15","stable/final",null,"2021-08-30","2022-03-23","stable/final",null,"2021-10-01","stable/final",null,"2021-10-01","2021-10-01","stable/final",null,"2021-10-01","stable/final",null,null,null,null,null,{"$f":"IF(#REF!=\"\",\"\",#REF!)","v":{"$error":"#REF!"}},{"$f":"IF(#REF!=\"\",\"\",#REF!)","v":{"$error":"#REF!"}},null,"Mette Ehlers Mikkelsen","Mette.Mikkelsen@ufst.dk","+45 7238 2223"]
[null,null,{"$f":"formats!D10&\"-\"&formats!E10","v":"EE-Eesti"},null,null,"2020-09-30","stable/final",null,null,null,"stable/final",null,"2021-03-15","stable/final",null,"2021-03-15","2021-03-15","stable/final",null,"2021-03-15","stable/final",null,"https://www.emta.ee/ariklient/toll-\nkaubavahetus/tolliinfosusteemid/tolliinfosusteemide-kasutajatele",null,null,null,{"$f":"IF(#REF!=\"\",\"\",#REF!)","v":{"$error":"#REF!"}},{"$f":"IF(#REF!=\"\",\"\",#REF!)","v":{"$error":"#REF!"}},null,"Leili Kristovald","ICS2-NPM-EE@emta.ee","00 372 676 1041"]
[null,null,{"$f":"formats!D11&\"-\"&formats!E11","v":"GR-Ελλάδα"},null,null,"2021-06-30","stable/final",null,"2021-09-30","2022-09-30","stable/final",null,"2021-09-30","stable/final",null,null,null,null,null,"2021-09-30","stable/final",null,"https://www.aade.gr/customs",null,null,null,{"$f":"IF(#REF!=\"\",\"\",#REF!)","v":{"$error":"#REF!"}},{"$f":"IF(#REF!=\"\",\"\",#REF!)","v":{"$error":"#REF!"}}]
[null,null,{"$f":"formats!D12&\"-\"&formats!E12","v":"ES-España"},null,null,null,null,null,null,null,null,null,null,null,null,null,null,null,null,null,null,null,null,null,null,null,{"$f":"IF(#REF!=\"\",\"\",#REF!)","v":{"$error":"#REF!"}},{"$f":"IF(#REF!=\"\",\"\",#REF!)","v":{"$error":"#REF!"}}]
[null,null,{"$f":"formats!D13&\"-\"&formats!E13","v":"FI-Suomi/Finland"},null,null,"2020-03-31","stable/final",null,"2020-06-30","2021-03-31","stable/final",null,"2021-03-31","stable/final",null,"2021-03-31","2021-09-30","stable/final",null,"2021-03-31","stable/final",null,null,null,null,null,{"$f":"IF(#REF!=\"\",\"\",#REF!)","v":{"$error":"#REF!"}},{"$f":"IF(#REF!=\"\",\"\",#REF!)","v":{"$error":"#REF!"}},null,"Leila Lappalainen","leila.lappalainen@tulli.fi"]
[null,null,{"$f":"formats!D14&\"-\"&formats!E14","v":"FR-France"},null,null,"NA",null,null,"NA","NA",null,null,"2021-03-31","stable/final",null,"2021-03-31","2021-03-31","stable/final",null,"2021-03-31","stable/final",null,"www.douane.gouv.fr  > Services et Aide > Tout sur les services et aides > EDI",null,null,null,{"$f":"IF(#REF!=\"\",\"\",#REF!)","v":{"$error":"#REF!"}},{"$f":"IF(#REF!=\"\",\"\",#REF!)","v":{"$error":"#REF!"}},null,"Office JCF 2 DGDDI","Veille-ics-dg@douane.finances.gouv.fr"]
[null,null,{"$f":"formats!D15&\"-\"&formats!E15","v":"HR-Hrvatska"},null,null,null,"stable/final",null,null,null,"stable/final",null,"2021-03-01","stable/final",null,null,"2021-10-01","stable/final",null,"2021-10-01","stable/final",null,"https://carina.gov.hr ",null,null,null,{"$f":"IF(#REF!=\"\",\"\",#REF!)","v":{"$error":"#REF!"}},{"$f":"IF(#REF!=\"\",\"\",#REF!)","v":{"$error":"#REF!"}},null,"Albert Đurđević","albert.durdevic@carina.hr ",38516211536]
[null,null,{"$f":"formats!D16&\"-\"&formats!E16","v":"HU-Magyarország"},null,null,"2020-01-01","stable/final",null,"2021-02-22","2021-03-08","stable/final",null,"2021-03-15","stable/final",null,null,null,null,null,"2021-03-15","stable/final",null,"https://openkkk.nav.gov.hu/default.aspx?RootFolder=%2FDokumentumok%2FSpecifik%C3%A1ci%C3%B3k&FolderCTID=&View=%7B33F087E2-CEC9-4020-A148-2852161E114C%7D",null,null,null,{"$f":"IF(#REF!=\"\",\"\",#REF!)","v":{"$error":"#REF!"}},{"$f":"IF(#REF!=\"\",\"\",#REF!)","v":{"$error":"#REF!"}},null,"Scodnik Balázs","uvk_mp_masp@nav.gov.hu",3614704296]
[null,null,{"$f":"formats!D17&\"-\"&formats!E17","v":"IE-Éire/Ireland"},null,null,"N/A","stable/final",null,"N/A","N/A","stable/final",null,"2021-03-15","stable/final",null,null,null,null,null,"2021-03-15","stable/final",null,"www.revenue.ie",null,"Link to EU Specs from Revenue Website",null,{"$f":"IF(#REF!=\"\",\"\",#REF!)","v":{"$error":"#REF!"}},{"$f":"IF(#REF!=\"\",\"\",#REF!)","v":{"$error":"#REF!"}},null,"Paul Paxman","UCCITDev@revenue.ie"]
[null,null,{"$f":"formats!D18&\"-\"&formats!E18","v":"IT-Italia"},null,null,"Already in operation",null,null,"Already in operation",null,null,null,"2021-03-15","stable/final",null,null,null,null,null,null,null,null,"https://www.adm.gov.it/portale/web/guest/home",null,"Already in production environment",null,{"$f":"IF(#REF!=\"\",\"\",#REF!)","v":{"$error":"#REF!"}},{"$f":"IF(#REF!=\"\",\"\",#REF!)","v":{"$error":"#REF!"}},null,"Sarah Melini","Sarah.Melini@adm.gov.it","+39 06 5024 6425"]
[null,null,{"$f":"formats!D19&\"-\"&formats!E19","v":"LT-Lietuva"},null,null,"2020-02-02","stable/final",null,"2020-11-01","2021-02-20","stable/final",null,"2021-03-14","stable/final",null,"2021-03-15","2021-09-30","stable/final",null,"2021-09-30","stable/final",null,"www.lrmuitine.lt",null,"Web Adres for EO is Central ICS2 system ",null,{"$f":"IF(#REF!=\"\",\"\",#REF!)","v":{"$error":"#REF!"}},{"$f":"IF(#REF!=\"\",\"\",#REF!)","v":{"$error":"#REF!"}},null,"Vitalis Vareikis","UCC_ICS2_R1R2R3-LT@lrmuitine.lt",37052666144]
[null,null,{"$f":"formats!D20&\"-\"&formats!E20","v":"LU-Luxembourg"},null,null,"2021-01-25","stable/final",null,null,null,null,null,"2021-03-15","stable/final",null,null,null,null,null,"2021-03-15","stable/final",null,"https://douanes.public.lu/fr/services-ligne/edouanes/LUCCS/ics2.html",null,"No migration.",null,{"$f":"IF(#REF!=\"\",\"\",#REF!)","v":{"$error":"#REF!"}},{"$f":"IF(#REF!=\"\",\"\",#REF!)","v":{"$error":"#REF!"}},null,"Robert Scheueren","it.npm@do.etat.lu","+352 621 306 782"]
[null,null,{"$f":"formats!D21&\"-\"&formats!E21","v":"LV-Latvija"},null,null,"2020-10-20","stable/final",null,"2021-02-15","2021-09-30","stable/final",null,"2021-08-10","stable/final",null,"N/A","N/A","stable/final",null,"2021-08-10","stable/final",null,"https://www.vid.gov.lv/lv/k%C4%81-lietot-emdas  ",null,null,null,{"$f":"IF(#REF!=\"\",\"\",#REF!)","v":{"$error":"#REF!"}},{"$f":"IF(#REF!=\"\",\"\",#REF!)","v":{"$error":"#REF!"}}]
[null,null,{"$f":"formats!D22&\"-\"&formats!E22","v":"MT-Malta"},null,null,null,null,null,null,null,null,null,null,null,null,null,null,null,null,null,null,null,"www.customs.gov.mt",null,"Launched on the 1st of october 2021",null,{"$f":"IF(#REF!=\"\",\"\",#REF!)","v":{"$error":"#REF!"}},{"$f":"IF(#REF!=\"\",\"\",#REF!)","v":{"$error":"#REF!"}},null,"Marco Catania","marco.l.catania@gov.mt",35625685209]
[null,null,{"$f":"formats!D23&\"-\"&formats!E23","v":"NL-Nederland"},null,null,null,"stable/final",null,null,null,"stable/final",null,"2021-03-15","stable/final",null,"2021-03-15","2021-10-01","stable/final",null,"2021-03-15","stable/final",null,null,null,null,null,{"$f":"IF(#REF!=\"\",\"\",#REF!)","v":{"$error":"#REF!"}},{"$f":"IF(#REF!=\"\",\"\",#REF!)","v":{"$error":"#REF!"}},null,"National Helpdesk Dutch Customs"]
[null,null,{"$f":"formats!D24&\"-\"&formats!E24","v":"PL-Polska"},null,null,"2021-06-15","stable/final",null,"2021-07-12","2021-07-30","stable/final",null,"2021-10-01","stable/final",null,null,null,null,null,null,null,null,null,null,null,null,{"$f":"IF(#REF!=\"\",\"\",#REF!)","v":{"$error":"#REF!"}},{"$f":"IF(#REF!=\"\",\"\",#REF!)","v":{"$error":"#REF!"}},null,"Beata Utylska","satos.ics2@mf.gov.pl","(+48) 12 62 90 201"]
[null,null,{"$f":"formats!D25&\"-\"&formats!E25","v":"PT-Portugal"},null,null,"2020-12-01","stable/final",null,"2021-02-01","2021-02-01","stable/final",null,"2021-03-14","stable/final",null,null,null,null,null,"2021-03-15","stable/final",null,"https://info-aduaneiro.portaldasfinancas.gov.pt/pt/informacao_aduaneira/Pages/default.aspx",null,null,null,{"$f":"IF(#REF!=\"\",\"\",#REF!)","v":{"$error":"#REF!"}},{"$f":"IF(#REF!=\"\",\"\",#REF!)","v":{"$error":"#REF!"}},null,"Ana Freitas Couto","Ana.Freitas.Couto@at.gov.pt","00351 218 813 872"]
[null,null,{"$f":"formats!D26&\"-\"&formats!E26","v":"RO-România "},null,null,null,null,null,"2021-09-01","2021-10-11","stable/final",null,"2021-10-01","stable/final",null,null,null,null,null,"2021-11-16","stable/final",null,"https://www.customs.ro/e-customs/ICS2/reglementari",null,null,null,{"$f":"IF(#REF!=\"\",\"\",#REF!)","v":{"$error":"#REF!"}},{"$f":"IF(#REF!=\"\",\"\",#REF!)","v":{"$error":"#REF!"}},null,"Loredana Iovu","loredana.iovu@customs.ro",40723220158]
[null,null,{"$f":"formats!D27&\"-\"&formats!E27","v":"SE-Sverige"},null,null,"NA",null,null,"NA",null,null,null,"2021-03-15","stable/final",null,null,null,null,null,"2021-03-15","stable/final",null,"https://www.tullverket.se/nyheter/nyheter/nyuppgiftslamningforpostochexpressforsandelserfraktademedflyg.5.422c8052175b1d827691fc0.html",null,null,null,{"$f":"IF(#REF!=\"\",\"\",#REF!)","v":{"$error":"#REF!"}},{"$f":"IF(#REF!=\"\",\"\",#REF!)","v":{"$error":"#REF!"}},null,"Johan Froby","underrattelseavd.npm.ics2@tullverket.se"]
[null,null,{"$f":"formats!D28&\"-\"&formats!E28","v":"SI-Slovenija"},null,null,"2019-10-01","stable/final",null,"2021-03-01","2021-03-13","stable/final",null,"2021-03-15","stable/final",null,"2021-03-15","2021-10-15","stable/final",null,"2021-10-15","stable/final",null,"e-Carina | FINANČNA UPRAVA REPUBLIKE SLOVENIJE (gov.si)",null,null,null,{"$f":"IF(#REF!=\"\",\"\",#REF!)","v":{"$error":"#REF!"}},{"$f":"IF(#REF!=\"\",\"\",#REF!)","v":{"$error":"#REF!"}},null,"M.Sc Milan Kušer","sd.fu@gov.si","00386 1/478 38 84"]
[null,null,{"$f":"formats!D29&\"-\"&formats!E29","v":"SK-Slovensko"},null,null,null,null,null,null,null,null,null,"2021-03-01","stable/final",null,null,null,null,null,null,null,null,null,null,null,null,{"$f":"IF(#REF!=\"\",\"\",#REF!)","v":{"$error":"#REF!"}},{"$f":"IF(#REF!=\"\",\"\",#REF!)","v":{"$error":"#REF!"}},null,"Igor Lalík","igor.lalik@financnasprava.sk"]